Workbook

Sheet 使い方・説明
C22: ①直接効果 | D22: 最初に入力した購入者価格は地域別に工場の出荷価格、卸、小売、運輸などのマージン に分割され、移輸入分は差し引かれています。
C23: ②第一次波及効果 | D23: 直接効果として発生した生産をまかなうために必要な原材料等の生産の誘発です。生産 は次々と誘発され、波及します。波及は無限に続きますが、次第に小さな値となり、一定の 値に収束します。
C24: ③第二次波及効果 | D24: 生産が増えたことで増加する雇用者所得が、消費に回ることで誘発される効果です。
C25: 生産波及 | D25: 直接効果、第1次間接効果、第2次間接効果の合計です。一般的に経済波及効果〇 〇億円という場合には、生産波及を意味します。
C26: 粗付加価値波及 | D26: 生産誘発効果が中間取引を含む生産額に対する効果なのに対し、粗付加価値誘発効 果は中間取引を除いた経済効果を示します。ＧＤＰ（国内総生産）への効果に相当す るものです。
C27: 雇用波及 | D27: 各部門が１単位の生産を行うのに必要な人数を雇用表から算出した上で、総合効果に 乗じることで、何人の就業が誘発されるかを見ることができます。

Sheet 波及効果分析
O7: 生産波及 | T7: 粗付加価値波及 | Y7: 雇用波及 | AG7: 生産波及 | AL7: 粗付加価値波及 | AQ7: 雇用波及
D8: 購入者価格ベース需要ベクトル | I8: 生産者価格ベース需要ベクトル | K8: 13部門コード | L8: 13部門部門名 | M8: 37部門コード | N8: 37部門部門名 | O8: ①直接効果 | P8: ②第一次波及効果 | Q8: ③第二次波及効果 | R8: 合計（＝①+②＋③） | T8: ①直接効果 | U8: ②第一次波及効果 | V8: ③第二次波及効果 | W8: 合計（＝①+②＋③） | Y8: ①直接効果 | Z8: ②第一次波及効果 | AA8: ③第二次波及効果 | AB8: 合計（＝①+②＋③） | AE8: 13部門コード | AF8: 13部門部門名 | AG8: ①直接効果 | AH8: ②第一次波及効果 | AI8: ③第二次波及効果 | AJ8: 合計（＝①+②＋③） | AL8: ①直接効果 | AM8: ②第一次波及効果 | AN8: ③第二次波及効果 | AO8: 合計（＝①+②＋③） | AQ8: ①直接効果 | AR8: ②第一次波及効果 | AS8: ③第二次波及効果 | AT8: 合計（＝①+②＋③）
B9: 01 | C9: 農林水産業 | K9: 01 | L9: 農林水産業 | M9: 01 | N9: 農林水産業 | R9: =SUM(O9:Q9) -> 0 | W9: =SUM(T9:V9) -> 0 | AB9: =SUM(Y9:AA9) -> 0 | AE9: 01 | AF9: 農林水産業 | AG9: =SUMIF($L:$L,$AF9,O:O) -> 0 | AH9: =SUMIF($L:$L,$AF9,P:P) -> 0 | AI9: =SUMIF($L:$L,$AF9,Q:Q) -> 0 | AJ9: =SUM(AG9:AI9) -> 0 | AL9: =SUMIF($L:$L,$AF9,T:T) -> 0 | AM9: =SUMIF($L:$L,$AF9,U:U) -> 0 | AN9: =SUMIF($L:$L,$AF9,V:V) -> 0 | AO9: =SUM(AL9:AN9) -> 0 | AQ9: =SUMIF($L:$L,$AF9,Y:Y) -> 0 | AR9: =SUMIF($L:$L,$AF9,Z:Z) -> 0 | AS9: =SUMIF($L:$L,$AF9,AA:AA) -> 0 | AT9: =SUM(AQ9:AS9) -> 0
B10: 06 | C10: 鉱業 | K10: 02 | L10: 鉱業 | M10: 06 | N10: 鉱業 | R10: =SUM(O10:Q10) -> 0 | W10: =SUM(T10:V10) -> 0 | AB10: =SUM(Y10:AA10) -> 0 | AE10: 02 | AF10: 鉱業 | AG10: 0 | AH10: 0 | AI10: 0 | AJ10: =SUM(AG10:AI10) -> 0 | AL10: 0 | AM10: 0 | AN10: 0 | AO10: =SUM(AL10:AN10) -> 0 | AQ10: 0 | AR10: 0 | AS10: 0 | AT10: =SUM(AQ10:AS10) -> 0
B11: 11 | C11: 飲食料品 | K11: 03 | L11: 製造業 | M11: 11 | N11: 飲食料品 | R11: 0 | W11: 0 | AB11: 0 | AE11: 03 | AF11: 製造業 | AG11: 0 | AH11: 0 | AI11: 0 | AJ11: 0 | AL11: 0 | AM11: 0 | AN11: 0 | AO11: 0 | AQ11: 0 | AR11: 0 | AS11: 0 | AT11: 0
B12: 15 | C12: 繊維製品 | K12: 03 | L12: 製造業 | M12: 15 | N12: 繊維製品 | R12: 0 | W12: 0 | AB12: 0 | AE12: 04 | AF12: 建設 | AG12: 0 | AH12: 0 | AI12: 0 | AJ12: 0 | AL12: 0 | AM12: 0 | AN12: 0 | AO12: 0 | AQ12: 0 | AR12: 0 | AS12: 0 | AT12: 0
B13: 16 | C13: パルプ・紙・木製品 | K13: 03 | L13: 製造業 | M13: 16 | N13: パルプ・紙・木製品 | R13: 0 | W13: 0 | AB13: 0 | AE13: 05 | AF13: 電力・ガス・水道 | AG13: 0 | AH13: 0 | AI13: 0 | AJ13: 0 | AL13: 0 | AM13: 0 | AN13: 0 | AO13: 0 | AQ13: 0 | AR13: 0 | AS13: 0 | AT13: 0
B14: 20 | C14: 化学製品 | K14: 03 | L14: 製造業 | M14: 20 | N14: 化学製品 | R14: 0 | W14: 0 | AB14: 0 | AE14: 06 | AF14: 商業 | AG14: 0 | AH14: 0 | AI14: 0 | AJ14: 0 | AL14: 0 | AM14: 0 | AN14: 0 | AO14: 0 | AQ14: 0 | AR14: 0 | AS14: 0 | AT14: 0
B15: 21 | C15: 石油・石炭製品 | K15: 03 | L15: 製造業 | M15: 21 | N15: 石油・石炭製品 | R15: 0 | W15: 0 | AB15: 0 | AE15: 07 | AF15: 金融・保険 | AG15: 0 | AH15: 0 | AI15: 0 | AJ15: 0 | AL15: 0 | AM15: 0 | AN15: 0 | AO15: 0 | AQ15: 0 | AR15: 0 | AS15: 0 | AT15: 0
B16: 22 | C16: プラスチック・ゴム | K16: 03 | L16: 製造業 | M16: 22 | N16: プラスチック・ゴム | R16: 0 | W16: 0 | AB16: 0 | AE16: 08 | AF16: 不動産 | AG16: 0 | AH16: 0 | AI16: 0 | AJ16: 0 | AL16: 0 | AM16: 0 | AN16: 0 | AO16: 0 | AQ16: 0 | AR16: 0 | AS16: 0 | AT16: 0
B17: 25 | C17: 窯業・土石製品 | K17: 03 | L17: 製造業 | M17: 25 | N17: 窯業・土石製品 | R17: 0 | W17: 0 | AB17: 0 | AE17: 09 | AF17: 運輸・郵便 | AG17: 0 | AH17: 0 | AI17: 0 | AJ17: 0 | AL17: 0 | AM17: 0 | AN17: 0 | AO17: 0 | AQ17: 0 | AR17: 0 | AS17: 0 | AT17: 0
B18: 26 | C18: 鉄鋼 | K18: 03 | L18: 製造業 | M18: 26 | N18: 鉄鋼 | R18: 0 | W18: 0 | AB18: 0 | AE18: 10 | AF18: 情報通信 | AG18: 0 | AH18: 0 | AI18: 0 | AJ18: 0 | AL18: 0 | AM18: 0 | AN18: 0 | AO18: 0 | AQ18: 0 | AR18: 0 | AS18: 0 | AT18: 0
B19: 27 | C19: 非鉄金属 | K19: 03 | L19: 製造業 | M19: 27 | N19: 非鉄金属 | R19: 0 | W19: 0 | AB19: 0 | AE19: 11 | AF19: 公務 | AG19: 0 | AH19: 0 | AI19: 0 | AJ19: 0 | AL19: 0 | AM19: 0 | AN19: 0 | AO19: 0 | AQ19: 0 | AR19: 0 | AS19: 0 | AT19: 0
B20: 28 | C20: 金属製品 | K20: 03 | L20: 製造業 | M20: 28 | N20: 金属製品 | R20: 0 | W20: 0 | AB20: 0 | AE20: 12 | AF20: サービス | AG20: 0 | AH20: 0 | AI20: 0 | AJ20: 0 | AL20: 0 | AM20: 0 | AN20: 0 | AO20: 0 | AQ20: 0 | AR20: 0 | AS20: 0 | AT20: 0
B21: 29 | C21: はん用機械 | K21: 03 | L21: 製造業 | M21: 29 | N21: はん用機械 | R21: 0 | W21: 0 | AB21: 0 | AE21: 13 | AF21: 分類不明 | AG21: 0 | AH21: 0 | AI21: 0 | AJ21: 0 | AL21: 0 | AM21: 0 | AN21: 0 | AO21: 0 | AQ21: 0 | AR21: 0 | AS21: 0 | AT21: 0
B22: 30 | C22: 生産用機械 | K22: 03 | L22: 製造業 | M22: 30 | N22: 生産用機械 | R22: 0 | W22: 0 | AB22: 0 | AE22: 合計 | AG22: =SUM(AG9:AG21) -> 0 | AH22: =SUM(AH9:AH21) -> 0 | AI22: 0 | AJ22: 0 | AL22: =SUM(AL9:AL21) -> 0 | AM22: =SUM(AM9:AM21) -> 0 | AN22: =SUM(AN9:AN21) -> 0 | AO22: 0 | AQ22: =SUM(AQ9:AQ21) -> 0 | AR22: =SUM(AR9:AR21) -> 0 | AS22: =SUM(AS9:AS21) -> 0 | AT22: 0
B23: 31 | C23: 業務用機械 | K23: 03 | L23: 製造業 | M23: 31 | N23: 業務用機械 | R23: 0 | W23: 0 | AB23: 0
B24: 32 | C24: 電子部品 | K24: 03 | L24: 製造業 | M24: 32 | N24: 電子部品 | R24: 0 | W24: 0 | AB24: 0
B25: 33 | C25: 電気機械 | K25: 03 | L25: 製造業 | M25: 33 | N25: 電気機械 | R25: 0 | W25: 0 | AB25: 0
B26: 34 | C26: 情報・通信機器 | K26: 03 | L26: 製造業 | M26: 34 | N26: 情報・通信機器 | R26: 0 | W26: 0 | AB26: 0
B27: 35 | C27: 輸送機械 | K27: 03 | L27: 製造業 | M27: 35 | N27: 輸送機械 | R27: 0 | W27: 0 | AB27: 0
B28: 39 | C28: その他の製造工業製品 | K28: 03 | L28: 製造業 | M28: 39 | N28: その他の製造工業製品 | R28: 0 | W28: 0 | AB28: 0
B29: 41 | C29: 建設 | K29: 04 | L29: 建設 | M29: 41 | N29: 建設 | R29: 0 | W29: 0 | AB29: 0
B30: 46 | C30: 電力・ガス・熱供給 | K30: 05 | L30: 電力・ガス・水道 | M30: 46 | N30: 電力・ガス・熱供給 | R30: 0 | W30: 0 | AB30: 0
B31: 47 | C31: 水道 | K31: 05 | L31: 電力・ガス・水道 | M31: 47 | N31: 水道 | R31: 0 | W31: 0 | AB31: 0
B32: 48 | C32: 廃棄物処理 | K32: 12 | L32: サービス | M32: 48 | N32: 廃棄物処理 | R32: 0 | W32: 0 | AB32: 0
B33: 51 | C33: 商業 | K33: 06 | L33: 商業 | M33: 51 | N33: 商業 | R33: 0 | W33: 0 | AB33: 0
B34: 53 | C34: 金融・保険 | K34: 07 | L34: 金融・保険 | M34: 53 | N34: 金融・保険 | R34: 0 | W34: 0 | AB34: 0
B35: 55 | C35: 不動産 | K35: 08 | L35: 不動産 | M35: 55 | N35: 不動産 | R35: 0 | W35: 0 | AB35: 0
B36: 57 | C36: 運輸・郵便 | K36: 09 | L36: 運輸・郵便 | M36: 57 | N36: 運輸・郵便 | R36: 0 | W36: 0 | AB36: 0
B37: 59 | C37: 情報通信 | K37: 10 | L37: 情報通信 | M37: 59 | N37: 情報通信 | R37: 0 | W37: 0 | AB37: 0
B38: 61 | C38: 公務 | K38: 11 | L38: 公務 | M38: 61 | N38: 公務 | R38: 0 | W38: 0 | AB38: 0
B39: 63 | C39: 教育・研究 | K39: 12 | L39: サービス | M39: 63 | N39: 教育・研究 | R39: 0 | W39: 0 | AB39: 0
B40: 64 | C40: 医療・福祉 | K40: 12 | L40: サービス | M40: 64 | N40: 医療・福祉 | R40: 0 | W40: 0 | AB40: 0
B41: 65 | C41: その他の非営利団体サービス | K41: 12 | L41: サービス | M41: 65 | N41: その他の非営利団体サービス | R41: 0 | W41: 0 | AB41: 0
B42: 66 | C42: 対事業所サービス | K42: 12 | L42: サービス | M42: 66 | N42: 対事業所サービス | R42: 0 | W42: 0 | AB42: 0
B43: 67 | C43: 対個人サービス | K43: 12 | L43: サービス | M43: 67 | N43: 対個人サービス | R43: 0 | W43: 0 | AB43: 0
B44: 68 | C44: 事務用品 | K44: 03 | L44: 製造業 | M44: 68 | N44: 事務用品 | R44: 0 | W44: 0 | AB44: 0
B45: 69 | C45: 分類不明 | K45: 13 | L45: 分類不明 | M45: 69 | N45: 分類不明 | R45: 0 | W45: 0 | AB45: 0
D46: =SUM(D9:D45) -> 0 | I46: =SUM(I9:I45) -> 0 | K46: 合計 | O46: =SUM(O9:O45) -> 0 | P46: 0 | Q46: 0 | R46: =SUM(R9:R45) -> 0 | T46: =SUM(T9:T45) -> 0 | U46: 0 | V46: 0 | W46: =SUM(W9:W45) -> 0 | Y46: =SUM(Y9:Y45) -> 0 | Z46: 0 | AA46: 0 | AB46: =SUM(AB9:AB45) -> 0

Sheet 結果
B3: ○○の需要増加による経済波及効果分析
B4: 【分析結果】～平成27年千葉市産業連関表（187部門表）による～
B7: ① 最終需要増加額（初期投資額）
E8: （単位：100万円）
C9: 最終需要額 | E9: =波及効果分析!D46 -> 0
C10: うち市内最終需要額 | E10: =波及効果分析!O46 -> 0
C11: 消費転換率 | E11: =消費性向!C9 -> 0.6494692079
C12: （平成27年家計調査年報）
B14: ② 分析結果
E16: 生産誘発額 | G16: 雇用誘発者数
D17: 区分 | F17: うち粗付加価値誘発額
E18: =+E8 -> （単位：100万円） | F18: =+E8 -> （単位：100万円） | G18: （人）
C19: 総合効果 | E19: =波及効果分析!R46 -> 0 | F19: =波及効果分析!W46 -> 0 | G19: =波及効果分析!AB46 -> 0
D20: 直接効果（市内需要額） | E20: =波及効果分析!O46 -> 0 | F20: =波及効果分析!T46 -> 0 | G20: =波及効果分析!Y46 -> 0
D21: 第１次間接波及効果 | E21: =波及効果分析!P46 -> 0 | F21: =波及効果分析!U46 -> 0 | G21: =波及効果分析!Z46 -> 0
D22: 第２次間接波及効果 | E22: =波及効果分析!Q46 -> 0 | F22: =波及効果分析!V46 -> 0 | G22: =波及効果分析!AA46 -> 0
C23: 市内需要額に対する波及倍率※1 | E23: =+IF(ISERROR(E19/E10),"",E19/E10) -> 
C24: 需要増加額に対する波及倍率※2 | E24: =+IF(ISERROR(E19/E9),"",E19/E9) -> 
C26: ※1 市内需要額に対する波及倍率＝総合効果÷市内最終需要額
C27: ※2 需要増加額に対する波及倍率＝総合効果÷最終需要額
C29: (注) 四捨五入の関係で、「合計」が、直接効果、第1次間接効果、第2次間接効果の総額と一致しない場合がある。

Sheet 取引額表 (hidden)
D7: 01 | E7: 06 | F7: 11 | G7: 15 | H7: 16 | I7: 20 | J7: 21 | K7: 22 | L7: 25 | M7: 26 | N7: 27 | O7: 28 | P7: 29 | Q7: 30 | R7: 31 | S7: 32 | T7: 33 | U7: 34 | V7: 35 | W7: 39 | X7: 41 | Y7: 46 | Z7: 47 | AA7: 48 | AB7: 51 | AC7: 53 | AD7: 55 | AE7: 57 | AF7: 59 | AG7: 61 | AH7: 63 | AI7: 64 | AJ7: 65 | AK7: 66 | AL7: 67 | AM7: 68 | AN7: 69 | AO7: 70 | AP7: 71 | AQ7: 72 | AR7: 73 | AS7: 74 | AT7: 75 | AU7: 76 | AV7: 77 | AW7: 78 | AX7: 79 | AY7: 80 | AZ7: 81 | BA7: 82 | BB7: 83 | BC7: 84 | BD7: 85 | BE7: 86 | BF7: 87 | BG7: 88 | BH7: 97
D8: 農林漁業 | E8: 鉱業 | F8: 飲食料品 | G8: 繊維製品 | H8: パルプ・紙・木製品 | I8: 化学製品 | J8: 石油・石炭製品 | K8: プラスチック・ゴム製品 | L8: 窯業・土石製品 | M8: 鉄鋼 | N8: 非鉄金属 | O8: 金属製品 | P8: はん用機械 | Q8: 生産用機械 | R8: 業務用機械 | S8: 電子部品 | T8: 電気機械 | U8: 情報通信機器 | V8: 輸送機械 | W8: その他の製造工業製品 | X8: 建設 | Y8: 電力・ガス・熱供給 | Z8: 水道 | AA8: 廃棄物処理 | AB8: 商業 | AC8: 金融・保険 | AD8: 不動産 | AE8: 運輸・郵便 | AF8: 情報通信 | AG8: 公務 | AH8: 教育・研究 | AI8: 医療・福祉 | AJ8: 他に分類されない会員制団体 | AK8: 対事業所サービス | AL8: 対個人サービス | AM8: 事務用品 | AN8: 分類不明 | AO8: 内生部門計 | AP8: 家計外消費支出（列） | AQ8: 民間消費支出 | AR8: 一般政府消費支出 | AS8: 市内総固定資本形成（公的） | AT8: 市内総固定資本形成（民間） | AU8: 在庫純増 | AV8: 調整項 | AW8: 市内最終需要計 | AX8: 市内需要合計 | AY8: 輸出 | AZ8: 移出 | BA8: 移輸出計 | BB8: 最終需要計 | BC8: 需要合計 | BD8: （控除）輸入 | BE8: （控除）移入 | BF8: （控除）移輸入計 | BG8: 最終需要部門計 | BH8: 市内生産額
B9: 01 | C9: 農林漁業 | D9: 1362 | E9: 0 | F9: 109554 | G9: 5 | H9: 134 | I9: 7 | J9: 0 | K9: 10 | L9: 2 | M9: 0 | N9: 0 | O9: 0 | P9: 0 | Q9: 0 | R9: 0 | S9: 0 | T9: 0 | U9: 0 | V9: 0 | W9: 1155 | X9: 364 | Y9: 0 | Z9: 0 | AA9: 0 | AB9: 98 | AC9: 0 | AD9: 1 | AE9: 0 | AF9: 0 | AG9: 8 | AH9: 667 | AI9: 1164 | AJ9: 53 | AK9: 5 | AL9: 8542 | AM9: 0 | AN9: 0 | AO9: 123131 | AP9: 418 | AQ9: 31025 | AR9: 0 | AS9: 0 | AT9: 1519 | AU9: -551 | AV9: 0 | AW9: 32411 | AX9: 155542 | AY9: 2 | AZ9: 6168 | BA9: 6170 | BB9: 38581 | BC9: 161712 | BD9: -61660 | BE9: -85554 | BF9: -147214 | BG9: -108633 | BH9: 14498
B10: 06 | C10: 鉱業 | D10: 0 | E10: 0 | F10: 61 | G10: 0 | H10: 3 | I10: 155 | J10: 57490 | K10: 0 | L10: 1296 | M10: 77642 | N10: 11 | O10: 6 | P10: 0 | Q10: 0 | R10: 1 | S10: 0 | T10: 0 | U10: 0 | V10: 0 | W10: 31 | X10: 2088 | Y10: 85377 | Z10: 0 | AA10: 0 | AB10: 1 | AC10: 0 | AD10: 0 | AE10: 2 | AF10: 0 | AG10: 2 | AH10: 5 | AI10: 1 | AJ10: 1 | AK10: 4 | AL10: 6 | AM10: 0 | AN10: 7 | AO10: 224190 | AP10: -39 | AQ10: 81 | AR10: 0 | AS10: 0 | AT10: 0 | AU10: 204 | AV10: 0 | AW10: 246 | AX10: 224436 | AY10: 0 | AZ10: 0 | BA10: 0 | BB10: 246 | BC10: 224436 | BD10: -201477 | BE10: -22927 | BF10: -224404 | BG10: -224158 | BH10: 32
B11: 11 | C11: 飲食料品 | D11: 1173 | E11: 0 | F11: 52324 | G11: 1 | H11: 5 | I11: 114 | J11: 0 | K11: 0 | L11: 23 | M11: 0 | N11: 0 | O11: 0 | P11: 0 | Q11: 0 | R11: 0 | S11: 0 | T11: 0 | U11: 0 | V11: 0 | W11: 45 | X11: 3 | Y11: 0 | Z11: 0 | AA11: 0 | AB11: 105 | AC11: 0 | AD11: 0 | AE11: 0 | AF11: 0 | AG11: 81 | AH11: 1740 | AI11: 3459 | AJ11: 33 | AK11: 2 | AL11: 52026 | AM11: 0 | AN11: 100 | AO11: 111234 | AP11: 5901 | AQ11: 235810 | AR11: 0 | AS11: 0 | AT11: 0 | AU11: 75253 | AV11: 0 | AW11: 316964 | AX11: 428198 | AY11: 1391 | AZ11: 172607 | BA11: 173998 | BB11: 490962 | BC11: 602196 | BD11: -35150 | BE11: -251778 | BF11: -286928 | BG11: 204034 | BH11: 315268
B12: 15 | C12: 繊維製品 | D12: 42 | E12: 0 | F12: 383 | G12: 359 | H12: 88 | I12: 8 | J12: 13 | K12: 30 | L12: 57 | M12: 263 | N12: 3 | O12: 30 | P12: 3 | Q12: 62 | R12: 6 | S12: 29 | T12: 7 | U12: 1 | V12: 0 | W12: 65 | X12: 1125 | Y12: 48 | Z12: 27 | AA12: 82 | AB12: 3214 | AC12: 525 | AD12: 14 | AE12: 748 | AF12: 314 | AG12: 1042 | AH12: 161 | AI12: 1445 | AJ12: 539 | AK12: 1386 | AL12: 1341 | AM12: 199 | AN12: 415 | AO12: 14074 | AP12: 776 | AQ12: 37881 | AR12: 0 | AS12: 2 | AT12: 3147 | AU12: 1001 | AV12: 0 | AW12: 42807 | AX12: 56881 | AY12: 33 | AZ12: 1345 | BA12: 1378 | BB12: 44185 | BC12: 58259 | BD12: -25027 | BE12: -31575 | BF12: -56602 | BG12: -12417 | BH12: 1657
B13: 16 | C13: パルプ・紙・木製品 | D13: 358 | E13: 0 | F13: 2554 | G13: 8 | H13: 4923 | I13: 78 | J13: 7 | K13: 79 | L13: 180 | M13: 272 | N13: 37 | O13: 81 | P13: 2 | Q13: 54 | R13: 80 | S13: 24 | T13: 79 | U13: 37 | V13: 0 | W13: 2630 | X13: 19567 | Y13: 296 | Z13: 96 | AA13: 145 | AB13: 6018 | AC13: 1713 | AD13: 258 | AE13: 1131 | AF13: 3840 | AG13: 382 | AH13: 1732 | AI13: 2748 | AJ13: 434 | AK13: 2050 | AL13: 2299 | AM13: 4443 | AN13: 222 | AO13: 58857 | AP13: 840 | AQ13: 5967 | AR13: 634 | AS13: 72 | AT13: 2811 | AU13: -912 | AV13: 0 | AW13: 9412 | AX13: 68269 | AY13: 52 | AZ13: 8628 | BA13: 8680 | BB13: 18092 | BC13: 76949 | BD13: -7065 | BE13: -48754 | BF13: -55819 | BG13: -37727 | BH13: 21130
B14: 20 | C14: 化学製品 | D14: 1103 | E14: 0 | F14: 2591 | G14: 111 | H14: 617 | I14: 6189 | J14: -108 | K14: 2448 | L14: 1034 | M14: 4173 | N14: 53 | O14: 337 | P14: 14 | Q14: 333 | R14: 119 | S14: 81 | T14: 89 | U14: 39 | V14: 13 | W14: 942 | X14: 1914 | Y14: 314 | Z14: 274 | AA14: 625 | AB14: 5 | AC14: 8 | AD14: 20 | AE14: 99 | AF14: 327 | AG14: 263 | AH14: 1377 | AI14: 63455 | AJ14: 51 | AK14: 2875 | AL14: 2784 | AM14: 94 | AN14: 250 | AO14: 94913 | AP14: 780 | AQ14: 25759 | AR14: 0 | AS14: 0 | AT14: 0 | AU14: -3288 | AV14: 0 | AW14: 23251 | AX14: 118164 | AY14: 3651 | AZ14: 9319 | BA14: 12970 | BB14: 36221 | BC14: 131134 | BD14: -17295 | BE14: -97319 | BF14: -114614 | BG14: -78393 | BH14: 16520
B15: 21 | C15: 石油・石炭製品 | D15: 54 | E15: 0 | F15: 1257 | G15: 0 | H15: 19 | I15: 151 | J15: 5893 | K15: 11 | L15: 475 | M15: 30294 | N15: 18 | O15: 91 | P15: 1 | Q15: 66 | R15: 12 | S15: 6 | T15: 10 | U15: 0 | V15: 0 | W15: 97 | X15: 3858 | Y15: 8863 | Z15: 405 | AA15: 526 | AB15: 1227 | AC15: 179 | AD15: 265 | AE15: 27555 | AF15: 213 | AG15: 3139 | AH15: 1175 | AI15: 1006 | AJ15: 79 | AK15: 1371 | AL15: 2039 | AM15: 0 | AN15: 8749 | AO15: 99104 | AP15: 157 | AQ15: 40748 | AR15: 0 | AS15: 0 | AT15: 0 | AU15: 5598 | AV15: 0 | AW15: 46503 | AX15: 145607 | AY15: 1 | AZ15: 3616 | BA15: 3617 | BB15: 50120 | BC15: 149224 | BD15: -13007 | BE15: -57379 | BF15: -70386 | BG15: -20266 | BH15: 78838
B16: 22 | C16: プラスチック・ゴム製品 | D16: 111 | E16: 0 | F16: 2623 | G16: 24 | H16: 400 | I16: 145 | J16: 3 | K16: 3023 | L16: 83 | M16: 638 | N16: 15 | O16: 91 | P16: 103 | Q16: 3226 | R16: 495 | S16: 166 | T16: 341 | U16: 98 | V16: 39 | W16: 1513 | X16: 4656 | Y16: 0 | Z16: 1245 | AA16: 578 | AB16: 4125 | AC16: 955 | AD16: 352 | AE16: 939 | AF16: 1565 | AG16: 567 | AH16: 749 | AI16: 921 | AJ16: 169 | AK16: 5070 | AL16: 1109 | AM16: 485 | AN16: 342 | AO16: 36964 | AP16: 178 | AQ16: 6632 | AR16: 2 | AS16: 0 | AT16: 0 | AU16: -663 | AV16: 0 | AW16: 6149 | AX16: 43113 | AY16: 283 | AZ16: 11603 | BA16: 11886 | BB16: 18035 | BC16: 54999 | BD16: -8057 | BE16: -34063 | BF16: -42120 | BG16: -24085 | BH16: 12879
B17: 25 | C17: 窯業・土石製品 | D17: 20 | E17: 0 | F17: 131 | G17: 1 | H17: 69 | I17: 77 | J17: 49 | K17: 40 | L17: 1740 | M17: 2727 | N17: 16 | O17: 107 | P17: 46 | Q17: 210 | R17: 53 | S17: 195 | T17: 50 | U17: 5 | V17: 0 | W17: 115 | X17: 19239 | Y17: 11 | Z17: 149 | AA17: 19 | AB17: 154 | AC17: 2 | AD17: 43 | AE17: 4 | AF17: 0 | AG17: 51 | AH17: 580 | AI17: 403 | AJ17: 7 | AK17: 345 | AL17: 504 | AM17: 51 | AN17: 167 | AO17: 27380 | AP17: 122 | AQ17: 1664 | AR17: 0 | AS17: 0 | AT17: 0 | AU17: -1882 | AV17: 0 | AW17: -96 | AX17: 27284 | AY17: 1842 | AZ17: 20177 | BA17: 22019 | BB17: 21923 | BC17: 49303 | BD17: -1629 | BE17: -23529 | BF17: -25158 | BG17: -3235 | BH17: 24145
B18: 26 | C18: 鉄鋼 | D18: 0 | E18: 0 | F18: 0 | G18: 0 | H18: 444 | I18: 0 | J18: 0 | K18: 23 | L18: 253 | M18: 579085 | N18: 0 | O18: 9539 | P18: 682 | Q18: 9328 | R18: 116 | S18: 24 | T18: 341 | U18: 33 | V18: 84 | W18: 63 | X18: 8553 | Y18: 0 | Z18: 0 | AA18: 0 | AB18: 0 | AC18: 0 | AD18: 0 | AE18: 56 | AF18: 0 | AG18: 7 | AH18: 0 | AI18: 0 | AJ18: 0 | AK18: 68 | AL18: 6 | AM18: 0 | AN18: 154 | AO18: 608859 | AP18: 0 | AQ18: -36 | AR18: 0 | AS18: -5 | AT18: 0 | AU18: 7450 | AV18: 0 | AW18: 7409 | AX18: 616268 | AY18: 95802 | AZ18: 564896 | BA18: 660698 | BB18: 668107 | BC18: 1276966 | BD18: -11489 | BE18: -181991 | BF18: -193480 | BG18: 474627 | BH18: 1083486
B19: 27 | C19: 非鉄金属 | D19: 0 | E19: 0 | F19: 247 | G19: 0 | H19: 104 | I19: 128 | J19: 0 | K19: 27 | L19: 275 | M19: 12065 | N19: 11038 | O19: 1536 | P19: 230 | Q19: 1733 | R19: 555 | S19: 335 | T19: 686 | U19: 143 | V19: 26 | W19: 689 | X19: 3018 | Y19: 81 | Z19: 6 | AA19: 0 | AB19: 8 | AC19: 0 | AD19: 0 | AE19: 3 | AF19: 14 | AG19: 54 | AH19: 10 | AI19: 568 | AJ19: 4 | AK19: 224 | AL19: 127 | AM19: 9 | AN19: 135 | AO19: 34078 | AP19: 11 | AQ19: 1019 | AR19: 0 | AS19: 0 | AT19: 0 | AU19: -2919 | AV19: 0 | AW19: -1889 | AX19: 32189 | AY19: 3119 | AZ19: 13984 | BA19: 17103 | BB19: 15214 | BC19: 49292 | BD19: -6750 | BE19: -25101 | BF19: -31851 | BG19: -16637 | BH19: 17441
B20: 28 | C20: 金属製品 | D20: 14 | E20: 0 | F20: 760 | G20: 1 | H20: 578 | I20: 224 | J20: 119 | K20: 62 | L20: 284 | M20: 127 | N20: 12 | O20: 1751 | P20: 169 | Q20: 3283 | R20: 159 | S20: 109 | T20: 367 | U20: 58 | V20: 14 | W20: 292 | X20: 32806 | Y20: 177 | Z20: 20 | AA20: 5 | AB20: 2120 | AC20: 41 | AD20: 187 | AE20: 457 | AF20: 109 | AG20: 1273 | AH20: 34 | AI20: 143 | AJ20: 53 | AK20: 689 | AL20: 990 | AM20: 3 | AN20: 407 | AO20: 47897 | AP20: 214 | AQ20: 2941 | AR20: 2 | AS20: 346 | AT20: 3882 | AU20: -802 | AV20: 0 | AW20: 6583 | AX20: 54480 | AY20: 1577 | AZ20: 23090 | BA20: 24667 | BB20: 31250 | BC20: 79147 | BD20: -2483 | BE20: -40181 | BF20: -42664 | BG20: -11414 | BH20: 36483
B21: 29 | C21: はん用機械 | D21: 0 | E21: 0 | F21: 0 | G21: 0 | H21: 33 | I21: 0 | J21: 0 | K21: 5 | L21: 25 | M21: 3 | N21: 0 | O21: 42 | P21: 1158 | Q21: 3631 | R21: 42 | S21: 14 | T21: 33 | U21: 4 | V21: 13 | W21: 2 | X21: 2657 | Y21: 0 | Z21: 365 | AA21: 0 | AB21: 2 | AC21: 0 | AD21: 0 | AE21: 25 | AF21: 0 | AG21: 92 | AH21: 0 | AI21: 0 | AJ21: 0 | AK21: 4588 | AL21: 2 | AM21: 0 | AN21: 0 | AO21: 12736 | AP21: 0 | AQ21: 131 | AR21: 0 | AS21: 208 | AT21: 31148 | AU21: 915 | AV21: 0 | AW21: 32402 | AX21: 45138 | AY21: 674 | AZ21: 4757 | BA21: 5431 | BB21: 37833 | BC21: 50569 | BD21: -3829 | BE21: -40013 | BF21: -43842 | BG21: -6009 | BH21: 6727
B22: 30 | C22: 生産用機械 | D22: 0 | E22: 0 | F22: 0 | G22: 0 | H22: 3 | I22: 0 | J22: 0 | K22: 37 | L22: 32 | M22: 11 | N22: 1 | O22: 29 | P22: 44 | Q22: 19451 | R22: 2 | S22: 24 | T22: 26 | U22: 4 | V22: 0 | W22: 0 | X22: 17 | Y22: 3 | Z22: 8 | AA22: 0 | AB22: 2 | AC22: 0 | AD22: 0 | AE22: 13 | AF22: 0 | AG22: 4 | AH22: 0 | AI22: 0 | AJ22: 0 | AK22: 6760 | AL22: 1 | AM22: 0 | AN22: 13 | AO22: 26485 | AP22: 0 | AQ22: 72 | AR22: 0 | AS22: 356 | AT22: 50491 | AU22: 3388 | AV22: 0 | AW22: 54307 | AX22: 80792 | AY22: 11093 | AZ22: 68915 | BA22: 80008 | BB22: 134315 | BC22: 160800 | BD22: -5593 | BE22: -54942 | BF22: -60535 | BG22: 73780 | BH22: 100265
B23: 31 | C23: 業務用機械 | D23: 29 | E23: 0 | F23: 0 | G23: 0 | H23: 0 | I23: 0 | J23: 0 | K23: 0 | L23: 0 | M23: 0 | N23: 0 | O23: 0 | P23: 20 | Q23: 624 | R23: 524 | S23: 0 | T23: 10 | U23: 2 | V23: 0 | W23: 4 | X23: 83 | Y23: 0 | Z23: 2 | AA23: 1 | AB23: 773 | AC23: 4 | AD23: 0 | AE23: 1 | AF23: 20 | AG23: 902 | AH23: 0 | AI23: 4916 | AJ23: 0 | AK23: 2437 | AL23: 325 | AM23: 254 | AN23: 1 | AO23: 10932 | AP23: 0 | AQ23: 1594 | AR23: 1 | AS23: 368 | AT23: 42124 | AU23: 1209 | AV23: 0 | AW23: 45296 | AX23: 56228 | AY23: 1549 | AZ23: 5041 | BA23: 6590 | BB23: 51886 | BC23: 62818 | BD23: -10540 | BE23: -44298 | BF23: -54838 | BG23: -2952 | BH23: 7980
B24: 32 | C24: 電子部品 | D24: 0 | E24: 0 | F24: 0 | G24: 0 | H24: 0 | I24: 0 | J24: 0 | K24: 0 | L24: 0 | M24: 0 | N24: 0 | O24: 2 | P24: 97 | Q24: 263 | R24: 833 | S24: 1724 | T24: 1376 | U24: 2080 | V24: 17 | W24: 25 | X24: 133 | Y24: 0 | Z24: 0 | AA24: 0 | AB24: 18 | AC24: 16 | AD24: 0 | AE24: 0 | AF24: 328 | AG24: 622 | AH24: 223 | AI24: 4 | AJ24: 0 | AK24: 6856 | AL24: 3 | AM24: 368 | AN24: 0 | AO24: 14988 | AP24: 9 | AQ24: 1303 | AR24: 0 | AS24: 294 | AT24: 0 | AU24: 6474 | AV24: 0 | AW24: 8080 | AX24: 23068 | AY24: 854 | AZ24: 570 | BA24: 1424 | BB24: 9504 | BC24: 24492 | BD24: -4422 | BE24: -13264 | BF24: -17686 | BG24: -8182 | BH24: 6806
B25: 33 | C25: 電気機械 | D25: 0 | E25: 0 | F25: 0 | G25: 0 | H25: 2 | I25: 0 | J25: 0 | K25: 0 | L25: 2 | M25: 0 | N25: 0 | O25: 9 | P25: 96 | Q25: 1893 | R25: 80 | S25: 127 | T25: 778 | U25: 43 | V25: 28 | W25: 13 | X25: 3024 | Y25: 0 | Z25: 6 | AA25: 0 | AB25: 160 | AC25: 0 | AD25: 7 | AE25: 43 | AF25: 31 | AG25: 526 | AH25: 157 | AI25: 31 | AJ25: 0 | AK25: 3742 | AL25: 62 | AM25: 0 | AN25: 58 | AO25: 10918 | AP25: 389 | AQ25: 29869 | AR25: 0 | AS25: 93 | AT25: 39527 | AU25: -92 | AV25: 0 | AW25: 69786 | AX25: 80704 | AY25: 446 | AZ25: 5831 | BA25: 6277 | BB25: 76063 | BC25: 86981 | BD25: -12303 | BE25: -64596 | BF25: -76899 | BG25: -836 | BH25: 10082
B26: 34 | C26: 情報通信機器 | D26: 0 | E26: 0 | F26: 2 | G26: 0 | H26: 0 | I26: 0 | J26: 0 | K26: 0 | L26: 0 | M26: 0 | N26: 0 | O26: 1 | P26: 17 | Q26: 62 | R26: 0 | S26: 0 | T26: 0 | U26: 141 | V26: 1 | W26: 0 | X26: 628 | Y26: 1 | Z26: 0 | AA26: 1 | AB26: 230 | AC26: 50 | AD26: 45 | AE26: 37 | AF26: 71 | AG26: 467 | AH26: 22 | AI26: 16 | AJ26: 0 | AK26: 833 | AL26: 58 | AM26: 0 | AN26: 2 | AO26: 2685 | AP26: 652 | AQ26: 35711 | AR26: 0 | AS26: 193 | AT26: 30308 | AU26: 349 | AV26: 0 | AW26: 67213 | AX26: 69898 | AY26: 633 | AZ26: 4547 | BA26: 5180 | BB26: 72393 | BC26: 75078 | BD26: -22577 | BE26: -47141 | BF26: -69718 | BG26: 2675 | BH26: 5360
B27: 35 | C27: 輸送機械 | D27: 1 | E27: 0 | F27: 0 | G27: 0 | H27: 0 | I27: 0 | J27: 0 | K27: 0 | L27: 0 | M27: 0 | N27: 0 | O27: 0 | P27: 0 | Q27: 164 | R27: 0 | S27: 0 | T27: 0 | U27: 0 | V27: 404 | W27: 0 | X27: 0 | Y27: 0 | Z27: 0 | AA27: 0 | AB27: 0 | AC27: 0 | AD27: 0 | AE27: 5143 | AF27: 0 | AG27: 1536 | AH27: 32 | AI27: 0 | AJ27: 0 | AK27: 13410 | AL27: 8 | AM27: 0 | AN27: 1684 | AO27: 22382 | AP27: 0 | AQ27: 43381 | AR27: 0 | AS27: 1239 | AT27: 44498 | AU27: 1892 | AV27: 0 | AW27: 91010 | AX27: 113392 | AY27: 50 | AZ27: 235 | BA27: 285 | BB27: 91295 | BC27: 113677 | BD27: -8542 | BE27: -103919 | BF27: -112461 | BG27: -21166 | BH27: 1216
B28: 39 | C28: その他の製造工業製品 | D28: 7 | E28: 0 | F28: 2168 | G28: 29 | H28: 174 | I28: 59 | J28: 1527 | K28: 24 | L28: 108 | M28: 7509 | N28: 475 | O28: 39 | P28: 5 | Q28: 185 | R28: 33 | S28: 29 | T28: 24 | U28: 30 | V28: 0 | W28: 1511 | X28: 1064 | Y28: 2195 | Z28: 120 | AA28: 161 | AB28: 4782 | AC28: 6313 | AD28: 48 | AE28: 941 | AF28: 4974 | AG28: 2707 | AH28: 4215 | AI28: 2457 | AJ28: 1203 | AK28: 5315 | AL28: 2520 | AM28: 1510 | AN28: 153 | AO28: 54614 | AP28: 1597 | AQ28: 23272 | AR28: 0 | AS28: 133 | AT28: 5970 | AU28: 422 | AV28: 0 | AW28: 31394 | AX28: 86008 | AY28: 465 | AZ28: 11729 | BA28: 12194 | BB28: 43588 | BC28: 98202 | BD28: -18662 | BE28: -40455 | BF28: -59117 | BG28: -15529 | BH28: 39085
B29: 41 | C29: 建設 | D29: 21 | E29: 0 | F29: 155 | G29: 2 | H29: 36 | I29: 49 | J29: 114 | K29: 40 | L29: 145 | M29: 3207 | N29: 42 | O29: 119 | P29: 8 | Q29: 170 | R29: 12 | S29: 16 | T29: 10 | U29: 6 | V29: 0 | W29: 37 | X29: 210 | Y29: 4592 | Z29: 928 | AA29: 132 | AB29: 2234 | AC29: 1136 | AD29: 5634 | AE29: 2479 | AF29: 884 | AG29: 2625 | AH29: 1610 | AI29: 1057 | AJ29: 33 | AK29: 1068 | AL29: 825 | AM29: 0 | AN29: 137 | AO29: 29773 | AP29: 0 | AQ29: 0 | AR29: 0 | AS29: 135826 | AT29: 197816 | AU29: 0 | AV29: 0 | AW29: 333642 | AX29: 363415 | AY29: 0 | AZ29: 0 | BA29: 0 | BB29: 333642 | BC29: 363415 | BD29: 0 | BE29: 0 | BF29: 0 | BG29: 333642 | BH29: 363415
B30: 46 | C30: 電力・ガス・熱供給 | D30: 118 | E30: 0 | F30: 4154 | G30: 28 | H30: 422 | I30: 1001 | J30: 790 | K30: 412 | L30: 1066 | M30: 31681 | N30: 518 | O30: 826 | P30: 70 | Q30: 848 | R30: 80 | S30: 203 | T30: 73 | U30: 12 | V30: 16 | W30: 753 | X30: 1237 | Y30: 23912 | Z30: 1432 | AA30: 3409 | AB30: 18379 | AC30: 2278 | AD30: 2812 | AE30: 5214 | AF30: 1793 | AG30: 3702 | AH30: 6770 | AI30: 7048 | AJ30: 112 | AK30: 3409 | AL30: 14176 | AM30: 0 | AN30: 263 | AO30: 139017 | AP30: 45 | AQ30: 94433 | AR30: 0 | AS30: 0 | AT30: 0 | AU30: 0 | AV30: 0 | AW30: 94478 | AX30: 233495 | AY30: 8 | AZ30: 56222 | BA30: 56230 | BB30: 150708 | BC30: 289725 | BD30: 0 | BE30: 0 | BF30: 0 | BG30: 150708 | BH30: 289725
B31: 47 | C31: 水道 | D31: 8 | E31: 0 | F31: 393 | G31: 0 | H31: 9 | I31: 30 | J31: 205 | K31: 11 | L31: 15 | M31: 1101 | N31: 15 | O31: 16 | P31: 1 | Q31: 41 | R31: 3 | S31: 5 | T31: 1 | U31: 0 | V31: 0 | W31: 42 | X31: 236 | Y31: 376 | Z31: 2623 | AA31: 394 | AB31: 1826 | AC31: 451 | AD31: 284 | AE31: 1283 | AF31: 548 | AG31: 1243 | AH31: 2872 | AI31: 2222 | AJ31: 55 | AK31: 710 | AL31: 3507 | AM31: 0 | AN31: 115 | AO31: 20641 | AP31: 12 | AQ31: 13452 | AR31: 2525 | AS31: 0 | AT31: 0 | AU31: 0 | AV31: 0 | AW31: 15989 | AX31: 36630 | AY31: 1 | AZ31: 0 | BA31: 1 | BB31: 15990 | BC31: 36631 | BD31: 0 | BE31: 0 | BF31: 0 | BG31: 15990 | BH31: 36631
B32: 48 | C32: 廃棄物処理 | D32: 8 | E32: 0 | F32: 116 | G32: 0 | H32: 1 | I32: 41 | J32: 14 | K32: 0 | L32: 81 | M32: 201 | N32: 0 | O32: 0 | P32: 0 | Q32: 0 | R32: 0 | S32: 4 | T32: 0 | U32: 0 | V32: 0 | W32: 8 | X32: 603 | Y32: 3415 | Z32: 56 | AA32: 0 | AB32: 1019 | AC32: 1090 | AD32: 9 | AE32: 2125 | AF32: 1165 | AG32: 8794 | AH32: 1499 | AI32: 1871 | AJ32: 0 | AK32: 222 | AL32: 6591 | AM32: 0 | AN32: 643 | AO32: 29576 | AP32: 0 | AQ32: 1174 | AR32: 3333 | AS32: 0 | AT32: 0 | AU32: 0 | AV32: 0 | AW32: 4507 | AX32: 34083 | AY32: 0 | AZ32: 23853 | BA32: 23853 | BB32: 28360 | BC32: 57936 | BD32: 0 | BE32: -11803 | BF32: -11803 | BG32: 16557 | BH32: 46133
B33: 51 | C33: 商業 | D33: 972 | E33: 0 | F33: 21848 | G33: 137 | H33: 1381 | I33: 773 | J33: 1655 | K33: 727 | L33: 870 | M33: 21241 | N33: 952 | O33: 1647 | P33: 267 | Q33: 3740 | R33: 371 | S33: 272 | T33: 491 | U33: 218 | V33: 59 | W33: 2662 | X33: 20185 | Y33: 4689 | Z33: 601 | AA33: 648 | AB33: 8156 | AC33: 2039 | AD33: 774 | AE33: 8887 | AF33: 3715 | AG33: 3011 | AH33: 4769 | AI33: 24231 | AJ33: 909 | AK33: 12333 | AL33: 30952 | AM33: 2334 | AN33: 1671 | AO33: 190187 | AP33: 12765 | AQ33: 490761 | AR33: 104 | AS33: 9027 | AT33: 18430 | AU33: 0 | AV33: 0 | AW33: 531087 | AX33: 721274 | AY33: 77388 | AZ33: 48335 | BA33: 125723 | BB33: 656810 | BC33: 846997 | BD33: -7588 | BE33: -83545 | BF33: -91133 | BG33: 565677 | BH33: 755864
B34: 53 | C34: 金融・保険 | D34: 94 | E34: 0 | F34: 1286 | G34: 17 | H34: 184 | I34: 80 | J34: 477 | K34: 42 | L34: 239 | M34: 4305 | N34: 72 | O34: 390 | P34: 37 | Q34: 615 | R34: 111 | S34: 36 | T34: 41 | U34: 18 | V34: 3 | W34: 453 | X34: 4575 | Y34: 4055 | Z34: 807 | AA34: 867 | AB34: 12801 | AC34: 17708 | AD34: 49232 | AE34: 10070 | AF34: 1795 | AG34: 6376 | AH34: 2314 | AI34: 4364 | AJ34: 665 | AK34: 5399 | AL34: 2676 | AM34: 0 | AN34: 2999 | AO34: 135203 | AP34: 2 | AQ34: 239663 | AR34: 0 | AS34: 0 | AT34: 0 | AU34: 0 | AV34: 0 | AW34: 239665 | AX34: 374868 | AY34: 2 | AZ34: 42107 | BA34: 42109 | BB34: 281774 | BC34: 416977 | BD34: -628 | BE34: -42986 | BF34: -43614 | BG34: 238160 | BH34: 373363
B35: 55 | C35: 不動産 | D35: 136 | E35: 0 | F35: 646 | G35: 3 | H35: 60 | I35: 28 | J35: 57 | K35: 41 | L35: 59 | M35: 1060 | N35: 11 | O35: 163 | P35: 19 | Q35: 214 | R35: 9 | S35: 9 | T35: 16 | U35: 8 | V35: 0 | W35: 87 | X35: 1922 | Y35: 1967 | Z35: 38 | AA35: 69 | AB35: 20607 | AC35: 6337 | AD35: 18473 | AE35: 14201 | AF35: 8073 | AG35: 462 | AH35: 1383 | AI35: 8213 | AJ35: 433 | AK35: 4730 | AL35: 5312 | AM35: 0 | AN35: 1179 | AO35: 96025 | AP35: 0 | AQ35: 522246 | AR35: 650 | AS35: 0 | AT35: 0 | AU35: 0 | AV35: 0 | AW35: 522896 | AX35: 618921 | AY35: 1 | AZ35: 43893 | BA35: 43894 | BB35: 566790 | BC35: 662815 | BD35: 0 | BE35: -6751 | BF35: -6751 | BG35: 560039 | BH35: 656064
B36: 57 | C36: 運輸・郵便 | D36: 712 | E36: 20 | F36: 17333 | G36: 24 | H36: 849 | I36: 381 | J36: 3130 | K36: 237 | L36: 1336 | M36: 21387 | N36: 493 | O36: 1048 | P36: 115 | Q36: 1697 | R36: 163 | S36: 119 | T36: 166 | U36: 71 | V36: 9 | W36: 6441 | X36: 15829 | Y36: 11265 | Z36: 651 | AA36: 2870 | AB36: 39898 | AC36: 13592 | AD36: 1741 | AE36: 27047 | AF36: 8483 | AG36: 10488 | AH36: 8182 | AI36: 7989 | AJ36: 912 | AK36: 10471 | AL36: 13934 | AM36: 518 | AN36: 50242 | AO36: 279843 | AP36: 2836 | AQ36: 118138 | AR36: 662 | AS36: 0 | AT36: 2896 | AU36: 1036 | AV36: 0 | AW36: 125568 | AX36: 405411 | AY36: 18082 | AZ36: 60157 | BA36: 78239 | BB36: 203807 | BC36: 483650 | BD36: -35251 | BE36: -83318 | BF36: -118569 | BG36: 85238 | BH36: 365081
B37: 59 | C37: 情報通信 | D37: 42 | E37: 0 | F37: 902 | G37: 2 | H37: 112 | I37: 124 | J37: 49 | K37: 70 | L37: 158 | M37: 2367 | N37: 53 | O37: 216 | P37: 37 | Q37: 1282 | R37: 57 | S37: 55 | T37: 181 | U37: 148 | V37: 1 | W37: 199 | X37: 2619 | Y37: 3276 | Z37: 1324 | AA37: 438 | AB37: 28691 | AC37: 23266 | AD37: 2236 | AE37: 4527 | AF37: 50851 | AG37: 9264 | AH37: 6055 | AI37: 8522 | AJ37: 1644 | AK37: 25632 | AL37: 8014 | AM37: 0 | AN37: 3497 | AO37: 185911 | AP37: 1002 | AQ37: 132394 | AR37: 2 | AS37: 13090 | AT37: 51936 | AU37: 13 | AV37: 0 | AW37: 198437 | AX37: 384348 | AY37: 3017 | AZ37: 107900 | BA37: 110917 | BB37: 309354 | BC37: 495265 | BD37: -9603 | BE37: -110122 | BF37: -119725 | BG37: 189629 | BH37: 375540
B38: 61 | C38: 公務 | D38: 0 | E38: 0 | F38: 0 | G38: 0 | H38: 0 | I38: 0 | J38: 0 | K38: 0 | L38: 0 | M38: 0 | N38: 0 | O38: 0 | P38: 0 | Q38: 0 | R38: 0 | S38: 0 | T38: 0 | U38: 0 | V38: 0 | W38: 0 | X38: 0 | Y38: 0 | Z38: 0 | AA38: 0 | AB38: 0 | AC38: 0 | AD38: 0 | AE38: 0 | AF38: 0 | AG38: 0 | AH38: 0 | AI38: 0 | AJ38: 0 | AK38: 0 | AL38: 0 | AM38: 0 | AN38: 8253 | AO38: 8253 | AP38: 0 | AQ38: 9327 | AR38: 289710 | AS38: 0 | AT38: 0 | AU38: 0 | AV38: 0 | AW38: 299037 | AX38: 307290 | AY38: 0 | AZ38: 0 | BA38: 0 | BB38: 299037 | BC38: 307290 | BD38: 0 | BE38: 0 | BF38: 0 | BG38: 299037 | BH38: 307290
B39: 63 | C39: 教育・研究 | D39: 3 | E39: 0 | F39: 34 | G39: 0 | H39: 2 | I39: 1 | J39: 0 | K39: 1 | L39: 3 | M39: 53 | N39: 0 | O39: 15 | P39: 4 | Q39: 43 | R39: 2 | S39: 7 | T39: 11 | U39: 0 | V39: 0 | W39: 0 | X39: 58 | Y39: 157 | Z39: 3 | AA39: 6 | AB39: 160 | AC39: 63 | AD39: 0 | AE39: 583 | AF39: 1432 | AG39: 35 | AH39: 0 | AI39: 53 | AJ39: 0 | AK39: 306 | AL39: 180 | AM39: 0 | AN39: 5 | AO39: 3220 | AP39: 0 | AQ39: 143147 | AR39: 205314 | AS39: 0 | AT39: 54554 | AU39: 0 | AV39: 0 | AW39: 403015 | AX39: 406235 | AY39: 1228 | AZ39: 23290 | BA39: 24518 | BB39: 427533 | BC39: 430753 | BD39: -2973 | BE39: -105170 | BF39: -108143 | BG39: 319390 | BH39: 322610
B40: 64 | C40: 医療・福祉 | D40: 38 | E40: 0 | F40: 0 | G40: 0 | H40: 0 | I40: 0 | J40: 0 | K40: 0 | L40: 0 | M40: 1 | N40: 0 | O40: 0 | P40: 0 | Q40: 0 | R40: 0 | S40: 0 | T40: 0 | U40: 0 | V40: 0 | W40: 0 | X40: 0 | Y40: 13 | Z40: 8 | AA40: 0 | AB40: 19 | AC40: 48 | AD40: 2 | AE40: 203 | AF40: 168 | AG40: 7 | AH40: 6 | AI40: 8628 | AJ40: 0 | AK40: 20 | AL40: 29 | AM40: 0 | AN40: 130 | AO40: 9320 | AP40: 5911 | AQ40: 75076 | AR40: 397950 | AS40: 0 | AT40: 0 | AU40: 0 | AV40: 0 | AW40: 478937 | AX40: 488257 | AY40: 0 | AZ40: 43303 | BA40: 43303 | BB40: 522240 | BC40: 531560 | BD40: -17 | BE40: -37476 | BF40: -37493 | BG40: 484747 | BH40: 494067
B41: 65 | C41: 他に分類されない会員制団体 | D41: 8 | E41: 0 | F41: 159 | G41: 0 | H41: 17 | I41: 27 | J41: 27 | K41: 5 | L41: 14 | M41: 762 | N41: 6 | O41: 27 | P41: 9 | Q41: 66 | R41: 3 | S41: 4 | T41: 5 | U41: 3 | V41: 0 | W41: 32 | X41: 314 | Y41: 605 | Z41: 264 | AA41: 87 | AB41: 448 | AC41: 1336 | AD41: 210 | AE41: 418 | AF41: 401 | AG41: 0 | AH41: 451 | AI41: 477 | AJ41: 0 | AK41: 1140 | AL41: 1052 | AM41: 0 | AN41: 251 | AO41: 8628 | AP41: 0 | AQ41: 42226 | AR41: 0 | AS41: 0 | AT41: 0 | AU41: 0 | AV41: 0 | AW41: 42226 | AX41: 50854 | AY41: 98 | AZ41: 0 | BA41: 98 | BB41: 42324 | BC41: 50952 | BD41: -377 | BE41: -21635 | BF41: -22012 | BG41: 20312 | BH41: 28940
B42: 66 | C42: 対事業所サービス | D42: 360 | E42: 0 | F42: 6953 | G42: 50 | H42: 588 | I42: 620 | J42: 844 | K42: 475 | L42: 1386 | M42: 8619 | N42: 281 | O42: 977 | P42: 317 | Q42: 3280 | R42: 221 | S42: 313 | T42: 341 | U42: 149 | V42: 22 | W42: 1626 | X42: 35319 | Y42: 21505 | Z42: 4586 | AA42: 2932 | AB42: 65676 | AC42: 44758 | AD42: 18580 | AE42: 35888 | AF42: 58008 | AG42: 27997 | AH42: 19790 | AI42: 25736 | AJ42: 1802 | AK42: 96054 | AL42: 14775 | AM42: 0 | AN42: 2562 | AO42: 503390 | AP42: 590 | AQ42: 41187 | AR42: 0 | AS42: 2380 | AT42: 39652 | AU42: 0 | AV42: 0 | AW42: 83809 | AX42: 587199 | AY42: 11134 | AZ42: 263941 | BA42: 275075 | BB42: 358884 | BC42: 862274 | BD42: -11559 | BE42: -193079 | BF42: -204638 | BG42: 154246 | BH42: 657636
B43: 67 | C43: 対個人サービス | D43: 4 | E43: 0 | F43: 11 | G43: 0 | H43: 0 | I43: 0 | J43: 0 | K43: 0 | L43: 0 | M43: 48 | N43: 0 | O43: 0 | P43: 0 | Q43: 11 | R43: 0 | S43: 0 | T43: 1 | U43: 0 | V43: 0 | W43: 0 | X43: 75 | Y43: 15 | Z43: 5 | AA43: 1 | AB43: 624 | AC43: 77 | AD43: 338 | AE43: 275 | AF43: 2068 | AG43: 142 | AH43: 911 | AI43: 5344 | AJ43: 59 | AK43: 723 | AL43: 5721 | AM43: 0 | AN43: 70 | AO43: 16523 | AP43: 71677 | AQ43: 375422 | AR43: 0 | AS43: 0 | AT43: 0 | AU43: 0 | AV43: 0 | AW43: 447099 | AX43: 463622 | AY43: 3850 | AZ43: 48560 | BA43: 52410 | BB43: 499509 | BC43: 516032 | BD43: -7453 | BE43: -108319 | BF43: -115772 | BG43: 383737 | BH43: 400260
B44: 68 | C44: 事務用品 | D44: 12 | E44: 0 | F44: 206 | G44: 0 | H44: 22 | I44: 4 | J44: 3 | K44: 1 | L44: 18 | M44: 120 | N44: 3 | O44: 9 | P44: 5 | Q44: 83 | R44: 12 | S44: 3 | T44: 8 | U44: 1 | V44: 0 | W44: 25 | X44: 331 | Y44: 18 | Z44: 31 | AA44: 150 | AB44: 1576 | AC44: 1244 | AD44: 222 | AE44: 667 | AF44: 527 | AG44: 923 | AH44: 975 | AI44: 1119 | AJ44: 118 | AK44: 1201 | AL44: 748 | AM44: 0 | AN44: 288 | AO44: 10673 | AP44: 0 | AQ44: 0 | AR44: 0 | AS44: 0 | AT44: 0 | AU44: 0 | AV44: 0 | AW44: 0 | AX44: 10673 | AY44: 0 | AZ44: 0 | BA44: 0 | BB44: 0 | BC44: 10673 | BD44: 0 | BE44: 0 | BF44: 0 | BG44: 0 | BH44: 10673
B45: 69 | C45: 分類不明 | D45: 41 | E45: 0 | F45: 2254 | G45: 2 | H45: 52 | I45: 20 | J45: 24 | K45: 23 | L45: 165 | M45: 2609 | N45: 42 | O45: 122 | P45: 51 | Q45: 667 | R45: 15 | S45: 2 | T45: 17 | U45: 6 | V45: 5 | W45: 67 | X45: 5118 | Y45: 859 | Z45: 292 | AA45: 1084 | AB45: 5236 | AC45: 2088 | AD45: 1232 | AE45: 2267 | AF45: 740 | AG45: 281 | AH45: 2661 | AI45: 2139 | AJ45: 97 | AK45: 2115 | AL45: 1191 | AM45: 5 | AN45: 0 | AO45: 33589 | AP45: 0 | AQ45: 0 | AR45: 0 | AS45: 0 | AT45: 0 | AU45: 0 | AV45: 0 | AW45: 0 | AX45: 33589 | AY45: 0 | AZ45: 51575 | BA45: 51575 | BB45: 51575 | BC45: 85164 | BD45: 0 | BE45: 0 | BF45: 0 | BG45: 51575 | BH45: 85164
B46: 70 | C46: 内生部門計 | D46: 6851 | E46: 20 | F46: 231105 | G46: 804 | H46: 11331 | I46: 10514 | J46: 72382 | K46: 7904 | L46: 11424 | M46: 813571 | N46: 14167 | O46: 19266 | P46: 3627 | Q46: 57325 | R46: 4169 | S46: 3935 | T46: 5579 | U46: 3358 | V46: 754 | W46: 21624 | X46: 193428 | Y46: 178085 | Z46: 16372 | AA46: 15230 | AB46: 230392 | AC46: 127317 | AD46: 103019 | AE46: 153331 | AF46: 152457 | AG46: 89075 | AH46: 73127 | AI46: 191750 | AJ46: 9465 | AK46: 223563 | AL46: 184435 | AM46: 10273 | AN46: 85164 | AO46: 3336193 | AP46: 106845 | AQ46: 2823470 | AR46: 900889 | AS46: 163622 | AT46: 620709 | AU46: 94095 | AV46: 0 | AW46: 4709630 | AX46: 8045823 | AY46: 238326 | AZ46: 1750194 | BA46: 1988520 | BB46: 6698150 | BC46: 10034343 | BD46: -553006 | BE46: -2112983 | BF46: -2665989 | BG46: 4032161 | BH46: 7368354
B47: 71 | C47: 家計外消費支出（行） | D47: 73 | E47: 0 | F47: 2279 | G47: 14 | H47: 245 | I47: 241 | J47: 507 | K47: 236 | L47: 458 | M47: 8569 | N47: 145 | O47: 674 | P47: 81 | Q47: 779 | R47: 134 | S47: 136 | T47: 235 | U47: 210 | V47: 9 | W47: 636 | X47: 7934 | Y47: 3424 | Z47: 418 | AA47: 1108 | AB47: 17617 | AC47: 12379 | AD47: 2545 | AE47: 8479 | AF47: 5678 | AG47: 3265 | AH47: 2801 | AI47: 6541 | AJ47: 916 | AK47: 9969 | AL47: 8840 | AM47: 0 | AN47: -730 | AO47: 106845
B48: 91 | C48: 雇用者所得 | D48: 2693 | E48: 2 | F48: 33840 | G48: 436 | H48: 3972 | I48: 1722 | J48: 1310 | K48: 2988 | L48: 5629 | M48: 50929 | N48: 2075 | O48: 10915 | P48: 1670 | Q48: 19395 | R48: 1974 | S48: 1228 | T48: 2008 | U48: 579 | V48: 183 | W48: 10284 | X48: 125334 | Y48: 25915 | Z48: 4422 | AA48: 22365 | AB48: 297704 | AC48: 120828 | AD48: 37810 | AE48: 109886 | AF48: 74568 | AG48: 111186 | AH48: 152915 | AI48: 244471 | AJ48: 12323 | AK48: 231395 | AL48: 109309 | AM48: 0 | AN48: 0 | AO48: 1834263 | AP48: 0 | AQ48: 0 | AR48: 0 | AS48: 0 | AT48: 0 | AU48: 0 | AV48: 0 | AW48: 0 | AX48: 0 | AY48: 0 | AZ48: 0 | BA48: 0 | BB48: 0 | BC48: 0 | BD48: 0 | BE48: 0 | BF48: 0 | BG48: 0 | BH48: 0
B49: 92 | C49: 営業余剰 | D49: 3897 | E49: 8 | F49: 24724 | G49: 190 | H49: 3454 | I49: 1518 | J49: -1025 | K49: 100 | L49: 3559 | M49: 135364 | N49: 274 | O49: 1680 | P49: 713 | Q49: 11004 | R49: 347 | S49: -56 | T49: 498 | U49: -142 | V49: 161 | W49: 2035 | X49: 10859 | Y49: 5876 | Z49: 9072 | AA49: 3134 | AB49: 111706 | AC49: 81816 | AD49: 264892 | AE49: 30834 | AF49: 94648 | AG49: -109 | AH49: 30082 | AI49: 19624 | AJ49: 4268 | AK49: 81445 | AL49: 41762 | AM49: 400 | AN49: 730 | AO49: 979342
B50: 93 | C50: 資本減耗引当 | D50: 2033 | E50: 1 | F50: 12667 | G50: 132 | H50: 1410 | I50: 2206 | J50: 5216 | K50: 1158 | L50: 2376 | M50: 62259 | N50: 651 | O50: 2987 | P50: 581 | Q50: 10967 | R50: 1249 | S50: 1488 | T50: 1690 | U50: 1230 | V50: 102 | W50: 3137 | X50: 13811 | Y50: 65883 | Z50: 6443 | AA50: 3346 | AB50: 67450 | AC50: 30092 | AD50: 215584 | AE50: 46768 | AF50: 37211 | AG50: 103356 | AH50: 60765 | AI50: 29659 | AJ50: 1545 | AK50: 78279 | AL50: 37590 | AM50: 0 | AN50: 0 | AO50: 911322
B51: 94 | C51: 間接税（関税・輸入品商品税を除く。） | D51: 558 | E51: 1 | F51: 12343 | G51: 81 | H51: 718 | I51: 319 | J51: 448 | K51: 493 | L51: 699 | M51: 12794 | N51: 129 | O51: 961 | P51: 55 | Q51: 795 | R51: 107 | S51: 75 | T51: 72 | U51: 125 | V51: 7 | W51: 1369 | X51: 13517 | Y51: 10719 | Z51: 1366 | AA51: 950 | AB51: 31363 | AC51: 8347 | AD51: 32374 | AE51: 16654 | AF51: 10980 | AG51: 517 | AH51: 4620 | AI51: 7165 | AJ51: 869 | AK51: 33014 | AL51: 18324 | AM51: 0 | AN51: 0 | AO51: 222928
B52: 95 | C52: （控除）経常補助金 | D52: -1607 | E52: 0 | F52: -1690 | G52: 0 | H52: 0 | I52: 0 | J52: 0 | K52: 0 | L52: 0 | M52: 0 | N52: 0 | O52: 0 | P52: 0 | Q52: 0 | R52: 0 | S52: 0 | T52: 0 | U52: 0 | V52: 0 | W52: 0 | X52: -1468 | Y52: -177 | Z52: -1462 | AA52: 0 | AB52: -368 | AC52: -7416 | AD52: -160 | AE52: -871 | AF52: -2 | AG52: 0 | AH52: -1700 | AI52: -5143 | AJ52: -446 | AK52: -29 | AL52: 0 | AM52: 0 | AN52: 0 | AO52: -22539
B53: 96 | C53: 粗付加価値部門計 | D53: 7647 | E53: 12 | F53: 84163 | G53: 853 | H53: 9799 | I53: 6006 | J53: 6456 | K53: 4975 | L53: 12721 | M53: 269915 | N53: 3274 | O53: 17217 | P53: 3100 | Q53: 42940 | R53: 3811 | S53: 2871 | T53: 4503 | U53: 2002 | V53: 462 | W53: 17461 | X53: 169987 | Y53: 111640 | Z53: 20259 | AA53: 30903 | AB53: 525472 | AC53: 246046 | AD53: 553045 | AE53: 211750 | AF53: 223083 | AG53: 218215 | AH53: 249483 | AI53: 302317 | AJ53: 19475 | AK53: 434073 | AL53: 215825 | AM53: 400 | AN53: 0 | AO53: 4032161
B54: 97 | C54: 市内生産額 | D54: 14498 | E54: 32 | F54: 315268 | G54: 1657 | H54: 21130 | I54: 16520 | J54: 78838 | K54: 12879 | L54: 24145 | M54: 1083486 | N54: 17441 | O54: 36483 | P54: 6727 | Q54: 100265 | R54: 7980 | S54: 6806 | T54: 10082 | U54: 5360 | V54: 1216 | W54: 39085 | X54: 363415 | Y54: 289725 | Z54: 36631 | AA54: 46133 | AB54: 755864 | AC54: 373363 | AD54: 656064 | AE54: 365081 | AF54: 375540 | AG54: 307290 | AH54: 322610 | AI54: 494067 | AJ54: 28940 | AK54: 657636 | AL54: 400260 | AM54: 10673 | AN54: 85164 | AO54: 7368354

Sheet 投入係数表 (hidden)
D7: 01 | E7: 06 | F7: 11 | G7: 15 | H7: 16 | I7: 20 | J7: 21 | K7: 22 | L7: 25 | M7: 26 | N7: 27 | O7: 28 | P7: 29 | Q7: 30 | R7: 31 | S7: 32 | T7: 33 | U7: 34 | V7: 35 | W7: 39 | X7: 41 | Y7: 46 | Z7: 47 | AA7: 48 | AB7: 51 | AC7: 53 | AD7: 55 | AE7: 57 | AF7: 59 | AG7: 61 | AH7: 63 | AI7: 64 | AJ7: 65 | AK7: 66 | AL7: 67 | AM7: 68 | AN7: 69 | AO7: 70 | AP7: 71 | AQ7: 72 | AR7: 73 | AS7: 74 | AT7: 75 | AU7: 76 | AV7: 77 | AW7: 78 | AX7: 79 | AY7: 80 | AZ7: 81 | BA7: 82 | BB7: 83 | BC7: 84 | BD7: 85 | BE7: 86 | BF7: 87 | BG7: 88 | BH7: 97
D8: 農林漁業 | E8: 鉱業 | F8: 飲食料品 | G8: 繊維製品 | H8: パルプ・紙・木製品 | I8: 化学製品 | J8: 石油・石炭製品 | K8: プラスチック・ゴム製品 | L8: 窯業・土石製品 | M8: 鉄鋼 | N8: 非鉄金属 | O8: 金属製品 | P8: はん用機械 | Q8: 生産用機械 | R8: 業務用機械 | S8: 電子部品 | T8: 電気機械 | U8: 情報通信機器 | V8: 輸送機械 | W8: その他の製造工業製品 | X8: 建設 | Y8: 電力・ガス・熱供給 | Z8: 水道 | AA8: 廃棄物処理 | AB8: 商業 | AC8: 金融・保険 | AD8: 不動産 | AE8: 運輸・郵便 | AF8: 情報通信 | AG8: 公務 | AH8: 教育・研究 | AI8: 医療・福祉 | AJ8: 他に分類されない会員制団体 | AK8: 対事業所サービス | AL8: 対個人サービス | AM8: 事務用品 | AN8: 分類不明 | AO8: 内生部門計 | AP8: 家計外消費支出（列） | AQ8: 民間消費支出 | AR8: 一般政府消費支出 | AS8: 市内総固定資本形成（公的） | AT8: 市内総固定資本形成（民間） | AU8: 在庫純増 | AV8: 調整項 | AW8: 市内最終需要計 | AX8: 市内需要合計 | AY8: 輸出 | AZ8: 移出 | BA8: 移輸出計 | BB8: 最終需要計 | BC8: 需要合計 | BD8: （控除）輸入 | BE8: （控除）移入 | BF8: （控除）移輸入計 | BG8: 最終需要部門計 | BH8: 市内生産額
B9: 01 | C9: 農林漁業 | D9: =IF(取引額表!D$54=0,0,取引額表!D9/取引額表!D$54) -> 0.09394399227 | E9: =IF(取引額表!E$54=0,0,取引額表!E9/取引額表!E$54) -> 0 | F9: =IF(取引額表!F$54=0,0,取引額表!F9/取引額表!F$54) -> 0.3474948298 | G9: =IF(取引額表!G$54=0,0,取引額表!G9/取引額表!G$54) -> 0.003017501509 | H9: =IF(取引額表!H$54=0,0,取引額表!H9/取引額表!H$54) -> 0.006341694274 | I9: =IF(取引額表!I$54=0,0,取引額表!I9/取引額表!I$54) -> 0.0004237288136 | J9: =IF(取引額表!J$54=0,0,取引額表!J9/取引額表!J$54) -> 0 | K9: =IF(取引額表!K$54=0,0,取引額表!K9/取引額表!K$54) -> 0.0007764577995 | L9: =IF(取引額表!L$54=0,0,取引額表!L9/取引額表!L$54) -> 8.283288466e-05 | M9: =IF(取引額表!M$54=0,0,取引額表!M9/取引額表!M$54) -> 0 | N9: =IF(取引額表!N$54=0,0,取引額表!N9/取引額表!N$54) -> 0 | O9: =IF(取引額表!O$54=0,0,取引額表!O9/取引額表!O$54) -> 0 | P9: =IF(取引額表!P$54=0,0,取引額表!P9/取引額表!P$54) -> 0 | Q9: =IF(取引額表!Q$54=0,0,取引額表!Q9/取引額表!Q$54) -> 0 | R9: =IF(取引額表!R$54=0,0,取引額表!R9/取引額表!R$54) -> 0 | S9: =IF(取引額表!S$54=0,0,取引額表!S9/取引額表!S$54) -> 0 | T9: =IF(取引額表!T$54=0,0,取引額表!T9/取引額表!T$54) -> 0 | U9: =IF(取引額表!U$54=0,0,取引額表!U9/取引額表!U$54) -> 0 | V9: =IF(取引額表!V$54=0,0,取引額表!V9/取引額表!V$54) -> 0 | W9: =IF(取引額表!W$54=0,0,取引額表!W9/取引額表!W$54) -> 0.02955097864 | X9: =IF(取引額表!X$54=0,0,取引額表!X9/取引額表!X$54) -> 0.00100160973 | Y9: =IF(取引額表!Y$54=0,0,取引額表!Y9/取引額表!Y$54) -> 0 | Z9: =IF(取引額表!Z$54=0,0,取引額表!Z9/取引額表!Z$54) -> 0 | AA9: =IF(取引額表!AA$54=0,0,取引額表!AA9/取引額表!AA$54) -> 0 | AB9: =IF(取引額表!AB$54=0,0,取引額表!AB9/取引額表!AB$54) -> 0.0001296529534 | AC9: =IF(取引額表!AC$54=0,0,取引額表!AC9/取引額表!AC$54) -> 0 | AD9: =IF(取引額表!AD$54=0,0,取引額表!AD9/取引額表!AD$54) -> 1.524241537e-06 | AE9: =IF(取引額表!AE$54=0,0,取引額表!AE9/取引額表!AE$54) -> 0 | AF9: =IF(取引額表!AF$54=0,0,取引額表!AF9/取引額表!AF$54) -> 0 | AG9: =IF(取引額表!AG$54=0,0,取引額表!AG9/取引額表!AG$54) -> 2.603403951e-05 | AH9: =IF(取引額表!AH$54=0,0,取引額表!AH9/取引額表!AH$54) -> 0.002067511856 | AI9: =IF(取引額表!AI$54=0,0,取引額表!AI9/取引額表!AI$54) -> 0.002355955771 | AJ9: =IF(取引額表!AJ$54=0,0,取引額表!AJ9/取引額表!AJ$54) -> 0.001831375259 | AK9: =IF(取引額表!AK$54=0,0,取引額表!AK9/取引額表!AK$54) -> 7.602990104e-06 | AL9: =IF(取引額表!AL$54=0,0,取引額表!AL9/取引額表!AL$54) -> 0.02134112827 | AM9: =IF(取引額表!AM$54=0,0,取引額表!AM9/取引額表!AM$54) -> 0 | AN9: =IF(取引額表!AN$54=0,0,取引額表!AN9/取引額表!AN$54) -> 0 | AO9: =IF(取引額表!AO$54=0,0,取引額表!AO9/取引額表!AO$54) -> 0.01671078778 | AP9: =IF(取引額表!AP$46=0,0,取引額表!AP9/取引額表!AP$46) -> 0.003912209275 | AQ9: =IF(取引額表!AQ$46=0,0,取引額表!AQ9/取引額表!AQ$46) -> 0.01098825204 | AR9: =IF(取引額表!AR$46=0,0,取引額表!AR9/取引額表!AR$46) -> 0 | AS9: =IF(取引額表!AS$46=0,0,取引額表!AS9/取引額表!AS$46) -> 0 | AT9: =IF(取引額表!AT$46=0,0,取引額表!AT9/取引額表!AT$46) -> 0.002447201507 | AU9: =IF(取引額表!AU$46=0,0,取引額表!AU9/取引額表!AU$46) -> -0.005855784048 | AV9: =IF(取引額表!AV$46=0,0,取引額表!AV9/取引額表!AV$46) -> 0 | AW9: =IF(取引額表!AW$46=0,0,取引額表!AW9/取引額表!AW$46) -> 0.006881856961 | AX9: =IF(取引額表!AX$46=0,0,取引額表!AX9/取引額表!AX$46) -> 0.01933201861 | AY9: =IF(取引額表!AY$46=0,0,取引額表!AY9/取引額表!AY$46) -> 8.391866603e-06 | AZ9: =IF(取引額表!AZ$46=0,0,取引額表!AZ9/取引額表!AZ$46) -> 0.003524180748 | BA9: =IF(取引額表!BA$46=0,0,取引額表!BA9/取引額表!BA$46) -> 0.00310281013 | BB9: =IF(取引額表!BB$46=0,0,取引額表!BB9/取引額表!BB$46) -> 0.005759948643 | BC9: =IF(取引額表!BC$46=0,0,取引額表!BC9/取引額表!BC$46) -> 0.01611585332 | BD9: =IF(取引額表!BD$46=0,0,取引額表!BD9/取引額表!BD$46) -> 0.1114996944 | BE9: =IF(取引額表!BE$46=0,0,取引額表!BE9/取引額表!BE$46) -> 0.04048967739 | BF9: =IF(取引額表!BF$46=0,0,取引額表!BF9/取引額表!BF$46) -> 0.0552192826 | BG9: =IF(取引額表!BG$46=0,0,取引額表!BG9/取引額表!BG$46) -> -0.02694163254 | BH9: =IF(取引額表!BH$46=0,0,取引額表!BH9/取引額表!BH$46) -> 0.001967603619
B10: 06 | C10: 鉱業 | D10: =IF(取引額表!D$54=0,0,取引額表!D10/取引額表!D$54) -> 0 | E10: =IF(取引額表!E$54=0,0,取引額表!E10/取引額表!E$54) -> 0 | F10: =IF(取引額表!F$54=0,0,取引額表!F10/取引額表!F$54) -> 0.0001934861768 | G10: =IF(取引額表!G$54=0,0,取引額表!G10/取引額表!G$54) -> 0 | H10: =IF(取引額表!H$54=0,0,取引額表!H10/取引額表!H$54) -> 0.00014197823 | I10: =IF(取引額表!I$54=0,0,取引額表!I10/取引額表!I$54) -> 0.009382566586 | J10: =IF(取引額表!J$54=0,0,取引額表!J10/取引額表!J$54) -> 0.7292168751 | K10: =IF(取引額表!K$54=0,0,取引額表!K10/取引額表!K$54) -> 0 | L10: =IF(取引額表!L$54=0,0,取引額表!L10/取引額表!L$54) -> 0.05367570926 | M10: =IF(取引額表!M$54=0,0,取引額表!M10/取引額表!M$54) -> 0.07165943999 | N10: =IF(取引額表!N$54=0,0,取引額表!N10/取引額表!N$54) -> 0.0006306977811 | O10: =IF(取引額表!O$54=0,0,取引額表!O10/取引額表!O$54) -> 0.0001644601595 | P10: =IF(取引額表!P$54=0,0,取引額表!P10/取引額表!P$54) -> 0 | Q10: =IF(取引額表!Q$54=0,0,取引額表!Q10/取引額表!Q$54) -> 0 | R10: =IF(取引額表!R$54=0,0,取引額表!R10/取引額表!R$54) -> 0.0001253132832 | S10: =IF(取引額表!S$54=0,0,取引額表!S10/取引額表!S$54) -> 0 | T10: =IF(取引額表!T$54=0,0,取引額表!T10/取引額表!T$54) -> 0 | U10: =IF(取引額表!U$54=0,0,取引額表!U10/取引額表!U$54) -> 0 | V10: =IF(取引額表!V$54=0,0,取引額表!V10/取引額表!V$54) -> 0 | W10: =IF(取引額表!W$54=0,0,取引額表!W10/取引額表!W$54) -> 0.0007931431495 | X10: =IF(取引額表!X$54=0,0,取引額表!X10/取引額表!X$54) -> 0.005745497572 | Y10: =IF(取引額表!Y$54=0,0,取引額表!Y10/取引額表!Y$54) -> 0.2946828889 | Z10: =IF(取引額表!Z$54=0,0,取引額表!Z10/取引額表!Z$54) -> 0 | AA10: =IF(取引額表!AA$54=0,0,取引額表!AA10/取引額表!AA$54) -> 0 | AB10: =IF(取引額表!AB$54=0,0,取引額表!AB10/取引額表!AB$54) -> 1.322989321e-06 | AC10: =IF(取引額表!AC$54=0,0,取引額表!AC10/取引額表!AC$54) -> 0 | AD10: =IF(取引額表!AD$54=0,0,取引額表!AD10/取引額表!AD$54) -> 0 | AE10: =IF(取引額表!AE$54=0,0,取引額表!AE10/取引額表!AE$54) -> 5.478236337e-06 | AF10: =IF(取引額表!AF$54=0,0,取引額表!AF10/取引額表!AF$54) -> 0 | AG10: =IF(取引額表!AG$54=0,0,取引額表!AG10/取引額表!AG$54) -> 6.508509877e-06 | AH10: =IF(取引額表!AH$54=0,0,取引額表!AH10/取引額表!AH$54) -> 1.549858963e-05 | AI10: =IF(取引額表!AI$54=0,0,取引額表!AI10/取引額表!AI$54) -> 2.024016986e-06 | AJ10: =IF(取引額表!AJ$54=0,0,取引額表!AJ10/取引額表!AJ$54) -> 3.455425017e-05 | AK10: =IF(取引額表!AK$54=0,0,取引額表!AK10/取引額表!AK$54) -> 6.082392083e-06 | AL10: =IF(取引額表!AL$54=0,0,取引額表!AL10/取引額表!AL$54) -> 1.499025633e-05 | AM10: =IF(取引額表!AM$54=0,0,取引額表!AM10/取引額表!AM$54) -> 0 | AN10: =IF(取引額表!AN$54=0,0,取引額表!AN10/取引額表!AN$54) -> 8.219435442e-05 | AO10: =IF(取引額表!AO$54=0,0,取引額表!AO10/取引額表!AO$54) -> 0.03042606259 | AP10: =IF(取引額表!AP$46=0,0,取引額表!AP10/取引額表!AP$46) -> -0.000365014741 | AQ10: =IF(取引額表!AQ$46=0,0,取引額表!AQ10/取引額表!AQ$46) -> 2.868810365e-05 | AR10: =IF(取引額表!AR$46=0,0,取引額表!AR10/取引額表!AR$46) -> 0 | AS10: =IF(取引額表!AS$46=0,0,取引額表!AS10/取引額表!AS$46) -> 0 | AT10: =IF(取引額表!AT$46=0,0,取引額表!AT10/取引額表!AT$46) -> 0 | AU10: =IF(取引額表!AU$46=0,0,取引額表!AU10/取引額表!AU$46) -> 0.00216802168 | AV10: =IF(取引額表!AV$46=0,0,取引額表!AV10/取引額表!AV$46) -> 0 | AW10: =IF(取引額表!AW$46=0,0,取引額表!AW10/取引額表!AW$46) -> 5.223340262e-05 | AX10: =IF(取引額表!AX$46=0,0,取引額表!AX10/取引額表!AX$46) -> 0.02789472252 | AY10: =IF(取引額表!AY$46=0,0,取引額表!AY10/取引額表!AY$46) -> 0 | AZ10: =IF(取引額表!AZ$46=0,0,取引額表!AZ10/取引額表!AZ$46) -> 0 | BA10: =IF(取引額表!BA$46=0,0,取引額表!BA10/取引額表!BA$46) -> 0 | BB10: =IF(取引額表!BB$46=0,0,取引額表!BB10/取引額表!BB$46) -> 3.672655883e-05 | BC10: =IF(取引額表!BC$46=0,0,取引額表!BC10/取引額表!BC$46) -> 0.02236678575 | BD10: =IF(取引額表!BD$46=0,0,取引額表!BD10/取引額表!BD$46) -> 0.3643305859 | BE10: =IF(取引額表!BE$46=0,0,取引額表!BE10/取引額表!BE$46) -> 0.01085053689 | BF10: =IF(取引額表!BF$46=0,0,取引額表!BF10/取引額表!BF$46) -> 0.08417289044 | BG10: =IF(取引額表!BG$46=0,0,取引額表!BG10/取引額表!BG$46) -> -0.05559252222 | BH10: =IF(取引額表!BH$46=0,0,取引額表!BH10/取引額表!BH$46) -> 4.342896663e-06
B11: 11 | C11: 飲食料品 | D11: =IF(取引額表!D$54=0,0,取引額表!D11/取引額表!D$54) -> 0.08090771141 | E11: =IF(取引額表!E$54=0,0,取引額表!E11/取引額表!E$54) -> 0 | F11: =IF(取引額表!F$54=0,0,取引額表!F11/取引額表!F$54) -> 0.1659667331 | G11: =IF(取引額表!G$54=0,0,取引額表!G11/取引額表!G$54) -> 0.0006035003018 | H11: =IF(取引額表!H$54=0,0,取引額表!H11/取引額表!H$54) -> 0.0002366303833 | I11: =IF(取引額表!I$54=0,0,取引額表!I11/取引額表!I$54) -> 0.006900726392 | J11: =IF(取引額表!J$54=0,0,取引額表!J11/取引額表!J$54) -> 0 | K11: =IF(取引額表!K$54=0,0,取引額表!K11/取引額表!K$54) -> 0 | L11: =IF(取引額表!L$54=0,0,取引額表!L11/取引額表!L$54) -> 0.0009525781735 | M11: =IF(取引額表!M$54=0,0,取引額表!M11/取引額表!M$54) -> 0 | N11: =IF(取引額表!N$54=0,0,取引額表!N11/取引額表!N$54) -> 0 | O11: =IF(取引額表!O$54=0,0,取引額表!O11/取引額表!O$54) -> 0 | P11: =IF(取引額表!P$54=0,0,取引額表!P11/取引額表!P$54) -> 0 | Q11: =IF(取引額表!Q$54=0,0,取引額表!Q11/取引額表!Q$54) -> 0 | R11: =IF(取引額表!R$54=0,0,取引額表!R11/取引額表!R$54) -> 0 | S11: =IF(取引額表!S$54=0,0,取引額表!S11/取引額表!S$54) -> 0 | T11: =IF(取引額表!T$54=0,0,取引額表!T11/取引額表!T$54) -> 0 | U11: =IF(取引額表!U$54=0,0,取引額表!U11/取引額表!U$54) -> 0 | V11: =IF(取引額表!V$54=0,0,取引額表!V11/取引額表!V$54) -> 0 | W11: =IF(取引額表!W$54=0,0,取引額表!W11/取引額表!W$54) -> 0.00115133683 | X11: =IF(取引額表!X$54=0,0,取引額表!X11/取引額表!X$54) -> 8.255025247e-06 | Y11: =IF(取引額表!Y$54=0,0,取引額表!Y11/取引額表!Y$54) -> 0 | Z11: =IF(取引額表!Z$54=0,0,取引額表!Z11/取引額表!Z$54) -> 0 | AA11: =IF(取引額表!AA$54=0,0,取引額表!AA11/取引額表!AA$54) -> 0 | AB11: =IF(取引額表!AB$54=0,0,取引額表!AB11/取引額表!AB$54) -> 0.0001389138787 | AC11: =IF(取引額表!AC$54=0,0,取引額表!AC11/取引額表!AC$54) -> 0 | AD11: =IF(取引額表!AD$54=0,0,取引額表!AD11/取引額表!AD$54) -> 0 | AE11: =IF(取引額表!AE$54=0,0,取引額表!AE11/取引額表!AE$54) -> 0 | AF11: =IF(取引額表!AF$54=0,0,取引額表!AF11/取引額表!AF$54) -> 0 | AG11: =IF(取引額表!AG$54=0,0,取引額表!AG11/取引額表!AG$54) -> 0.00026359465 | AH11: =IF(取引額表!AH$54=0,0,取引額表!AH11/取引額表!AH$54) -> 0.005393509191 | AI11: =IF(取引額表!AI$54=0,0,取引額表!AI11/取引額表!AI$54) -> 0.007001074753 | AJ11: =IF(取引額表!AJ$54=0,0,取引額表!AJ11/取引額表!AJ$54) -> 0.001140290256 | AK11: =IF(取引額表!AK$54=0,0,取引額表!AK11/取引額表!AK$54) -> 3.041196042e-06 | AL11: =IF(取引額表!AL$54=0,0,取引額表!AL11/取引額表!AL$54) -> 0.1299805127 | AM11: =IF(取引額表!AM$54=0,0,取引額表!AM11/取引額表!AM$54) -> 0 | AN11: =IF(取引額表!AN$54=0,0,取引額表!AN11/取引額表!AN$54) -> 0.001174205063 | AO11: =IF(取引額表!AO$54=0,0,取引額表!AO11/取引額表!AO$54) -> 0.01509618023 | AP11: =IF(取引額表!AP$46=0,0,取引額表!AP11/取引額表!AP$46) -> 0.05522953812 | AQ11: =IF(取引額表!AQ$46=0,0,取引額表!AQ11/取引額表!AQ$46) -> 0.08351779902 | AR11: =IF(取引額表!AR$46=0,0,取引額表!AR11/取引額表!AR$46) -> 0 | AS11: =IF(取引額表!AS$46=0,0,取引額表!AS11/取引額表!AS$46) -> 0 | AT11: =IF(取引額表!AT$46=0,0,取引額表!AT11/取引額表!AT$46) -> 0 | AU11: =IF(取引額表!AU$46=0,0,取引額表!AU11/取引額表!AU$46) -> 0.7997555662 | AV11: =IF(取引額表!AV$46=0,0,取引額表!AV11/取引額表!AV$46) -> 0 | AW11: =IF(取引額表!AW$46=0,0,取引額表!AW11/取引額表!AW$46) -> 0.06730125296 | AX11: =IF(取引額表!AX$46=0,0,取引額表!AX11/取引額表!AX$46) -> 0.05321991299 | AY11: =IF(取引額表!AY$46=0,0,取引額表!AY11/取引額表!AY$46) -> 0.005836543222 | AZ11: =IF(取引額表!AZ$46=0,0,取引額表!AZ11/取引額表!AZ$46) -> 0.09862163852 | BA11: =IF(取引額表!BA$46=0,0,取引額表!BA11/取引額表!BA$46) -> 0.08750125722 | BB11: =IF(取引額表!BB$46=0,0,取引額表!BB11/取引額表!BB$46) -> 0.07329814949 | BC11: =IF(取引額表!BC$46=0,0,取引額表!BC11/取引額表!BC$46) -> 0.06001349565 | BD11: =IF(取引額表!BD$46=0,0,取引額表!BD11/取引額表!BD$46) -> 0.06356169734 | BE11: =IF(取引額表!BE$46=0,0,取引額表!BE11/取引額表!BE$46) -> 0.119157608 | BF11: =IF(取引額表!BF$46=0,0,取引額表!BF11/取引額表!BF$46) -> 0.1076253503 | BG11: =IF(取引額表!BG$46=0,0,取引額表!BG11/取引額表!BG$46) -> 0.05060165008 | BH11: =IF(取引額表!BH$46=0,0,取引額表!BH11/取引額表!BH$46) -> 0.04278676079
B12: 15 | C12: 繊維製品 | D12: =IF(取引額表!D$54=0,0,取引額表!D12/取引額表!D$54) -> 0.002896951304 | E12: =IF(取引額表!E$54=0,0,取引額表!E12/取引額表!E$54) -> 0 | F12: =IF(取引額表!F$54=0,0,取引額表!F12/取引額表!F$54) -> 0.001214839438 | G12: =IF(取引額表!G$54=0,0,取引額表!G12/取引額表!G$54) -> 0.2166566083 | H12: =IF(取引額表!H$54=0,0,取引額表!H12/取引額表!H$54) -> 0.004164694747 | I12: =IF(取引額表!I$54=0,0,取引額表!I12/取引額表!I$54) -> 0.0004842615012 | J12: =IF(取引額表!J$54=0,0,取引額表!J12/取引額表!J$54) -> 0.0001648951013 | K12: =IF(取引額表!K$54=0,0,取引額表!K12/取引額表!K$54) -> 0.002329373399 | L12: =IF(取引額表!L$54=0,0,取引額表!L12/取引額表!L$54) -> 0.002360737213 | M12: =IF(取引額表!M$54=0,0,取引額表!M12/取引額表!M$54) -> 0.0002427350238 | N12: =IF(取引額表!N$54=0,0,取引額表!N12/取引額表!N$54) -> 0.0001720084858 | O12: =IF(取引額表!O$54=0,0,取引額表!O12/取引額表!O$54) -> 0.0008223007976 | P12: =IF(取引額表!P$54=0,0,取引額表!P12/取引額表!P$54) -> 0.0004459640256 | Q12: =IF(取引額表!Q$54=0,0,取引額表!Q12/取引額表!Q$54) -> 0.0006183613424 | R12: =IF(取引額表!R$54=0,0,取引額表!R12/取引額表!R$54) -> 0.0007518796992 | S12: =IF(取引額表!S$54=0,0,取引額表!S12/取引額表!S$54) -> 0.004260946224 | T12: =IF(取引額表!T$54=0,0,取引額表!T12/取引額表!T$54) -> 0.0006943066852 | U12: =IF(取引額表!U$54=0,0,取引額表!U12/取引額表!U$54) -> 0.0001865671642 | V12: =IF(取引額表!V$54=0,0,取引額表!V12/取引額表!V$54) -> 0 | W12: =IF(取引額表!W$54=0,0,取引額表!W12/取引額表!W$54) -> 0.001663042088 | X12: =IF(取引額表!X$54=0,0,取引額表!X12/取引額表!X$54) -> 0.003095634467 | Y12: =IF(取引額表!Y$54=0,0,取引額表!Y12/取引額表!Y$54) -> 0.0001656743464 | Z12: =IF(取引額表!Z$54=0,0,取引額表!Z12/取引額表!Z$54) -> 0.0007370806148 | AA12: =IF(取引額表!AA$54=0,0,取引額表!AA12/取引額表!AA$54) -> 0.00177746949 | AB12: =IF(取引額表!AB$54=0,0,取引額表!AB12/取引額表!AB$54) -> 0.004252087677 | AC12: =IF(取引額表!AC$54=0,0,取引額表!AC12/取引額表!AC$54) -> 0.001406138262 | AD12: =IF(取引額表!AD$54=0,0,取引額表!AD12/取引額表!AD$54) -> 2.133938152e-05 | AE12: =IF(取引額表!AE$54=0,0,取引額表!AE12/取引額表!AE$54) -> 0.00204886039 | AF12: =IF(取引額表!AF$54=0,0,取引額表!AF12/取引額表!AF$54) -> 0.0008361293071 | AG12: =IF(取引額表!AG$54=0,0,取引額表!AG12/取引額表!AG$54) -> 0.003390933646 | AH12: =IF(取引額表!AH$54=0,0,取引額表!AH12/取引額表!AH$54) -> 0.000499054586 | AI12: =IF(取引額表!AI$54=0,0,取引額表!AI12/取引額表!AI$54) -> 0.002924704544 | AJ12: =IF(取引額表!AJ$54=0,0,取引額表!AJ12/取引額表!AJ$54) -> 0.01862474084 | AK12: =IF(取引額表!AK$54=0,0,取引額表!AK12/取引額表!AK$54) -> 0.002107548857 | AL12: =IF(取引額表!AL$54=0,0,取引額表!AL12/取引額表!AL$54) -> 0.003350322291 | AM12: =IF(取引額表!AM$54=0,0,取引額表!AM12/取引額表!AM$54) -> 0.01864517942 | AN12: =IF(取引額表!AN$54=0,0,取引額表!AN12/取引額表!AN$54) -> 0.004872951012 | AO12: =IF(取引額表!AO$54=0,0,取引額表!AO12/取引額表!AO$54) -> 0.001910060239 | AP12: =IF(取引額表!AP$46=0,0,取引額表!AP12/取引額表!AP$46) -> 0.00726285741 | AQ12: =IF(取引額表!AQ$46=0,0,取引額表!AQ12/取引額表!AQ$46) -> 0.0134164698 | AR12: =IF(取引額表!AR$46=0,0,取引額表!AR12/取引額表!AR$46) -> 0 | AS12: =IF(取引額表!AS$46=0,0,取引額表!AS12/取引額表!AS$46) -> 1.222329516e-05 | AT12: =IF(取引額表!AT$46=0,0,取引額表!AT12/取引額表!AT$46) -> 0.005070008651 | AU12: =IF(取引額表!AU$46=0,0,取引額表!AU12/取引額表!AU$46) -> 0.01063818481 | AV12: =IF(取引額表!AV$46=0,0,取引額表!AV12/取引額表!AV$46) -> 0 | AW12: =IF(取引額表!AW$46=0,0,取引額表!AW12/取引額表!AW$46) -> 0.009089249049 | AX12: =IF(取引額表!AX$46=0,0,取引額表!AX12/取引額表!AX$46) -> 0.007069631037 | AY12: =IF(取引額表!AY$46=0,0,取引額表!AY12/取引額表!AY$46) -> 0.0001384657989 | AZ12: =IF(取引額表!AZ$46=0,0,取引額表!AZ12/取引額表!AZ$46) -> 0.0007684862364 | BA12: =IF(取引額表!BA$46=0,0,取引額表!BA12/取引額表!BA$46) -> 0.000692977692 | BB12: =IF(取引額表!BB$46=0,0,取引額表!BB12/取引額表!BB$46) -> 0.006596597568 | BC12: =IF(取引額表!BC$46=0,0,取引額表!BC12/取引額表!BC$46) -> 0.00580596059 | BD12: =IF(取引額表!BD$46=0,0,取引額表!BD12/取引額表!BD$46) -> 0.04525629017 | BE12: =IF(取引額表!BE$46=0,0,取引額表!BE12/取引額表!BE$46) -> 0.01494332893 | BF12: =IF(取引額表!BF$46=0,0,取引額表!BF12/取引額表!BF$46) -> 0.02123114536 | BG12: =IF(取引額表!BG$46=0,0,取引額表!BG12/取引額表!BG$46) -> -0.003079490129 | BH12: =IF(取引額表!BH$46=0,0,取引額表!BH12/取引額表!BH$46) -> 0.0002248806178
B13: 16 | C13: パルプ・紙・木製品 | D13: =IF(取引額表!D$54=0,0,取引額表!D13/取引額表!D$54) -> 0.02469306111 | E13: =IF(取引額表!E$54=0,0,取引額表!E13/取引額表!E$54) -> 0 | F13: =IF(取引額表!F$54=0,0,取引額表!F13/取引額表!F$54) -> 0.008101044191 | G13: =IF(取引額表!G$54=0,0,取引額表!G13/取引額表!G$54) -> 0.004828002414 | H13: =IF(取引額表!H$54=0,0,取引額表!H13/取引額表!H$54) -> 0.2329862754 | I13: =IF(取引額表!I$54=0,0,取引額表!I13/取引額表!I$54) -> 0.004721549637 | J13: =IF(取引額表!J$54=0,0,取引額表!J13/取引額表!J$54) -> 8.878966996e-05 | K13: =IF(取引額表!K$54=0,0,取引額表!K13/取引額表!K$54) -> 0.006134016616 | L13: =IF(取引額表!L$54=0,0,取引額表!L13/取引額表!L$54) -> 0.007454959619 | M13: =IF(取引額表!M$54=0,0,取引額表!M13/取引額表!M$54) -> 0.0002510415455 | N13: =IF(取引額表!N$54=0,0,取引額表!N13/取引額表!N$54) -> 0.002121437991 | O13: =IF(取引額表!O$54=0,0,取引額表!O13/取引額表!O$54) -> 0.002220212154 | P13: =IF(取引額表!P$54=0,0,取引額表!P13/取引額表!P$54) -> 0.0002973093504 | Q13: =IF(取引額表!Q$54=0,0,取引額表!Q13/取引額表!Q$54) -> 0.0005385727821 | R13: =IF(取引額表!R$54=0,0,取引額表!R13/取引額表!R$54) -> 0.01002506266 | S13: =IF(取引額表!S$54=0,0,取引額表!S13/取引額表!S$54) -> 0.003526300323 | T13: =IF(取引額表!T$54=0,0,取引額表!T13/取引額表!T$54) -> 0.007835746876 | U13: =IF(取引額表!U$54=0,0,取引額表!U13/取引額表!U$54) -> 0.006902985075 | V13: =IF(取引額表!V$54=0,0,取引額表!V13/取引額表!V$54) -> 0 | W13: =IF(取引額表!W$54=0,0,取引額表!W13/取引額表!W$54) -> 0.0672892414 | X13: =IF(取引額表!X$54=0,0,取引額表!X13/取引額表!X$54) -> 0.05384202633 | Y13: =IF(取引額表!Y$54=0,0,取引額表!Y13/取引額表!Y$54) -> 0.001021658469 | Z13: =IF(取引額表!Z$54=0,0,取引額表!Z13/取引額表!Z$54) -> 0.002620731075 | AA13: =IF(取引額表!AA$54=0,0,取引額表!AA13/取引額表!AA$54) -> 0.003143086294 | AB13: =IF(取引額表!AB$54=0,0,取引額表!AB13/取引額表!AB$54) -> 0.007961749733 | AC13: =IF(取引額表!AC$54=0,0,取引額表!AC13/取引額表!AC$54) -> 0.004588028273 | AD13: =IF(取引額表!AD$54=0,0,取引額表!AD13/取引額表!AD$54) -> 0.0003932543167 | AE13: =IF(取引額表!AE$54=0,0,取引額表!AE13/取引額表!AE$54) -> 0.003097942648 | AF13: =IF(取引額表!AF$54=0,0,取引額表!AF13/取引額表!AF$54) -> 0.0102252756 | AG13: =IF(取引額表!AG$54=0,0,取引額表!AG13/取引額表!AG$54) -> 0.001243125386 | AH13: =IF(取引額表!AH$54=0,0,取引額表!AH13/取引額表!AH$54) -> 0.005368711447 | AI13: =IF(取引額表!AI$54=0,0,取引額表!AI13/取引額表!AI$54) -> 0.005561998676 | AJ13: =IF(取引額表!AJ$54=0,0,取引額表!AJ13/取引額表!AJ$54) -> 0.01499654457 | AK13: =IF(取引額表!AK$54=0,0,取引額表!AK13/取引額表!AK$54) -> 0.003117225943 | AL13: =IF(取引額表!AL$54=0,0,取引額表!AL13/取引額表!AL$54) -> 0.005743766552 | AM13: =IF(取引額表!AM$54=0,0,取引額表!AM13/取引額表!AM$54) -> 0.4162840813 | AN13: =IF(取引額表!AN$54=0,0,取引額表!AN13/取引額表!AN$54) -> 0.00260673524 | AO13: =IF(取引額表!AO$54=0,0,取引額表!AO13/取引額表!AO$54) -> 0.007987808403 | AP13: =IF(取引額表!AP$46=0,0,取引額表!AP13/取引額表!AP$46) -> 0.00786185596 | AQ13: =IF(取引額表!AQ$46=0,0,取引額表!AQ13/取引額表!AQ$46) -> 0.002113356969 | AR13: =IF(取引額表!AR$46=0,0,取引額表!AR13/取引額表!AR$46) -> 0.0007037492965 | AS13: =IF(取引額表!AS$46=0,0,取引額表!AS13/取引額表!AS$46) -> 0.0004400386256 | AT13: =IF(取引額表!AT$46=0,0,取引額表!AT13/取引額表!AT$46) -> 0.004528692189 | AU13: =IF(取引額表!AU$46=0,0,取引額表!AU13/取引額表!AU$46) -> -0.009692332217 | AV13: =IF(取引額表!AV$46=0,0,取引額表!AV13/取引額表!AV$46) -> 0 | AW13: =IF(取引額表!AW$46=0,0,取引額表!AW13/取引額表!AW$46) -> 0.001998458478 | AX13: =IF(取引額表!AX$46=0,0,取引額表!AX13/取引額表!AX$46) -> 0.008485023844 | AY13: =IF(取引額表!AY$46=0,0,取引額表!AY13/取引額表!AY$46) -> 0.0002181885317 | AZ13: =IF(取引額表!AZ$46=0,0,取引額表!AZ13/取引額表!AZ$46) -> 0.004929739217 | BA13: =IF(取引額表!BA$46=0,0,取引額表!BA13/取引額表!BA$46) -> 0.004365055418 | BB13: =IF(取引額表!BB$46=0,0,取引額表!BB13/取引額表!BB$46) -> 0.002701044318 | BC13: =IF(取引額表!BC$46=0,0,取引額表!BC13/取引額表!BC$46) -> 0.007668563851 | BD13: =IF(取引額表!BD$46=0,0,取引額表!BD13/取引額表!BD$46) -> 0.01277562992 | BE13: =IF(取引額表!BE$46=0,0,取引額表!BE13/取引額表!BE$46) -> 0.02307354106 | BF13: =IF(取引額表!BF$46=0,0,取引額表!BF13/取引額表!BF$46) -> 0.02093744573 | BG13: =IF(取引額表!BG$46=0,0,取引額表!BG13/取引額表!BG$46) -> -0.00935652123 | BH13: =IF(取引額表!BH$46=0,0,取引額表!BH13/取引額表!BH$46) -> 0.002867668953
B14: 20 | C14: 化学製品 | D14: =IF(取引額表!D$54=0,0,取引額表!D14/取引額表!D$54) -> 0.07607945924 | E14: =IF(取引額表!E$54=0,0,取引額表!E14/取引額表!E$54) -> 0 | F14: =IF(取引額表!F$54=0,0,取引額表!F14/取引額表!F$54) -> 0.008218404659 | G14: =IF(取引額表!G$54=0,0,取引額表!G14/取引額表!G$54) -> 0.06698853349 | H14: =IF(取引額表!H$54=0,0,取引額表!H14/取引額表!H$54) -> 0.0292001893 | I14: =IF(取引額表!I$54=0,0,取引額表!I14/取引額表!I$54) -> 0.3746368039 | J14: =IF(取引額表!J$54=0,0,取引額表!J14/取引額表!J$54) -> -0.001369897765 | K14: =IF(取引額表!K$54=0,0,取引額表!K14/取引額表!K$54) -> 0.1900768693 | L14: =IF(取引額表!L$54=0,0,取引額表!L14/取引額表!L$54) -> 0.04282460137 | M14: =IF(取引額表!M$54=0,0,取引額表!M14/取引額表!M$54) -> 0.003851457241 | N14: =IF(取引額表!N$54=0,0,取引額表!N14/取引額表!N$54) -> 0.003038816582 | O14: =IF(取引額表!O$54=0,0,取引額表!O14/取引額表!O$54) -> 0.00923717896 | P14: =IF(取引額表!P$54=0,0,取引額表!P14/取引額表!P$54) -> 0.002081165453 | Q14: =IF(取引額表!Q$54=0,0,取引額表!Q14/取引額表!Q$54) -> 0.003321198823 | R14: =IF(取引額表!R$54=0,0,取引額表!R14/取引額表!R$54) -> 0.0149122807 | S14: =IF(取引額表!S$54=0,0,取引額表!S14/取引額表!S$54) -> 0.01190126359 | T14: =IF(取引額表!T$54=0,0,取引額表!T14/取引額表!T$54) -> 0.008827613569 | U14: =IF(取引額表!U$54=0,0,取引額表!U14/取引額表!U$54) -> 0.007276119403 | V14: =IF(取引額表!V$54=0,0,取引額表!V14/取引額表!V$54) -> 0.01069078947 | W14: =IF(取引額表!W$54=0,0,取引額表!W14/取引額表!W$54) -> 0.02410131764 | X14: =IF(取引額表!X$54=0,0,取引額表!X14/取引額表!X$54) -> 0.005266706107 | Y14: =IF(取引額表!Y$54=0,0,取引額表!Y14/取引額表!Y$54) -> 0.001083786349 | Z14: =IF(取引額表!Z$54=0,0,取引額表!Z14/取引額表!Z$54) -> 0.007480003276 | AA14: =IF(取引額表!AA$54=0,0,取引額表!AA14/取引額表!AA$54) -> 0.01354778575 | AB14: =IF(取引額表!AB$54=0,0,取引額表!AB14/取引額表!AB$54) -> 6.614946604e-06 | AC14: =IF(取引額表!AC$54=0,0,取引額表!AC14/取引額表!AC$54) -> 2.142686876e-05 | AD14: =IF(取引額表!AD$54=0,0,取引額表!AD14/取引額表!AD$54) -> 3.048483075e-05 | AE14: =IF(取引額表!AE$54=0,0,取引額表!AE14/取引額表!AE$54) -> 0.0002711726987 | AF14: =IF(取引額表!AF$54=0,0,取引額表!AF14/取引額表!AF$54) -> 0.0008707461256 | AG14: =IF(取引額表!AG$54=0,0,取引額表!AG14/取引額表!AG$54) -> 0.0008558690488 | AH14: =IF(取引額表!AH$54=0,0,取引額表!AH14/取引額表!AH$54) -> 0.004268311584 | AI14: =IF(取引額表!AI$54=0,0,取引額表!AI14/取引額表!AI$54) -> 0.1284339978 | AJ14: =IF(取引額表!AJ$54=0,0,取引額表!AJ14/取引額表!AJ$54) -> 0.001762266759 | AK14: =IF(取引額表!AK$54=0,0,取引額表!AK14/取引額表!AK$54) -> 0.00437171931 | AL14: =IF(取引額表!AL$54=0,0,取引額表!AL14/取引額表!AL$54) -> 0.006955478939 | AM14: =IF(取引額表!AM$54=0,0,取引額表!AM14/取引額表!AM$54) -> 0.008807270683 | AN14: =IF(取引額表!AN$54=0,0,取引額表!AN14/取引額表!AN$54) -> 0.002935512658 | AO14: =IF(取引額表!AO$54=0,0,取引額表!AO14/取引額表!AO$54) -> 0.01288116722 | AP14: =IF(取引額表!AP$46=0,0,取引額表!AP14/取引額表!AP$46) -> 0.00730029482 | AQ14: =IF(取引額表!AQ$46=0,0,取引額表!AQ14/取引額表!AQ$46) -> 0.009123171133 | AR14: =IF(取引額表!AR$46=0,0,取引額表!AR14/取引額表!AR$46) -> 0 | AS14: =IF(取引額表!AS$46=0,0,取引額表!AS14/取引額表!AS$46) -> 0 | AT14: =IF(取引額表!AT$46=0,0,取引額表!AT14/取引額表!AT$46) -> 0 | AU14: =IF(取引額表!AU$46=0,0,取引額表!AU14/取引額表!AU$46) -> -0.03494340826 | AV14: =IF(取引額表!AV$46=0,0,取引額表!AV14/取引額表!AV$46) -> 0 | AW14: =IF(取引額表!AW$46=0,0,取引額表!AW14/取引額表!AW$46) -> 0.004936905872 | AX14: =IF(取引額表!AX$46=0,0,取引額表!AX14/取引額表!AX$46) -> 0.01468637826 | AY14: =IF(取引額表!AY$46=0,0,取引額表!AY14/取引額表!AY$46) -> 0.01531935248 | AZ14: =IF(取引額表!AZ$46=0,0,取引額表!AZ14/取引額表!AZ$46) -> 0.005324552592 | BA14: =IF(取引額表!BA$46=0,0,取引額表!BA14/取引額表!BA$46) -> 0.006522438799 | BB14: =IF(取引額表!BB$46=0,0,取引額表!BB14/取引額表!BB$46) -> 0.00540761255 | BC14: =IF(取引額表!BC$46=0,0,取引額表!BC14/取引額表!BC$46) -> 0.01306851879 | BD14: =IF(取引額表!BD$46=0,0,取引額表!BD14/取引額表!BD$46) -> 0.03127452505 | BE14: =IF(取引額表!BE$46=0,0,取引額表!BE14/取引額表!BE$46) -> 0.04605763511 | BF14: =IF(取引額表!BF$46=0,0,取引額表!BF14/取引額表!BF$46) -> 0.04299117513 | BG14: =IF(取引額表!BG$46=0,0,取引額表!BG14/取引額表!BG$46) -> -0.01944193201 | BH14: =IF(取引額表!BH$46=0,0,取引額表!BH14/取引額表!BH$46) -> 0.002242020402
B15: 21 | C15: 石油・石炭製品 | D15: =IF(取引額表!D$54=0,0,取引額表!D15/取引額表!D$54) -> 0.003724651676 | E15: =IF(取引額表!E$54=0,0,取引額表!E15/取引額表!E$54) -> 0 | F15: =IF(取引額表!F$54=0,0,取引額表!F15/取引額表!F$54) -> 0.003987084005 | G15: =IF(取引額表!G$54=0,0,取引額表!G15/取引額表!G$54) -> 0 | H15: =IF(取引額表!H$54=0,0,取引額表!H15/取引額表!H$54) -> 0.0008991954567 | I15: =IF(取引額表!I$54=0,0,取引額表!I15/取引額表!I$54) -> 0.009140435835 | J15: =IF(取引額表!J$54=0,0,取引額表!J15/取引額表!J$54) -> 0.07474821786 | K15: =IF(取引額表!K$54=0,0,取引額表!K15/取引額表!K$54) -> 0.0008541035795 | L15: =IF(取引額表!L$54=0,0,取引額表!L15/取引額表!L$54) -> 0.01967281011 | M15: =IF(取引額表!M$54=0,0,取引額表!M15/取引額表!M$54) -> 0.02795975213 | N15: =IF(取引額表!N$54=0,0,取引額表!N15/取引額表!N$54) -> 0.001032050915 | O15: =IF(取引額表!O$54=0,0,取引額表!O15/取引額表!O$54) -> 0.002494312419 | P15: =IF(取引額表!P$54=0,0,取引額表!P15/取引額表!P$54) -> 0.0001486546752 | Q15: =IF(取引額表!Q$54=0,0,取引額表!Q15/取引額表!Q$54) -> 0.0006582556226 | R15: =IF(取引額表!R$54=0,0,取引額表!R15/取引額表!R$54) -> 0.001503759398 | S15: =IF(取引額表!S$54=0,0,取引額表!S15/取引額表!S$54) -> 0.0008815750808 | T15: =IF(取引額表!T$54=0,0,取引額表!T15/取引額表!T$54) -> 0.0009918666931 | U15: =IF(取引額表!U$54=0,0,取引額表!U15/取引額表!U$54) -> 0 | V15: =IF(取引額表!V$54=0,0,取引額表!V15/取引額表!V$54) -> 0 | W15: =IF(取引額表!W$54=0,0,取引額表!W15/取引額表!W$54) -> 0.0024817705 | X15: =IF(取引額表!X$54=0,0,取引額表!X15/取引額表!X$54) -> 0.01061596247 | Y15: =IF(取引額表!Y$54=0,0,取引額表!Y15/取引額表!Y$54) -> 0.03059107775 | Z15: =IF(取引額表!Z$54=0,0,取引額表!Z15/取引額表!Z$54) -> 0.01105620922 | AA15: =IF(取引額表!AA$54=0,0,取引額表!AA15/取引額表!AA$54) -> 0.01140181649 | AB15: =IF(取引額表!AB$54=0,0,取引額表!AB15/取引額表!AB$54) -> 0.001623307897 | AC15: =IF(取引額表!AC$54=0,0,取引額表!AC15/取引額表!AC$54) -> 0.0004794261885 | AD15: =IF(取引額表!AD$54=0,0,取引額表!AD15/取引額表!AD$54) -> 0.0004039240074 | AE15: =IF(取引額表!AE$54=0,0,取引額表!AE15/取引額表!AE$54) -> 0.07547640113 | AF15: =IF(取引額表!AF$54=0,0,取引額表!AF15/取引額表!AF$54) -> 0.0005671832561 | AG15: =IF(取引額表!AG$54=0,0,取引額表!AG15/取引額表!AG$54) -> 0.01021510625 | AH15: =IF(取引額表!AH$54=0,0,取引額表!AH15/取引額表!AH$54) -> 0.003642168563 | AI15: =IF(取引額表!AI$54=0,0,取引額表!AI15/取引額表!AI$54) -> 0.002036161087 | AJ15: =IF(取引額表!AJ$54=0,0,取引額表!AJ15/取引額表!AJ$54) -> 0.002729785764 | AK15: =IF(取引額表!AK$54=0,0,取引額表!AK15/取引額表!AK$54) -> 0.002084739887 | AL15: =IF(取引額表!AL$54=0,0,取引額表!AL15/取引額表!AL$54) -> 0.005094188777 | AM15: =IF(取引額表!AM$54=0,0,取引額表!AM15/取引額表!AM$54) -> 0 | AN15: =IF(取引額表!AN$54=0,0,取引額表!AN15/取引額表!AN$54) -> 0.102731201 | AO15: =IF(取引額表!AO$54=0,0,取引額表!AO15/取引額表!AO$54) -> 0.01344995097 | AP15: =IF(取引額表!AP$46=0,0,取引額表!AP15/取引額表!AP$46) -> 0.001469418316 | AQ15: =IF(取引額表!AQ$46=0,0,取引額表!AQ15/取引額表!AQ$46) -> 0.014431887 | AR15: =IF(取引額表!AR$46=0,0,取引額表!AR15/取引額表!AR$46) -> 0 | AS15: =IF(取引額表!AS$46=0,0,取引額表!AS15/取引額表!AS$46) -> 0 | AT15: =IF(取引額表!AT$46=0,0,取引額表!AT15/取引額表!AT$46) -> 0 | AU15: =IF(取引額表!AU$46=0,0,取引額表!AU15/取引額表!AU$46) -> 0.05949306552 | AV15: =IF(取引額表!AV$46=0,0,取引額表!AV15/取引額表!AV$46) -> 0 | AW15: =IF(取引額表!AW$46=0,0,取引額表!AW15/取引額表!AW$46) -> 0.009874024074 | AX15: =IF(取引額表!AX$46=0,0,取引額表!AX15/取引額表!AX$46) -> 0.01809721641 | AY15: =IF(取引額表!AY$46=0,0,取引額表!AY15/取引額表!AY$46) -> 4.195933301e-06 | AZ15: =IF(取引額表!AZ$46=0,0,取引額表!AZ15/取引額表!AZ$46) -> 0.002066056677 | BA15: =IF(取引額表!BA$46=0,0,取引額表!BA15/取引額表!BA$46) -> 0.00181894072 | BB15: =IF(取引額表!BB$46=0,0,取引額表!BB15/取引額表!BB$46) -> 0.007482663123 | BC15: =IF(取引額表!BC$46=0,0,取引額表!BC15/取引額表!BC$46) -> 0.0148713274 | BD15: =IF(取引額表!BD$46=0,0,取引額表!BD15/取引額表!BD$46) -> 0.02352054046 | BE15: =IF(取引額表!BE$46=0,0,取引額表!BE15/取引額表!BE$46) -> 0.02715544801 | BF15: =IF(取引額表!BF$46=0,0,取引額表!BF15/取引額表!BF$46) -> 0.02640145927 | BG15: =IF(取引額表!BG$46=0,0,取引額表!BG15/取引額表!BG$46) -> -0.005026088988 | BH15: =IF(取引額表!BH$46=0,0,取引額表!BH15/取引額表!BH$46) -> 0.01069954022
B16: 22 | C16: プラスチック・ゴム製品 | D16: =IF(取引額表!D$54=0,0,取引額表!D16/取引額表!D$54) -> 0.007656228445 | E16: =IF(取引額表!E$54=0,0,取引額表!E16/取引額表!E$54) -> 0 | F16: =IF(取引額表!F$54=0,0,取引額表!F16/取引額表!F$54) -> 0.008319905604 | G16: =IF(取引額表!G$54=0,0,取引額表!G16/取引額表!G$54) -> 0.01448400724 | H16: =IF(取引額表!H$54=0,0,取引額表!H16/取引額表!H$54) -> 0.01893043067 | I16: =IF(取引額表!I$54=0,0,取引額表!I16/取引額表!I$54) -> 0.008777239709 | J16: =IF(取引額表!J$54=0,0,取引額表!J16/取引額表!J$54) -> 3.80527157e-05 | K16: =IF(取引額表!K$54=0,0,取引額表!K16/取引額表!K$54) -> 0.2347231928 | L16: =IF(取引額表!L$54=0,0,取引額表!L16/取引額表!L$54) -> 0.003437564713 | M16: =IF(取引額表!M$54=0,0,取引額表!M16/取引額表!M$54) -> 0.0005888400958 | N16: =IF(取引額表!N$54=0,0,取引額表!N16/取引額表!N$54) -> 0.0008600424288 | O16: =IF(取引額表!O$54=0,0,取引額表!O16/取引額表!O$54) -> 0.002494312419 | P16: =IF(取引額表!P$54=0,0,取引額表!P16/取引額表!P$54) -> 0.01531143154 | Q16: =IF(取引額表!Q$54=0,0,取引額表!Q16/取引額表!Q$54) -> 0.03217473695 | R16: =IF(取引額表!R$54=0,0,取引額表!R16/取引額表!R$54) -> 0.06203007519 | S16: =IF(取引額表!S$54=0,0,取引額表!S16/取引額表!S$54) -> 0.0243902439 | T16: =IF(取引額表!T$54=0,0,取引額表!T16/取引額表!T$54) -> 0.03382265424 | U16: =IF(取引額表!U$54=0,0,取引額表!U16/取引額表!U$54) -> 0.01828358209 | V16: =IF(取引額表!V$54=0,0,取引額表!V16/取引額表!V$54) -> 0.03207236842 | W16: =IF(取引額表!W$54=0,0,取引額表!W16/取引額表!W$54) -> 0.03871050275 | X16: =IF(取引額表!X$54=0,0,取引額表!X16/取引額表!X$54) -> 0.01281179918 | Y16: =IF(取引額表!Y$54=0,0,取引額表!Y16/取引額表!Y$54) -> 0 | Z16: =IF(取引額表!Z$54=0,0,取引額表!Z16/取引額表!Z$54) -> 0.03398760613 | AA16: =IF(取引額表!AA$54=0,0,取引額表!AA16/取引額表!AA$54) -> 0.01252899226 | AB16: =IF(取引額表!AB$54=0,0,取引額表!AB16/取引額表!AB$54) -> 0.005457330948 | AC16: =IF(取引額表!AC$54=0,0,取引額表!AC16/取引額表!AC$54) -> 0.002557832458 | AD16: =IF(取引額表!AD$54=0,0,取引額表!AD16/取引額表!AD$54) -> 0.0005365330212 | AE16: =IF(取引額表!AE$54=0,0,取引額表!AE16/取引額表!AE$54) -> 0.00257203196 | AF16: =IF(取引額表!AF$54=0,0,取引額表!AF16/取引額表!AF$54) -> 0.004167332375 | AG16: =IF(取引額表!AG$54=0,0,取引額表!AG16/取引額表!AG$54) -> 0.00184516255 | AH16: =IF(取引額表!AH$54=0,0,取引額表!AH16/取引額表!AH$54) -> 0.002321688726 | AI16: =IF(取引額表!AI$54=0,0,取引額表!AI16/取引額表!AI$54) -> 0.001864119644 | AJ16: =IF(取引額表!AJ$54=0,0,取引額表!AJ16/取引額表!AJ$54) -> 0.005839668279 | AK16: =IF(取引額表!AK$54=0,0,取引額表!AK16/取引額表!AK$54) -> 0.007709431965 | AL16: =IF(取引額表!AL$54=0,0,取引額表!AL16/取引額表!AL$54) -> 0.002770699046 | AM16: =IF(取引額表!AM$54=0,0,取引額表!AM16/取引額表!AM$54) -> 0.04544176895 | AN16: =IF(取引額表!AN$54=0,0,取引額表!AN16/取引額表!AN$54) -> 0.004015781316 | AO16: =IF(取引額表!AO$54=0,0,取引額表!AO16/取引額表!AO$54) -> 0.005016588508 | AP16: =IF(取引額表!AP$46=0,0,取引額表!AP16/取引額表!AP$46) -> 0.001665964715 | AQ16: =IF(取引額表!AQ$46=0,0,取引額表!AQ16/取引額表!AQ$46) -> 0.002348882758 | AR16: =IF(取引額表!AR$46=0,0,取引額表!AR16/取引額表!AR$46) -> 2.220029327e-06 | AS16: =IF(取引額表!AS$46=0,0,取引額表!AS16/取引額表!AS$46) -> 0 | AT16: =IF(取引額表!AT$46=0,0,取引額表!AT16/取引額表!AT$46) -> 0 | AU16: =IF(取引額表!AU$46=0,0,取引額表!AU16/取引額表!AU$46) -> -0.007046070461 | AV16: =IF(取引額表!AV$46=0,0,取引額表!AV16/取引額表!AV$46) -> 0 | AW16: =IF(取引額表!AW$46=0,0,取引額表!AW16/取引額表!AW$46) -> 0.001305622735 | AX16: =IF(取引額表!AX$46=0,0,取引額表!AX16/取引額表!AX$46) -> 0.005358432568 | AY16: =IF(取引額表!AY$46=0,0,取引額表!AY16/取引額表!AY$46) -> 0.001187449124 | AZ16: =IF(取引額表!AZ$46=0,0,取引額表!AZ16/取引額表!AZ$46) -> 0.006629550781 | BA16: =IF(取引額表!BA$46=0,0,取引額表!BA16/取引額表!BA$46) -> 0.005977309758 | BB16: =IF(取引額表!BB$46=0,0,取引額表!BB16/取引額表!BB$46) -> 0.002692534506 | BC16: =IF(取引額表!BC$46=0,0,取引額表!BC16/取引額表!BC$46) -> 0.00548107634 | BD16: =IF(取引額表!BD$46=0,0,取引額表!BD16/取引額表!BD$46) -> 0.01456946218 | BE16: =IF(取引額表!BE$46=0,0,取引額表!BE16/取引額表!BE$46) -> 0.01612081119 | BF16: =IF(取引額表!BF$46=0,0,取引額表!BF16/取引額表!BF$46) -> 0.01579901492 | BG16: =IF(取引額表!BG$46=0,0,取引額表!BG16/取引額表!BG$46) -> -0.005973223787 | BH16: =IF(取引額表!BH$46=0,0,取引額表!BH16/取引額表!BH$46) -> 0.001747880191
B17: 25 | C17: 窯業・土石製品 | D17: =IF(取引額表!D$54=0,0,取引額表!D17/取引額表!D$54) -> 0.001379500621 | E17: =IF(取引額表!E$54=0,0,取引額表!E17/取引額表!E$54) -> 0 | F17: =IF(取引額表!F$54=0,0,取引額表!F17/取引額表!F$54) -> 0.0004155194945 | G17: =IF(取引額表!G$54=0,0,取引額表!G17/取引額表!G$54) -> 0.0006035003018 | H17: =IF(取引額表!H$54=0,0,取引額表!H17/取引額表!H$54) -> 0.00326549929 | I17: =IF(取引額表!I$54=0,0,取引額表!I17/取引額表!I$54) -> 0.004661016949 | J17: =IF(取引額表!J$54=0,0,取引額表!J17/取引額表!J$54) -> 0.0006215276897 | K17: =IF(取引額表!K$54=0,0,取引額表!K17/取引額表!K$54) -> 0.003105831198 | L17: =IF(取引額表!L$54=0,0,取引額表!L17/取引額表!L$54) -> 0.07206460965 | M17: =IF(取引額表!M$54=0,0,取引額表!M17/取引額表!M$54) -> 0.002516876083 | N17: =IF(取引額表!N$54=0,0,取引額表!N17/取引額表!N$54) -> 0.0009173785907 | O17: =IF(取引額表!O$54=0,0,取引額表!O17/取引額表!O$54) -> 0.002932872845 | P17: =IF(取引額表!P$54=0,0,取引額表!P17/取引額表!P$54) -> 0.006838115059 | Q17: =IF(取引額表!Q$54=0,0,取引額表!Q17/取引額表!Q$54) -> 0.002094449708 | R17: =IF(取引額表!R$54=0,0,取引額表!R17/取引額表!R$54) -> 0.00664160401 | S17: =IF(取引額表!S$54=0,0,取引額表!S17/取引額表!S$54) -> 0.02865119013 | T17: =IF(取引額表!T$54=0,0,取引額表!T17/取引額表!T$54) -> 0.004959333466 | U17: =IF(取引額表!U$54=0,0,取引額表!U17/取引額表!U$54) -> 0.0009328358209 | V17: =IF(取引額表!V$54=0,0,取引額表!V17/取引額表!V$54) -> 0 | W17: =IF(取引額表!W$54=0,0,取引額表!W17/取引額表!W$54) -> 0.002942305232 | X17: =IF(取引額表!X$54=0,0,取引額表!X17/取引額表!X$54) -> 0.05293947691 | Y17: =IF(取引額表!Y$54=0,0,取引額表!Y17/取引額表!Y$54) -> 3.796703771e-05 | Z17: =IF(取引額表!Z$54=0,0,取引額表!Z17/取引額表!Z$54) -> 0.004067593022 | AA17: =IF(取引額表!AA$54=0,0,取引額表!AA17/取引額表!AA$54) -> 0.0004118526868 | AB17: =IF(取引額表!AB$54=0,0,取引額表!AB17/取引額表!AB$54) -> 0.0002037403554 | AC17: =IF(取引額表!AC$54=0,0,取引額表!AC17/取引額表!AC$54) -> 5.356717189e-06 | AD17: =IF(取引額表!AD$54=0,0,取引額表!AD17/取引額表!AD$54) -> 6.554238611e-05 | AE17: =IF(取引額表!AE$54=0,0,取引額表!AE17/取引額表!AE$54) -> 1.095647267e-05 | AF17: =IF(取引額表!AF$54=0,0,取引額表!AF17/取引額表!AF$54) -> 0 | AG17: =IF(取引額表!AG$54=0,0,取引額表!AG17/取引額表!AG$54) -> 0.0001659670019 | AH17: =IF(取引額表!AH$54=0,0,取引額表!AH17/取引額表!AH$54) -> 0.001797836397 | AI17: =IF(取引額表!AI$54=0,0,取引額表!AI17/取引額表!AI$54) -> 0.0008156788452 | AJ17: =IF(取引額表!AJ$54=0,0,取引額表!AJ17/取引額表!AJ$54) -> 0.0002418797512 | AK17: =IF(取引額表!AK$54=0,0,取引額表!AK17/取引額表!AK$54) -> 0.0005246063172 | AL17: =IF(取引額表!AL$54=0,0,取引額表!AL17/取引額表!AL$54) -> 0.001259181532 | AM17: =IF(取引額表!AM$54=0,0,取引額表!AM17/取引額表!AM$54) -> 0.004778412817 | AN17: =IF(取引額表!AN$54=0,0,取引額表!AN17/取引額表!AN$54) -> 0.001960922455 | AO17: =IF(取引額表!AO$54=0,0,取引額表!AO17/取引額表!AO$54) -> 0.003715890957 | AP17: =IF(取引額表!AP$46=0,0,取引額表!AP17/取引額表!AP$46) -> 0.001141840985 | AQ17: =IF(取引額表!AQ$46=0,0,取引額表!AQ17/取引額表!AQ$46) -> 0.0005893457341 | AR17: =IF(取引額表!AR$46=0,0,取引額表!AR17/取引額表!AR$46) -> 0 | AS17: =IF(取引額表!AS$46=0,0,取引額表!AS17/取引額表!AS$46) -> 0 | AT17: =IF(取引額表!AT$46=0,0,取引額表!AT17/取引額表!AT$46) -> 0 | AU17: =IF(取引額表!AU$46=0,0,取引額表!AU17/取引額表!AU$46) -> -0.02000106276 | AV17: =IF(取引額表!AV$46=0,0,取引額表!AV17/取引額表!AV$46) -> 0 | AW17: =IF(取引額表!AW$46=0,0,取引額表!AW17/取引額表!AW$46) -> -2.038376688e-05 | AX17: =IF(取引額表!AX$46=0,0,取引額表!AX17/取引額表!AX$46) -> 0.003391076339 | AY17: =IF(取引額表!AY$46=0,0,取引額表!AY17/取引額表!AY$46) -> 0.007728909141 | AZ17: =IF(取引額表!AZ$46=0,0,取引額表!AZ17/取引額表!AZ$46) -> 0.01152843628 | BA17: =IF(取引額表!BA$46=0,0,取引額表!BA17/取引額表!BA$46) -> 0.01107305936 | BB17: =IF(取引額表!BB$46=0,0,取引額表!BB17/取引額表!BB$46) -> 0.003272993289 | BC17: =IF(取引額表!BC$46=0,0,取引額表!BC17/取引額表!BC$46) -> 0.004913425822 | BD17: =IF(取引額表!BD$46=0,0,取引額表!BD17/取引額表!BD$46) -> 0.002945718491 | BE17: =IF(取引額表!BE$46=0,0,取引額表!BE17/取引額表!BE$46) -> 0.01113544217 | BF17: =IF(取引額表!BF$46=0,0,取引額表!BF17/取引額表!BF$46) -> 0.009436648088 | BG17: =IF(取引額表!BG$46=0,0,取引額表!BG17/取引額表!BG$46) -> -0.0008022993129 | BH17: =IF(取引額表!BH$46=0,0,取引額表!BH17/取引額表!BH$46) -> 0.003276851248
B18: 26 | C18: 鉄鋼 | D18: =IF(取引額表!D$54=0,0,取引額表!D18/取引額表!D$54) -> 0 | E18: =IF(取引額表!E$54=0,0,取引額表!E18/取引額表!E$54) -> 0 | F18: =IF(取引額表!F$54=0,0,取引額表!F18/取引額表!F$54) -> 0 | G18: =IF(取引額表!G$54=0,0,取引額表!G18/取引額表!G$54) -> 0 | H18: =IF(取引額表!H$54=0,0,取引額表!H18/取引額表!H$54) -> 0.02101277804 | I18: =IF(取引額表!I$54=0,0,取引額表!I18/取引額表!I$54) -> 0 | J18: =IF(取引額表!J$54=0,0,取引額表!J18/取引額表!J$54) -> 0 | K18: =IF(取引額表!K$54=0,0,取引額表!K18/取引額表!K$54) -> 0.001785852939 | L18: =IF(取引額表!L$54=0,0,取引額表!L18/取引額表!L$54) -> 0.01047835991 | M18: =IF(取引額表!M$54=0,0,取引額表!M18/取引額表!M$54) -> 0.5344646816 | N18: =IF(取引額表!N$54=0,0,取引額表!N18/取引額表!N$54) -> 0 | O18: =IF(取引額表!O$54=0,0,取引額表!O18/取引額表!O$54) -> 0.2614642436 | P18: =IF(取引額表!P$54=0,0,取引額表!P18/取引額表!P$54) -> 0.1013824885 | Q18: =IF(取引額表!Q$54=0,0,取引額表!Q18/取引額表!Q$54) -> 0.09303346133 | R18: =IF(取引額表!R$54=0,0,取引額表!R18/取引額表!R$54) -> 0.01453634085 | S18: =IF(取引額表!S$54=0,0,取引額表!S18/取引額表!S$54) -> 0.003526300323 | T18: =IF(取引額表!T$54=0,0,取引額表!T18/取引額表!T$54) -> 0.03382265424 | U18: =IF(取引額表!U$54=0,0,取引額表!U18/取引額表!U$54) -> 0.006156716418 | V18: =IF(取引額表!V$54=0,0,取引額表!V18/取引額表!V$54) -> 0.06907894737 | W18: =IF(取引額表!W$54=0,0,取引額表!W18/取引額表!W$54) -> 0.001611871562 | X18: =IF(取引額表!X$54=0,0,取引額表!X18/取引額表!X$54) -> 0.02353507698 | Y18: =IF(取引額表!Y$54=0,0,取引額表!Y18/取引額表!Y$54) -> 0 | Z18: =IF(取引額表!Z$54=0,0,取引額表!Z18/取引額表!Z$54) -> 0 | AA18: =IF(取引額表!AA$54=0,0,取引額表!AA18/取引額表!AA$54) -> 0 | AB18: =IF(取引額表!AB$54=0,0,取引額表!AB18/取引額表!AB$54) -> 0 | AC18: =IF(取引額表!AC$54=0,0,取引額表!AC18/取引額表!AC$54) -> 0 | AD18: =IF(取引額表!AD$54=0,0,取引額表!AD18/取引額表!AD$54) -> 0 | AE18: =IF(取引額表!AE$54=0,0,取引額表!AE18/取引額表!AE$54) -> 0.0001533906174 | AF18: =IF(取引額表!AF$54=0,0,取引額表!AF18/取引額表!AF$54) -> 0 | AG18: =IF(取引額表!AG$54=0,0,取引額表!AG18/取引額表!AG$54) -> 2.277978457e-05 | AH18: =IF(取引額表!AH$54=0,0,取引額表!AH18/取引額表!AH$54) -> 0 | AI18: =IF(取引額表!AI$54=0,0,取引額表!AI18/取引額表!AI$54) -> 0 | AJ18: =IF(取引額表!AJ$54=0,0,取引額表!AJ18/取引額表!AJ$54) -> 0 | AK18: =IF(取引額表!AK$54=0,0,取引額表!AK18/取引額表!AK$54) -> 0.0001034006654 | AL18: =IF(取引額表!AL$54=0,0,取引額表!AL18/取引額表!AL$54) -> 1.499025633e-05 | AM18: =IF(取引額表!AM$54=0,0,取引額表!AM18/取引額表!AM$54) -> 0 | AN18: =IF(取引額表!AN$54=0,0,取引額表!AN18/取引額表!AN$54) -> 0.001808275797 | AO18: =IF(取引額表!AO$54=0,0,取引額表!AO18/取引額表!AO$54) -> 0.08263161623 | AP18: =IF(取引額表!AP$46=0,0,取引額表!AP18/取引額表!AP$46) -> 0 | AQ18: =IF(取引額表!AQ$46=0,0,取引額表!AQ18/取引額表!AQ$46) -> -1.275026829e-05 | AR18: =IF(取引額表!AR$46=0,0,取引額表!AR18/取引額表!AR$46) -> 0 | AS18: =IF(取引額表!AS$46=0,0,取引額表!AS18/取引額表!AS$46) -> -3.055823789e-05 | AT18: =IF(取引額表!AT$46=0,0,取引額表!AT18/取引額表!AT$46) -> 0 | AU18: =IF(取引額表!AU$46=0,0,取引額表!AU18/取引額表!AU$46) -> 0.07917530156 | AV18: =IF(取引額表!AV$46=0,0,取引額表!AV18/取引額表!AV$46) -> 0 | AW18: =IF(取引額表!AW$46=0,0,取引額表!AW18/取引額表!AW$46) -> 0.001573159675 | AX18: =IF(取引額表!AX$46=0,0,取引額表!AX18/取引額表!AX$46) -> 0.0765947747 | AY18: =IF(取引額表!AY$46=0,0,取引額表!AY18/取引額表!AY$46) -> 0.4019788021 | AZ18: =IF(取引額表!AZ$46=0,0,取引額表!AZ18/取引額表!AZ$46) -> 0.3227619338 | BA18: =IF(取引額表!BA$46=0,0,取引額表!BA18/取引額表!BA$46) -> 0.3322561503 | BB18: =IF(取引額表!BB$46=0,0,取引額表!BB18/取引額表!BB$46) -> 0.09974500422 | BC18: =IF(取引額表!BC$46=0,0,取引額表!BC18/取引額表!BC$46) -> 0.1272595525 | BD18: =IF(取引額表!BD$46=0,0,取引額表!BD18/取引額表!BD$46) -> 0.02077554312 | BE18: =IF(取引額表!BE$46=0,0,取引額表!BE18/取引額表!BE$46) -> 0.08612989314 | BF18: =IF(取引額表!BF$46=0,0,取引額表!BF18/取引額表!BF$46) -> 0.07257344273 | BG18: =IF(取引額表!BG$46=0,0,取引額表!BG18/取引額表!BG$46) -> 0.1177103295 | BH18: =IF(取引額表!BH$46=0,0,取引額表!BH18/取引額表!BH$46) -> 0.1470458667
B19: 27 | C19: 非鉄金属 | D19: =IF(取引額表!D$54=0,0,取引額表!D19/取引額表!D$54) -> 0 | E19: =IF(取引額表!E$54=0,0,取引額表!E19/取引額表!E$54) -> 0 | F19: =IF(取引額表!F$54=0,0,取引額表!F19/取引額表!F$54) -> 0.000783460421 | G19: =IF(取引額表!G$54=0,0,取引額表!G19/取引額表!G$54) -> 0 | H19: =IF(取引額表!H$54=0,0,取引額表!H19/取引額表!H$54) -> 0.004921911973 | I19: =IF(取引額表!I$54=0,0,取引額表!I19/取引額表!I$54) -> 0.007748184019 | J19: =IF(取引額表!J$54=0,0,取引額表!J19/取引額表!J$54) -> 0 | K19: =IF(取引額表!K$54=0,0,取引額表!K19/取引額表!K$54) -> 0.002096436059 | L19: =IF(取引額表!L$54=0,0,取引額表!L19/取引額表!L$54) -> 0.01138952164 | M19: =IF(取引額表!M$54=0,0,取引額表!M19/取引額表!M$54) -> 0.01113535385 | N19: =IF(取引額表!N$54=0,0,取引額表!N19/取引額表!N$54) -> 0.6328765552 | O19: =IF(取引額表!O$54=0,0,取引額表!O19/取引額表!O$54) -> 0.04210180084 | P19: =IF(取引額表!P$54=0,0,取引額表!P19/取引額表!P$54) -> 0.03419057529 | Q19: =IF(取引額表!Q$54=0,0,取引額表!Q19/取引額表!Q$54) -> 0.01728419688 | R19: =IF(取引額表!R$54=0,0,取引額表!R19/取引額表!R$54) -> 0.06954887218 | S19: =IF(取引額表!S$54=0,0,取引額表!S19/取引額表!S$54) -> 0.04922127535 | T19: =IF(取引額表!T$54=0,0,取引額表!T19/取引額表!T$54) -> 0.06804205515 | U19: =IF(取引額表!U$54=0,0,取引額表!U19/取引額表!U$54) -> 0.02667910448 | V19: =IF(取引額表!V$54=0,0,取引額表!V19/取引額表!V$54) -> 0.02138157895 | W19: =IF(取引額表!W$54=0,0,取引額表!W19/取引額表!W$54) -> 0.01762824613 | X19: =IF(取引額表!X$54=0,0,取引額表!X19/取引額表!X$54) -> 0.008304555398 | Y19: =IF(取引額表!Y$54=0,0,取引額表!Y19/取引額表!Y$54) -> 0.0002795754595 | Z19: =IF(取引額表!Z$54=0,0,取引額表!Z19/取引額表!Z$54) -> 0.0001637956922 | AA19: =IF(取引額表!AA$54=0,0,取引額表!AA19/取引額表!AA$54) -> 0 | AB19: =IF(取引額表!AB$54=0,0,取引額表!AB19/取引額表!AB$54) -> 1.058391457e-05 | AC19: =IF(取引額表!AC$54=0,0,取引額表!AC19/取引額表!AC$54) -> 0 | AD19: =IF(取引額表!AD$54=0,0,取引額表!AD19/取引額表!AD$54) -> 0 | AE19: =IF(取引額表!AE$54=0,0,取引額表!AE19/取引額表!AE$54) -> 8.217354505e-06 | AF19: =IF(取引額表!AF$54=0,0,取引額表!AF19/取引額表!AF$54) -> 3.727965064e-05 | AG19: =IF(取引額表!AG$54=0,0,取引額表!AG19/取引額表!AG$54) -> 0.0001757297667 | AH19: =IF(取引額表!AH$54=0,0,取引額表!AH19/取引額表!AH$54) -> 3.099717926e-05 | AI19: =IF(取引額表!AI$54=0,0,取引額表!AI19/取引額表!AI$54) -> 0.001149641648 | AJ19: =IF(取引額表!AJ$54=0,0,取引額表!AJ19/取引額表!AJ$54) -> 0.0001382170007 | AK19: =IF(取引額表!AK$54=0,0,取引額表!AK19/取引額表!AK$54) -> 0.0003406139567 | AL19: =IF(取引額表!AL$54=0,0,取引額表!AL19/取引額表!AL$54) -> 0.0003172937591 | AM19: =IF(取引額表!AM$54=0,0,取引額表!AM19/取引額表!AM$54) -> 0.0008432493207 | AN19: =IF(取引額表!AN$54=0,0,取引額表!AN19/取引額表!AN$54) -> 0.001585176835 | AO19: =IF(取引額表!AO$54=0,0,取引額表!AO19/取引額表!AO$54) -> 0.004624913515 | AP19: =IF(取引額表!AP$46=0,0,取引額表!AP19/取引額表!AP$46) -> 0.0001029528757 | AQ19: =IF(取引額表!AQ$46=0,0,取引額表!AQ19/取引額表!AQ$46) -> 0.0003609034273 | AR19: =IF(取引額表!AR$46=0,0,取引額表!AR19/取引額表!AR$46) -> 0 | AS19: =IF(取引額表!AS$46=0,0,取引額表!AS19/取引額表!AS$46) -> 0 | AT19: =IF(取引額表!AT$46=0,0,取引額表!AT19/取引額表!AT$46) -> 0 | AU19: =IF(取引額表!AU$46=0,0,取引額表!AU19/取引額表!AU$46) -> -0.03102183963 | AV19: =IF(取引額表!AV$46=0,0,取引額表!AV19/取引額表!AV$46) -> 0 | AW19: =IF(取引額表!AW$46=0,0,取引額表!AW19/取引額表!AW$46) -> -0.0004010930795 | AX19: =IF(取引額表!AX$46=0,0,取引額表!AX19/取引額表!AX$46) -> 0.004000709436 | AY19: =IF(取引額表!AY$46=0,0,取引額表!AY19/取引額表!AY$46) -> 0.01308711597 | AZ19: =IF(取引額表!AZ$46=0,0,取引額表!AZ19/取引額表!AZ$46) -> 0.007989971397 | BA19: =IF(取引額表!BA$46=0,0,取引額表!BA19/取引額表!BA$46) -> 0.008600868988 | BB19: =IF(取引額表!BB$46=0,0,取引額表!BB19/取引額表!BB$46) -> 0.002271373439 | BC19: =IF(取引額表!BC$46=0,0,取引額表!BC19/取引額表!BC$46) -> 0.004912329587 | BD19: =IF(取引額表!BD$46=0,0,取引額表!BD19/取引額表!BD$46) -> 0.01220601585 | BE19: =IF(取引額表!BE$46=0,0,取引額表!BE19/取引額表!BE$46) -> 0.01187941408 | BF19: =IF(取引額表!BF$46=0,0,取引額表!BF19/取引額表!BF$46) -> 0.01194716107 | BG19: =IF(取引額表!BG$46=0,0,取引額表!BG19/取引額表!BG$46) -> -0.004126075323 | BH19: =IF(取引額表!BH$46=0,0,取引額表!BH19/取引額表!BH$46) -> 0.002367014397
B20: 28 | C20: 金属製品 | D20: =IF(取引額表!D$54=0,0,取引額表!D20/取引額表!D$54) -> 0.0009656504345 | E20: =IF(取引額表!E$54=0,0,取引額表!E20/取引額表!E$54) -> 0 | F20: =IF(取引額表!F$54=0,0,取引額表!F20/取引額表!F$54) -> 0.002410647449 | G20: =IF(取引額表!G$54=0,0,取引額表!G20/取引額表!G$54) -> 0.0006035003018 | H20: =IF(取引額表!H$54=0,0,取引額表!H20/取引額表!H$54) -> 0.02735447231 | I20: =IF(取引額表!I$54=0,0,取引額表!I20/取引額表!I$54) -> 0.01355932203 | J20: =IF(取引額表!J$54=0,0,取引額表!J20/取引額表!J$54) -> 0.001509424389 | K20: =IF(取引額表!K$54=0,0,取引額表!K20/取引額表!K$54) -> 0.004814038357 | L20: =IF(取引額表!L$54=0,0,取引額表!L20/取引額表!L$54) -> 0.01176226962 | M20: =IF(取引額表!M$54=0,0,取引額表!M20/取引額表!M$54) -> 0.000117214251 | N20: =IF(取引額表!N$54=0,0,取引額表!N20/取引額表!N$54) -> 0.000688033943 | O20: =IF(取引額表!O$54=0,0,取引額表!O20/取引額表!O$54) -> 0.04799495656 | P20: =IF(取引額表!P$54=0,0,取引額表!P20/取引額表!P$54) -> 0.02512264011 | Q20: =IF(取引額表!Q$54=0,0,取引額表!Q20/取引額表!Q$54) -> 0.03274323044 | R20: =IF(取引額表!R$54=0,0,取引額表!R20/取引額表!R$54) -> 0.01992481203 | S20: =IF(取引額表!S$54=0,0,取引額表!S20/取引額表!S$54) -> 0.01601528063 | T20: =IF(取引額表!T$54=0,0,取引額表!T20/取引額表!T$54) -> 0.03640150764 | U20: =IF(取引額表!U$54=0,0,取引額表!U20/取引額表!U$54) -> 0.01082089552 | V20: =IF(取引額表!V$54=0,0,取引額表!V20/取引額表!V$54) -> 0.01151315789 | W20: =IF(取引額表!W$54=0,0,取引額表!W20/取引額表!W$54) -> 0.007470896763 | X20: =IF(取引額表!X$54=0,0,取引額表!X20/取引額表!X$54) -> 0.09027145275 | Y20: =IF(取引額表!Y$54=0,0,取引額表!Y20/取引額表!Y$54) -> 0.0006109241522 | Z20: =IF(取引額表!Z$54=0,0,取引額表!Z20/取引額表!Z$54) -> 0.0005459856406 | AA20: =IF(取引額表!AA$54=0,0,取引額表!AA20/取引額表!AA$54) -> 0.000108382286 | AB20: =IF(取引額表!AB$54=0,0,取引額表!AB20/取引額表!AB$54) -> 0.00280473736 | AC20: =IF(取引額表!AC$54=0,0,取引額表!AC20/取引額表!AC$54) -> 0.0001098127024 | AD20: =IF(取引額表!AD$54=0,0,取引額表!AD20/取引額表!AD$54) -> 0.0002850331675 | AE20: =IF(取引額表!AE$54=0,0,取引額表!AE20/取引額表!AE$54) -> 0.001251777003 | AF20: =IF(取引額表!AF$54=0,0,取引額表!AF20/取引額表!AF$54) -> 0.0002902487085 | AG20: =IF(取引額表!AG$54=0,0,取引額表!AG20/取引額表!AG$54) -> 0.004142666536 | AH20: =IF(取引額表!AH$54=0,0,取引額表!AH20/取引額表!AH$54) -> 0.0001053904095 | AI20: =IF(取引額表!AI$54=0,0,取引額表!AI20/取引額表!AI$54) -> 0.0002894344289 | AJ20: =IF(取引額表!AJ$54=0,0,取引額表!AJ20/取引額表!AJ$54) -> 0.001831375259 | AK20: =IF(取引額表!AK$54=0,0,取引額表!AK20/取引額表!AK$54) -> 0.001047692036 | AL20: =IF(取引額表!AL$54=0,0,取引額表!AL20/取引額表!AL$54) -> 0.002473392295 | AM20: =IF(取引額表!AM$54=0,0,取引額表!AM20/取引額表!AM$54) -> 0.0002810831069 | AN20: =IF(取引額表!AN$54=0,0,取引額表!AN20/取引額表!AN$54) -> 0.004779014607 | AO20: =IF(取引額表!AO$54=0,0,取引額表!AO20/取引額表!AO$54) -> 0.006500366296 | AP20: =IF(取引額表!AP$46=0,0,取引額表!AP20/取引額表!AP$46) -> 0.002002901399 | AQ20: =IF(取引額表!AQ$46=0,0,取引額表!AQ20/取引額表!AQ$46) -> 0.001041626084 | AR20: =IF(取引額表!AR$46=0,0,取引額表!AR20/取引額表!AR$46) -> 2.220029327e-06 | AS20: =IF(取引額表!AS$46=0,0,取引額表!AS20/取引額表!AS$46) -> 0.002114630062 | AT20: =IF(取引額表!AT$46=0,0,取引額表!AT20/取引額表!AT$46) -> 0.006254138413 | AU20: =IF(取引額表!AU$46=0,0,取引額表!AU20/取引額表!AU$46) -> -0.008523300919 | AV20: =IF(取引額表!AV$46=0,0,取引額表!AV20/取引額表!AV$46) -> 0 | AW20: =IF(取引額表!AW$46=0,0,取引額表!AW20/取引額表!AW$46) -> 0.001397774347 | AX20: =IF(取引額表!AX$46=0,0,取引額表!AX20/取引額表!AX$46) -> 0.006771215325 | AY20: =IF(取引額表!AY$46=0,0,取引額表!AY20/取引額表!AY$46) -> 0.006616986816 | AZ20: =IF(取引額表!AZ$46=0,0,取引額表!AZ20/取引額表!AZ$46) -> 0.0131928232 | BA20: =IF(取引額表!BA$46=0,0,取引額表!BA20/取引額表!BA$46) -> 0.012404703 | BB20: =IF(取引額表!BB$46=0,0,取引額表!BB20/取引額表!BB$46) -> 0.004665467331 | BC20: =IF(取引額表!BC$46=0,0,取引額表!BC20/取引額表!BC$46) -> 0.007887611576 | BD20: =IF(取引額表!BD$46=0,0,取引額表!BD20/取引額表!BD$46) -> 0.004490005533 | BE20: =IF(取引額表!BE$46=0,0,取引額表!BE20/取引額表!BE$46) -> 0.01901624386 | BF20: =IF(取引額表!BF$46=0,0,取引額表!BF20/取引額表!BF$46) -> 0.01600306678 | BG20: =IF(取引額表!BG$46=0,0,取引額表!BG20/取引額表!BG$46) -> -0.002830740142 | BH20: =IF(取引額表!BH$46=0,0,取引額表!BH20/取引額表!BH$46) -> 0.004951309343
B21: 29 | C21: はん用機械 | D21: =IF(取引額表!D$54=0,0,取引額表!D21/取引額表!D$54) -> 0 | E21: =IF(取引額表!E$54=0,0,取引額表!E21/取引額表!E$54) -> 0 | F21: =IF(取引額表!F$54=0,0,取引額表!F21/取引額表!F$54) -> 0 | G21: =IF(取引額表!G$54=0,0,取引額表!G21/取引額表!G$54) -> 0 | H21: =IF(取引額表!H$54=0,0,取引額表!H21/取引額表!H$54) -> 0.00156176053 | I21: =IF(取引額表!I$54=0,0,取引額表!I21/取引額表!I$54) -> 0 | J21: =IF(取引額表!J$54=0,0,取引額表!J21/取引額表!J$54) -> 0 | K21: =IF(取引額表!K$54=0,0,取引額表!K21/取引額表!K$54) -> 0.0003882288998 | L21: =IF(取引額表!L$54=0,0,取引額表!L21/取引額表!L$54) -> 0.001035411058 | M21: =IF(取引額表!M$54=0,0,取引額表!M21/取引額表!M$54) -> 2.768840576e-06 | N21: =IF(取引額表!N$54=0,0,取引額表!N21/取引額表!N$54) -> 0 | O21: =IF(取引額表!O$54=0,0,取引額表!O21/取引額表!O$54) -> 0.001151221117 | P21: =IF(取引額表!P$54=0,0,取引額表!P21/取引額表!P$54) -> 0.1721421139 | Q21: =IF(取引額表!Q$54=0,0,取引額表!Q21/取引額表!Q$54) -> 0.03621403281 | R21: =IF(取引額表!R$54=0,0,取引額表!R21/取引額表!R$54) -> 0.005263157895 | S21: =IF(取引額表!S$54=0,0,取引額表!S21/取引額表!S$54) -> 0.002057008522 | T21: =IF(取引額表!T$54=0,0,取引額表!T21/取引額表!T$54) -> 0.003273160087 | U21: =IF(取引額表!U$54=0,0,取引額表!U21/取引額表!U$54) -> 0.0007462686567 | V21: =IF(取引額表!V$54=0,0,取引額表!V21/取引額表!V$54) -> 0.01069078947 | W21: =IF(取引額表!W$54=0,0,取引額表!W21/取引額表!W$54) -> 5.117052578e-05 | X21: =IF(取引額表!X$54=0,0,取引額表!X21/取引額表!X$54) -> 0.007311200693 | Y21: =IF(取引額表!Y$54=0,0,取引額表!Y21/取引額表!Y$54) -> 0 | Z21: =IF(取引額表!Z$54=0,0,取引額表!Z21/取引額表!Z$54) -> 0.009964237941 | AA21: =IF(取引額表!AA$54=0,0,取引額表!AA21/取引額表!AA$54) -> 0 | AB21: =IF(取引額表!AB$54=0,0,取引額表!AB21/取引額表!AB$54) -> 2.645978642e-06 | AC21: =IF(取引額表!AC$54=0,0,取引額表!AC21/取引額表!AC$54) -> 0 | AD21: =IF(取引額表!AD$54=0,0,取引額表!AD21/取引額表!AD$54) -> 0 | AE21: =IF(取引額表!AE$54=0,0,取引額表!AE21/取引額表!AE$54) -> 6.847795421e-05 | AF21: =IF(取引額表!AF$54=0,0,取引額表!AF21/取引額表!AF$54) -> 0 | AG21: =IF(取引額表!AG$54=0,0,取引額表!AG21/取引額表!AG$54) -> 0.0002993914543 | AH21: =IF(取引額表!AH$54=0,0,取引額表!AH21/取引額表!AH$54) -> 0 | AI21: =IF(取引額表!AI$54=0,0,取引額表!AI21/取引額表!AI$54) -> 0 | AJ21: =IF(取引額表!AJ$54=0,0,取引額表!AJ21/取引額表!AJ$54) -> 0 | AK21: =IF(取引額表!AK$54=0,0,取引額表!AK21/取引額表!AK$54) -> 0.006976503719 | AL21: =IF(取引額表!AL$54=0,0,取引額表!AL21/取引額表!AL$54) -> 4.996752111e-06 | AM21: =IF(取引額表!AM$54=0,0,取引額表!AM21/取引額表!AM$54) -> 0 | AN21: =IF(取引額表!AN$54=0,0,取引額表!AN21/取引額表!AN$54) -> 0 | AO21: =IF(取引額表!AO$54=0,0,取引額表!AO21/取引額表!AO$54) -> 0.001728472872 | AP21: =IF(取引額表!AP$46=0,0,取引額表!AP21/取引額表!AP$46) -> 0 | AQ21: =IF(取引額表!AQ$46=0,0,取引額表!AQ21/取引額表!AQ$46) -> 4.63968096e-05 | AR21: =IF(取引額表!AR$46=0,0,取引額表!AR21/取引額表!AR$46) -> 0 | AS21: =IF(取引額表!AS$46=0,0,取引額表!AS21/取引額表!AS$46) -> 0.001271222696 | AT21: =IF(取引額表!AT$46=0,0,取引額表!AT21/取引額表!AT$46) -> 0.0501813249 | AU21: =IF(取引額表!AU$46=0,0,取引額表!AU21/取引額表!AU$46) -> 0.009724214889 | AV21: =IF(取引額表!AV$46=0,0,取引額表!AV21/取引額表!AV$46) -> 0 | AW21: =IF(取引額表!AW$46=0,0,取引額表!AW21/取引額表!AW$46) -> 0.006879945983 | AX21: =IF(取引額表!AX$46=0,0,取引額表!AX21/取引額表!AX$46) -> 0.005610115957 | AY21: =IF(取引額表!AY$46=0,0,取引額表!AY21/取引額表!AY$46) -> 0.002828059045 | AZ21: =IF(取引額表!AZ$46=0,0,取引額表!AZ21/取引額表!AZ$46) -> 0.002717984406 | BA21: =IF(取引額表!BA$46=0,0,取引額表!BA21/取引額表!BA$46) -> 0.002731176956 | BB21: =IF(取引額表!BB$46=0,0,取引額表!BB21/取引額表!BB$46) -> 0.005648276017 | BC21: =IF(取引額表!BC$46=0,0,取引額表!BC21/取引額表!BC$46) -> 0.005039592527 | BD21: =IF(取引額表!BD$46=0,0,取引額表!BD21/取引額表!BD$46) -> 0.006923975508 | BE21: =IF(取引額表!BE$46=0,0,取引額表!BE21/取引額表!BE$46) -> 0.01893673541 | BF21: =IF(取引額表!BF$46=0,0,取引額表!BF21/取引額表!BF$46) -> 0.01644492907 | BG21: =IF(取引額表!BG$46=0,0,取引額表!BG21/取引額表!BG$46) -> -0.001490267874 | BH21: =IF(取引額表!BH$46=0,0,取引額表!BH21/取引額表!BH$46) -> 0.0009129583079
B22: 30 | C22: 生産用機械 | D22: =IF(取引額表!D$54=0,0,取引額表!D22/取引額表!D$54) -> 0 | E22: =IF(取引額表!E$54=0,0,取引額表!E22/取引額表!E$54) -> 0 | F22: =IF(取引額表!F$54=0,0,取引額表!F22/取引額表!F$54) -> 0 | G22: =IF(取引額表!G$54=0,0,取引額表!G22/取引額表!G$54) -> 0 | H22: =IF(取引額表!H$54=0,0,取引額表!H22/取引額表!H$54) -> 0.00014197823 | I22: =IF(取引額表!I$54=0,0,取引額表!I22/取引額表!I$54) -> 0 | J22: =IF(取引額表!J$54=0,0,取引額表!J22/取引額表!J$54) -> 0 | K22: =IF(取引額表!K$54=0,0,取引額表!K22/取引額表!K$54) -> 0.002872893858 | L22: =IF(取引額表!L$54=0,0,取引額表!L22/取引額表!L$54) -> 0.001325326154 | M22: =IF(取引額表!M$54=0,0,取引額表!M22/取引額表!M$54) -> 1.015241544e-05 | N22: =IF(取引額表!N$54=0,0,取引額表!N22/取引額表!N$54) -> 5.733616192e-05 | O22: =IF(取引額表!O$54=0,0,取引額表!O22/取引額表!O$54) -> 0.000794890771 | P22: =IF(取引額表!P$54=0,0,取引額表!P22/取引額表!P$54) -> 0.006540805708 | Q22: =IF(取引額表!Q$54=0,0,取引額表!Q22/取引額表!Q$54) -> 0.1939959108 | R22: =IF(取引額表!R$54=0,0,取引額表!R22/取引額表!R$54) -> 0.0002506265664 | S22: =IF(取引額表!S$54=0,0,取引額表!S22/取引額表!S$54) -> 0.003526300323 | T22: =IF(取引額表!T$54=0,0,取引額表!T22/取引額表!T$54) -> 0.002578853402 | U22: =IF(取引額表!U$54=0,0,取引額表!U22/取引額表!U$54) -> 0.0007462686567 | V22: =IF(取引額表!V$54=0,0,取引額表!V22/取引額表!V$54) -> 0 | W22: =IF(取引額表!W$54=0,0,取引額表!W22/取引額表!W$54) -> 0 | X22: =IF(取引額表!X$54=0,0,取引額表!X22/取引額表!X$54) -> 4.67784764e-05 | Y22: =IF(取引額表!Y$54=0,0,取引額表!Y22/取引額表!Y$54) -> 1.035464665e-05 | Z22: =IF(取引額表!Z$54=0,0,取引額表!Z22/取引額表!Z$54) -> 0.0002183942562 | AA22: =IF(取引額表!AA$54=0,0,取引額表!AA22/取引額表!AA$54) -> 0 | AB22: =IF(取引額表!AB$54=0,0,取引額表!AB22/取引額表!AB$54) -> 2.645978642e-06 | AC22: =IF(取引額表!AC$54=0,0,取引額表!AC22/取引額表!AC$54) -> 0 | AD22: =IF(取引額表!AD$54=0,0,取引額表!AD22/取引額表!AD$54) -> 0 | AE22: =IF(取引額表!AE$54=0,0,取引額表!AE22/取引額表!AE$54) -> 3.560853619e-05 | AF22: =IF(取引額表!AF$54=0,0,取引額表!AF22/取引額表!AF$54) -> 0 | AG22: =IF(取引額表!AG$54=0,0,取引額表!AG22/取引額表!AG$54) -> 1.301701975e-05 | AH22: =IF(取引額表!AH$54=0,0,取引額表!AH22/取引額表!AH$54) -> 0 | AI22: =IF(取引額表!AI$54=0,0,取引額表!AI22/取引額表!AI$54) -> 0 | AJ22: =IF(取引額表!AJ$54=0,0,取引額表!AJ22/取引額表!AJ$54) -> 0 | AK22: =IF(取引額表!AK$54=0,0,取引額表!AK22/取引額表!AK$54) -> 0.01027924262 | AL22: =IF(取引額表!AL$54=0,0,取引額表!AL22/取引額表!AL$54) -> 2.498376056e-06 | AM22: =IF(取引額表!AM$54=0,0,取引額表!AM22/取引額表!AM$54) -> 0 | AN22: =IF(取引額表!AN$54=0,0,取引額表!AN22/取引額表!AN$54) -> 0.0001526466582 | AO22: =IF(取引額表!AO$54=0,0,取引額表!AO22/取引額表!AO$54) -> 0.003594425566 | AP22: =IF(取引額表!AP$46=0,0,取引額表!AP22/取引額表!AP$46) -> 0 | AQ22: =IF(取引額表!AQ$46=0,0,取引額表!AQ22/取引額表!AQ$46) -> 2.550053657e-05 | AR22: =IF(取引額表!AR$46=0,0,取引額表!AR22/取引額表!AR$46) -> 0 | AS22: =IF(取引額表!AS$46=0,0,取引額表!AS22/取引額表!AS$46) -> 0.002175746538 | AT22: =IF(取引額表!AT$46=0,0,取引額表!AT22/取引額表!AT$46) -> 0.08134407589 | AU22: =IF(取引額表!AU$46=0,0,取引額表!AU22/取引額表!AU$46) -> 0.03600616398 | AV22: =IF(取引額表!AV$46=0,0,取引額表!AV22/取引額表!AV$46) -> 0 | AW22: =IF(取引額表!AW$46=0,0,取引額表!AW22/取引額表!AW$46) -> 0.01153105446 | AX22: =IF(取引額表!AX$46=0,0,取引額表!AX22/取引額表!AX$46) -> 0.01004148364 | AY22: =IF(取引額表!AY$46=0,0,取引額表!AY22/取引額表!AY$46) -> 0.04654548811 | AZ22: =IF(取引額表!AZ$46=0,0,取引額表!AZ22/取引額表!AZ$46) -> 0.03937563493 | BA22: =IF(取引額表!BA$46=0,0,取引額表!BA22/取引額表!BA$46) -> 0.0402349486 | BB22: =IF(取引額表!BB$46=0,0,取引額表!BB22/取引額表!BB$46) -> 0.02005255182 | BC22: =IF(取引額表!BC$46=0,0,取引額表!BC22/取引額表!BC$46) -> 0.01602496546 | BD22: =IF(取引額表!BD$46=0,0,取引額表!BD22/取引額表!BD$46) -> 0.01011381432 | BE22: =IF(取引額表!BE$46=0,0,取引額表!BE22/取引額表!BE$46) -> 0.02600210224 | BF22: =IF(取引額表!BF$46=0,0,取引額表!BF22/取引額表!BF$46) -> 0.02270639526 | BG22: =IF(取引額表!BG$46=0,0,取引額表!BG22/取引額表!BG$46) -> 0.01829788047 | BH22: =IF(取引額表!BH$46=0,0,取引額表!BH22/取引額表!BH$46) -> 0.01360751669
B23: 31 | C23: 業務用機械 | D23: =IF(取引額表!D$54=0,0,取引額表!D23/取引額表!D$54) -> 0.0020002759 | E23: =IF(取引額表!E$54=0,0,取引額表!E23/取引額表!E$54) -> 0 | F23: =IF(取引額表!F$54=0,0,取引額表!F23/取引額表!F$54) -> 0 | G23: =IF(取引額表!G$54=0,0,取引額表!G23/取引額表!G$54) -> 0 | H23: =IF(取引額表!H$54=0,0,取引額表!H23/取引額表!H$54) -> 0 | I23: =IF(取引額表!I$54=0,0,取引額表!I23/取引額表!I$54) -> 0 | J23: =IF(取引額表!J$54=0,0,取引額表!J23/取引額表!J$54) -> 0 | K23: =IF(取引額表!K$54=0,0,取引額表!K23/取引額表!K$54) -> 0 | L23: =IF(取引額表!L$54=0,0,取引額表!L23/取引額表!L$54) -> 0 | M23: =IF(取引額表!M$54=0,0,取引額表!M23/取引額表!M$54) -> 0 | N23: =IF(取引額表!N$54=0,0,取引額表!N23/取引額表!N$54) -> 0 | O23: =IF(取引額表!O$54=0,0,取引額表!O23/取引額表!O$54) -> 0 | P23: =IF(取引額表!P$54=0,0,取引額表!P23/取引額表!P$54) -> 0.002973093504 | Q23: =IF(取引額表!Q$54=0,0,取引額表!Q23/取引額表!Q$54) -> 0.006223507705 | R23: =IF(取引額表!R$54=0,0,取引額表!R23/取引額表!R$54) -> 0.0656641604 | S23: =IF(取引額表!S$54=0,0,取引額表!S23/取引額表!S$54) -> 0 | T23: =IF(取引額表!T$54=0,0,取引額表!T23/取引額表!T$54) -> 0.0009918666931 | U23: =IF(取引額表!U$54=0,0,取引額表!U23/取引額表!U$54) -> 0.0003731343284 | V23: =IF(取引額表!V$54=0,0,取引額表!V23/取引額表!V$54) -> 0 | W23: =IF(取引額表!W$54=0,0,取引額表!W23/取引額表!W$54) -> 0.0001023410516 | X23: =IF(取引額表!X$54=0,0,取引額表!X23/取引額表!X$54) -> 0.0002283890318 | Y23: =IF(取引額表!Y$54=0,0,取引額表!Y23/取引額表!Y$54) -> 0 | Z23: =IF(取引額表!Z$54=0,0,取引額表!Z23/取引額表!Z$54) -> 5.459856406e-05 | AA23: =IF(取引額表!AA$54=0,0,取引額表!AA23/取引額表!AA$54) -> 2.16764572e-05 | AB23: =IF(取引額表!AB$54=0,0,取引額表!AB23/取引額表!AB$54) -> 0.001022670745 | AC23: =IF(取引額表!AC$54=0,0,取引額表!AC23/取引額表!AC$54) -> 1.071343438e-05 | AD23: =IF(取引額表!AD$54=0,0,取引額表!AD23/取引額表!AD$54) -> 0 | AE23: =IF(取引額表!AE$54=0,0,取引額表!AE23/取引額表!AE$54) -> 2.739118168e-06 | AF23: =IF(取引額表!AF$54=0,0,取引額表!AF23/取引額表!AF$54) -> 5.325664377e-05 | AG23: =IF(取引額表!AG$54=0,0,取引額表!AG23/取引額表!AG$54) -> 0.002935337954 | AH23: =IF(取引額表!AH$54=0,0,取引額表!AH23/取引額表!AH$54) -> 0 | AI23: =IF(取引額表!AI$54=0,0,取引額表!AI23/取引額表!AI$54) -> 0.009950067501 | AJ23: =IF(取引額表!AJ$54=0,0,取引額表!AJ23/取引額表!AJ$54) -> 0 | AK23: =IF(取引額表!AK$54=0,0,取引額表!AK23/取引額表!AK$54) -> 0.003705697377 | AL23: =IF(取引額表!AL$54=0,0,取引額表!AL23/取引額表!AL$54) -> 0.0008119722181 | AM23: =IF(取引額表!AM$54=0,0,取引額表!AM23/取引額表!AM$54) -> 0.02379836972 | AN23: =IF(取引額表!AN$54=0,0,取引額表!AN23/取引額表!AN$54) -> 1.174205063e-05 | AO23: =IF(取引額表!AO$54=0,0,取引額表!AO23/取引額表!AO$54) -> 0.001483642073 | AP23: =IF(取引額表!AP$46=0,0,取引額表!AP23/取引額表!AP$46) -> 0 | AQ23: =IF(取引額表!AQ$46=0,0,取引額表!AQ23/取引額表!AQ$46) -> 0.0005645535458 | AR23: =IF(取引額表!AR$46=0,0,取引額表!AR23/取引額表!AR$46) -> 1.110014663e-06 | AS23: =IF(取引額表!AS$46=0,0,取引額表!AS23/取引額表!AS$46) -> 0.002249086309 | AT23: =IF(取引額表!AT$46=0,0,取引額表!AT23/取引額表!AT$46) -> 0.06786432934 | AU23: =IF(取引額表!AU$46=0,0,取引額表!AU23/取引額表!AU$46) -> 0.01284871672 | AV23: =IF(取引額表!AV$46=0,0,取引額表!AV23/取引額表!AV$46) -> 0 | AW23: =IF(取引額表!AW$46=0,0,取引額表!AW23/取引額表!AW$46) -> 0.009617740672 | AX23: =IF(取引額表!AX$46=0,0,取引額表!AX23/取引額表!AX$46) -> 0.006988470912 | AY23: =IF(取引額表!AY$46=0,0,取引額表!AY23/取引額表!AY$46) -> 0.006499500684 | AZ23: =IF(取引額表!AZ$46=0,0,取引額表!AZ23/取引額表!AZ$46) -> 0.002880252132 | BA23: =IF(取引額表!BA$46=0,0,取引額表!BA23/取引額表!BA$46) -> 0.003314022489 | BB23: =IF(取引額表!BB$46=0,0,取引額表!BB23/取引額表!BB$46) -> 0.007746318013 | BC23: =IF(取引額表!BC$46=0,0,取引額表!BC23/取引額表!BC$46) -> 0.006260300251 | BD23: =IF(取引額表!BD$46=0,0,取引額表!BD23/取引額表!BD$46) -> 0.01905946771 | BE23: =IF(取引額表!BE$46=0,0,取引額表!BE23/取引額表!BE$46) -> 0.02096467411 | BF23: =IF(取引額表!BF$46=0,0,取引額表!BF23/取引額表!BF$46) -> 0.02056947722 | BG23: =IF(取引額表!BG$46=0,0,取引額表!BG23/取引額表!BG$46) -> -0.0007321136234 | BH23: =IF(取引額表!BH$46=0,0,取引額表!BH23/取引額表!BH$46) -> 0.001083009855
B24: 32 | C24: 電子部品 | D24: =IF(取引額表!D$54=0,0,取引額表!D24/取引額表!D$54) -> 0 | E24: =IF(取引額表!E$54=0,0,取引額表!E24/取引額表!E$54) -> 0 | F24: =IF(取引額表!F$54=0,0,取引額表!F24/取引額表!F$54) -> 0 | G24: =IF(取引額表!G$54=0,0,取引額表!G24/取引額表!G$54) -> 0 | H24: =IF(取引額表!H$54=0,0,取引額表!H24/取引額表!H$54) -> 0 | I24: =IF(取引額表!I$54=0,0,取引額表!I24/取引額表!I$54) -> 0 | J24: =IF(取引額表!J$54=0,0,取引額表!J24/取引額表!J$54) -> 0 | K24: =IF(取引額表!K$54=0,0,取引額表!K24/取引額表!K$54) -> 0 | L24: =IF(取引額表!L$54=0,0,取引額表!L24/取引額表!L$54) -> 0 | M24: =IF(取引額表!M$54=0,0,取引額表!M24/取引額表!M$54) -> 0 | N24: =IF(取引額表!N$54=0,0,取引額表!N24/取引額表!N$54) -> 0 | O24: =IF(取引額表!O$54=0,0,取引額表!O24/取引額表!O$54) -> 5.482005318e-05 | P24: =IF(取引額表!P$54=0,0,取引額表!P24/取引額表!P$54) -> 0.01441950349 | Q24: =IF(取引額表!Q$54=0,0,取引額表!Q24/取引額表!Q$54) -> 0.00262304892 | R24: =IF(取引額表!R$54=0,0,取引額表!R24/取引額表!R$54) -> 0.1043859649 | S24: =IF(取引額表!S$54=0,0,取引額表!S24/取引額表!S$54) -> 0.2533059066 | T24: =IF(取引額表!T$54=0,0,取引額表!T24/取引額表!T$54) -> 0.136480857 | U24: =IF(取引額表!U$54=0,0,取引額表!U24/取引額表!U$54) -> 0.3880597015 | V24: =IF(取引額表!V$54=0,0,取引額表!V24/取引額表!V$54) -> 0.01398026316 | W24: =IF(取引額表!W$54=0,0,取引額表!W24/取引額表!W$54) -> 0.0006396315722 | X24: =IF(取引額表!X$54=0,0,取引額表!X24/取引額表!X$54) -> 0.0003659727859 | Y24: =IF(取引額表!Y$54=0,0,取引額表!Y24/取引額表!Y$54) -> 0 | Z24: =IF(取引額表!Z$54=0,0,取引額表!Z24/取引額表!Z$54) -> 0 | AA24: =IF(取引額表!AA$54=0,0,取引額表!AA24/取引額表!AA$54) -> 0 | AB24: =IF(取引額表!AB$54=0,0,取引額表!AB24/取引額表!AB$54) -> 2.381380777e-05 | AC24: =IF(取引額表!AC$54=0,0,取引額表!AC24/取引額表!AC$54) -> 4.285373752e-05 | AD24: =IF(取引額表!AD$54=0,0,取引額表!AD24/取引額表!AD$54) -> 0 | AE24: =IF(取引額表!AE$54=0,0,取引額表!AE24/取引額表!AE$54) -> 0 | AF24: =IF(取引額表!AF$54=0,0,取引額表!AF24/取引額表!AF$54) -> 0.0008734089578 | AG24: =IF(取引額表!AG$54=0,0,取引額表!AG24/取引額表!AG$54) -> 0.002024146572 | AH24: =IF(取引額表!AH$54=0,0,取引額表!AH24/取引額表!AH$54) -> 0.0006912370974 | AI24: =IF(取引額表!AI$54=0,0,取引額表!AI24/取引額表!AI$54) -> 8.096067942e-06 | AJ24: =IF(取引額表!AJ$54=0,0,取引額表!AJ24/取引額表!AJ$54) -> 0 | AK24: =IF(取引額表!AK$54=0,0,取引額表!AK24/取引額表!AK$54) -> 0.01042522003 | AL24: =IF(取引額表!AL$54=0,0,取引額表!AL24/取引額表!AL$54) -> 7.495128167e-06 | AM24: =IF(取引額表!AM$54=0,0,取引額表!AM24/取引額表!AM$54) -> 0.03447952778 | AN24: =IF(取引額表!AN$54=0,0,取引額表!AN24/取引額表!AN$54) -> 0 | AO24: =IF(取引額表!AO$54=0,0,取引額表!AO24/取引額表!AO$54) -> 0.002034104225 | AP24: =IF(取引額表!AP$46=0,0,取引額表!AP24/取引額表!AP$46) -> 8.4234171e-05 | AQ24: =IF(取引額表!AQ$46=0,0,取引額表!AQ24/取引額表!AQ$46) -> 0.0004614888772 | AR24: =IF(取引額表!AR$46=0,0,取引額表!AR24/取引額表!AR$46) -> 0 | AS24: =IF(取引額表!AS$46=0,0,取引額表!AS24/取引額表!AS$46) -> 0.001796824388 | AT24: =IF(取引額表!AT$46=0,0,取引額表!AT24/取引額表!AT$46) -> 0 | AU24: =IF(取引額表!AU$46=0,0,取引額表!AU24/取引額表!AU$46) -> 0.06880280568 | AV24: =IF(取引額表!AV$46=0,0,取引額表!AV24/取引額表!AV$46) -> 0 | AW24: =IF(取引額表!AW$46=0,0,取引額表!AW24/取引額表!AW$46) -> 0.001715633712 | AX24: =IF(取引額表!AX$46=0,0,取引額表!AX24/取引額表!AX$46) -> 0.002867077737 | AY24: =IF(取引額表!AY$46=0,0,取引額表!AY24/取引額表!AY$46) -> 0.003583327039 | AZ24: =IF(取引額表!AZ$46=0,0,取引額表!AZ24/取引額表!AZ$46) -> 0.000325678182 | BA24: =IF(取引額表!BA$46=0,0,取引額表!BA24/取引額表!BA$46) -> 0.0007161104741 | BB24: =IF(取引額表!BB$46=0,0,取引額表!BB24/取引額表!BB$46) -> 0.001418899248 | BC24: =IF(取引額表!BC$46=0,0,取引額表!BC24/取引額表!BC$46) -> 0.0024408175 | BD24: =IF(取引額表!BD$46=0,0,取引額表!BD24/取引額表!BD$46) -> 0.007996296604 | BE24: =IF(取引額表!BE$46=0,0,取引額表!BE24/取引額表!BE$46) -> 0.006277381314 | BF24: =IF(取引額表!BF$46=0,0,取引額表!BF24/取引額表!BF$46) -> 0.006633935849 | BG24: =IF(取引額表!BG$46=0,0,取引額表!BG24/取引額表!BG$46) -> -0.002029184847 | BH24: =IF(取引額表!BH$46=0,0,取引額表!BH24/取引額表!BH$46) -> 0.0009236798341
B25: 33 | C25: 電気機械 | D25: =IF(取引額表!D$54=0,0,取引額表!D25/取引額表!D$54) -> 0 | E25: =IF(取引額表!E$54=0,0,取引額表!E25/取引額表!E$54) -> 0 | F25: =IF(取引額表!F$54=0,0,取引額表!F25/取引額表!F$54) -> 0 | G25: =IF(取引額表!G$54=0,0,取引額表!G25/取引額表!G$54) -> 0 | H25: =IF(取引額表!H$54=0,0,取引額表!H25/取引額表!H$54) -> 9.465215334e-05 | I25: =IF(取引額表!I$54=0,0,取引額表!I25/取引額表!I$54) -> 0 | J25: =IF(取引額表!J$54=0,0,取引額表!J25/取引額表!J$54) -> 0 | K25: =IF(取引額表!K$54=0,0,取引額表!K25/取引額表!K$54) -> 0 | L25: =IF(取引額表!L$54=0,0,取引額表!L25/取引額表!L$54) -> 8.283288466e-05 | M25: =IF(取引額表!M$54=0,0,取引額表!M25/取引額表!M$54) -> 0 | N25: =IF(取引額表!N$54=0,0,取引額表!N25/取引額表!N$54) -> 0 | O25: =IF(取引額表!O$54=0,0,取引額表!O25/取引額表!O$54) -> 0.0002466902393 | P25: =IF(取引額表!P$54=0,0,取引額表!P25/取引額表!P$54) -> 0.01427084882 | Q25: =IF(取引額表!Q$54=0,0,取引額表!Q25/取引額表!Q$54) -> 0.01887996808 | R25: =IF(取引額表!R$54=0,0,取引額表!R25/取引額表!R$54) -> 0.01002506266 | S25: =IF(取引額表!S$54=0,0,取引額表!S25/取引額表!S$54) -> 0.01866000588 | T25: =IF(取引額表!T$54=0,0,取引額表!T25/取引額表!T$54) -> 0.07716722872 | U25: =IF(取引額表!U$54=0,0,取引額表!U25/取引額表!U$54) -> 0.00802238806 | V25: =IF(取引額表!V$54=0,0,取引額表!V25/取引額表!V$54) -> 0.02302631579 | W25: =IF(取引額表!W$54=0,0,取引額表!W25/取引額表!W$54) -> 0.0003326084176 | X25: =IF(取引額表!X$54=0,0,取引額表!X25/取引額表!X$54) -> 0.008321065449 | Y25: =IF(取引額表!Y$54=0,0,取引額表!Y25/取引額表!Y$54) -> 0 | Z25: =IF(取引額表!Z$54=0,0,取引額表!Z25/取引額表!Z$54) -> 0.0001637956922 | AA25: =IF(取引額表!AA$54=0,0,取引額表!AA25/取引額表!AA$54) -> 0 | AB25: =IF(取引額表!AB$54=0,0,取引額表!AB25/取引額表!AB$54) -> 0.0002116782913 | AC25: =IF(取引額表!AC$54=0,0,取引額表!AC25/取引額表!AC$54) -> 0 | AD25: =IF(取引額表!AD$54=0,0,取引額表!AD25/取引額表!AD$54) -> 1.066969076e-05 | AE25: =IF(取引額表!AE$54=0,0,取引額表!AE25/取引額表!AE$54) -> 0.0001177820812 | AF25: =IF(取引額表!AF$54=0,0,取引額表!AF25/取引額表!AF$54) -> 8.254779784e-05 | AG25: =IF(取引額表!AG$54=0,0,取引額表!AG25/取引額表!AG$54) -> 0.001711738098 | AH25: =IF(取引額表!AH$54=0,0,取引額表!AH25/取引額表!AH$54) -> 0.0004866557143 | AI25: =IF(取引額表!AI$54=0,0,取引額表!AI25/取引額表!AI$54) -> 6.274452655e-05 | AJ25: =IF(取引額表!AJ$54=0,0,取引額表!AJ25/取引額表!AJ$54) -> 0 | AK25: =IF(取引額表!AK$54=0,0,取引額表!AK25/取引額表!AK$54) -> 0.005690077794 | AL25: =IF(取引額表!AL$54=0,0,取引額表!AL25/取引額表!AL$54) -> 0.0001548993154 | AM25: =IF(取引額表!AM$54=0,0,取引額表!AM25/取引額表!AM$54) -> 0 | AN25: =IF(取引額表!AN$54=0,0,取引額表!AN25/取引額表!AN$54) -> 0.0006810389366 | AO25: =IF(取引額表!AO$54=0,0,取引額表!AO25/取引額表!AO$54) -> 0.001481742055 | AP25: =IF(取引額表!AP$46=0,0,取引額表!AP25/取引額表!AP$46) -> 0.003640788057 | AQ25: =IF(取引額表!AQ$46=0,0,取引額表!AQ25/取引額表!AQ$46) -> 0.01057882676 | AR25: =IF(取引額表!AR$46=0,0,取引額表!AR25/取引額表!AR$46) -> 0 | AS25: =IF(取引額表!AS$46=0,0,取引額表!AS25/取引額表!AS$46) -> 0.0005683832247 | AT25: =IF(取引額表!AT$46=0,0,取引額表!AT25/取引額表!AT$46) -> 0.06368040418 | AU25: =IF(取引額表!AU$46=0,0,取引額表!AU25/取引額表!AU$46) -> -0.0009777352675 | AV25: =IF(取引額表!AV$46=0,0,取引額表!AV25/取引額表!AV$46) -> 0 | AW25: =IF(取引額表!AW$46=0,0,取引額表!AW25/取引額表!AW$46) -> 0.01481772453 | AX25: =IF(取引額表!AX$46=0,0,取引額表!AX25/取引額表!AX$46) -> 0.01003054628 | AY25: =IF(取引額表!AY$46=0,0,取引額表!AY25/取引額表!AY$46) -> 0.001871386252 | AZ25: =IF(取引額表!AZ$46=0,0,取引額表!AZ25/取引額表!AZ$46) -> 0.003331630665 | BA25: =IF(取引額表!BA$46=0,0,取引額表!BA25/取引額表!BA$46) -> 0.003156618993 | BB25: =IF(取引額表!BB$46=0,0,取引額表!BB25/取引額表!BB$46) -> 0.01135582213 | BC25: =IF(取引額表!BC$46=0,0,取引額表!BC25/取引額表!BC$46) -> 0.008668330353 | BD25: =IF(取引額表!BD$46=0,0,取引額表!BD25/取引額表!BD$46) -> 0.02224749822 | BE25: =IF(取引額表!BE$46=0,0,取引額表!BE25/取引額表!BE$46) -> 0.03057099844 | BF25: =IF(取引額表!BF$46=0,0,取引額表!BF25/取引額表!BF$46) -> 0.0288444551 | BG25: =IF(取引額表!BG$46=0,0,取引額表!BG25/取引額表!BG$46) -> -0.0002073329909 | BH25: =IF(取引額表!BH$46=0,0,取引額表!BH25/取引額表!BH$46) -> 0.00136828388
B26: 34 | C26: 情報通信機器 | D26: =IF(取引額表!D$54=0,0,取引額表!D26/取引額表!D$54) -> 0 | E26: =IF(取引額表!E$54=0,0,取引額表!E26/取引額表!E$54) -> 0 | F26: =IF(取引額表!F$54=0,0,取引額表!F26/取引額表!F$54) -> 6.343809077e-06 | G26: =IF(取引額表!G$54=0,0,取引額表!G26/取引額表!G$54) -> 0 | H26: =IF(取引額表!H$54=0,0,取引額表!H26/取引額表!H$54) -> 0 | I26: =IF(取引額表!I$54=0,0,取引額表!I26/取引額表!I$54) -> 0 | J26: =IF(取引額表!J$54=0,0,取引額表!J26/取引額表!J$54) -> 0 | K26: =IF(取引額表!K$54=0,0,取引額表!K26/取引額表!K$54) -> 0 | L26: =IF(取引額表!L$54=0,0,取引額表!L26/取引額表!L$54) -> 0 | M26: =IF(取引額表!M$54=0,0,取引額表!M26/取引額表!M$54) -> 0 | N26: =IF(取引額表!N$54=0,0,取引額表!N26/取引額表!N$54) -> 0 | O26: =IF(取引額表!O$54=0,0,取引額表!O26/取引額表!O$54) -> 2.741002659e-05 | P26: =IF(取引額表!P$54=0,0,取引額表!P26/取引額表!P$54) -> 0.002527129478 | Q26: =IF(取引額表!Q$54=0,0,取引額表!Q26/取引額表!Q$54) -> 0.0006183613424 | R26: =IF(取引額表!R$54=0,0,取引額表!R26/取引額表!R$54) -> 0 | S26: =IF(取引額表!S$54=0,0,取引額表!S26/取引額表!S$54) -> 0 | T26: =IF(取引額表!T$54=0,0,取引額表!T26/取引額表!T$54) -> 0 | U26: =IF(取引額表!U$54=0,0,取引額表!U26/取引額表!U$54) -> 0.02630597015 | V26: =IF(取引額表!V$54=0,0,取引額表!V26/取引額表!V$54) -> 0.0008223684211 | W26: =IF(取引額表!W$54=0,0,取引額表!W26/取引額表!W$54) -> 0 | X26: =IF(取引額表!X$54=0,0,取引額表!X26/取引額表!X$54) -> 0.001728051952 | Y26: =IF(取引額表!Y$54=0,0,取引額表!Y26/取引額表!Y$54) -> 3.451548883e-06 | Z26: =IF(取引額表!Z$54=0,0,取引額表!Z26/取引額表!Z$54) -> 0 | AA26: =IF(取引額表!AA$54=0,0,取引額表!AA26/取引額表!AA$54) -> 2.16764572e-05 | AB26: =IF(取引額表!AB$54=0,0,取引額表!AB26/取引額表!AB$54) -> 0.0003042875438 | AC26: =IF(取引額表!AC$54=0,0,取引額表!AC26/取引額表!AC$54) -> 0.0001339179297 | AD26: =IF(取引額表!AD$54=0,0,取引額表!AD26/取引額表!AD$54) -> 6.859086918e-05 | AE26: =IF(取引額表!AE$54=0,0,取引額表!AE26/取引額表!AE$54) -> 0.0001013473722 | AF26: =IF(取引額表!AF$54=0,0,取引額表!AF26/取引額表!AF$54) -> 0.0001890610854 | AG26: =IF(取引額表!AG$54=0,0,取引額表!AG26/取引額表!AG$54) -> 0.001519737056 | AH26: =IF(取引額表!AH$54=0,0,取引額表!AH26/取引額表!AH$54) -> 6.819379436e-05 | AI26: =IF(取引額表!AI$54=0,0,取引額表!AI26/取引額表!AI$54) -> 3.238427177e-05 | AJ26: =IF(取引額表!AJ$54=0,0,取引額表!AJ26/取引額表!AJ$54) -> 0 | AK26: =IF(取引額表!AK$54=0,0,取引額表!AK26/取引額表!AK$54) -> 0.001266658151 | AL26: =IF(取引額表!AL$54=0,0,取引額表!AL26/取引額表!AL$54) -> 0.0001449058112 | AM26: =IF(取引額表!AM$54=0,0,取引額表!AM26/取引額表!AM$54) -> 0 | AN26: =IF(取引額表!AN$54=0,0,取引額表!AN26/取引額表!AN$54) -> 2.348410126e-05 | AO26: =IF(取引額表!AO$54=0,0,取引額表!AO26/取引額表!AO$54) -> 0.0003643961731 | AP26: =IF(取引額表!AP$46=0,0,取引額表!AP26/取引額表!AP$46) -> 0.006102297721 | AQ26: =IF(取引額表!AQ$46=0,0,取引額表!AQ26/取引額表!AQ$46) -> 0.01264791197 | AR26: =IF(取引額表!AR$46=0,0,取引額表!AR26/取引額表!AR$46) -> 0 | AS26: =IF(取引額表!AS$46=0,0,取引額表!AS26/取引額表!AS$46) -> 0.001179547983 | AT26: =IF(取引額表!AT$46=0,0,取引額表!AT26/取引額表!AT$46) -> 0.04882803375 | AU26: =IF(取引額表!AU$46=0,0,取引額表!AU26/取引額表!AU$46) -> 0.003709017482 | AV26: =IF(取引額表!AV$46=0,0,取引額表!AV26/取引額表!AV$46) -> 0 | AW26: =IF(取引額表!AW$46=0,0,取引額表!AW26/取引額表!AW$46) -> 0.01427139712 | AX26: =IF(取引額表!AX$46=0,0,取引額表!AX26/取引額表!AX$46) -> 0.008687489148 | AY26: =IF(取引額表!AY$46=0,0,取引額表!AY26/取引額表!AY$46) -> 0.00265602578 | AZ26: =IF(取引額表!AZ$46=0,0,取引額表!AZ26/取引額表!AZ$46) -> 0.002597997708 | BA26: =IF(取引額表!BA$46=0,0,取引額表!BA26/取引額表!BA$46) -> 0.002604952427 | BB26: =IF(取引額表!BB$46=0,0,取引額表!BB26/取引額表!BB$46) -> 0.01080790965 | BC26: =IF(取引額表!BC$46=0,0,取引額表!BC26/取引額表!BC$46) -> 0.00748210421 | BD26: =IF(取引額表!BD$46=0,0,取引額表!BD26/取引額表!BD$46) -> 0.04082595849 | BE26: =IF(取引額表!BE$46=0,0,取引額表!BE26/取引額表!BE$46) -> 0.0223101653 | BF26: =IF(取引額表!BF$46=0,0,取引額表!BF26/取引額表!BF$46) -> 0.0261508956 | BG26: =IF(取引額表!BG$46=0,0,取引額表!BG26/取引額表!BG$46) -> 0.0006634159697 | BH26: =IF(取引額表!BH$46=0,0,取引額表!BH26/取引額表!BH$46) -> 0.0007274351911
B27: 35 | C27: 輸送機械 | D27: =IF(取引額表!D$54=0,0,取引額表!D27/取引額表!D$54) -> 6.897503104e-05 | E27: =IF(取引額表!E$54=0,0,取引額表!E27/取引額表!E$54) -> 0 | F27: =IF(取引額表!F$54=0,0,取引額表!F27/取引額表!F$54) -> 0 | G27: =IF(取引額表!G$54=0,0,取引額表!G27/取引額表!G$54) -> 0 | H27: =IF(取引額表!H$54=0,0,取引額表!H27/取引額表!H$54) -> 0 | I27: =IF(取引額表!I$54=0,0,取引額表!I27/取引額表!I$54) -> 0 | J27: =IF(取引額表!J$54=0,0,取引額表!J27/取引額表!J$54) -> 0 | K27: =IF(取引額表!K$54=0,0,取引額表!K27/取引額表!K$54) -> 0 | L27: =IF(取引額表!L$54=0,0,取引額表!L27/取引額表!L$54) -> 0 | M27: =IF(取引額表!M$54=0,0,取引額表!M27/取引額表!M$54) -> 0 | N27: =IF(取引額表!N$54=0,0,取引額表!N27/取引額表!N$54) -> 0 | O27: =IF(取引額表!O$54=0,0,取引額表!O27/取引額表!O$54) -> 0 | P27: =IF(取引額表!P$54=0,0,取引額表!P27/取引額表!P$54) -> 0 | Q27: =IF(取引額表!Q$54=0,0,取引額表!Q27/取引額表!Q$54) -> 0.001635665486 | R27: =IF(取引額表!R$54=0,0,取引額表!R27/取引額表!R$54) -> 0 | S27: =IF(取引額表!S$54=0,0,取引額表!S27/取引額表!S$54) -> 0 | T27: =IF(取引額表!T$54=0,0,取引額表!T27/取引額表!T$54) -> 0 | U27: =IF(取引額表!U$54=0,0,取引額表!U27/取引額表!U$54) -> 0 | V27: =IF(取引額表!V$54=0,0,取引額表!V27/取引額表!V$54) -> 0.3322368421 | W27: =IF(取引額表!W$54=0,0,取引額表!W27/取引額表!W$54) -> 0 | X27: =IF(取引額表!X$54=0,0,取引額表!X27/取引額表!X$54) -> 0 | Y27: =IF(取引額表!Y$54=0,0,取引額表!Y27/取引額表!Y$54) -> 0 | Z27: =IF(取引額表!Z$54=0,0,取引額表!Z27/取引額表!Z$54) -> 0 | AA27: =IF(取引額表!AA$54=0,0,取引額表!AA27/取引額表!AA$54) -> 0 | AB27: =IF(取引額表!AB$54=0,0,取引額表!AB27/取引額表!AB$54) -> 0 | AC27: =IF(取引額表!AC$54=0,0,取引額表!AC27/取引額表!AC$54) -> 0 | AD27: =IF(取引額表!AD$54=0,0,取引額表!AD27/取引額表!AD$54) -> 0 | AE27: =IF(取引額表!AE$54=0,0,取引額表!AE27/取引額表!AE$54) -> 0.01408728474 | AF27: =IF(取引額表!AF$54=0,0,取引額表!AF27/取引額表!AF$54) -> 0 | AG27: =IF(取引額表!AG$54=0,0,取引額表!AG27/取引額表!AG$54) -> 0.004998535585 | AH27: =IF(取引額表!AH$54=0,0,取引額表!AH27/取引額表!AH$54) -> 9.919097362e-05 | AI27: =IF(取引額表!AI$54=0,0,取引額表!AI27/取引額表!AI$54) -> 0 | AJ27: =IF(取引額表!AJ$54=0,0,取引額表!AJ27/取引額表!AJ$54) -> 0 | AK27: =IF(取引額表!AK$54=0,0,取引額表!AK27/取引額表!AK$54) -> 0.02039121946 | AL27: =IF(取引額表!AL$54=0,0,取引額表!AL27/取引額表!AL$54) -> 1.998700844e-05 | AM27: =IF(取引額表!AM$54=0,0,取引額表!AM27/取引額表!AM$54) -> 0 | AN27: =IF(取引額表!AN$54=0,0,取引額表!AN27/取引額表!AN$54) -> 0.01977361326 | AO27: =IF(取引額表!AO$54=0,0,取引額表!AO27/取引額表!AO$54) -> 0.003037584785 | AP27: =IF(取引額表!AP$46=0,0,取引額表!AP27/取引額表!AP$46) -> 0 | AQ27: =IF(取引額表!AQ$46=0,0,取引額表!AQ27/取引額表!AQ$46) -> 0.01536442746 | AR27: =IF(取引額表!AR$46=0,0,取引額表!AR27/取引額表!AR$46) -> 0 | AS27: =IF(取引額表!AS$46=0,0,取引額表!AS27/取引額表!AS$46) -> 0.007572331349 | AT27: =IF(取引額表!AT$46=0,0,取引額表!AT27/取引額表!AT$46) -> 0.07168898792 | AU27: =IF(取引額表!AU$46=0,0,取引額表!AU27/取引額表!AU$46) -> 0.02010733833 | AV27: =IF(取引額表!AV$46=0,0,取引額表!AV27/取引額表!AV$46) -> 0 | AW27: =IF(取引額表!AW$46=0,0,取引額表!AW27/取引額表!AW$46) -> 0.01932423566 | AX27: =IF(取引額表!AX$46=0,0,取引額表!AX27/取引額表!AX$46) -> 0.01409327548 | AY27: =IF(取引額表!AY$46=0,0,取引額表!AY27/取引額表!AY$46) -> 0.0002097966651 | AZ27: =IF(取引額表!AZ$46=0,0,取引額表!AZ27/取引額表!AZ$46) -> 0.0001342708294 | BA27: =IF(取引額表!BA$46=0,0,取引額表!BA27/取引額表!BA$46) -> 0.0001433226721 | BB27: =IF(取引額表!BB$46=0,0,取引額表!BB27/取引額表!BB$46) -> 0.01362988288 | BC27: =IF(取引額表!BC$46=0,0,取引額表!BC27/取引額表!BC$46) -> 0.01132879352 | BD27: =IF(取引額表!BD$46=0,0,取引額表!BD27/取引額表!BD$46) -> 0.01544648702 | BE27: =IF(取引額表!BE$46=0,0,取引額表!BE27/取引額表!BE$46) -> 0.0491811813 | BF27: =IF(取引額表!BF$46=0,0,取引額表!BF27/取引額表!BF$46) -> 0.04218359491 | BG27: =IF(取引額表!BG$46=0,0,取引額表!BG27/取引額表!BG$46) -> -0.005249294361 | BH27: =IF(取引額表!BH$46=0,0,取引額表!BH27/取引額表!BH$46) -> 0.0001650300732
B28: 39 | C28: その他の製造工業製品 | D28: =IF(取引額表!D$54=0,0,取引額表!D28/取引額表!D$54) -> 0.0004828252173 | E28: =IF(取引額表!E$54=0,0,取引額表!E28/取引額表!E$54) -> 0 | F28: =IF(取引額表!F$54=0,0,取引額表!F28/取引額表!F$54) -> 0.006876689039 | G28: =IF(取引額表!G$54=0,0,取引額表!G28/取引額表!G$54) -> 0.01750150875 | H28: =IF(取引額表!H$54=0,0,取引額表!H28/取引額表!H$54) -> 0.00823473734 | I28: =IF(取引額表!I$54=0,0,取引額表!I28/取引額表!I$54) -> 0.003571428571 | J28: =IF(取引額表!J$54=0,0,取引額表!J28/取引額表!J$54) -> 0.01936883229 | K28: =IF(取引額表!K$54=0,0,取引額表!K28/取引額表!K$54) -> 0.001863498719 | L28: =IF(取引額表!L$54=0,0,取引額表!L28/取引額表!L$54) -> 0.004472975771 | M28: =IF(取引額表!M$54=0,0,取引額表!M28/取引額表!M$54) -> 0.006930407961 | N28: =IF(取引額表!N$54=0,0,取引額表!N28/取引額表!N$54) -> 0.02723467691 | O28: =IF(取引額表!O$54=0,0,取引額表!O28/取引額表!O$54) -> 0.001068991037 | P28: =IF(取引額表!P$54=0,0,取引額表!P28/取引額表!P$54) -> 0.0007432733759 | Q28: =IF(取引額表!Q$54=0,0,取引額表!Q28/取引額表!Q$54) -> 0.001845110457 | R28: =IF(取引額表!R$54=0,0,取引額表!R28/取引額表!R$54) -> 0.004135338346 | S28: =IF(取引額表!S$54=0,0,取引額表!S28/取引額表!S$54) -> 0.004260946224 | T28: =IF(取引額表!T$54=0,0,取引額表!T28/取引額表!T$54) -> 0.002380480063 | U28: =IF(取引額表!U$54=0,0,取引額表!U28/取引額表!U$54) -> 0.005597014925 | V28: =IF(取引額表!V$54=0,0,取引額表!V28/取引額表!V$54) -> 0 | W28: =IF(取引額表!W$54=0,0,取引額表!W28/取引額表!W$54) -> 0.03865933222 | X28: =IF(取引額表!X$54=0,0,取引額表!X28/取引額表!X$54) -> 0.002927782287 | Y28: =IF(取引額表!Y$54=0,0,取引額表!Y28/取引額表!Y$54) -> 0.007576149797 | Z28: =IF(取引額表!Z$54=0,0,取引額表!Z28/取引額表!Z$54) -> 0.003275913843 | AA28: =IF(取引額表!AA$54=0,0,取引額表!AA28/取引額表!AA$54) -> 0.003489909609 | AB28: =IF(取引額表!AB$54=0,0,取引額表!AB28/取引額表!AB$54) -> 0.006326534932 | AC28: =IF(取引額表!AC$54=0,0,取引額表!AC28/取引額表!AC$54) -> 0.01690847781 | AD28: =IF(取引額表!AD$54=0,0,取引額表!AD28/取引額表!AD$54) -> 7.31635938e-05 | AE28: =IF(取引額表!AE$54=0,0,取引額表!AE28/取引額表!AE$54) -> 0.002577510196 | AF28: =IF(取引額表!AF$54=0,0,取引額表!AF28/取引額表!AF$54) -> 0.0132449273 | AG28: =IF(取引額表!AG$54=0,0,取引額表!AG28/取引額表!AG$54) -> 0.008809268118 | AH28: =IF(取引額表!AH$54=0,0,取引額表!AH28/取引額表!AH$54) -> 0.01306531106 | AI28: =IF(取引額表!AI$54=0,0,取引額表!AI28/取引額表!AI$54) -> 0.004973009733 | AJ28: =IF(取引額表!AJ$54=0,0,取引額表!AJ28/取引額表!AJ$54) -> 0.04156876296 | AK28: =IF(取引額表!AK$54=0,0,取引額表!AK28/取引額表!AK$54) -> 0.00808197848 | AL28: =IF(取引額表!AL$54=0,0,取引額表!AL28/取引額表!AL$54) -> 0.00629590766 | AM28: =IF(取引額表!AM$54=0,0,取引額表!AM28/取引額表!AM$54) -> 0.1414784971 | AN28: =IF(取引額表!AN$54=0,0,取引額表!AN28/取引額表!AN$54) -> 0.001796533747 | AO28: =IF(取引額表!AO$54=0,0,取引額表!AO28/取引額表!AO$54) -> 0.007411967449 | AP28: =IF(取引額表!AP$46=0,0,取引額表!AP28/取引額表!AP$46) -> 0.01494688568 | AQ28: =IF(取引額表!AQ$46=0,0,取引額表!AQ28/取引額表!AQ$46) -> 0.008242340099 | AR28: =IF(取引額表!AR$46=0,0,取引額表!AR28/取引額表!AR$46) -> 0 | AS28: =IF(取引額表!AS$46=0,0,取引額表!AS28/取引額表!AS$46) -> 0.0008128491279 | AT28: =IF(取引額表!AT$46=0,0,取引額表!AT28/取引額表!AT$46) -> 0.009618033571 | AU28: =IF(取引額表!AU$46=0,0,取引額表!AU28/取引額表!AU$46) -> 0.004484829162 | AV28: =IF(取引額表!AV$46=0,0,取引額表!AV28/取引額表!AV$46) -> 0 | AW28: =IF(取引額表!AW$46=0,0,取引額表!AW28/取引額表!AW$46) -> 0.006665916431 | AX28: =IF(取引額表!AX$46=0,0,取引額表!AX28/取引額表!AX$46) -> 0.01068977033 | AY28: =IF(取引額表!AY$46=0,0,取引額表!AY28/取引額表!AY$46) -> 0.001951108985 | AZ28: =IF(取引額表!AZ$46=0,0,取引額表!AZ28/取引額表!AZ$46) -> 0.0067015428 | BA28: =IF(取引額表!BA$46=0,0,取引額表!BA28/取引額表!BA$46) -> 0.006132198821 | BB28: =IF(取引額表!BB$46=0,0,取引額表!BB28/取引額表!BB$46) -> 0.00650746848 | BC28: =IF(取引額表!BC$46=0,0,取引額表!BC28/取引額表!BC$46) -> 0.009786589914 | BD28: =IF(取引額表!BD$46=0,0,取引額表!BD28/取引額表!BD$46) -> 0.0337464693 | BE28: =IF(取引額表!BE$46=0,0,取引額表!BE28/取引額表!BE$46) -> 0.01914591835 | BF28: =IF(取引額表!BF$46=0,0,取引額表!BF28/取引額表!BF$46) -> 0.0221745101 | BG28: =IF(取引額表!BG$46=0,0,取引額表!BG28/取引額表!BG$46) -> -0.003851284708 | BH28: =IF(取引額表!BH$46=0,0,取引額表!BH28/取引額表!BH$46) -> 0.005304441128
B29: 41 | C29: 建設 | D29: =IF(取引額表!D$54=0,0,取引額表!D29/取引額表!D$54) -> 0.001448475652 | E29: =IF(取引額表!E$54=0,0,取引額表!E29/取引額表!E$54) -> 0 | F29: =IF(取引額表!F$54=0,0,取引額表!F29/取引額表!F$54) -> 0.0004916452034 | G29: =IF(取引額表!G$54=0,0,取引額表!G29/取引額表!G$54) -> 0.001207000604 | H29: =IF(取引額表!H$54=0,0,取引額表!H29/取引額表!H$54) -> 0.00170373876 | I29: =IF(取引額表!I$54=0,0,取引額表!I29/取引額表!I$54) -> 0.002966101695 | J29: =IF(取引額表!J$54=0,0,取引額表!J29/取引額表!J$54) -> 0.001446003196 | K29: =IF(取引額表!K$54=0,0,取引額表!K29/取引額表!K$54) -> 0.003105831198 | L29: =IF(取引額表!L$54=0,0,取引額表!L29/取引額表!L$54) -> 0.006005384138 | M29: =IF(取引額表!M$54=0,0,取引額表!M29/取引額表!M$54) -> 0.002959890575 | N29: =IF(取引額表!N$54=0,0,取引額表!N29/取引額表!N$54) -> 0.002408118801 | O29: =IF(取引額表!O$54=0,0,取引額表!O29/取引額表!O$54) -> 0.003261793164 | P29: =IF(取引額表!P$54=0,0,取引額表!P29/取引額表!P$54) -> 0.001189237402 | Q29: =IF(取引額表!Q$54=0,0,取引額表!Q29/取引額表!Q$54) -> 0.001695506907 | R29: =IF(取引額表!R$54=0,0,取引額表!R29/取引額表!R$54) -> 0.001503759398 | S29: =IF(取引額表!S$54=0,0,取引額表!S29/取引額表!S$54) -> 0.002350866882 | T29: =IF(取引額表!T$54=0,0,取引額表!T29/取引額表!T$54) -> 0.0009918666931 | U29: =IF(取引額表!U$54=0,0,取引額表!U29/取引額表!U$54) -> 0.001119402985 | V29: =IF(取引額表!V$54=0,0,取引額表!V29/取引額表!V$54) -> 0 | W29: =IF(取引額表!W$54=0,0,取引額表!W29/取引額表!W$54) -> 0.0009466547269 | X29: =IF(取引額表!X$54=0,0,取引額表!X29/取引額表!X$54) -> 0.0005778517673 | Y29: =IF(取引額表!Y$54=0,0,取引額表!Y29/取引額表!Y$54) -> 0.01584951247 | Z29: =IF(取引額表!Z$54=0,0,取引額表!Z29/取引額表!Z$54) -> 0.02533373372 | AA29: =IF(取引額表!AA$54=0,0,取引額表!AA29/取引額表!AA$54) -> 0.00286129235 | AB29: =IF(取引額表!AB$54=0,0,取引額表!AB29/取引額表!AB$54) -> 0.002955558143 | AC29: =IF(取引額表!AC$54=0,0,取引額表!AC29/取引額表!AC$54) -> 0.003042615364 | AD29: =IF(取引額表!AD$54=0,0,取引額表!AD29/取引額表!AD$54) -> 0.008587576822 | AE29: =IF(取引額表!AE$54=0,0,取引額表!AE29/取引額表!AE$54) -> 0.006790273939 | AF29: =IF(取引額表!AF$54=0,0,取引額表!AF29/取引額表!AF$54) -> 0.002353943654 | AG29: =IF(取引額表!AG$54=0,0,取引額表!AG29/取引額表!AG$54) -> 0.008542419213 | AH29: =IF(取引額表!AH$54=0,0,取引額表!AH29/取引額表!AH$54) -> 0.00499054586 | AI29: =IF(取引額表!AI$54=0,0,取引額表!AI29/取引額表!AI$54) -> 0.002139385954 | AJ29: =IF(取引額表!AJ$54=0,0,取引額表!AJ29/取引額表!AJ$54) -> 0.001140290256 | AK29: =IF(取引額表!AK$54=0,0,取引額表!AK29/取引額表!AK$54) -> 0.001623998686 | AL29: =IF(取引額表!AL$54=0,0,取引額表!AL29/取引額表!AL$54) -> 0.002061160246 | AM29: =IF(取引額表!AM$54=0,0,取引額表!AM29/取引額表!AM$54) -> 0 | AN29: =IF(取引額表!AN$54=0,0,取引額表!AN29/取引額表!AN$54) -> 0.001608660937 | AO29: =IF(取引額表!AO$54=0,0,取引額表!AO29/取引額表!AO$54) -> 0.004040658199 | AP29: =IF(取引額表!AP$46=0,0,取引額表!AP29/取引額表!AP$46) -> 0 | AQ29: =IF(取引額表!AQ$46=0,0,取引額表!AQ29/取引額表!AQ$46) -> 0 | AR29: =IF(取引額表!AR$46=0,0,取引額表!AR29/取引額表!AR$46) -> 0 | AS29: =IF(取引額表!AS$46=0,0,取引額表!AS29/取引額表!AS$46) -> 0.8301206439 | AT29: =IF(取引額表!AT$46=0,0,取引額表!AT29/取引額表!AT$46) -> 0.3186936229 | AU29: =IF(取引額表!AU$46=0,0,取引額表!AU29/取引額表!AU$46) -> 0 | AV29: =IF(取引額表!AV$46=0,0,取引額表!AV29/取引額表!AV$46) -> 0 | AW29: =IF(取引額表!AW$46=0,0,取引額表!AW29/取引額表!AW$46) -> 0.0708425078 | AX29: =IF(取引額表!AX$46=0,0,取引額表!AX29/取引額表!AX$46) -> 0.04516815744 | AY29: =IF(取引額表!AY$46=0,0,取引額表!AY29/取引額表!AY$46) -> 0 | AZ29: =IF(取引額表!AZ$46=0,0,取引額表!AZ29/取引額表!AZ$46) -> 0 | BA29: =IF(取引額表!BA$46=0,0,取引額表!BA29/取引額表!BA$46) -> 0 | BB29: =IF(取引額表!BB$46=0,0,取引額表!BB29/取引額表!BB$46) -> 0.04981106723 | BC29: =IF(取引額表!BC$46=0,0,取引額表!BC29/取引額表!BC$46) -> 0.03621711955 | BD29: =IF(取引額表!BD$46=0,0,取引額表!BD29/取引額表!BD$46) -> 0 | BE29: =IF(取引額表!BE$46=0,0,取引額表!BE29/取引額表!BE$46) -> 0 | BF29: =IF(取引額表!BF$46=0,0,取引額表!BF29/取引額表!BF$46) -> 0 | BG29: =IF(取引額表!BG$46=0,0,取引額表!BG29/取引額表!BG$46) -> 0.08274520784 | BH29: =IF(取引額表!BH$46=0,0,取引額表!BH29/取引額表!BH$46) -> 0.04932105596
B30: 46 | C30: 電力・ガス・熱供給 | D30: =IF(取引額表!D$54=0,0,取引額表!D30/取引額表!D$54) -> 0.008139053663 | E30: =IF(取引額表!E$54=0,0,取引額表!E30/取引額表!E$54) -> 0 | F30: =IF(取引額表!F$54=0,0,取引額表!F30/取引額表!F$54) -> 0.01317609145 | G30: =IF(取引額表!G$54=0,0,取引額表!G30/取引額表!G$54) -> 0.01689800845 | H30: =IF(取引額表!H$54=0,0,取引額表!H30/取引額表!H$54) -> 0.01997160435 | I30: =IF(取引額表!I$54=0,0,取引額表!I30/取引額表!I$54) -> 0.06059322034 | J30: =IF(取引額表!J$54=0,0,取引額表!J30/取引額表!J$54) -> 0.01002054847 | K30: =IF(取引額表!K$54=0,0,取引額表!K30/取引額表!K$54) -> 0.03199006134 | L30: =IF(取引額表!L$54=0,0,取引額表!L30/取引額表!L$54) -> 0.04414992752 | M30: =IF(取引額表!M$54=0,0,取引額表!M30/取引額表!M$54) -> 0.02923987943 | N30: =IF(取引額表!N$54=0,0,取引額表!N30/取引額表!N$54) -> 0.02970013187 | O30: =IF(取引額表!O$54=0,0,取引額表!O30/取引額表!O$54) -> 0.02264068196 | P30: =IF(取引額表!P$54=0,0,取引額表!P30/取引額表!P$54) -> 0.01040582726 | Q30: =IF(取引額表!Q$54=0,0,取引額表!Q30/取引額表!Q$54) -> 0.008457587393 | R30: =IF(取引額表!R$54=0,0,取引額表!R30/取引額表!R$54) -> 0.01002506266 | S30: =IF(取引額表!S$54=0,0,取引額表!S30/取引額表!S$54) -> 0.02982662357 | T30: =IF(取引額表!T$54=0,0,取引額表!T30/取引額表!T$54) -> 0.00724062686 | U30: =IF(取引額表!U$54=0,0,取引額表!U30/取引額表!U$54) -> 0.00223880597 | V30: =IF(取引額表!V$54=0,0,取引額表!V30/取引額表!V$54) -> 0.01315789474 | W30: =IF(取引額表!W$54=0,0,取引額表!W30/取引額表!W$54) -> 0.01926570296 | X30: =IF(取引額表!X$54=0,0,取引額表!X30/取引額表!X$54) -> 0.003403822077 | Y30: =IF(取引額表!Y$54=0,0,取引額表!Y30/取引額表!Y$54) -> 0.08253343688 | Z30: =IF(取引額表!Z$54=0,0,取引額表!Z30/取引額表!Z$54) -> 0.03909257187 | AA30: =IF(取引額表!AA$54=0,0,取引額表!AA30/取引額表!AA$54) -> 0.07389504259 | AB30: =IF(取引額表!AB$54=0,0,取引額表!AB30/取引額表!AB$54) -> 0.02431522073 | AC30: =IF(取引額表!AC$54=0,0,取引額表!AC30/取引額表!AC$54) -> 0.006101300879 | AD30: =IF(取引額表!AD$54=0,0,取引額表!AD30/取引額表!AD$54) -> 0.004286167203 | AE30: =IF(取引額表!AE$54=0,0,取引額表!AE30/取引額表!AE$54) -> 0.01428176213 | AF30: =IF(取引額表!AF$54=0,0,取引額表!AF30/取引額表!AF$54) -> 0.004774458114 | AG30: =IF(取引額表!AG$54=0,0,取引額表!AG30/取引額表!AG$54) -> 0.01204725178 | AH30: =IF(取引額表!AH$54=0,0,取引額表!AH30/取引額表!AH$54) -> 0.02098509036 | AI30: =IF(取引額表!AI$54=0,0,取引額表!AI30/取引額表!AI$54) -> 0.01426527171 | AJ30: =IF(取引額表!AJ$54=0,0,取引額表!AJ30/取引額表!AJ$54) -> 0.003870076019 | AK30: =IF(取引額表!AK$54=0,0,取引額表!AK30/取引額表!AK$54) -> 0.005183718653 | AL30: =IF(取引額表!AL$54=0,0,取引額表!AL30/取引額表!AL$54) -> 0.03541697896 | AM30: =IF(取引額表!AM$54=0,0,取引額表!AM30/取引額表!AM$54) -> 0 | AN30: =IF(取引額表!AN$54=0,0,取引額表!AN30/取引額表!AN$54) -> 0.003088159316 | AO30: =IF(取引額表!AO$54=0,0,取引額表!AO30/取引額表!AO$54) -> 0.01886676454 | AP30: =IF(取引額表!AP$46=0,0,取引額表!AP30/取引額表!AP$46) -> 0.000421170855 | AQ30: =IF(取引額表!AQ$46=0,0,取引額表!AQ30/取引額表!AQ$46) -> 0.03344572459 | AR30: =IF(取引額表!AR$46=0,0,取引額表!AR30/取引額表!AR$46) -> 0 | AS30: =IF(取引額表!AS$46=0,0,取引額表!AS30/取引額表!AS$46) -> 0 | AT30: =IF(取引額表!AT$46=0,0,取引額表!AT30/取引額表!AT$46) -> 0 | AU30: =IF(取引額表!AU$46=0,0,取引額表!AU30/取引額表!AU$46) -> 0 | AV30: =IF(取引額表!AV$46=0,0,取引額表!AV30/取引額表!AV$46) -> 0 | AW30: =IF(取引額表!AW$46=0,0,取引額表!AW30/取引額表!AW$46) -> 0.02006059924 | AX30: =IF(取引額表!AX$46=0,0,取引額表!AX30/取引額表!AX$46) -> 0.02902064835 | AY30: =IF(取引額表!AY$46=0,0,取引額表!AY30/取引額表!AY$46) -> 3.356746641e-05 | AZ30: =IF(取引額表!AZ$46=0,0,取引額表!AZ30/取引額表!AZ$46) -> 0.03212329605 | BA30: =IF(取引額表!BA$46=0,0,取引額表!BA30/取引額表!BA$46) -> 0.02827731177 | BB30: =IF(取引額表!BB$46=0,0,取引額表!BB30/取引額表!BB$46) -> 0.02249994401 | BC30: =IF(取引額表!BC$46=0,0,取引額表!BC30/取引額表!BC$46) -> 0.02887334029 | BD30: =IF(取引額表!BD$46=0,0,取引額表!BD30/取引額表!BD$46) -> 0 | BE30: =IF(取引額表!BE$46=0,0,取引額表!BE30/取引額表!BE$46) -> 0 | BF30: =IF(取引額表!BF$46=0,0,取引額表!BF30/取引額表!BF$46) -> 0 | BG30: =IF(取引額表!BG$46=0,0,取引額表!BG30/取引額表!BG$46) -> 0.03737648373 | BH30: =IF(取引額表!BH$46=0,0,取引額表!BH30/取引額表!BH$46) -> 0.03932017924
B31: 47 | C31: 水道 | D31: =IF(取引額表!D$54=0,0,取引額表!D31/取引額表!D$54) -> 0.0005518002483 | E31: =IF(取引額表!E$54=0,0,取引額表!E31/取引額表!E$54) -> 0 | F31: =IF(取引額表!F$54=0,0,取引額表!F31/取引額表!F$54) -> 0.001246558484 | G31: =IF(取引額表!G$54=0,0,取引額表!G31/取引額表!G$54) -> 0 | H31: =IF(取引額表!H$54=0,0,取引額表!H31/取引額表!H$54) -> 0.00042593469 | I31: =IF(取引額表!I$54=0,0,取引額表!I31/取引額表!I$54) -> 0.00181598063 | J31: =IF(取引額表!J$54=0,0,取引額表!J31/取引額表!J$54) -> 0.002600268906 | K31: =IF(取引額表!K$54=0,0,取引額表!K31/取引額表!K$54) -> 0.0008541035795 | L31: =IF(取引額表!L$54=0,0,取引額表!L31/取引額表!L$54) -> 0.0006212466349 | M31: =IF(取引額表!M$54=0,0,取引額表!M31/取引額表!M$54) -> 0.001016164491 | N31: =IF(取引額表!N$54=0,0,取引額表!N31/取引額表!N$54) -> 0.0008600424288 | O31: =IF(取引額表!O$54=0,0,取引額表!O31/取引額表!O$54) -> 0.0004385604254 | P31: =IF(取引額表!P$54=0,0,取引額表!P31/取引額表!P$54) -> 0.0001486546752 | Q31: =IF(取引額表!Q$54=0,0,取引額表!Q31/取引額表!Q$54) -> 0.0004089163716 | R31: =IF(取引額表!R$54=0,0,取引額表!R31/取引額表!R$54) -> 0.0003759398496 | S31: =IF(取引額表!S$54=0,0,取引額表!S31/取引額表!S$54) -> 0.0007346459007 | T31: =IF(取引額表!T$54=0,0,取引額表!T31/取引額表!T$54) -> 9.918666931e-05 | U31: =IF(取引額表!U$54=0,0,取引額表!U31/取引額表!U$54) -> 0 | V31: =IF(取引額表!V$54=0,0,取引額表!V31/取引額表!V$54) -> 0 | W31: =IF(取引額表!W$54=0,0,取引額表!W31/取引額表!W$54) -> 0.001074581041 | X31: =IF(取引額表!X$54=0,0,取引額表!X31/取引額表!X$54) -> 0.0006493953194 | Y31: =IF(取引額表!Y$54=0,0,取引額表!Y31/取引額表!Y$54) -> 0.00129778238 | Z31: =IF(取引額表!Z$54=0,0,取引額表!Z31/取引額表!Z$54) -> 0.07160601676 | AA31: =IF(取引額表!AA$54=0,0,取引額表!AA31/取引額表!AA$54) -> 0.008540524137 | AB31: =IF(取引額表!AB$54=0,0,取引額表!AB31/取引額表!AB$54) -> 0.0024157785 | AC31: =IF(取引額表!AC$54=0,0,取引額表!AC31/取引額表!AC$54) -> 0.001207939726 | AD31: =IF(取引額表!AD$54=0,0,取引額表!AD31/取引額表!AD$54) -> 0.0004328845966 | AE31: =IF(取引額表!AE$54=0,0,取引額表!AE31/取引額表!AE$54) -> 0.00351428861 | AF31: =IF(取引額表!AF$54=0,0,取引額表!AF31/取引額表!AF$54) -> 0.001459232039 | AG31: =IF(取引額表!AG$54=0,0,取引額表!AG31/取引額表!AG$54) -> 0.004045038888 | AH31: =IF(取引額表!AH$54=0,0,取引額表!AH31/取引額表!AH$54) -> 0.008902389883 | AI31: =IF(取引額表!AI$54=0,0,取引額表!AI31/取引額表!AI$54) -> 0.004497365742 | AJ31: =IF(取引額表!AJ$54=0,0,取引額表!AJ31/取引額表!AJ$54) -> 0.00190048376 | AK31: =IF(取引額表!AK$54=0,0,取引額表!AK31/取引額表!AK$54) -> 0.001079624595 | AL31: =IF(取引額表!AL$54=0,0,取引額表!AL31/取引額表!AL$54) -> 0.008761804827 | AM31: =IF(取引額表!AM$54=0,0,取引額表!AM31/取引額表!AM$54) -> 0 | AN31: =IF(取引額表!AN$54=0,0,取引額表!AN31/取引額表!AN$54) -> 0.001350335823 | AO31: =IF(取引額表!AO$54=0,0,取引額表!AO31/取引額表!AO$54) -> 0.002801304063 | AP31: =IF(取引額表!AP$46=0,0,取引額表!AP31/取引額表!AP$46) -> 0.000112312228 | AQ31: =IF(取引額表!AQ$46=0,0,取引額表!AQ31/取引額表!AQ$46) -> 0.00476435025 | AR31: =IF(取引額表!AR$46=0,0,取引額表!AR31/取引額表!AR$46) -> 0.002802787025 | AS31: =IF(取引額表!AS$46=0,0,取引額表!AS31/取引額表!AS$46) -> 0 | AT31: =IF(取引額表!AT$46=0,0,取引額表!AT31/取引額表!AT$46) -> 0 | AU31: =IF(取引額表!AU$46=0,0,取引額表!AU31/取引額表!AU$46) -> 0 | AV31: =IF(取引額表!AV$46=0,0,取引額表!AV31/取引額表!AV$46) -> 0 | AW31: =IF(取引額表!AW$46=0,0,取引額表!AW31/取引額表!AW$46) -> 0.00339495884 | AX31: =IF(取引額表!AX$46=0,0,取引額表!AX31/取引額表!AX$46) -> 0.004552672859 | AY31: =IF(取引額表!AY$46=0,0,取引額表!AY31/取引額表!AY$46) -> 4.195933301e-06 | AZ31: =IF(取引額表!AZ$46=0,0,取引額表!AZ31/取引額表!AZ$46) -> 0 | BA31: =IF(取引額表!BA$46=0,0,取引額表!BA31/取引額表!BA$46) -> 5.028865689e-07 | BB31: =IF(取引額表!BB$46=0,0,取引額表!BB31/取引額表!BB$46) -> 0.002387226324 | BC31: =IF(取引額表!BC$46=0,0,取引額表!BC31/取引額表!BC$46) -> 0.003650562872 | BD31: =IF(取引額表!BD$46=0,0,取引額表!BD31/取引額表!BD$46) -> 0 | BE31: =IF(取引額表!BE$46=0,0,取引額表!BE31/取引額表!BE$46) -> 0 | BF31: =IF(取引額表!BF$46=0,0,取引額表!BF31/取引額表!BF$46) -> 0 | BG31: =IF(取引額表!BG$46=0,0,取引額表!BG31/取引額表!BG$46) -> 0.00396561546 | BH31: =IF(取引額表!BH$46=0,0,取引額表!BH31/取引額表!BH$46) -> 0.00497139524
B32: 48 | C32: 廃棄物処理 | D32: =IF(取引額表!D$54=0,0,取引額表!D32/取引額表!D$54) -> 0.0005518002483 | E32: =IF(取引額表!E$54=0,0,取引額表!E32/取引額表!E$54) -> 0 | F32: =IF(取引額表!F$54=0,0,取引額表!F32/取引額表!F$54) -> 0.0003679409264 | G32: =IF(取引額表!G$54=0,0,取引額表!G32/取引額表!G$54) -> 0 | H32: =IF(取引額表!H$54=0,0,取引額表!H32/取引額表!H$54) -> 4.732607667e-05 | I32: =IF(取引額表!I$54=0,0,取引額表!I32/取引額表!I$54) -> 0.002481840194 | J32: =IF(取引額表!J$54=0,0,取引額表!J32/取引額表!J$54) -> 0.0001775793399 | K32: =IF(取引額表!K$54=0,0,取引額表!K32/取引額表!K$54) -> 0 | L32: =IF(取引額表!L$54=0,0,取引額表!L32/取引額表!L$54) -> 0.003354731829 | M32: =IF(取引額表!M$54=0,0,取引額表!M32/取引額表!M$54) -> 0.0001855123186 | N32: =IF(取引額表!N$54=0,0,取引額表!N32/取引額表!N$54) -> 0 | O32: =IF(取引額表!O$54=0,0,取引額表!O32/取引額表!O$54) -> 0 | P32: =IF(取引額表!P$54=0,0,取引額表!P32/取引額表!P$54) -> 0 | Q32: =IF(取引額表!Q$54=0,0,取引額表!Q32/取引額表!Q$54) -> 0 | R32: =IF(取引額表!R$54=0,0,取引額表!R32/取引額表!R$54) -> 0 | S32: =IF(取引額表!S$54=0,0,取引額表!S32/取引額表!S$54) -> 0.0005877167205 | T32: =IF(取引額表!T$54=0,0,取引額表!T32/取引額表!T$54) -> 0 | U32: =IF(取引額表!U$54=0,0,取引額表!U32/取引額表!U$54) -> 0 | V32: =IF(取引額表!V$54=0,0,取引額表!V32/取引額表!V$54) -> 0 | W32: =IF(取引額表!W$54=0,0,取引額表!W32/取引額表!W$54) -> 0.0002046821031 | X32: =IF(取引額表!X$54=0,0,取引額表!X32/取引額表!X$54) -> 0.001659260075 | Y32: =IF(取引額表!Y$54=0,0,取引額表!Y32/取引額表!Y$54) -> 0.01178703943 | Z32: =IF(取引額表!Z$54=0,0,取引額表!Z32/取引額表!Z$54) -> 0.001528759794 | AA32: =IF(取引額表!AA$54=0,0,取引額表!AA32/取引額表!AA$54) -> 0 | AB32: =IF(取引額表!AB$54=0,0,取引額表!AB32/取引額表!AB$54) -> 0.001348126118 | AC32: =IF(取引額表!AC$54=0,0,取引額表!AC32/取引額表!AC$54) -> 0.002919410868 | AD32: =IF(取引額表!AD$54=0,0,取引額表!AD32/取引額表!AD$54) -> 1.371817384e-05 | AE32: =IF(取引額表!AE$54=0,0,取引額表!AE32/取引額表!AE$54) -> 0.005820626108 | AF32: =IF(取引額表!AF$54=0,0,取引額表!AF32/取引額表!AF$54) -> 0.003102199499 | AG32: =IF(取引額表!AG$54=0,0,取引額表!AG32/取引額表!AG$54) -> 0.02861791793 | AH32: =IF(取引額表!AH$54=0,0,取引額表!AH32/取引額表!AH$54) -> 0.004646477171 | AI32: =IF(取引額表!AI$54=0,0,取引額表!AI32/取引額表!AI$54) -> 0.00378693578 | AJ32: =IF(取引額表!AJ$54=0,0,取引額表!AJ32/取引額表!AJ$54) -> 0 | AK32: =IF(取引額表!AK$54=0,0,取引額表!AK32/取引額表!AK$54) -> 0.0003375727606 | AL32: =IF(取引額表!AL$54=0,0,取引額表!AL32/取引額表!AL$54) -> 0.01646679658 | AM32: =IF(取引額表!AM$54=0,0,取引額表!AM32/取引額表!AM$54) -> 0 | AN32: =IF(取引額表!AN$54=0,0,取引額表!AN32/取引額表!AN$54) -> 0.007550138556 | AO32: =IF(取引額表!AO$54=0,0,取引額表!AO32/取引額表!AO$54) -> 0.004013922241 | AP32: =IF(取引額表!AP$46=0,0,取引額表!AP32/取引額表!AP$46) -> 0 | AQ32: =IF(取引額表!AQ$46=0,0,取引額表!AQ32/取引額表!AQ$46) -> 0.0004158004158 | AR32: =IF(取引額表!AR$46=0,0,取引額表!AR32/取引額表!AR$46) -> 0.003699678873 | AS32: =IF(取引額表!AS$46=0,0,取引額表!AS32/取引額表!AS$46) -> 0 | AT32: =IF(取引額表!AT$46=0,0,取引額表!AT32/取引額表!AT$46) -> 0 | AU32: =IF(取引額表!AU$46=0,0,取引額表!AU32/取引額表!AU$46) -> 0 | AV32: =IF(取引額表!AV$46=0,0,取引額表!AV32/取引額表!AV$46) -> 0 | AW32: =IF(取引額表!AW$46=0,0,取引額表!AW32/取引額表!AW$46) -> 0.0009569753887 | AX32: =IF(取引額表!AX$46=0,0,取引額表!AX32/取引額表!AX$46) -> 0.004236111085 | AY32: =IF(取引額表!AY$46=0,0,取引額表!AY32/取引額表!AY$46) -> 0 | AZ32: =IF(取引額表!AZ$46=0,0,取引額表!AZ32/取引額表!AZ$46) -> 0.01362877487 | BA32: =IF(取引額表!BA$46=0,0,取引額表!BA32/取引額表!BA$46) -> 0.01199535333 | BB32: =IF(取引額表!BB$46=0,0,取引額表!BB32/取引額表!BB$46) -> 0.004234004912 | BC32: =IF(取引額表!BC$46=0,0,取引額表!BC32/取引額表!BC$46) -> 0.005773771138 | BD32: =IF(取引額表!BD$46=0,0,取引額表!BD32/取引額表!BD$46) -> 0 | BE32: =IF(取引額表!BE$46=0,0,取引額表!BE32/取引額表!BE$46) -> 0.00558594177 | BF32: =IF(取引額表!BF$46=0,0,取引額表!BF32/取引額表!BF$46) -> 0.004427250075 | BG32: =IF(取引額表!BG$46=0,0,取引額表!BG32/取引額表!BG$46) -> 0.004106234845 | BH32: =IF(取引額表!BH$46=0,0,取引額表!BH32/取引額表!BH$46) -> 0.006260964118
B33: 51 | C33: 商業 | D33: =IF(取引額表!D$54=0,0,取引額表!D33/取引額表!D$54) -> 0.06704373017 | E33: =IF(取引額表!E$54=0,0,取引額表!E33/取引額表!E$54) -> 0 | F33: =IF(取引額表!F$54=0,0,取引額表!F33/取引額表!F$54) -> 0.06929977035 | G33: =IF(取引額表!G$54=0,0,取引額表!G33/取引額表!G$54) -> 0.08267954134 | H33: =IF(取引額表!H$54=0,0,取引額表!H33/取引額表!H$54) -> 0.06535731188 | I33: =IF(取引額表!I$54=0,0,取引額表!I33/取引額表!I$54) -> 0.04679176755 | J33: =IF(取引額表!J$54=0,0,取引額表!J33/取引額表!J$54) -> 0.02099241483 | K33: =IF(取引額表!K$54=0,0,取引額表!K33/取引額表!K$54) -> 0.05644848203 | L33: =IF(取引額表!L$54=0,0,取引額表!L33/取引額表!L$54) -> 0.03603230483 | M33: =IF(取引額表!M$54=0,0,取引額表!M33/取引額表!M$54) -> 0.01960431422 | N33: =IF(取引額表!N$54=0,0,取引額表!N33/取引額表!N$54) -> 0.05458402615 | O33: =IF(取引額表!O$54=0,0,取引額表!O33/取引額表!O$54) -> 0.04514431379 | P33: =IF(取引額表!P$54=0,0,取引額表!P33/取引額表!P$54) -> 0.03969079828 | Q33: =IF(取引額表!Q$54=0,0,取引額表!Q33/取引額表!Q$54) -> 0.03730115195 | R33: =IF(取引額表!R$54=0,0,取引額表!R33/取引額表!R$54) -> 0.04649122807 | S33: =IF(取引額表!S$54=0,0,取引額表!S33/取引額表!S$54) -> 0.039964737 | T33: =IF(取引額表!T$54=0,0,取引額表!T33/取引額表!T$54) -> 0.04870065463 | U33: =IF(取引額表!U$54=0,0,取引額表!U33/取引額表!U$54) -> 0.04067164179 | V33: =IF(取引額表!V$54=0,0,取引額表!V33/取引額表!V$54) -> 0.04851973684 | W33: =IF(取引額表!W$54=0,0,取引額表!W33/取引額表!W$54) -> 0.06810796981 | X33: =IF(取引額表!X$54=0,0,取引額表!X33/取引額表!X$54) -> 0.05554256153 | Y33: =IF(取引額表!Y$54=0,0,取引額表!Y33/取引額表!Y$54) -> 0.01618431271 | Z33: =IF(取引額表!Z$54=0,0,取引額表!Z33/取引額表!Z$54) -> 0.0164068685 | AA33: =IF(取引額表!AA$54=0,0,取引額表!AA33/取引額表!AA$54) -> 0.01404634427 | AB33: =IF(取引額表!AB$54=0,0,取引額表!AB33/取引額表!AB$54) -> 0.0107903009 | AC33: =IF(取引額表!AC$54=0,0,取引額表!AC33/取引額表!AC$54) -> 0.005461173175 | AD33: =IF(取引額表!AD$54=0,0,取引額表!AD33/取引額表!AD$54) -> 0.00117976295 | AE33: =IF(取引額表!AE$54=0,0,取引額表!AE33/取引額表!AE$54) -> 0.02434254316 | AF33: =IF(取引額表!AF$54=0,0,取引額表!AF33/取引額表!AF$54) -> 0.00989242158 | AG33: =IF(取引額表!AG$54=0,0,取引額表!AG33/取引額表!AG$54) -> 0.009798561619 | AH33: =IF(取引額表!AH$54=0,0,取引額表!AH33/取引額表!AH$54) -> 0.01478255479 | AI33: =IF(取引額表!AI$54=0,0,取引額表!AI33/取引額表!AI$54) -> 0.04904395558 | AJ33: =IF(取引額表!AJ$54=0,0,取引額表!AJ33/取引額表!AJ$54) -> 0.03140981341 | AK33: =IF(取引額表!AK$54=0,0,取引額表!AK33/取引額表!AK$54) -> 0.01875353539 | AL33: =IF(取引額表!AL$54=0,0,取引額表!AL33/取引額表!AL$54) -> 0.07732973567 | AM33: =IF(取引額表!AM$54=0,0,取引額表!AM33/取引額表!AM$54) -> 0.2186826572 | AN33: =IF(取引額表!AN$54=0,0,取引額表!AN33/取引額表!AN$54) -> 0.01962096661 | AO33: =IF(取引額表!AO$54=0,0,取引額表!AO33/取引額表!AO$54) -> 0.02581132774 | AP33: =IF(取引額表!AP$46=0,0,取引額表!AP33/取引額表!AP$46) -> 0.1194721325 | AQ33: =IF(取引額表!AQ$46=0,0,取引額表!AQ33/取引額表!AQ$46) -> 0.1738148449 | AR33: =IF(取引額表!AR$46=0,0,取引額表!AR33/取引額表!AR$46) -> 0.000115441525 | AS33: =IF(取引額表!AS$46=0,0,取引額表!AS33/取引額表!AS$46) -> 0.05516984269 | AT33: =IF(取引額表!AT$46=0,0,取引額表!AT33/取引額表!AT$46) -> 0.02969185238 | AU33: =IF(取引額表!AU$46=0,0,取引額表!AU33/取引額表!AU$46) -> 0 | AV33: =IF(取引額表!AV$46=0,0,取引額表!AV33/取引額表!AV$46) -> 0 | AW33: =IF(取引額表!AW$46=0,0,取引額表!AW33/取引額表!AW$46) -> 0.1127661833 | AX33: =IF(取引額表!AX$46=0,0,取引額表!AX33/取引額表!AX$46) -> 0.08964577023 | AY33: =IF(取引額表!AY$46=0,0,取引額表!AY33/取引額表!AY$46) -> 0.3247148863 | AZ33: =IF(取引額表!AZ$46=0,0,取引額表!AZ33/取引額表!AZ$46) -> 0.02761693847 | BA33: =IF(取引額表!BA$46=0,0,取引額表!BA33/取引額表!BA$46) -> 0.0632244081 | BB33: =IF(取引額表!BB$46=0,0,取引額表!BB33/取引額表!BB$46) -> 0.09805841912 | BC33: =IF(取引額表!BC$46=0,0,取引額表!BC33/取引額表!BC$46) -> 0.08440981138 | BD33: =IF(取引額表!BD$46=0,0,取引額表!BD33/取引額表!BD$46) -> 0.01372137011 | BE33: =IF(取引額表!BE$46=0,0,取引額表!BE33/取引額表!BE$46) -> 0.03953888886 | BF33: =IF(取引額表!BF$46=0,0,取引額表!BF33/取引額表!BF$46) -> 0.0341835619 | BG33: =IF(取引額表!BG$46=0,0,取引額表!BG33/取引額表!BG$46) -> 0.1402912731 | BH33: =IF(取引額表!BH$46=0,0,取引額表!BH33/取引額表!BH$46) -> 0.1025824764
B34: 53 | C34: 金融・保険 | D34: =IF(取引額表!D$54=0,0,取引額表!D34/取引額表!D$54) -> 0.006483652918 | E34: =IF(取引額表!E$54=0,0,取引額表!E34/取引額表!E$54) -> 0 | F34: =IF(取引額表!F$54=0,0,取引額表!F34/取引額表!F$54) -> 0.004079069236 | G34: =IF(取引額表!G$54=0,0,取引額表!G34/取引額表!G$54) -> 0.01025950513 | H34: =IF(取引額表!H$54=0,0,取引額表!H34/取引額表!H$54) -> 0.008707998107 | I34: =IF(取引額表!I$54=0,0,取引額表!I34/取引額表!I$54) -> 0.004842615012 | J34: =IF(取引額表!J$54=0,0,取引額表!J34/取引額表!J$54) -> 0.006050381796 | K34: =IF(取引額表!K$54=0,0,取引額表!K34/取引額表!K$54) -> 0.003261122758 | L34: =IF(取引額表!L$54=0,0,取引額表!L34/取引額表!L$54) -> 0.009898529716 | M34: =IF(取引額表!M$54=0,0,取引額表!M34/取引額表!M$54) -> 0.003973286226 | N34: =IF(取引額表!N$54=0,0,取引額表!N34/取引額表!N$54) -> 0.004128203658 | O34: =IF(取引額表!O$54=0,0,取引額表!O34/取引額表!O$54) -> 0.01068991037 | P34: =IF(取引額表!P$54=0,0,取引額表!P34/取引額表!P$54) -> 0.005500222982 | Q34: =IF(取引額表!Q$54=0,0,取引額表!Q34/取引額表!Q$54) -> 0.006133745574 | R34: =IF(取引額表!R$54=0,0,取引額表!R34/取引額表!R$54) -> 0.01390977444 | S34: =IF(取引額表!S$54=0,0,取引額表!S34/取引額表!S$54) -> 0.005289450485 | T34: =IF(取引額表!T$54=0,0,取引額表!T34/取引額表!T$54) -> 0.004066653442 | U34: =IF(取引額表!U$54=0,0,取引額表!U34/取引額表!U$54) -> 0.003358208955 | V34: =IF(取引額表!V$54=0,0,取引額表!V34/取引額表!V$54) -> 0.002467105263 | W34: =IF(取引額表!W$54=0,0,取引額表!W34/取引額表!W$54) -> 0.01159012409 | X34: =IF(取引額表!X$54=0,0,取引額表!X34/取引額表!X$54) -> 0.0125889135 | Y34: =IF(取引額表!Y$54=0,0,取引額表!Y34/取引額表!Y$54) -> 0.01399603072 | Z34: =IF(取引額表!Z$54=0,0,取引額表!Z34/取引額表!Z$54) -> 0.0220305206 | AA34: =IF(取引額表!AA$54=0,0,取引額表!AA34/取引額表!AA$54) -> 0.01879348839 | AB34: =IF(取引額表!AB$54=0,0,取引額表!AB34/取引額表!AB$54) -> 0.0169355863 | AC34: =IF(取引額表!AC$54=0,0,取引額表!AC34/取引額表!AC$54) -> 0.047428374 | AD34: =IF(取引額表!AD$54=0,0,取引額表!AD34/取引額表!AD$54) -> 0.07504145937 | AE34: =IF(取引額表!AE$54=0,0,取引額表!AE34/取引額表!AE$54) -> 0.02758291995 | AF34: =IF(取引額表!AF$54=0,0,取引額表!AF34/取引額表!AF$54) -> 0.004779783778 | AG34: =IF(取引額表!AG$54=0,0,取引額表!AG34/取引額表!AG$54) -> 0.02074912949 | AH34: =IF(取引額表!AH$54=0,0,取引額表!AH34/取引額表!AH$54) -> 0.00717274728 | AI34: =IF(取引額表!AI$54=0,0,取引額表!AI34/取引額表!AI$54) -> 0.008832810125 | AJ34: =IF(取引額表!AJ$54=0,0,取引額表!AJ34/取引額表!AJ$54) -> 0.02297857636 | AK34: =IF(取引額表!AK$54=0,0,取引額表!AK34/取引額表!AK$54) -> 0.008209708714 | AL34: =IF(取引額表!AL$54=0,0,取引額表!AL34/取引額表!AL$54) -> 0.006685654325 | AM34: =IF(取引額表!AM$54=0,0,取引額表!AM34/取引額表!AM$54) -> 0 | AN34: =IF(取引額表!AN$54=0,0,取引額表!AN34/取引額表!AN$54) -> 0.03521440984 | AO34: =IF(取引額表!AO$54=0,0,取引額表!AO34/取引額表!AO$54) -> 0.01834914555 | AP34: =IF(取引額表!AP$46=0,0,取引額表!AP34/取引額表!AP$46) -> 1.871870467e-05 | AQ34: =IF(取引額表!AQ$46=0,0,取引額表!AQ34/取引額表!AQ$46) -> 0.0848824319 | AR34: =IF(取引額表!AR$46=0,0,取引額表!AR34/取引額表!AR$46) -> 0 | AS34: =IF(取引額表!AS$46=0,0,取引額表!AS34/取引額表!AS$46) -> 0 | AT34: =IF(取引額表!AT$46=0,0,取引額表!AT34/取引額表!AT$46) -> 0 | AU34: =IF(取引額表!AU$46=0,0,取引額表!AU34/取引額表!AU$46) -> 0 | AV34: =IF(取引額表!AV$46=0,0,取引額表!AV34/取引額表!AV$46) -> 0 | AW34: =IF(取引額表!AW$46=0,0,取引額表!AW34/取引額表!AW$46) -> 0.05088828634 | AX34: =IF(取引額表!AX$46=0,0,取引額表!AX34/取引額表!AX$46) -> 0.04659162897 | AY34: =IF(取引額表!AY$46=0,0,取引額表!AY34/取引額表!AY$46) -> 8.391866603e-06 | AZ34: =IF(取引額表!AZ$46=0,0,取引額表!AZ34/取引額表!AZ$46) -> 0.0240584758 | BA34: =IF(取引額表!BA$46=0,0,取引額表!BA34/取引額表!BA$46) -> 0.02117605053 | BB34: =IF(取引額表!BB$46=0,0,取引額表!BB34/取引額表!BB$46) -> 0.04206743653 | BC34: =IF(取引額表!BC$46=0,0,取引額表!BC34/取引額表!BC$46) -> 0.04155498771 | BD34: =IF(取引額表!BD$46=0,0,取引額表!BD34/取引額表!BD$46) -> 0.001135611549 | BE34: =IF(取引額表!BE$46=0,0,取引額表!BE34/取引額表!BE$46) -> 0.02034375099 | BF34: =IF(取引額表!BF$46=0,0,取引額表!BF34/取引額表!BF$46) -> 0.01635940733 | BG34: =IF(取引額表!BG$46=0,0,取引額表!BG34/取引額表!BG$46) -> 0.05906510182 | BH34: =IF(取引額表!BH$46=0,0,取引額表!BH34/取引額表!BH$46) -> 0.05067115396
B35: 55 | C35: 不動産 | D35: =IF(取引額表!D$54=0,0,取引額表!D35/取引額表!D$54) -> 0.009380604221 | E35: =IF(取引額表!E$54=0,0,取引額表!E35/取引額表!E$54) -> 0 | F35: =IF(取引額表!F$54=0,0,取引額表!F35/取引額表!F$54) -> 0.002049050332 | G35: =IF(取引額表!G$54=0,0,取引額表!G35/取引額表!G$54) -> 0.001810500905 | H35: =IF(取引額表!H$54=0,0,取引額表!H35/取引額表!H$54) -> 0.0028395646 | I35: =IF(取引額表!I$54=0,0,取引額表!I35/取引額表!I$54) -> 0.001694915254 | J35: =IF(取引額表!J$54=0,0,取引額表!J35/取引額表!J$54) -> 0.0007230015982 | K35: =IF(取引額表!K$54=0,0,取引額表!K35/取引額表!K$54) -> 0.003183476978 | L35: =IF(取引額表!L$54=0,0,取引額表!L35/取引額表!L$54) -> 0.002443570097 | M35: =IF(取引額表!M$54=0,0,取引額表!M35/取引額表!M$54) -> 0.0009783236701 | N35: =IF(取引額表!N$54=0,0,取引額表!N35/取引額表!N$54) -> 0.0006306977811 | O35: =IF(取引額表!O$54=0,0,取引額表!O35/取引額表!O$54) -> 0.004467834334 | P35: =IF(取引額表!P$54=0,0,取引額表!P35/取引額表!P$54) -> 0.002824438829 | Q35: =IF(取引額表!Q$54=0,0,取引額表!Q35/取引額表!Q$54) -> 0.002134343988 | R35: =IF(取引額表!R$54=0,0,取引額表!R35/取引額表!R$54) -> 0.001127819549 | S35: =IF(取引額表!S$54=0,0,取引額表!S35/取引額表!S$54) -> 0.001322362621 | T35: =IF(取引額表!T$54=0,0,取引額表!T35/取引額表!T$54) -> 0.001586986709 | U35: =IF(取引額表!U$54=0,0,取引額表!U35/取引額表!U$54) -> 0.001492537313 | V35: =IF(取引額表!V$54=0,0,取引額表!V35/取引額表!V$54) -> 0 | W35: =IF(取引額表!W$54=0,0,取引額表!W35/取引額表!W$54) -> 0.002225917871 | X35: =IF(取引額表!X$54=0,0,取引額表!X35/取引額表!X$54) -> 0.005288719508 | Y35: =IF(取引額表!Y$54=0,0,取引額表!Y35/取引額表!Y$54) -> 0.006789196652 | Z35: =IF(取引額表!Z$54=0,0,取引額表!Z35/取引額表!Z$54) -> 0.001037372717 | AA35: =IF(取引額表!AA$54=0,0,取引額表!AA35/取引額表!AA$54) -> 0.001495675547 | AB35: =IF(取引額表!AB$54=0,0,取引額表!AB35/取引額表!AB$54) -> 0.02726284093 | AC35: =IF(取引額表!AC$54=0,0,取引額表!AC35/取引額表!AC$54) -> 0.01697275841 | AD35: =IF(取引額表!AD$54=0,0,取引額表!AD35/取引額表!AD$54) -> 0.02815731392 | AE35: =IF(取引額表!AE$54=0,0,取引額表!AE35/取引額表!AE$54) -> 0.03889821711 | AF35: =IF(取引額表!AF$54=0,0,取引額表!AF35/取引額表!AF$54) -> 0.02149704426 | AG35: =IF(取引額表!AG$54=0,0,取引額表!AG35/取引額表!AG$54) -> 0.001503465782 | AH35: =IF(取引額表!AH$54=0,0,取引額表!AH35/取引額表!AH$54) -> 0.004286909891 | AI35: =IF(取引額表!AI$54=0,0,取引額表!AI35/取引額表!AI$54) -> 0.0166232515 | AJ35: =IF(取引額表!AJ$54=0,0,取引額表!AJ35/取引額表!AJ$54) -> 0.01496199032 | AK35: =IF(取引額表!AK$54=0,0,取引額表!AK35/取引額表!AK$54) -> 0.007192428638 | AL35: =IF(取引額表!AL$54=0,0,取引額表!AL35/取引額表!AL$54) -> 0.01327137361 | AM35: =IF(取引額表!AM$54=0,0,取引額表!AM35/取引額表!AM$54) -> 0 | AN35: =IF(取引額表!AN$54=0,0,取引額表!AN35/取引額表!AN$54) -> 0.01384387769 | AO35: =IF(取引額表!AO$54=0,0,取引額表!AO35/取引額表!AO$54) -> 0.01303208288 | AP35: =IF(取引額表!AP$46=0,0,取引額表!AP35/取引額表!AP$46) -> 0 | AQ35: =IF(取引額表!AQ$46=0,0,取引額表!AQ35/取引額表!AQ$46) -> 0.184966017 | AR35: =IF(取引額表!AR$46=0,0,取引額表!AR35/取引額表!AR$46) -> 0.0007215095311 | AS35: =IF(取引額表!AS$46=0,0,取引額表!AS35/取引額表!AS$46) -> 0 | AT35: =IF(取引額表!AT$46=0,0,取引額表!AT35/取引額表!AT$46) -> 0 | AU35: =IF(取引額表!AU$46=0,0,取引額表!AU35/取引額表!AU$46) -> 0 | AV35: =IF(取引額表!AV$46=0,0,取引額表!AV35/取引額表!AV$46) -> 0 | AW35: =IF(取引額表!AW$46=0,0,取引額表!AW35/取引額表!AW$46) -> 0.1110269809 | AX35: =IF(取引額表!AX$46=0,0,取引額表!AX35/取引額表!AX$46) -> 0.07692451102 | AY35: =IF(取引額表!AY$46=0,0,取引額表!AY35/取引額表!AY$46) -> 4.195933301e-06 | AZ35: =IF(取引額表!AZ$46=0,0,取引額表!AZ35/取引額表!AZ$46) -> 0.02507893411 | BA35: =IF(取引額表!BA$46=0,0,取引額表!BA35/取引額表!BA$46) -> 0.02207370306 | BB35: =IF(取引額表!BB$46=0,0,取引額表!BB35/取引額表!BB$46) -> 0.0846188873 | BC35: =IF(取引額表!BC$46=0,0,取引額表!BC35/取引額表!BC$46) -> 0.06605464852 | BD35: =IF(取引額表!BD$46=0,0,取引額表!BD35/取引額表!BD$46) -> 0 | BE35: =IF(取引額表!BE$46=0,0,取引額表!BE35/取引額表!BE$46) -> 0.003195009141 | BF35: =IF(取引額表!BF$46=0,0,取引額表!BF35/取引額表!BF$46) -> 0.002532268513 | BG35: =IF(取引額表!BG$46=0,0,取引額表!BG35/取引額表!BG$46) -> 0.1388930154 | BH35: =IF(取引額表!BH$46=0,0,取引額表!BH35/取引額表!BH$46) -> 0.08903806739
B36: 57 | C36: 運輸・郵便 | D36: =IF(取引額表!D$54=0,0,取引額表!D36/取引額表!D$54) -> 0.0491102221 | E36: =IF(取引額表!E$54=0,0,取引額表!E36/取引額表!E$54) -> 0.625 | F36: =IF(取引額表!F$54=0,0,取引額表!F36/取引額表!F$54) -> 0.05497862136 | G36: =IF(取引額表!G$54=0,0,取引額表!G36/取引額表!G$54) -> 0.01448400724 | H36: =IF(取引額表!H$54=0,0,取引額表!H36/取引額表!H$54) -> 0.04017983909 | I36: =IF(取引額表!I$54=0,0,取引額表!I36/取引額表!I$54) -> 0.023062954 | J36: =IF(取引額表!J$54=0,0,取引額表!J36/取引額表!J$54) -> 0.03970166671 | K36: =IF(取引額表!K$54=0,0,取引額表!K36/取引額表!K$54) -> 0.01840204985 | L36: =IF(取引額表!L$54=0,0,取引額表!L36/取引額表!L$54) -> 0.05533236695 | M36: =IF(取引額表!M$54=0,0,取引額表!M36/取引額表!M$54) -> 0.01973906446 | N36: =IF(取引額表!N$54=0,0,取引額表!N36/取引額表!N$54) -> 0.02826672783 | O36: =IF(取引額表!O$54=0,0,取引額表!O36/取引額表!O$54) -> 0.02872570786 | P36: =IF(取引額表!P$54=0,0,取引額表!P36/取引額表!P$54) -> 0.01709528765 | Q36: =IF(取引額表!Q$54=0,0,取引額表!Q36/取引額表!Q$54) -> 0.01692514836 | R36: =IF(取引額表!R$54=0,0,取引額表!R36/取引額表!R$54) -> 0.02042606516 | S36: =IF(取引額表!S$54=0,0,取引額表!S36/取引額表!S$54) -> 0.01748457244 | T36: =IF(取引額表!T$54=0,0,取引額表!T36/取引額表!T$54) -> 0.01646498711 | U36: =IF(取引額表!U$54=0,0,取引額表!U36/取引額表!U$54) -> 0.01324626866 | V36: =IF(取引額表!V$54=0,0,取引額表!V36/取引額表!V$54) -> 0.007401315789 | W36: =IF(取引額表!W$54=0,0,取引額表!W36/取引額表!W$54) -> 0.1647946783 | X36: =IF(取引額表!X$54=0,0,取引額表!X36/取引額表!X$54) -> 0.04355626488 | Y36: =IF(取引額表!Y$54=0,0,取引額表!Y36/取引額表!Y$54) -> 0.03888169816 | Z36: =IF(取引額表!Z$54=0,0,取引額表!Z36/取引額表!Z$54) -> 0.0177718326 | AA36: =IF(取引額表!AA$54=0,0,取引額表!AA36/取引額表!AA$54) -> 0.06221143216 | AB36: =IF(取引額表!AB$54=0,0,取引額表!AB36/取引額表!AB$54) -> 0.05278462792 | AC36: =IF(取引額表!AC$54=0,0,取引額表!AC36/取引額表!AC$54) -> 0.03640425002 | AD36: =IF(取引額表!AD$54=0,0,取引額表!AD36/取引額表!AD$54) -> 0.002653704517 | AE36: =IF(取引額表!AE$54=0,0,取引額表!AE36/取引額表!AE$54) -> 0.0740849291 | AF36: =IF(取引額表!AF$54=0,0,取引額表!AF36/取引額表!AF$54) -> 0.02258880545 | AG36: =IF(取引額表!AG$54=0,0,取引額表!AG36/取引額表!AG$54) -> 0.03413062579 | AH36: =IF(取引額表!AH$54=0,0,取引額表!AH36/取引額表!AH$54) -> 0.02536189207 | AI36: =IF(取引額表!AI$54=0,0,取引額表!AI36/取引額表!AI$54) -> 0.0161698717 | AJ36: =IF(取引額表!AJ$54=0,0,取引額表!AJ36/取引額表!AJ$54) -> 0.03151347616 | AK36: =IF(取引額表!AK$54=0,0,取引額表!AK36/取引額表!AK$54) -> 0.01592218188 | AL36: =IF(取引額表!AL$54=0,0,取引額表!AL36/取引額表!AL$54) -> 0.03481237196 | AM36: =IF(取引額表!AM$54=0,0,取引額表!AM36/取引額表!AM$54) -> 0.04853368313 | AN36: =IF(取引額表!AN$54=0,0,取引額表!AN36/取引額表!AN$54) -> 0.5899441078 | AO36: =IF(取引額表!AO$54=0,0,取引額表!AO36/取引額表!AO$54) -> 0.03797903847 | AP36: =IF(取引額表!AP$46=0,0,取引額表!AP36/取引額表!AP$46) -> 0.02654312322 | AQ36: =IF(取引額表!AQ$46=0,0,取引額表!AQ36/取引額表!AQ$46) -> 0.04184142208 | AR36: =IF(取引額表!AR$46=0,0,取引額表!AR36/取引額表!AR$46) -> 0.0007348297071 | AS36: =IF(取引額表!AS$46=0,0,取引額表!AS36/取引額表!AS$46) -> 0 | AT36: =IF(取引額表!AT$46=0,0,取引額表!AT36/取引額表!AT$46) -> 0.004665632366 | AU36: =IF(取引額表!AU$46=0,0,取引額表!AU36/取引額表!AU$46) -> 0.01101014932 | AV36: =IF(取引額表!AV$46=0,0,取引額表!AV36/取引額表!AV$46) -> 0 | AW36: =IF(取引額表!AW$46=0,0,取引額表!AW36/取引額表!AW$46) -> 0.02666196708 | AX36: =IF(取引額表!AX$46=0,0,取引額表!AX36/取引額表!AX$46) -> 0.05038776021 | AY36: =IF(取引額表!AY$46=0,0,取引額表!AY36/取引額表!AY$46) -> 0.07587086596 | AZ36: =IF(取引額表!AZ$46=0,0,取引額表!AZ36/取引額表!AZ$46) -> 0.03437161823 | BA36: =IF(取引額表!BA$46=0,0,取引額表!BA36/取引額表!BA$46) -> 0.03934534226 | BB36: =IF(取引額表!BB$46=0,0,取引額表!BB36/取引額表!BB$46) -> 0.03042735681 | BC36: =IF(取引額表!BC$46=0,0,取引額表!BC36/取引額表!BC$46) -> 0.04819946857 | BD36: =IF(取引額表!BD$46=0,0,取引額表!BD36/取引額表!BD$46) -> 0.0637443355 | BE36: =IF(取引額表!BE$46=0,0,取引額表!BE36/取引額表!BE$46) -> 0.0394314578 | BF36: =IF(取引額表!BF$46=0,0,取引額表!BF36/取引額表!BF$46) -> 0.04447467713 | BG36: =IF(取引額表!BG$46=0,0,取引額表!BG36/取引額表!BG$46) -> 0.02113953287 | BH36: =IF(取引額表!BH$46=0,0,取引額表!BH36/取引額表!BH$46) -> 0.04954715802
B37: 59 | C37: 情報通信 | D37: =IF(取引額表!D$54=0,0,取引額表!D37/取引額表!D$54) -> 0.002896951304 | E37: =IF(取引額表!E$54=0,0,取引額表!E37/取引額表!E$54) -> 0 | F37: =IF(取引額表!F$54=0,0,取引額表!F37/取引額表!F$54) -> 0.002861057894 | G37: =IF(取引額表!G$54=0,0,取引額表!G37/取引額表!G$54) -> 0.001207000604 | H37: =IF(取引額表!H$54=0,0,取引額表!H37/取引額表!H$54) -> 0.005300520587 | I37: =IF(取引額表!I$54=0,0,取引額表!I37/取引額表!I$54) -> 0.007506053269 | J37: =IF(取引額表!J$54=0,0,取引額表!J37/取引額表!J$54) -> 0.0006215276897 | K37: =IF(取引額表!K$54=0,0,取引額表!K37/取引額表!K$54) -> 0.005435204597 | L37: =IF(取引額表!L$54=0,0,取引額表!L37/取引額表!L$54) -> 0.006543797888 | M37: =IF(取引額表!M$54=0,0,取引額表!M37/取引額表!M$54) -> 0.002184615214 | N37: =IF(取引額表!N$54=0,0,取引額表!N37/取引額表!N$54) -> 0.003038816582 | O37: =IF(取引額表!O$54=0,0,取引額表!O37/取引額表!O$54) -> 0.005920565743 | P37: =IF(取引額表!P$54=0,0,取引額表!P37/取引額表!P$54) -> 0.005500222982 | Q37: =IF(取引額表!Q$54=0,0,取引額表!Q37/取引額表!Q$54) -> 0.01278611679 | R37: =IF(取引額表!R$54=0,0,取引額表!R37/取引額表!R$54) -> 0.007142857143 | S37: =IF(取引額表!S$54=0,0,取引額表!S37/取引額表!S$54) -> 0.008081104907 | T37: =IF(取引額表!T$54=0,0,取引額表!T37/取引額表!T$54) -> 0.01795278715 | U37: =IF(取引額表!U$54=0,0,取引額表!U37/取引額表!U$54) -> 0.0276119403 | V37: =IF(取引額表!V$54=0,0,取引額表!V37/取引額表!V$54) -> 0.0008223684211 | W37: =IF(取引額表!W$54=0,0,取引額表!W37/取引額表!W$54) -> 0.005091467315 | X37: =IF(取引額表!X$54=0,0,取引額表!X37/取引額表!X$54) -> 0.00720663704 | Y37: =IF(取引額表!Y$54=0,0,取引額表!Y37/取引額表!Y$54) -> 0.01130727414 | Z37: =IF(取引額表!Z$54=0,0,取引額表!Z37/取引額表!Z$54) -> 0.03614424941 | AA37: =IF(取引額表!AA$54=0,0,取引額表!AA37/取引額表!AA$54) -> 0.009494288254 | AB37: =IF(取引額表!AB$54=0,0,取引額表!AB37/取引額表!AB$54) -> 0.0379578866 | AC37: =IF(取引額表!AC$54=0,0,取引額表!AC37/取引額表!AC$54) -> 0.06231469106 | AD37: =IF(取引額表!AD$54=0,0,取引額表!AD37/取引額表!AD$54) -> 0.003408204078 | AE37: =IF(取引額表!AE$54=0,0,取引額表!AE37/取引額表!AE$54) -> 0.01239998795 | AF37: =IF(取引額表!AF$54=0,0,取引額表!AF37/取引額表!AF$54) -> 0.1354076796 | AG37: =IF(取引額表!AG$54=0,0,取引額表!AG37/取引額表!AG$54) -> 0.03014741775 | AH37: =IF(取引額表!AH$54=0,0,取引額表!AH37/取引額表!AH$54) -> 0.01876879204 | AI37: =IF(取引額表!AI$54=0,0,取引額表!AI37/取引額表!AI$54) -> 0.01724867275 | AJ37: =IF(取引額表!AJ$54=0,0,取引額表!AJ37/取引額表!AJ$54) -> 0.05680718728 | AK37: =IF(取引額表!AK$54=0,0,取引額表!AK37/取引額表!AK$54) -> 0.03897596847 | AL37: =IF(取引額表!AL$54=0,0,取引額表!AL37/取引額表!AL$54) -> 0.02002198571 | AM37: =IF(取引額表!AM$54=0,0,取引額表!AM37/取引額表!AM$54) -> 0 | AN37: =IF(取引額表!AN$54=0,0,取引額表!AN37/取引額表!AN$54) -> 0.04106195106 | AO37: =IF(取引額表!AO$54=0,0,取引額表!AO37/取引額表!AO$54) -> 0.02523100817 | AP37: =IF(取引額表!AP$46=0,0,取引額表!AP37/取引額表!AP$46) -> 0.009378071037 | AQ37: =IF(取引額表!AQ$46=0,0,取引額表!AQ37/取引額表!AQ$46) -> 0.04689052832 | AR37: =IF(取引額表!AR$46=0,0,取引額表!AR37/取引額表!AR$46) -> 2.220029327e-06 | AS37: =IF(取引額表!AS$46=0,0,取引額表!AS37/取引額表!AS$46) -> 0.0800014668 | AT37: =IF(取引額表!AT$46=0,0,取引額表!AT37/取引額表!AT$46) -> 0.08367205889 | AU37: =IF(取引額表!AU$46=0,0,取引額表!AU37/取引額表!AU$46) -> 0.0001381582443 | AV37: =IF(取引額表!AV$46=0,0,取引額表!AV37/取引額表!AV$46) -> 0 | AW37: =IF(取引額表!AW$46=0,0,取引額表!AW37/取引額表!AW$46) -> 0.04213430779 | AX37: =IF(取引額表!AX$46=0,0,取引額表!AX37/取引額表!AX$46) -> 0.0477698801 | AY37: =IF(取引額表!AY$46=0,0,取引額表!AY37/取引額表!AY$46) -> 0.01265913077 | AZ37: =IF(取引額表!AZ$46=0,0,取引額表!AZ37/取引額表!AZ$46) -> 0.06165030848 | BA37: =IF(取引額表!BA$46=0,0,取引額表!BA37/取引額表!BA$46) -> 0.05577866956 | BB37: =IF(取引額表!BB$46=0,0,取引額表!BB37/取引額表!BB$46) -> 0.04618499138 | BC37: =IF(取引額表!BC$46=0,0,取引額表!BC37/取引額表!BC$46) -> 0.04935699328 | BD37: =IF(取引額表!BD$46=0,0,取引額表!BD37/取引額表!BD$46) -> 0.01736509188 | BE37: =IF(取引額表!BE$46=0,0,取引額表!BE37/取引額表!BE$46) -> 0.05211684145 | BF37: =IF(取引額表!BF$46=0,0,取引額表!BF37/取引額表!BF$46) -> 0.04490828732 | BG37: =IF(取引額表!BG$46=0,0,取引額表!BG37/取引額表!BG$46) -> 0.04702912409 | BH37: =IF(取引額表!BH$46=0,0,取引額表!BH37/取引額表!BH$46) -> 0.05096660665
B38: 61 | C38: 公務 | D38: =IF(取引額表!D$54=0,0,取引額表!D38/取引額表!D$54) -> 0 | E38: =IF(取引額表!E$54=0,0,取引額表!E38/取引額表!E$54) -> 0 | F38: =IF(取引額表!F$54=0,0,取引額表!F38/取引額表!F$54) -> 0 | G38: =IF(取引額表!G$54=0,0,取引額表!G38/取引額表!G$54) -> 0 | H38: =IF(取引額表!H$54=0,0,取引額表!H38/取引額表!H$54) -> 0 | I38: =IF(取引額表!I$54=0,0,取引額表!I38/取引額表!I$54) -> 0 | J38: =IF(取引額表!J$54=0,0,取引額表!J38/取引額表!J$54) -> 0 | K38: =IF(取引額表!K$54=0,0,取引額表!K38/取引額表!K$54) -> 0 | L38: =IF(取引額表!L$54=0,0,取引額表!L38/取引額表!L$54) -> 0 | M38: =IF(取引額表!M$54=0,0,取引額表!M38/取引額表!M$54) -> 0 | N38: =IF(取引額表!N$54=0,0,取引額表!N38/取引額表!N$54) -> 0 | O38: =IF(取引額表!O$54=0,0,取引額表!O38/取引額表!O$54) -> 0 | P38: =IF(取引額表!P$54=0,0,取引額表!P38/取引額表!P$54) -> 0 | Q38: =IF(取引額表!Q$54=0,0,取引額表!Q38/取引額表!Q$54) -> 0 | R38: =IF(取引額表!R$54=0,0,取引額表!R38/取引額表!R$54) -> 0 | S38: =IF(取引額表!S$54=0,0,取引額表!S38/取引額表!S$54) -> 0 | T38: =IF(取引額表!T$54=0,0,取引額表!T38/取引額表!T$54) -> 0 | U38: =IF(取引額表!U$54=0,0,取引額表!U38/取引額表!U$54) -> 0 | V38: =IF(取引額表!V$54=0,0,取引額表!V38/取引額表!V$54) -> 0 | W38: =IF(取引額表!W$54=0,0,取引額表!W38/取引額表!W$54) -> 0 | X38: =IF(取引額表!X$54=0,0,取引額表!X38/取引額表!X$54) -> 0 | Y38: =IF(取引額表!Y$54=0,0,取引額表!Y38/取引額表!Y$54) -> 0 | Z38: =IF(取引額表!Z$54=0,0,取引額表!Z38/取引額表!Z$54) -> 0 | AA38: =IF(取引額表!AA$54=0,0,取引額表!AA38/取引額表!AA$54) -> 0 | AB38: =IF(取引額表!AB$54=0,0,取引額表!AB38/取引額表!AB$54) -> 0 | AC38: =IF(取引額表!AC$54=0,0,取引額表!AC38/取引額表!AC$54) -> 0 | AD38: =IF(取引額表!AD$54=0,0,取引額表!AD38/取引額表!AD$54) -> 0 | AE38: =IF(取引額表!AE$54=0,0,取引額表!AE38/取引額表!AE$54) -> 0 | AF38: =IF(取引額表!AF$54=0,0,取引額表!AF38/取引額表!AF$54) -> 0 | AG38: =IF(取引額表!AG$54=0,0,取引額表!AG38/取引額表!AG$54) -> 0 | AH38: =IF(取引額表!AH$54=0,0,取引額表!AH38/取引額表!AH$54) -> 0 | AI38: =IF(取引額表!AI$54=0,0,取引額表!AI38/取引額表!AI$54) -> 0 | AJ38: =IF(取引額表!AJ$54=0,0,取引額表!AJ38/取引額表!AJ$54) -> 0 | AK38: =IF(取引額表!AK$54=0,0,取引額表!AK38/取引額表!AK$54) -> 0 | AL38: =IF(取引額表!AL$54=0,0,取引額表!AL38/取引額表!AL$54) -> 0 | AM38: =IF(取引額表!AM$54=0,0,取引額表!AM38/取引額表!AM$54) -> 0 | AN38: =IF(取引額表!AN$54=0,0,取引額表!AN38/取引額表!AN$54) -> 0.09690714386 | AO38: =IF(取引額表!AO$54=0,0,取引額表!AO38/取引額表!AO$54) -> 0.001120060193 | AP38: =IF(取引額表!AP$46=0,0,取引額表!AP38/取引額表!AP$46) -> 0 | AQ38: =IF(取引額表!AQ$46=0,0,取引額表!AQ38/取引額表!AQ$46) -> 0.003303382009 | AR38: =IF(取引額表!AR$46=0,0,取引額表!AR38/取引額表!AR$46) -> 0.3215823481 | AS38: =IF(取引額表!AS$46=0,0,取引額表!AS38/取引額表!AS$46) -> 0 | AT38: =IF(取引額表!AT$46=0,0,取引額表!AT38/取引額表!AT$46) -> 0 | AU38: =IF(取引額表!AU$46=0,0,取引額表!AU38/取引額表!AU$46) -> 0 | AV38: =IF(取引額表!AV$46=0,0,取引額表!AV38/取引額表!AV$46) -> 0 | AW38: =IF(取引額表!AW$46=0,0,取引額表!AW38/取引額表!AW$46) -> 0.06349479683 | AX38: =IF(取引額表!AX$46=0,0,取引額表!AX38/取引額表!AX$46) -> 0.0381924882 | AY38: =IF(取引額表!AY$46=0,0,取引額表!AY38/取引額表!AY$46) -> 0 | AZ38: =IF(取引額表!AZ$46=0,0,取引額表!AZ38/取引額表!AZ$46) -> 0 | BA38: =IF(取引額表!BA$46=0,0,取引額表!BA38/取引額表!BA$46) -> 0 | BB38: =IF(取引額表!BB$46=0,0,取引額表!BB38/取引額表!BB$46) -> 0.04464471533 | BC38: =IF(取引額表!BC$46=0,0,取引額表!BC38/取引額表!BC$46) -> 0.03062382859 | BD38: =IF(取引額表!BD$46=0,0,取引額表!BD38/取引額表!BD$46) -> 0 | BE38: =IF(取引額表!BE$46=0,0,取引額表!BE38/取引額表!BE$46) -> 0 | BF38: =IF(取引額表!BF$46=0,0,取引額表!BF38/取引額表!BF$46) -> 0 | BG38: =IF(取引額表!BG$46=0,0,取引額表!BG38/取引額表!BG$46) -> 0.07416296125 | BH38: =IF(取引額表!BH$46=0,0,取引額表!BH38/取引額表!BH$46) -> 0.04170402236
B39: 63 | C39: 教育・研究 | D39: =IF(取引額表!D$54=0,0,取引額表!D39/取引額表!D$54) -> 0.0002069250931 | E39: =IF(取引額表!E$54=0,0,取引額表!E39/取引額表!E$54) -> 0 | F39: =IF(取引額表!F$54=0,0,取引額表!F39/取引額表!F$54) -> 0.0001078447543 | G39: =IF(取引額表!G$54=0,0,取引額表!G39/取引額表!G$54) -> 0 | H39: =IF(取引額表!H$54=0,0,取引額表!H39/取引額表!H$54) -> 9.465215334e-05 | I39: =IF(取引額表!I$54=0,0,取引額表!I39/取引額表!I$54) -> 6.053268765e-05 | J39: =IF(取引額表!J$54=0,0,取引額表!J39/取引額表!J$54) -> 0 | K39: =IF(取引額表!K$54=0,0,取引額表!K39/取引額表!K$54) -> 7.764577995e-05 | L39: =IF(取引額表!L$54=0,0,取引額表!L39/取引額表!L$54) -> 0.000124249327 | M39: =IF(取引額表!M$54=0,0,取引額表!M39/取引額表!M$54) -> 4.89161835e-05 | N39: =IF(取引額表!N$54=0,0,取引額表!N39/取引額表!N$54) -> 0 | O39: =IF(取引額表!O$54=0,0,取引額表!O39/取引額表!O$54) -> 0.0004111503988 | P39: =IF(取引額表!P$54=0,0,取引額表!P39/取引額表!P$54) -> 0.0005946187008 | Q39: =IF(取引額表!Q$54=0,0,取引額表!Q39/取引額表!Q$54) -> 0.0004288635117 | R39: =IF(取引額表!R$54=0,0,取引額表!R39/取引額表!R$54) -> 0.0002506265664 | S39: =IF(取引額表!S$54=0,0,取引額表!S39/取引額表!S$54) -> 0.001028504261 | T39: =IF(取引額表!T$54=0,0,取引額表!T39/取引額表!T$54) -> 0.001091053362 | U39: =IF(取引額表!U$54=0,0,取引額表!U39/取引額表!U$54) -> 0 | V39: =IF(取引額表!V$54=0,0,取引額表!V39/取引額表!V$54) -> 0 | W39: =IF(取引額表!W$54=0,0,取引額表!W39/取引額表!W$54) -> 0 | X39: =IF(取引額表!X$54=0,0,取引額表!X39/取引額表!X$54) -> 0.0001595971548 | Y39: =IF(取引額表!Y$54=0,0,取引額表!Y39/取引額表!Y$54) -> 0.0005418931746 | Z39: =IF(取引額表!Z$54=0,0,取引額表!Z39/取引額表!Z$54) -> 8.189784609e-05 | AA39: =IF(取引額表!AA$54=0,0,取引額表!AA39/取引額表!AA$54) -> 0.0001300587432 | AB39: =IF(取引額表!AB$54=0,0,取引額表!AB39/取引額表!AB$54) -> 0.0002116782913 | AC39: =IF(取引額表!AC$54=0,0,取引額表!AC39/取引額表!AC$54) -> 0.0001687365915 | AD39: =IF(取引額表!AD$54=0,0,取引額表!AD39/取引額表!AD$54) -> 0 | AE39: =IF(取引額表!AE$54=0,0,取引額表!AE39/取引額表!AE$54) -> 0.001596905892 | AF39: =IF(取引額表!AF$54=0,0,取引額表!AF39/取引額表!AF$54) -> 0.003813175694 | AG39: =IF(取引額表!AG$54=0,0,取引額表!AG39/取引額表!AG$54) -> 0.0001138989228 | AH39: =IF(取引額表!AH$54=0,0,取引額表!AH39/取引額表!AH$54) -> 0 | AI39: =IF(取引額表!AI$54=0,0,取引額表!AI39/取引額表!AI$54) -> 0.0001072729002 | AJ39: =IF(取引額表!AJ$54=0,0,取引額表!AJ39/取引額表!AJ$54) -> 0 | AK39: =IF(取引額表!AK$54=0,0,取引額表!AK39/取引額表!AK$54) -> 0.0004653029944 | AL39: =IF(取引額表!AL$54=0,0,取引額表!AL39/取引額表!AL$54) -> 0.00044970769 | AM39: =IF(取引額表!AM$54=0,0,取引額表!AM39/取引額表!AM$54) -> 0 | AN39: =IF(取引額表!AN$54=0,0,取引額表!AN39/取引額表!AN$54) -> 5.871025316e-05 | AO39: =IF(取引額表!AO$54=0,0,取引額表!AO39/取引額表!AO$54) -> 0.0004370039767 | AP39: =IF(取引額表!AP$46=0,0,取引額表!AP39/取引額表!AP$46) -> 0 | AQ39: =IF(取引額表!AQ$46=0,0,取引額表!AQ39/取引額表!AQ$46) -> 0.05069896262 | AR39: =IF(取引額表!AR$46=0,0,取引額表!AR39/取引額表!AR$46) -> 0.2279015506 | AS39: =IF(取引額表!AS$46=0,0,取引額表!AS39/取引額表!AS$46) -> 0 | AT39: =IF(取引額表!AT$46=0,0,取引額表!AT39/取引額表!AT$46) -> 0.08788981632 | AU39: =IF(取引額表!AU$46=0,0,取引額表!AU39/取引額表!AU$46) -> 0 | AV39: =IF(取引額表!AV$46=0,0,取引額表!AV39/取引額表!AV$46) -> 0 | AW39: =IF(取引額表!AW$46=0,0,取引額表!AW39/取引額表!AW$46) -> 0.08557253967 | AX39: =IF(取引額表!AX$46=0,0,取引額表!AX39/取引額表!AX$46) -> 0.0504901736 | AY39: =IF(取引額表!AY$46=0,0,取引額表!AY39/取引額表!AY$46) -> 0.005152606094 | AZ39: =IF(取引額表!AZ$46=0,0,取引額表!AZ39/取引額表!AZ$46) -> 0.01330709624 | BA39: =IF(取引額表!BA$46=0,0,取引額表!BA39/取引額表!BA$46) -> 0.0123297729 | BB39: =IF(取引額表!BB$46=0,0,取引額表!BB39/取引額表!BB$46) -> 0.06382851982 | BC39: =IF(取引額表!BC$46=0,0,取引額表!BC39/取引額表!BC$46) -> 0.04292787281 | BD39: =IF(取引額表!BD$46=0,0,取引額表!BD39/取引額表!BD$46) -> 0.005376071869 | BE39: =IF(取引額表!BE$46=0,0,取引額表!BE39/取引額表!BE$46) -> 0.04977323528 | BF39: =IF(取引額表!BF$46=0,0,取引額表!BF39/取引額表!BF$46) -> 0.04056393331 | BG39: =IF(取引額表!BG$46=0,0,取引額表!BG39/取引額表!BG$46) -> 0.07921062676 | BH39: =IF(取引額表!BH$46=0,0,取引額表!BH39/取引額表!BH$46) -> 0.04378318414
B40: 64 | C40: 医療・福祉 | D40: =IF(取引額表!D$54=0,0,取引額表!D40/取引額表!D$54) -> 0.002621051179 | E40: =IF(取引額表!E$54=0,0,取引額表!E40/取引額表!E$54) -> 0 | F40: =IF(取引額表!F$54=0,0,取引額表!F40/取引額表!F$54) -> 0 | G40: =IF(取引額表!G$54=0,0,取引額表!G40/取引額表!G$54) -> 0 | H40: =IF(取引額表!H$54=0,0,取引額表!H40/取引額表!H$54) -> 0 | I40: =IF(取引額表!I$54=0,0,取引額表!I40/取引額表!I$54) -> 0 | J40: =IF(取引額表!J$54=0,0,取引額表!J40/取引額表!J$54) -> 0 | K40: =IF(取引額表!K$54=0,0,取引額表!K40/取引額表!K$54) -> 0 | L40: =IF(取引額表!L$54=0,0,取引額表!L40/取引額表!L$54) -> 0 | M40: =IF(取引額表!M$54=0,0,取引額表!M40/取引額表!M$54) -> 9.229468586e-07 | N40: =IF(取引額表!N$54=0,0,取引額表!N40/取引額表!N$54) -> 0 | O40: =IF(取引額表!O$54=0,0,取引額表!O40/取引額表!O$54) -> 0 | P40: =IF(取引額表!P$54=0,0,取引額表!P40/取引額表!P$54) -> 0 | Q40: =IF(取引額表!Q$54=0,0,取引額表!Q40/取引額表!Q$54) -> 0 | R40: =IF(取引額表!R$54=0,0,取引額表!R40/取引額表!R$54) -> 0 | S40: =IF(取引額表!S$54=0,0,取引額表!S40/取引額表!S$54) -> 0 | T40: =IF(取引額表!T$54=0,0,取引額表!T40/取引額表!T$54) -> 0 | U40: =IF(取引額表!U$54=0,0,取引額表!U40/取引額表!U$54) -> 0 | V40: =IF(取引額表!V$54=0,0,取引額表!V40/取引額表!V$54) -> 0 | W40: =IF(取引額表!W$54=0,0,取引額表!W40/取引額表!W$54) -> 0 | X40: =IF(取引額表!X$54=0,0,取引額表!X40/取引額表!X$54) -> 0 | Y40: =IF(取引額表!Y$54=0,0,取引額表!Y40/取引額表!Y$54) -> 4.487013547e-05 | Z40: =IF(取引額表!Z$54=0,0,取引額表!Z40/取引額表!Z$54) -> 0.0002183942562 | AA40: =IF(取引額表!AA$54=0,0,取引額表!AA40/取引額表!AA$54) -> 0 | AB40: =IF(取引額表!AB$54=0,0,取引額表!AB40/取引額表!AB$54) -> 2.51367971e-05 | AC40: =IF(取引額表!AC$54=0,0,取引額表!AC40/取引額表!AC$54) -> 0.0001285612125 | AD40: =IF(取引額表!AD$54=0,0,取引額表!AD40/取引額表!AD$54) -> 3.048483075e-06 | AE40: =IF(取引額表!AE$54=0,0,取引額表!AE40/取引額表!AE$54) -> 0.0005560409882 | AF40: =IF(取引額表!AF$54=0,0,取引額表!AF40/取引額表!AF$54) -> 0.0004473558076 | AG40: =IF(取引額表!AG$54=0,0,取引額表!AG40/取引額表!AG$54) -> 2.277978457e-05 | AH40: =IF(取引額表!AH$54=0,0,取引額表!AH40/取引額表!AH$54) -> 1.859830755e-05 | AI40: =IF(取引額表!AI$54=0,0,取引額表!AI40/取引額表!AI$54) -> 0.01746321855 | AJ40: =IF(取引額表!AJ$54=0,0,取引額表!AJ40/取引額表!AJ$54) -> 0 | AK40: =IF(取引額表!AK$54=0,0,取引額表!AK40/取引額表!AK$54) -> 3.041196042e-05 | AL40: =IF(取引額表!AL$54=0,0,取引額表!AL40/取引額表!AL$54) -> 7.245290561e-05 | AM40: =IF(取引額表!AM$54=0,0,取引額表!AM40/取引額表!AM$54) -> 0 | AN40: =IF(取引額表!AN$54=0,0,取引額表!AN40/取引額表!AN$54) -> 0.001526466582 | AO40: =IF(取引額表!AO$54=0,0,取引額表!AO40/取引額表!AO$54) -> 0.001264868653 | AP40: =IF(取引額表!AP$46=0,0,取引額表!AP40/取引額表!AP$46) -> 0.05532313164 | AQ40: =IF(取引額表!AQ$46=0,0,取引額表!AQ40/取引額表!AQ$46) -> 0.02658997616 | AR40: =IF(取引額表!AR$46=0,0,取引額表!AR40/取引額表!AR$46) -> 0.4417303353 | AS40: =IF(取引額表!AS$46=0,0,取引額表!AS40/取引額表!AS$46) -> 0 | AT40: =IF(取引額表!AT$46=0,0,取引額表!AT40/取引額表!AT$46) -> 0 | AU40: =IF(取引額表!AU$46=0,0,取引額表!AU40/取引額表!AU$46) -> 0 | AV40: =IF(取引額表!AV$46=0,0,取引額表!AV40/取引額表!AV$46) -> 0 | AW40: =IF(取引額表!AW$46=0,0,取引額表!AW40/取引額表!AW$46) -> 0.1016931266 | AX40: =IF(取引額表!AX$46=0,0,取引額表!AX40/取引額表!AX$46) -> 0.06068453159 | AY40: =IF(取引額表!AY$46=0,0,取引額表!AY40/取引額表!AY$46) -> 0 | AZ40: =IF(取引額表!AZ$46=0,0,取引額表!AZ40/取引額表!AZ$46) -> 0.02474182862 | BA40: =IF(取引額表!BA$46=0,0,取引額表!BA40/取引額表!BA$46) -> 0.02177649709 | BB40: =IF(取引額表!BB$46=0,0,取引額表!BB40/取引額表!BB$46) -> 0.07796779708 | BC40: =IF(取引額表!BC$46=0,0,取引額表!BC40/取引額表!BC$46) -> 0.05297407115 | BD40: =IF(取引額表!BD$46=0,0,取引額表!BD40/取引額表!BD$46) -> 3.074107695e-05 | BE40: =IF(取引額表!BE$46=0,0,取引額表!BE40/取引額表!BE$46) -> 0.01773606319 | BF40: =IF(取引額表!BF$46=0,0,取引額表!BF40/取引額表!BF$46) -> 0.01406344887 | BG40: =IF(取引額表!BG$46=0,0,取引額表!BG40/取引額表!BG$46) -> 0.1202201499 | BH40: =IF(取引額表!BH$46=0,0,取引額表!BH40/取引額表!BH$46) -> 0.06705256018
B41: 65 | C41: 他に分類されない会員制団体 | D41: =IF(取引額表!D$54=0,0,取引額表!D41/取引額表!D$54) -> 0.0005518002483 | E41: =IF(取引額表!E$54=0,0,取引額表!E41/取引額表!E$54) -> 0 | F41: =IF(取引額表!F$54=0,0,取引額表!F41/取引額表!F$54) -> 0.0005043328216 | G41: =IF(取引額表!G$54=0,0,取引額表!G41/取引額表!G$54) -> 0 | H41: =IF(取引額表!H$54=0,0,取引額表!H41/取引額表!H$54) -> 0.0008045433034 | I41: =IF(取引額表!I$54=0,0,取引額表!I41/取引額表!I$54) -> 0.001634382567 | J41: =IF(取引額表!J$54=0,0,取引額表!J41/取引額表!J$54) -> 0.0003424744413 | K41: =IF(取引額表!K$54=0,0,取引額表!K41/取引額表!K$54) -> 0.0003882288998 | L41: =IF(取引額表!L$54=0,0,取引額表!L41/取引額表!L$54) -> 0.0005798301926 | M41: =IF(取引額表!M$54=0,0,取引額表!M41/取引額表!M$54) -> 0.0007032855062 | N41: =IF(取引額表!N$54=0,0,取引額表!N41/取引額表!N$54) -> 0.0003440169715 | O41: =IF(取引額表!O$54=0,0,取引額表!O41/取引額表!O$54) -> 0.0007400707179 | P41: =IF(取引額表!P$54=0,0,取引額表!P41/取引額表!P$54) -> 0.001337892077 | Q41: =IF(取引額表!Q$54=0,0,取引額表!Q41/取引額表!Q$54) -> 0.0006582556226 | R41: =IF(取引額表!R$54=0,0,取引額表!R41/取引額表!R$54) -> 0.0003759398496 | S41: =IF(取引額表!S$54=0,0,取引額表!S41/取引額表!S$54) -> 0.0005877167205 | T41: =IF(取引額表!T$54=0,0,取引額表!T41/取引額表!T$54) -> 0.0004959333466 | U41: =IF(取引額表!U$54=0,0,取引額表!U41/取引額表!U$54) -> 0.0005597014925 | V41: =IF(取引額表!V$54=0,0,取引額表!V41/取引額表!V$54) -> 0 | W41: =IF(取引額表!W$54=0,0,取引額表!W41/取引額表!W$54) -> 0.0008187284124 | X41: =IF(取引額表!X$54=0,0,取引額表!X41/取引額表!X$54) -> 0.0008640259758 | Y41: =IF(取引額表!Y$54=0,0,取引額表!Y41/取引額表!Y$54) -> 0.002088187074 | Z41: =IF(取引額表!Z$54=0,0,取引額表!Z41/取引額表!Z$54) -> 0.007207010456 | AA41: =IF(取引額表!AA$54=0,0,取引額表!AA41/取引額表!AA$54) -> 0.001885851776 | AB41: =IF(取引額表!AB$54=0,0,取引額表!AB41/取引額表!AB$54) -> 0.0005926992157 | AC41: =IF(取引額表!AC$54=0,0,取引額表!AC41/取引額表!AC$54) -> 0.003578287083 | AD41: =IF(取引額表!AD$54=0,0,取引額表!AD41/取引額表!AD$54) -> 0.0003200907229 | AE41: =IF(取引額表!AE$54=0,0,取引額表!AE41/取引額表!AE$54) -> 0.001144951394 | AF41: =IF(取引額表!AF$54=0,0,取引額表!AF41/取引額表!AF$54) -> 0.001067795708 | AG41: =IF(取引額表!AG$54=0,0,取引額表!AG41/取引額表!AG$54) -> 0 | AH41: =IF(取引額表!AH$54=0,0,取引額表!AH41/取引額表!AH$54) -> 0.001397972784 | AI41: =IF(取引額表!AI$54=0,0,取引額表!AI41/取引額表!AI$54) -> 0.0009654561021 | AJ41: =IF(取引額表!AJ$54=0,0,取引額表!AJ41/取引額表!AJ$54) -> 0 | AK41: =IF(取引額表!AK$54=0,0,取引額表!AK41/取引額表!AK$54) -> 0.001733481744 | AL41: =IF(取引額表!AL$54=0,0,取引額表!AL41/取引額表!AL$54) -> 0.00262829161 | AM41: =IF(取引額表!AM$54=0,0,取引額表!AM41/取引額表!AM$54) -> 0 | AN41: =IF(取引額表!AN$54=0,0,取引額表!AN41/取引額表!AN$54) -> 0.002947254709 | AO41: =IF(取引額表!AO$54=0,0,取引額表!AO41/取引額表!AO$54) -> 0.001170953513 | AP41: =IF(取引額表!AP$46=0,0,取引額表!AP41/取引額表!AP$46) -> 0 | AQ41: =IF(取引額表!AQ$46=0,0,取引額表!AQ41/取引額表!AQ$46) -> 0.01495535635 | AR41: =IF(取引額表!AR$46=0,0,取引額表!AR41/取引額表!AR$46) -> 0 | AS41: =IF(取引額表!AS$46=0,0,取引額表!AS41/取引額表!AS$46) -> 0 | AT41: =IF(取引額表!AT$46=0,0,取引額表!AT41/取引額表!AT$46) -> 0 | AU41: =IF(取引額表!AU$46=0,0,取引額表!AU41/取引額表!AU$46) -> 0 | AV41: =IF(取引額表!AV$46=0,0,取引額表!AV41/取引額表!AV$46) -> 0 | AW41: =IF(取引額表!AW$46=0,0,取引額表!AW41/取引額表!AW$46) -> 0.008965884793 | AX41: =IF(取引額表!AX$46=0,0,取引額表!AX41/取引額表!AX$46) -> 0.006320546699 | AY41: =IF(取引額表!AY$46=0,0,取引額表!AY41/取引額表!AY$46) -> 0.0004112014635 | AZ41: =IF(取引額表!AZ$46=0,0,取引額表!AZ41/取引額表!AZ$46) -> 0 | BA41: =IF(取引額表!BA$46=0,0,取引額表!BA41/取引額表!BA$46) -> 4.928288375e-05 | BB41: =IF(取引額表!BB$46=0,0,取引額表!BB41/取引額表!BB$46) -> 0.006318759658 | BC41: =IF(取引額表!BC$46=0,0,取引額表!BC41/取引額表!BC$46) -> 0.005077761444 | BD41: =IF(取引額表!BD$46=0,0,取引額表!BD41/取引額表!BD$46) -> 0.0006817285888 | BE41: =IF(取引額表!BE$46=0,0,取引額表!BE41/取引額表!BE$46) -> 0.01023907906 | BF41: =IF(取引額表!BF$46=0,0,取引額表!BF41/取引額表!BF$46) -> 0.008256598208 | BG41: =IF(取引額表!BG$46=0,0,取引額表!BG41/取引額表!BG$46) -> 0.005037497263 | BH41: =IF(取引額表!BH$46=0,0,取引額表!BH41/取引額表!BH$46) -> 0.00392760717
B42: 66 | C42: 対事業所サービス | D42: =IF(取引額表!D$54=0,0,取引額表!D42/取引額表!D$54) -> 0.02483101117 | E42: =IF(取引額表!E$54=0,0,取引額表!E42/取引額表!E$54) -> 0 | F42: =IF(取引額表!F$54=0,0,取引額表!F42/取引額表!F$54) -> 0.02205425226 | G42: =IF(取引額表!G$54=0,0,取引額表!G42/取引額表!G$54) -> 0.03017501509 | H42: =IF(取引額表!H$54=0,0,取引額表!H42/取引額表!H$54) -> 0.02782773308 | I42: =IF(取引額表!I$54=0,0,取引額表!I42/取引額表!I$54) -> 0.03753026634 | J42: =IF(取引額表!J$54=0,0,取引額表!J42/取引額表!J$54) -> 0.01070549735 | K42: =IF(取引額表!K$54=0,0,取引額表!K42/取引額表!K$54) -> 0.03688174548 | L42: =IF(取引額表!L$54=0,0,取引額表!L42/取引額表!L$54) -> 0.05740318907 | M42: =IF(取引額表!M$54=0,0,取引額表!M42/取引額表!M$54) -> 0.007954878974 | N42: =IF(取引額表!N$54=0,0,取引額表!N42/取引額表!N$54) -> 0.0161114615 | O42: =IF(取引額表!O$54=0,0,取引額表!O42/取引額表!O$54) -> 0.02677959598 | P42: =IF(取引額表!P$54=0,0,取引額表!P42/取引額表!P$54) -> 0.04712353204 | Q42: =IF(取引額表!Q$54=0,0,取引額表!Q42/取引額表!Q$54) -> 0.03271330973 | R42: =IF(取引額表!R$54=0,0,取引額表!R42/取引額表!R$54) -> 0.02769423559 | S42: =IF(取引額表!S$54=0,0,取引額表!S42/取引額表!S$54) -> 0.04598883338 | T42: =IF(取引額表!T$54=0,0,取引額表!T42/取引額表!T$54) -> 0.03382265424 | U42: =IF(取引額表!U$54=0,0,取引額表!U42/取引額表!U$54) -> 0.02779850746 | V42: =IF(取引額表!V$54=0,0,取引額表!V42/取引額表!V$54) -> 0.01809210526 | W42: =IF(取引額表!W$54=0,0,取引額表!W42/取引額表!W$54) -> 0.04160163746 | X42: =IF(取引額表!X$54=0,0,取引額表!X42/取引額表!X$54) -> 0.09718641223 | Y42: =IF(取引額表!Y$54=0,0,取引額表!Y42/取引額表!Y$54) -> 0.07422555872 | Z42: =IF(取引額表!Z$54=0,0,取引額表!Z42/取引額表!Z$54) -> 0.1251945074 | AA42: =IF(取引額表!AA$54=0,0,取引額表!AA42/取引額表!AA$54) -> 0.06355537251 | AB42: =IF(取引額表!AB$54=0,0,取引額表!AB42/取引額表!AB$54) -> 0.08688864663 | AC42: =IF(取引額表!AC$54=0,0,取引額表!AC42/取引額表!AC$54) -> 0.119877974 | AD42: =IF(取引額表!AD$54=0,0,取引額表!AD42/取引額表!AD$54) -> 0.02832040777 | AE42: =IF(取引額表!AE$54=0,0,取引額表!AE42/取引額表!AE$54) -> 0.09830147282 | AF42: =IF(取引額表!AF$54=0,0,取引額表!AF42/取引額表!AF$54) -> 0.1544655696 | AG42: =IF(取引額表!AG$54=0,0,取引額表!AG42/取引額表!AG$54) -> 0.09110937551 | AH42: =IF(取引額表!AH$54=0,0,取引額表!AH42/取引額表!AH$54) -> 0.06134341775 | AI42: =IF(取引額表!AI$54=0,0,取引額表!AI42/取引額表!AI$54) -> 0.05209010114 | AJ42: =IF(取引額表!AJ$54=0,0,取引額表!AJ42/取引額表!AJ$54) -> 0.06226675881 | AK42: =IF(取引額表!AK$54=0,0,取引額表!AK42/取引額表!AK$54) -> 0.1460595223 | AL42: =IF(取引額表!AL$54=0,0,取引額表!AL42/取引額表!AL$54) -> 0.03691350622 | AM42: =IF(取引額表!AM$54=0,0,取引額表!AM42/取引額表!AM$54) -> 0 | AN42: =IF(取引額表!AN$54=0,0,取引額表!AN42/取引額表!AN$54) -> 0.03008313372 | AO42: =IF(取引額表!AO$54=0,0,取引額表!AO42/取引額表!AO$54) -> 0.06831783598 | AP42: =IF(取引額表!AP$46=0,0,取引額表!AP42/取引額表!AP$46) -> 0.005522017876 | AQ42: =IF(取引額表!AQ$46=0,0,取引額表!AQ42/取引額表!AQ$46) -> 0.01458736944 | AR42: =IF(取引額表!AR$46=0,0,取引額表!AR42/取引額表!AR$46) -> 0 | AS42: =IF(取引額表!AS$46=0,0,取引額表!AS42/取引額表!AS$46) -> 0.01454572124 | AT42: =IF(取引額表!AT$46=0,0,取引額表!AT42/取引額表!AT$46) -> 0.0638817868 | AU42: =IF(取引額表!AU$46=0,0,取引額表!AU42/取引額表!AU$46) -> 0 | AV42: =IF(取引額表!AV$46=0,0,取引額表!AV42/取引額表!AV$46) -> 0 | AW42: =IF(取引額表!AW$46=0,0,取引額表!AW42/取引額表!AW$46) -> 0.01779524082 | AX42: =IF(取引額表!AX$46=0,0,取引額表!AX42/取引額表!AX$46) -> 0.07298184412 | AY42: =IF(取引額表!AY$46=0,0,取引額表!AY42/取引額表!AY$46) -> 0.04671752138 | AZ42: =IF(取引額表!AZ$46=0,0,取引額表!AZ42/取引額表!AZ$46) -> 0.1508067106 | BA42: =IF(取引額表!BA$46=0,0,取引額表!BA42/取引額表!BA$46) -> 0.1383315229 | BB42: =IF(取引額表!BB$46=0,0,取引額表!BB42/取引額表!BB$46) -> 0.05357957048 | BC42: =IF(取引額表!BC$46=0,0,取引額表!BC42/取引額表!BC$46) -> 0.08593228276 | BD42: =IF(取引額表!BD$46=0,0,取引額表!BD42/取引額表!BD$46) -> 0.02090212403 | BE42: =IF(取引額表!BE$46=0,0,取引額表!BE42/取引額表!BE$46) -> 0.09137745074 | BF42: =IF(取引額表!BF$46=0,0,取引額表!BF42/取引額表!BF$46) -> 0.07675875632 | BG42: =IF(取引額表!BG$46=0,0,取引額表!BG42/取引額表!BG$46) -> 0.03825392885 | BH42: =IF(取引額表!BH$46=0,0,取引額表!BH42/取引額表!BH$46) -> 0.08925141219
B43: 67 | C43: 対個人サービス | D43: =IF(取引額表!D$54=0,0,取引額表!D43/取引額表!D$54) -> 0.0002759001242 | E43: =IF(取引額表!E$54=0,0,取引額表!E43/取引額表!E$54) -> 0 | F43: =IF(取引額表!F$54=0,0,取引額表!F43/取引額表!F$54) -> 3.489094992e-05 | G43: =IF(取引額表!G$54=0,0,取引額表!G43/取引額表!G$54) -> 0 | H43: =IF(取引額表!H$54=0,0,取引額表!H43/取引額表!H$54) -> 0 | I43: =IF(取引額表!I$54=0,0,取引額表!I43/取引額表!I$54) -> 0 | J43: =IF(取引額表!J$54=0,0,取引額表!J43/取引額表!J$54) -> 0 | K43: =IF(取引額表!K$54=0,0,取引額表!K43/取引額表!K$54) -> 0 | L43: =IF(取引額表!L$54=0,0,取引額表!L43/取引額表!L$54) -> 0 | M43: =IF(取引額表!M$54=0,0,取引額表!M43/取引額表!M$54) -> 4.430144921e-05 | N43: =IF(取引額表!N$54=0,0,取引額表!N43/取引額表!N$54) -> 0 | O43: =IF(取引額表!O$54=0,0,取引額表!O43/取引額表!O$54) -> 0 | P43: =IF(取引額表!P$54=0,0,取引額表!P43/取引額表!P$54) -> 0 | Q43: =IF(取引額表!Q$54=0,0,取引額表!Q43/取引額表!Q$54) -> 0.0001097092704 | R43: =IF(取引額表!R$54=0,0,取引額表!R43/取引額表!R$54) -> 0 | S43: =IF(取引額表!S$54=0,0,取引額表!S43/取引額表!S$54) -> 0 | T43: =IF(取引額表!T$54=0,0,取引額表!T43/取引額表!T$54) -> 9.918666931e-05 | U43: =IF(取引額表!U$54=0,0,取引額表!U43/取引額表!U$54) -> 0 | V43: =IF(取引額表!V$54=0,0,取引額表!V43/取引額表!V$54) -> 0 | W43: =IF(取引額表!W$54=0,0,取引額表!W43/取引額表!W$54) -> 0 | X43: =IF(取引額表!X$54=0,0,取引額表!X43/取引額表!X$54) -> 0.0002063756312 | Y43: =IF(取引額表!Y$54=0,0,取引額表!Y43/取引額表!Y$54) -> 5.177323324e-05 | Z43: =IF(取引額表!Z$54=0,0,取引額表!Z43/取引額表!Z$54) -> 0.0001364964101 | AA43: =IF(取引額表!AA$54=0,0,取引額表!AA43/取引額表!AA$54) -> 2.16764572e-05 | AB43: =IF(取引額表!AB$54=0,0,取引額表!AB43/取引額表!AB$54) -> 0.0008255453362 | AC43: =IF(取引額表!AC$54=0,0,取引額表!AC43/取引額表!AC$54) -> 0.0002062336118 | AD43: =IF(取引額表!AD$54=0,0,取引額表!AD43/取引額表!AD$54) -> 0.0005151936396 | AE43: =IF(取引額表!AE$54=0,0,取引額表!AE43/取引額表!AE$54) -> 0.0007532574963 | AF43: =IF(取引額表!AF$54=0,0,取引額表!AF43/取引額表!AF$54) -> 0.005506736965 | AG43: =IF(取引額表!AG$54=0,0,取引額表!AG43/取引額表!AG$54) -> 0.0004621042012 | AH43: =IF(取引額表!AH$54=0,0,取引額表!AH43/取引額表!AH$54) -> 0.00282384303 | AI43: =IF(取引額表!AI$54=0,0,取引額表!AI43/取引額表!AI$54) -> 0.01081634677 | AJ43: =IF(取引額表!AJ$54=0,0,取引額表!AJ43/取引額表!AJ$54) -> 0.00203870076 | AK43: =IF(取引額表!AK$54=0,0,取引額表!AK43/取引額表!AK$54) -> 0.001099392369 | AL43: =IF(取引額表!AL$54=0,0,取引額表!AL43/取引額表!AL$54) -> 0.01429320941 | AM43: =IF(取引額表!AM$54=0,0,取引額表!AM43/取引額表!AM$54) -> 0 | AN43: =IF(取引額表!AN$54=0,0,取引額表!AN43/取引額表!AN$54) -> 0.0008219435442 | AO43: =IF(取引額表!AO$54=0,0,取引額表!AO43/取引額表!AO$54) -> 0.002242427549 | AP43: =IF(取引額表!AP$46=0,0,取引額表!AP43/取引額表!AP$46) -> 0.6708502972 | AQ43: =IF(取引額表!AQ$46=0,0,取引額表!AQ43/取引額表!AQ$46) -> 0.1329647561 | AR43: =IF(取引額表!AR$46=0,0,取引額表!AR43/取引額表!AR$46) -> 0 | AS43: =IF(取引額表!AS$46=0,0,取引額表!AS43/取引額表!AS$46) -> 0 | AT43: =IF(取引額表!AT$46=0,0,取引額表!AT43/取引額表!AT$46) -> 0 | AU43: =IF(取引額表!AU$46=0,0,取引額表!AU43/取引額表!AU$46) -> 0 | AV43: =IF(取引額表!AV$46=0,0,取引額表!AV43/取引額表!AV$46) -> 0 | AW43: =IF(取引額表!AW$46=0,0,取引額表!AW43/取引額表!AW$46) -> 0.09493293528 | AX43: =IF(取引額表!AX$46=0,0,取引額表!AX43/取引額表!AX$46) -> 0.05762269441 | AY43: =IF(取引額表!AY$46=0,0,取引額表!AY43/取引額表!AY$46) -> 0.01615434321 | AZ43: =IF(取引額表!AZ$46=0,0,取引額表!AZ43/取引額表!AZ$46) -> 0.02774549564 | BA43: =IF(取引額表!BA$46=0,0,取引額表!BA43/取引額表!BA$46) -> 0.02635628508 | BB43: =IF(取引額表!BB$46=0,0,取引額表!BB43/取引額表!BB$46) -> 0.07457417347 | BC43: =IF(取引額表!BC$46=0,0,取引額表!BC43/取引額表!BC$46) -> 0.05142658568 | BD43: =IF(取引額表!BD$46=0,0,取引額表!BD43/取引額表!BD$46) -> 0.01347724979 | BE43: =IF(取引額表!BE$46=0,0,取引額表!BE43/取引額表!BE$46) -> 0.05126354542 | BF43: =IF(取引額表!BF$46=0,0,取引額表!BF43/取引額表!BF$46) -> 0.04342553551 | BG43: =IF(取引額表!BG$46=0,0,取引額表!BG43/取引額表!BG$46) -> 0.09516906691 | BH43: =IF(取引額表!BH$46=0,0,取引額表!BH43/取引額表!BH$46) -> 0.05432149433
B44: 68 | C44: 事務用品 | D44: =IF(取引額表!D$54=0,0,取引額表!D44/取引額表!D$54) -> 0.0008277003725 | E44: =IF(取引額表!E$54=0,0,取引額表!E44/取引額表!E$54) -> 0 | F44: =IF(取引額表!F$54=0,0,取引額表!F44/取引額表!F$54) -> 0.0006534123349 | G44: =IF(取引額表!G$54=0,0,取引額表!G44/取引額表!G$54) -> 0 | H44: =IF(取引額表!H$54=0,0,取引額表!H44/取引額表!H$54) -> 0.001041173687 | I44: =IF(取引額表!I$54=0,0,取引額表!I44/取引額表!I$54) -> 0.0002421307506 | J44: =IF(取引額表!J$54=0,0,取引額表!J44/取引額表!J$54) -> 3.80527157e-05 | K44: =IF(取引額表!K$54=0,0,取引額表!K44/取引額表!K$54) -> 7.764577995e-05 | L44: =IF(取引額表!L$54=0,0,取引額表!L44/取引額表!L$54) -> 0.0007454959619 | M44: =IF(取引額表!M$54=0,0,取引額表!M44/取引額表!M$54) -> 0.000110753623 | N44: =IF(取引額表!N$54=0,0,取引額表!N44/取引額表!N$54) -> 0.0001720084858 | O44: =IF(取引額表!O$54=0,0,取引額表!O44/取引額表!O$54) -> 0.0002466902393 | P44: =IF(取引額表!P$54=0,0,取引額表!P44/取引額表!P$54) -> 0.0007432733759 | Q44: =IF(取引額表!Q$54=0,0,取引額表!Q44/取引額表!Q$54) -> 0.0008278063133 | R44: =IF(取引額表!R$54=0,0,取引額表!R44/取引額表!R$54) -> 0.001503759398 | S44: =IF(取引額表!S$54=0,0,取引額表!S44/取引額表!S$54) -> 0.0004407875404 | T44: =IF(取引額表!T$54=0,0,取引額表!T44/取引額表!T$54) -> 0.0007934933545 | U44: =IF(取引額表!U$54=0,0,取引額表!U44/取引額表!U$54) -> 0.0001865671642 | V44: =IF(取引額表!V$54=0,0,取引額表!V44/取引額表!V$54) -> 0 | W44: =IF(取引額表!W$54=0,0,取引額表!W44/取引額表!W$54) -> 0.0006396315722 | X44: =IF(取引額表!X$54=0,0,取引額表!X44/取引額表!X$54) -> 0.0009108044522 | Y44: =IF(取引額表!Y$54=0,0,取引額表!Y44/取引額表!Y$54) -> 6.212787989e-05 | Z44: =IF(取引額表!Z$54=0,0,取引額表!Z44/取引額表!Z$54) -> 0.0008462777429 | AA44: =IF(取引額表!AA$54=0,0,取引額表!AA44/取引額表!AA$54) -> 0.00325146858 | AB44: =IF(取引額表!AB$54=0,0,取引額表!AB44/取引額表!AB$54) -> 0.00208503117 | AC44: =IF(取引額表!AC$54=0,0,取引額表!AC44/取引額表!AC$54) -> 0.003331878092 | AD44: =IF(取引額表!AD$54=0,0,取引額表!AD44/取引額表!AD$54) -> 0.0003383816213 | AE44: =IF(取引額表!AE$54=0,0,取引額表!AE44/取引額表!AE$54) -> 0.001826991818 | AF44: =IF(取引額表!AF$54=0,0,取引額表!AF44/取引額表!AF$54) -> 0.001403312563 | AG44: =IF(取引額表!AG$54=0,0,取引額表!AG44/取引額表!AG$54) -> 0.003003677308 | AH44: =IF(取引額表!AH$54=0,0,取引額表!AH44/取引額表!AH$54) -> 0.003022224978 | AI44: =IF(取引額表!AI$54=0,0,取引額表!AI44/取引額表!AI$54) -> 0.002264875007 | AJ44: =IF(取引額表!AJ$54=0,0,取引額表!AJ44/取引額表!AJ$54) -> 0.00407740152 | AK44: =IF(取引額表!AK$54=0,0,取引額表!AK44/取引額表!AK$54) -> 0.001826238223 | AL44: =IF(取引額表!AL$54=0,0,取引額表!AL44/取引額表!AL$54) -> 0.00186878529 | AM44: =IF(取引額表!AM$54=0,0,取引額表!AM44/取引額表!AM$54) -> 0 | AN44: =IF(取引額表!AN$54=0,0,取引額表!AN44/取引額表!AN$54) -> 0.003381710582 | AO44: =IF(取引額表!AO$54=0,0,取引額表!AO44/取引額表!AO$54) -> 0.001448491753 | AP44: =IF(取引額表!AP$46=0,0,取引額表!AP44/取引額表!AP$46) -> 0 | AQ44: =IF(取引額表!AQ$46=0,0,取引額表!AQ44/取引額表!AQ$46) -> 0 | AR44: =IF(取引額表!AR$46=0,0,取引額表!AR44/取引額表!AR$46) -> 0 | AS44: =IF(取引額表!AS$46=0,0,取引額表!AS44/取引額表!AS$46) -> 0 | AT44: =IF(取引額表!AT$46=0,0,取引額表!AT44/取引額表!AT$46) -> 0 | AU44: =IF(取引額表!AU$46=0,0,取引額表!AU44/取引額表!AU$46) -> 0 | AV44: =IF(取引額表!AV$46=0,0,取引額表!AV44/取引額表!AV$46) -> 0 | AW44: =IF(取引額表!AW$46=0,0,取引額表!AW44/取引額表!AW$46) -> 0 | AX44: =IF(取引額表!AX$46=0,0,取引額表!AX44/取引額表!AX$46) -> 0.00132652682 | AY44: =IF(取引額表!AY$46=0,0,取引額表!AY44/取引額表!AY$46) -> 0 | AZ44: =IF(取引額表!AZ$46=0,0,取引額表!AZ44/取引額表!AZ$46) -> 0 | BA44: =IF(取引額表!BA$46=0,0,取引額表!BA44/取引額表!BA$46) -> 0 | BB44: =IF(取引額表!BB$46=0,0,取引額表!BB44/取引額表!BB$46) -> 0 | BC44: =IF(取引額表!BC$46=0,0,取引額表!BC44/取引額表!BC$46) -> 0.001063647117 | BD44: =IF(取引額表!BD$46=0,0,取引額表!BD44/取引額表!BD$46) -> 0 | BE44: =IF(取引額表!BE$46=0,0,取引額表!BE44/取引額表!BE$46) -> 0 | BF44: =IF(取引額表!BF$46=0,0,取引額表!BF44/取引額表!BF$46) -> 0 | BG44: =IF(取引額表!BG$46=0,0,取引額表!BG44/取引額表!BG$46) -> 0 | BH44: =IF(取引額表!BH$46=0,0,取引額表!BH44/取引額表!BH$46) -> 0.001448491753
B45: 69 | C45: 分類不明 | D45: =IF(取引額表!D$54=0,0,取引額表!D45/取引額表!D$54) -> 0.002827976273 | E45: =IF(取引額表!E$54=0,0,取引額表!E45/取引額表!E$54) -> 0 | F45: =IF(取引額表!F$54=0,0,取引額表!F45/取引額表!F$54) -> 0.007149472829 | G45: =IF(取引額表!G$54=0,0,取引額表!G45/取引額表!G$54) -> 0.001207000604 | H45: =IF(取引額表!H$54=0,0,取引額表!H45/取引額表!H$54) -> 0.002460955987 | I45: =IF(取引額表!I$54=0,0,取引額表!I45/取引額表!I$54) -> 0.001210653753 | J45: =IF(取引額表!J$54=0,0,取引額表!J45/取引額表!J$54) -> 0.0003044217256 | K45: =IF(取引額表!K$54=0,0,取引額表!K45/取引額表!K$54) -> 0.001785852939 | L45: =IF(取引額表!L$54=0,0,取引額表!L45/取引額表!L$54) -> 0.006833712984 | M45: =IF(取引額表!M$54=0,0,取引額表!M45/取引額表!M$54) -> 0.002407968354 | N45: =IF(取引額表!N$54=0,0,取引額表!N45/取引額表!N$54) -> 0.002408118801 | O45: =IF(取引額表!O$54=0,0,取引額表!O45/取引額表!O$54) -> 0.003344023244 | P45: =IF(取引額表!P$54=0,0,取引額表!P45/取引額表!P$54) -> 0.007581388435 | Q45: =IF(取引額表!Q$54=0,0,取引額表!Q45/取引額表!Q$54) -> 0.006652371216 | R45: =IF(取引額表!R$54=0,0,取引額表!R45/取引額表!R$54) -> 0.001879699248 | S45: =IF(取引額表!S$54=0,0,取引額表!S45/取引額表!S$54) -> 0.0002938583603 | T45: =IF(取引額表!T$54=0,0,取引額表!T45/取引額表!T$54) -> 0.001686173378 | U45: =IF(取引額表!U$54=0,0,取引額表!U45/取引額表!U$54) -> 0.001119402985 | V45: =IF(取引額表!V$54=0,0,取引額表!V45/取引額表!V$54) -> 0.004111842105 | W45: =IF(取引額表!W$54=0,0,取引額表!W45/取引額表!W$54) -> 0.001714212614 | X45: =IF(取引額表!X$54=0,0,取引額表!X45/取引額表!X$54) -> 0.01408307307 | Y45: =IF(取引額表!Y$54=0,0,取引額表!Y45/取引額表!Y$54) -> 0.00296488049 | Z45: =IF(取引額表!Z$54=0,0,取引額表!Z45/取引額表!Z$54) -> 0.007971390352 | AA45: =IF(取引額表!AA$54=0,0,取引額表!AA45/取引額表!AA$54) -> 0.0234972796 | AB45: =IF(取引額表!AB$54=0,0,取引額表!AB45/取引額表!AB$54) -> 0.006927172084 | AC45: =IF(取引額表!AC$54=0,0,取引額表!AC45/取引額表!AC$54) -> 0.005592412746 | AD45: =IF(取引額表!AD$54=0,0,取引額表!AD45/取引額表!AD$54) -> 0.001877865574 | AE45: =IF(取引額表!AE$54=0,0,取引額表!AE45/取引額表!AE$54) -> 0.006209580888 | AF45: =IF(取引額表!AF$54=0,0,取引額表!AF45/取引額表!AF$54) -> 0.001970495819 | AG45: =IF(取引額表!AG$54=0,0,取引額表!AG45/取引額表!AG$54) -> 0.0009144456377 | AH45: =IF(取引額表!AH$54=0,0,取引額表!AH45/取引額表!AH$54) -> 0.0082483494 | AI45: =IF(取引額表!AI$54=0,0,取引額表!AI45/取引額表!AI$54) -> 0.004329372332 | AJ45: =IF(取引額表!AJ$54=0,0,取引額表!AJ45/取引額表!AJ$54) -> 0.003351762267 | AK45: =IF(取引額表!AK$54=0,0,取引額表!AK45/取引額表!AK$54) -> 0.003216064814 | AL45: =IF(取引額表!AL$54=0,0,取引額表!AL45/取引額表!AL$54) -> 0.002975565882 | AM45: =IF(取引額表!AM$54=0,0,取引額表!AM45/取引額表!AM$54) -> 0.0004684718448 | AN45: =IF(取引額表!AN$54=0,0,取引額表!AN45/取引額表!AN$54) -> 0 | AO45: =IF(取引額表!AO$54=0,0,取引額表!AO45/取引額表!AO$54) -> 0.004558548626 | AP45: =IF(取引額表!AP$46=0,0,取引額表!AP45/取引額表!AP$46) -> 0 | AQ45: =IF(取引額表!AQ$46=0,0,取引額表!AQ45/取引額表!AQ$46) -> 0 | AR45: =IF(取引額表!AR$46=0,0,取引額表!AR45/取引額表!AR$46) -> 0 | AS45: =IF(取引額表!AS$46=0,0,取引額表!AS45/取引額表!AS$46) -> 0 | AT45: =IF(取引額表!AT$46=0,0,取引額表!AT45/取引額表!AT$46) -> 0 | AU45: =IF(取引額表!AU$46=0,0,取引額表!AU45/取引額表!AU$46) -> 0 | AV45: =IF(取引額表!AV$46=0,0,取引額表!AV45/取引額表!AV$46) -> 0 | AW45: =IF(取引額表!AW$46=0,0,取引額表!AW45/取引額表!AW$46) -> 0 | AX45: =IF(取引額表!AX$46=0,0,取引額表!AX45/取引額表!AX$46) -> 0.004174712767 | AY45: =IF(取引額表!AY$46=0,0,取引額表!AY45/取引額表!AY$46) -> 0 | AZ45: =IF(取引額表!AZ$46=0,0,取引額表!AZ45/取引額表!AZ$46) -> 0.02946816182 | BA45: =IF(取引額表!BA$46=0,0,取引額表!BA45/取引額表!BA$46) -> 0.02593637479 | BB45: =IF(取引額表!BB$46=0,0,取引額表!BB45/取引額表!BB$46) -> 0.007699887282 | BC45: =IF(取引額表!BC$46=0,0,取引額表!BC45/取引額表!BC$46) -> 0.00848725223 | BD45: =IF(取引額表!BD$46=0,0,取引額表!BD45/取引額表!BD$46) -> 0 | BE45: =IF(取引額表!BE$46=0,0,取引額表!BE45/取引額表!BE$46) -> 0 | BF45: =IF(取引額表!BF$46=0,0,取引額表!BF45/取引額表!BF$46) -> 0 | BG45: =IF(取引額表!BG$46=0,0,取引額表!BG45/取引額表!BG$46) -> 0.0127909079 | BH45: =IF(取引額表!BH$46=0,0,取引額表!BH45/取引額表!BH$46) -> 0.01155807661
B46: 70 | C46: 内生部門計 | D46: =IF(取引額表!D$54=0,0,取引額表!D46/取引額表!D$54) -> 0.4725479376 | E46: =IF(取引額表!E$54=0,0,取引額表!E46/取引額表!E$54) -> 0.625 | F46: =IF(取引額表!F$54=0,0,取引額表!F46/取引額表!F$54) -> 0.7330429983 | G46: =IF(取引額表!G$54=0,0,取引額表!G46/取引額表!G$54) -> 0.4852142426 | H46: =IF(取引額表!H$54=0,0,取引額表!H46/取引額表!H$54) -> 0.5362517747 | I46: =IF(取引額表!I$54=0,0,取引額表!I46/取引額表!I$54) -> 0.636440678 | J46: =IF(取引額表!J$54=0,0,取引額表!J46/取引額表!J$54) -> 0.9181105558 | K46: =IF(取引額表!K$54=0,0,取引額表!K46/取引額表!K$54) -> 0.6137122447 | L46: =IF(取引額表!L$54=0,0,取引額表!L46/取引額表!L$54) -> 0.4731414372 | M46: =IF(取引額表!M$54=0,0,取引額表!M46/取引額表!M$54) -> 0.7508827987 | N46: =IF(取引額表!N$54=0,0,取引額表!N46/取引額表!N$54) -> 0.8122814059 | O46: =IF(取引額表!O$54=0,0,取引額表!O46/取引額表!O$54) -> 0.5280815722 | P46: =IF(取引額表!P$54=0,0,取引額表!P46/取引額表!P$54) -> 0.5391705069 | Q46: =IF(取引額表!Q$54=0,0,取引額表!Q46/取引額表!Q$54) -> 0.5717349025 | R46: =IF(取引額表!R$54=0,0,取引額表!R46/取引額表!R$54) -> 0.5224310777 | S46: =IF(取引額表!S$54=0,0,取引額表!S46/取引額表!S$54) -> 0.5781663238 | T46: =IF(取引額表!T$54=0,0,取引額表!T46/取引額表!T$54) -> 0.5533624281 | U46: =IF(取引額表!U$54=0,0,取引額表!U46/取引額表!U$54) -> 0.6264925373 | V46: =IF(取引額表!V$54=0,0,取引額表!V46/取引額表!V$54) -> 0.6200657895 | W46: =IF(取引額表!W$54=0,0,取引額表!W46/取引額表!W$54) -> 0.5532557247 | X46: =IF(取引額表!X$54=0,0,取引額表!X46/取引額表!X$54) -> 0.5322510078 | Y46: =IF(取引額表!Y$54=0,0,取引額表!Y46/取引額表!Y$54) -> 0.6146690828 | Z46: =IF(取引額表!Z$54=0,0,取引額表!Z46/取引額表!Z$54) -> 0.4469438454 | AA46: =IF(取引額表!AA$54=0,0,取引額表!AA46/取引額表!AA$54) -> 0.3301324432 | AB46: =IF(取引額表!AB$54=0,0,取引額表!AB46/取引額表!AB$54) -> 0.3048061556 | AC46: =IF(取引額表!AC$54=0,0,取引額表!AC46/取引額表!AC$54) -> 0.3410005812 | AD46: =IF(取引額表!AD$54=0,0,取引額表!AD46/取引額表!AD$54) -> 0.1570258389 | AE46: =IF(取引額表!AE$54=0,0,取引額表!AE46/取引額表!AE$54) -> 0.4199917279 | AF46: =IF(取引額表!AF$54=0,0,取引額表!AF46/取引額表!AF$54) -> 0.4059674069 | AG46: =IF(取引額表!AG$54=0,0,取引額表!AG46/取引額表!AG$54) -> 0.2898727586 | AH46: =IF(取引額表!AH$54=0,0,取引額表!AH46/取引額表!AH$54) -> 0.2266730728 | AI46: =IF(取引額表!AI$54=0,0,取引額表!AI46/取引額表!AI$54) -> 0.388105257 | AJ46: =IF(取引額表!AJ$54=0,0,取引額表!AJ46/取引額表!AJ$54) -> 0.3270559779 | AK46: =IF(取引額表!AK$54=0,0,取引額表!AK46/取引額表!AK$54) -> 0.3399494553 | AL46: =IF(取引額表!AL$54=0,0,取引額表!AL46/取引額表!AL$54) -> 0.4607879878 | AM46: =IF(取引額表!AM$54=0,0,取引額表!AM46/取引額表!AM$54) -> 0.9625222524 | AN46: =IF(取引額表!AN$54=0,0,取引額表!AN46/取引額表!AN$54) -> 1 | AO46: =IF(取引額表!AO$54=0,0,取引額表!AO46/取引額表!AO$54) -> 0.4527731702 | AP46: =IF(取引額表!AP$46=0,0,取引額表!AP46/取引額表!AP$46) -> 1 | AQ46: =IF(取引額表!AQ$46=0,0,取引額表!AQ46/取引額表!AQ$46) -> 1 | AR46: =IF(取引額表!AR$46=0,0,取引額表!AR46/取引額表!AR$46) -> 1 | AS46: =IF(取引額表!AS$46=0,0,取引額表!AS46/取引額表!AS$46) -> 1 | AT46: =IF(取引額表!AT$46=0,0,取引額表!AT46/取引額表!AT$46) -> 1 | AU46: =IF(取引額表!AU$46=0,0,取引額表!AU46/取引額表!AU$46) -> 1 | AV46: =IF(取引額表!AV$46=0,0,取引額表!AV46/取引額表!AV$46) -> 0 | AW46: =IF(取引額表!AW$46=0,0,取引額表!AW46/取引額表!AW$46) -> 1 | AX46: =IF(取引額表!AX$46=0,0,取引額表!AX46/取引額表!AX$46) -> 1 | AY46: =IF(取引額表!AY$46=0,0,取引額表!AY46/取引額表!AY$46) -> 1 | AZ46: =IF(取引額表!AZ$46=0,0,取引額表!AZ46/取引額表!AZ$46) -> 1 | BA46: =IF(取引額表!BA$46=0,0,取引額表!BA46/取引額表!BA$46) -> 1 | BB46: =IF(取引額表!BB$46=0,0,取引額表!BB46/取引額表!BB$46) -> 1 | BC46: =IF(取引額表!BC$46=0,0,取引額表!BC46/取引額表!BC$46) -> 1 | BD46: =IF(取引額表!BD$46=0,0,取引額表!BD46/取引額表!BD$46) -> 1 | BE46: =IF(取引額表!BE$46=0,0,取引額表!BE46/取引額表!BE$46) -> 1 | BF46: =IF(取引額表!BF$46=0,0,取引額表!BF46/取引額表!BF$46) -> 1 | BG46: =IF(取引額表!BG$46=0,0,取引額表!BG46/取引額表!BG$46) -> 1 | BH46: =IF(取引額表!BH$46=0,0,取引額表!BH46/取引額表!BH$46) -> 1
B47: 71 | C47: 家計外消費支出（行） | D47: =IF(取引額表!D$54=0,0,取引額表!D47/取引額表!D$54) -> 0.005035177266 | E47: =IF(取引額表!E$54=0,0,取引額表!E47/取引額表!E$54) -> 0 | F47: =IF(取引額表!F$54=0,0,取引額表!F47/取引額表!F$54) -> 0.007228770443 | G47: =IF(取引額表!G$54=0,0,取引額表!G47/取引額表!G$54) -> 0.008449004225 | H47: =IF(取引額表!H$54=0,0,取引額表!H47/取引額表!H$54) -> 0.01159488878 | I47: =IF(取引額表!I$54=0,0,取引額表!I47/取引額表!I$54) -> 0.01458837772 | J47: =IF(取引額表!J$54=0,0,取引額表!J47/取引額表!J$54) -> 0.006430908953 | K47: =IF(取引額表!K$54=0,0,取引額表!K47/取引額表!K$54) -> 0.01832440407 | L47: =IF(取引額表!L$54=0,0,取引額表!L47/取引額表!L$54) -> 0.01896873059 | M47: =IF(取引額表!M$54=0,0,取引額表!M47/取引額表!M$54) -> 0.007908731631 | N47: =IF(取引額表!N$54=0,0,取引額表!N47/取引額表!N$54) -> 0.008313743478 | O47: =IF(取引額表!O$54=0,0,取引額表!O47/取引額表!O$54) -> 0.01847435792 | P47: =IF(取引額表!P$54=0,0,取引額表!P47/取引額表!P$54) -> 0.01204102869 | Q47: =IF(取引額表!Q$54=0,0,取引額表!Q47/取引額表!Q$54) -> 0.007769411061 | R47: =IF(取引額表!R$54=0,0,取引額表!R47/取引額表!R$54) -> 0.01679197995 | S47: =IF(取引額表!S$54=0,0,取引額表!S47/取引額表!S$54) -> 0.0199823685 | T47: =IF(取引額表!T$54=0,0,取引額表!T47/取引額表!T$54) -> 0.02330886729 | U47: =IF(取引額表!U$54=0,0,取引額表!U47/取引額表!U$54) -> 0.03917910448 | V47: =IF(取引額表!V$54=0,0,取引額表!V47/取引額表!V$54) -> 0.007401315789 | W47: =IF(取引額表!W$54=0,0,取引額表!W47/取引額表!W$54) -> 0.0162722272 | X47: =IF(取引額表!X$54=0,0,取引額表!X47/取引額表!X$54) -> 0.0218317901 | Y47: =IF(取引額表!Y$54=0,0,取引額表!Y47/取引額表!Y$54) -> 0.01181810337 | Z47: =IF(取引額表!Z$54=0,0,取引額表!Z47/取引額表!Z$54) -> 0.01141109989 | AA47: =IF(取引額表!AA$54=0,0,取引額表!AA47/取引額表!AA$54) -> 0.02401751458 | AB47: =IF(取引額表!AB$54=0,0,取引額表!AB47/取引額表!AB$54) -> 0.02330710287 | AC47: =IF(取引額表!AC$54=0,0,取引額表!AC47/取引額表!AC$54) -> 0.03315540104 | AD47: =IF(取引額表!AD$54=0,0,取引額表!AD47/取引額表!AD$54) -> 0.003879194713 | AE47: =IF(取引額表!AE$54=0,0,取引額表!AE47/取引額表!AE$54) -> 0.02322498295 | AF47: =IF(取引額表!AF$54=0,0,取引額表!AF47/取引額表!AF$54) -> 0.01511956117 | AG47: =IF(取引額表!AG$54=0,0,取引額表!AG47/取引額表!AG$54) -> 0.01062514237 | AH47: =IF(取引額表!AH$54=0,0,取引額表!AH47/取引額表!AH$54) -> 0.00868230991 | AI47: =IF(取引額表!AI$54=0,0,取引額表!AI47/取引額表!AI$54) -> 0.0132390951 | AJ47: =IF(取引額表!AJ$54=0,0,取引額表!AJ47/取引額表!AJ$54) -> 0.03165169316 | AK47: =IF(取引額表!AK$54=0,0,取引額表!AK47/取引額表!AK$54) -> 0.01515884167 | AL47: =IF(取引額表!AL$54=0,0,取引額表!AL47/取引額表!AL$54) -> 0.02208564433 | AM47: =IF(取引額表!AM$54=0,0,取引額表!AM47/取引額表!AM$54) -> 0 | AN47: =IF(取引額表!AN$54=0,0,取引額表!AN47/取引額表!AN$54) -> -0.008571696961 | AO47: =IF(取引額表!AO$54=0,0,取引額表!AO47/取引額表!AO$54) -> 0.01450052481
B48: 91 | C48: 雇用者所得 | D48: =IF(取引額表!D$54=0,0,取引額表!D48/取引額表!D$54) -> 0.1857497586 | E48: =IF(取引額表!E$54=0,0,取引額表!E48/取引額表!E$54) -> 0.0625 | F48: =IF(取引額表!F$54=0,0,取引額表!F48/取引額表!F$54) -> 0.1073372496 | G48: =IF(取引額表!G$54=0,0,取引額表!G48/取引額表!G$54) -> 0.2631261316 | H48: =IF(取引額表!H$54=0,0,取引額表!H48/取引額表!H$54) -> 0.1879791765 | I48: =IF(取引額表!I$54=0,0,取引額表!I48/取引額表!I$54) -> 0.1042372881 | J48: =IF(取引額表!J$54=0,0,取引額表!J48/取引額表!J$54) -> 0.01661635252 | K48: =IF(取引額表!K$54=0,0,取引額表!K48/取引額表!K$54) -> 0.2320055905 | L48: =IF(取引額表!L$54=0,0,取引額表!L48/取引額表!L$54) -> 0.2331331539 | M48: =IF(取引額表!M$54=0,0,取引額表!M48/取引額表!M$54) -> 0.04700476056 | N48: =IF(取引額表!N$54=0,0,取引額表!N48/取引額表!N$54) -> 0.118972536 | O48: =IF(取引額表!O$54=0,0,取引額表!O48/取引額表!O$54) -> 0.2991804402 | P48: =IF(取引額表!P$54=0,0,取引額表!P48/取引額表!P$54) -> 0.2482533076 | Q48: =IF(取引額表!Q$54=0,0,取引額表!Q48/取引額表!Q$54) -> 0.1934373909 | R48: =IF(取引額表!R$54=0,0,取引額表!R48/取引額表!R$54) -> 0.2473684211 | S48: =IF(取引額表!S$54=0,0,取引額表!S48/取引額表!S$54) -> 0.1804290332 | T48: =IF(取引額表!T$54=0,0,取引額表!T48/取引額表!T$54) -> 0.199166832 | U48: =IF(取引額表!U$54=0,0,取引額表!U48/取引額表!U$54) -> 0.1080223881 | V48: =IF(取引額表!V$54=0,0,取引額表!V48/取引額表!V$54) -> 0.1504934211 | W48: =IF(取引額表!W$54=0,0,取引額表!W48/取引額表!W$54) -> 0.2631188435 | X48: =IF(取引額表!X$54=0,0,取引額表!X48/取引額表!X$54) -> 0.3448784448 | Y48: =IF(取引額表!Y$54=0,0,取引額表!Y48/取引額表!Y$54) -> 0.08944688929 | Z48: =IF(取引額表!Z$54=0,0,取引額表!Z48/取引額表!Z$54) -> 0.1207174251 | AA48: =IF(取引額表!AA$54=0,0,取引額表!AA48/取引額表!AA$54) -> 0.4847939653 | AB48: =IF(取引額表!AB$54=0,0,取引額表!AB48/取引額表!AB$54) -> 0.3938592128 | AC48: =IF(取引額表!AC$54=0,0,取引額表!AC48/取引額表!AC$54) -> 0.3236207123 | AD48: =IF(取引額表!AD$54=0,0,取引額表!AD48/取引額表!AD$54) -> 0.05763157253 | AE48: =IF(取引額表!AE$54=0,0,取引額表!AE48/取引額表!AE$54) -> 0.300990739 | AF48: =IF(取引額表!AF$54=0,0,取引額表!AF48/取引額表!AF$54) -> 0.1985620706 | AG48: =IF(取引額表!AG$54=0,0,取引額表!AG48/取引額表!AG$54) -> 0.3618275896 | AH48: =IF(取引額表!AH$54=0,0,取引額表!AH48/取引額表!AH$54) -> 0.4739933666 | AI48: =IF(取引額表!AI$54=0,0,取引額表!AI48/取引額表!AI$54) -> 0.4948134565 | AJ48: =IF(取引額表!AJ$54=0,0,取引額表!AJ48/取引額表!AJ$54) -> 0.4258120249 | AK48: =IF(取引額表!AK$54=0,0,取引額表!AK48/取引額表!AK$54) -> 0.351858779 | AL48: =IF(取引額表!AL$54=0,0,取引額表!AL48/取引額表!AL$54) -> 0.2730949883 | AM48: =IF(取引額表!AM$54=0,0,取引額表!AM48/取引額表!AM$54) -> 0 | AN48: =IF(取引額表!AN$54=0,0,取引額表!AN48/取引額表!AN$54) -> 0 | AO48: =IF(取引額表!AO$54=0,0,取引額表!AO48/取引額表!AO$54) -> 0.2489379582
B49: 92 | C49: 営業余剰 | D49: =IF(取引額表!D$54=0,0,取引額表!D49/取引額表!D$54) -> 0.268795696 | E49: =IF(取引額表!E$54=0,0,取引額表!E49/取引額表!E$54) -> 0.25 | F49: =IF(取引額表!F$54=0,0,取引額表!F49/取引額表!F$54) -> 0.07842216781 | G49: =IF(取引額表!G$54=0,0,取引額表!G49/取引額表!G$54) -> 0.1146650573 | H49: =IF(取引額表!H$54=0,0,取引額表!H49/取引額表!H$54) -> 0.1634642688 | I49: =IF(取引額表!I$54=0,0,取引額表!I49/取引額表!I$54) -> 0.09188861985 | J49: =IF(取引額表!J$54=0,0,取引額表!J49/取引額表!J$54) -> -0.01300134453 | K49: =IF(取引額表!K$54=0,0,取引額表!K49/取引額表!K$54) -> 0.007764577995 | L49: =IF(取引額表!L$54=0,0,取引額表!L49/取引額表!L$54) -> 0.1474011182 | M49: =IF(取引額表!M$54=0,0,取引額表!M49/取引額表!M$54) -> 0.1249337786 | N49: =IF(取引額表!N$54=0,0,取引額表!N49/取引額表!N$54) -> 0.01571010837 | O49: =IF(取引額表!O$54=0,0,取引額表!O49/取引額表!O$54) -> 0.04604884467 | P49: =IF(取引額表!P$54=0,0,取引額表!P49/取引額表!P$54) -> 0.1059907834 | Q49: =IF(取引額表!Q$54=0,0,取引額表!Q49/取引額表!Q$54) -> 0.1097491647 | R49: =IF(取引額表!R$54=0,0,取引額表!R49/取引額表!R$54) -> 0.04348370927 | S49: =IF(取引額表!S$54=0,0,取引額表!S49/取引額表!S$54) -> -0.008228034088 | T49: =IF(取引額表!T$54=0,0,取引額表!T49/取引額表!T$54) -> 0.04939496132 | U49: =IF(取引額表!U$54=0,0,取引額表!U49/取引額表!U$54) -> -0.02649253731 | V49: =IF(取引額表!V$54=0,0,取引額表!V49/取引額表!V$54) -> 0.1324013158 | W49: =IF(取引額表!W$54=0,0,取引額表!W49/取引額表!W$54) -> 0.05206600998 | X49: =IF(取引額表!X$54=0,0,取引額表!X49/取引額表!X$54) -> 0.02988043972 | Y49: =IF(取引額表!Y$54=0,0,取引額表!Y49/取引額表!Y$54) -> 0.02028130123 | Z49: =IF(取引額表!Z$54=0,0,取引額表!Z49/取引額表!Z$54) -> 0.2476590866 | AA49: =IF(取引額表!AA$54=0,0,取引額表!AA49/取引額表!AA$54) -> 0.06793401686 | AB49: =IF(取引額表!AB$54=0,0,取引額表!AB49/取引額表!AB$54) -> 0.1477858451 | AC49: =IF(取引額表!AC$54=0,0,取引額表!AC49/取引額表!AC$54) -> 0.2191325868 | AD49: =IF(取引額表!AD$54=0,0,取引額表!AD49/取引額表!AD$54) -> 0.4037593893 | AE49: =IF(取引額表!AE$54=0,0,取引額表!AE49/取引額表!AE$54) -> 0.0844579696 | AF49: =IF(取引額表!AF$54=0,0,取引額表!AF49/取引額表!AF$54) -> 0.252031741 | AG49: =IF(取引額表!AG$54=0,0,取引額表!AG49/取引額表!AG$54) -> -0.0003547137883 | AH49: =IF(取引額表!AH$54=0,0,取引額表!AH49/取引額表!AH$54) -> 0.09324571464 | AI49: =IF(取引額表!AI$54=0,0,取引額表!AI49/取引額表!AI$54) -> 0.03971930932 | AJ49: =IF(取引額表!AJ$54=0,0,取引額表!AJ49/取引額表!AJ$54) -> 0.1474775397 | AK49: =IF(取引額表!AK$54=0,0,取引額表!AK49/取引額表!AK$54) -> 0.1238451058 | AL49: =IF(取引額表!AL$54=0,0,取引額表!AL49/取引額表!AL$54) -> 0.1043371808 | AM49: =IF(取引額表!AM$54=0,0,取引額表!AM49/取引額表!AM$54) -> 0.03747774759 | AN49: =IF(取引額表!AN$54=0,0,取引額表!AN49/取引額表!AN$54) -> 0.008571696961 | AO49: =IF(取引額表!AO$54=0,0,取引額表!AO49/取引額表!AO$54) -> 0.1329119095
B50: 93 | C50: 資本減耗引当 | D50: =IF(取引額表!D$54=0,0,取引額表!D50/取引額表!D$54) -> 0.1402262381 | E50: =IF(取引額表!E$54=0,0,取引額表!E50/取引額表!E$54) -> 0.03125 | F50: =IF(取引額表!F$54=0,0,取引額表!F50/取引額表!F$54) -> 0.04017851479 | G50: =IF(取引額表!G$54=0,0,取引額表!G50/取引額表!G$54) -> 0.07966203983 | H50: =IF(取引額表!H$54=0,0,取引額表!H50/取引額表!H$54) -> 0.0667297681 | I50: =IF(取引額表!I$54=0,0,取引額表!I50/取引額表!I$54) -> 0.133535109 | J50: =IF(取引額表!J$54=0,0,取引額表!J50/取引額表!J$54) -> 0.06616098836 | K50: =IF(取引額表!K$54=0,0,取引額表!K50/取引額表!K$54) -> 0.08991381318 | L50: =IF(取引額表!L$54=0,0,取引額表!L50/取引額表!L$54) -> 0.09840546697 | M50: =IF(取引額表!M$54=0,0,取引額表!M50/取引額表!M$54) -> 0.05746174847 | N50: =IF(取引額表!N$54=0,0,取引額表!N50/取引額表!N$54) -> 0.03732584141 | O50: =IF(取引額表!O$54=0,0,取引額表!O50/取引額表!O$54) -> 0.08187374942 | P50: =IF(取引額表!P$54=0,0,取引額表!P50/取引額表!P$54) -> 0.08636836629 | Q50: =IF(取引額表!Q$54=0,0,取引額表!Q50/取引額表!Q$54) -> 0.1093801426 | R50: =IF(取引額表!R$54=0,0,取引額表!R50/取引額表!R$54) -> 0.1565162907 | S50: =IF(取引額表!S$54=0,0,取引額表!S50/取引額表!S$54) -> 0.21863062 | T50: =IF(取引額表!T$54=0,0,取引額表!T50/取引額表!T$54) -> 0.1676254711 | U50: =IF(取引額表!U$54=0,0,取引額表!U50/取引額表!U$54) -> 0.2294776119 | V50: =IF(取引額表!V$54=0,0,取引額表!V50/取引額表!V$54) -> 0.08388157895 | W50: =IF(取引額表!W$54=0,0,取引額表!W50/取引額表!W$54) -> 0.08026096968 | X50: =IF(取引額表!X$54=0,0,取引額表!X50/取引額表!X$54) -> 0.03800338456 | Y50: =IF(取引額表!Y$54=0,0,取引額表!Y50/取引額表!Y$54) -> 0.227398395 | Z50: =IF(取引額表!Z$54=0,0,取引額表!Z50/取引額表!Z$54) -> 0.1758892741 | AA50: =IF(取引額表!AA$54=0,0,取引額表!AA50/取引額表!AA$54) -> 0.07252942579 | AB50: =IF(取引額表!AB$54=0,0,取引額表!AB50/取引額表!AB$54) -> 0.08923562969 | AC50: =IF(取引額表!AC$54=0,0,取引額表!AC50/取引額表!AC$54) -> 0.08059716683 | AD50: =IF(取引額表!AD$54=0,0,取引額表!AD50/取引額表!AD$54) -> 0.3286020876 | AE50: =IF(取引額表!AE$54=0,0,取引額表!AE50/取引額表!AE$54) -> 0.1281030785 | AF50: =IF(取引額表!AF$54=0,0,取引額表!AF50/取引額表!AF$54) -> 0.09908664856 | AG50: =IF(取引額表!AG$54=0,0,取引額表!AG50/取引額表!AG$54) -> 0.3363467734 | AH50: =IF(取引額表!AH$54=0,0,取引額表!AH50/取引額表!AH$54) -> 0.1883543598 | AI50: =IF(取引額表!AI$54=0,0,取引額表!AI50/取引額表!AI$54) -> 0.06003031977 | AJ50: =IF(取引額表!AJ$54=0,0,取引額表!AJ50/取引額表!AJ$54) -> 0.05338631652 | AK50: =IF(取引額表!AK$54=0,0,取引額表!AK50/取引額表!AK$54) -> 0.1190308925 | AL50: =IF(取引額表!AL$54=0,0,取引額表!AL50/取引額表!AL$54) -> 0.09391395593 | AM50: =IF(取引額表!AM$54=0,0,取引額表!AM50/取引額表!AM$54) -> 0 | AN50: =IF(取引額表!AN$54=0,0,取引額表!AN50/取引額表!AN$54) -> 0 | AO50: =IF(取引額表!AO$54=0,0,取引額表!AO50/取引額表!AO$54) -> 0.1236805398
B51: 94 | C51: 間接税（関税・輸入品商品税を除く。） | D51: =IF(取引額表!D$54=0,0,取引額表!D51/取引額表!D$54) -> 0.03848806732 | E51: =IF(取引額表!E$54=0,0,取引額表!E51/取引額表!E$54) -> 0.03125 | F51: =IF(取引額表!F$54=0,0,取引額表!F51/取引額表!F$54) -> 0.03915081772 | G51: =IF(取引額表!G$54=0,0,取引額表!G51/取引額表!G$54) -> 0.04888352444 | H51: =IF(取引額表!H$54=0,0,取引額表!H51/取引額表!H$54) -> 0.03398012305 | I51: =IF(取引額表!I$54=0,0,取引額表!I51/取引額表!I$54) -> 0.01930992736 | J51: =IF(取引額表!J$54=0,0,取引額表!J51/取引額表!J$54) -> 0.005682538877 | K51: =IF(取引額表!K$54=0,0,取引額表!K51/取引額表!K$54) -> 0.03827936952 | L51: =IF(取引額表!L$54=0,0,取引額表!L51/取引額表!L$54) -> 0.02895009319 | M51: =IF(取引額表!M$54=0,0,取引額表!M51/取引額表!M$54) -> 0.01180818211 | N51: =IF(取引額表!N$54=0,0,取引額表!N51/取引額表!N$54) -> 0.007396364887 | O51: =IF(取引額表!O$54=0,0,取引額表!O51/取引額表!O$54) -> 0.02634103555 | P51: =IF(取引額表!P$54=0,0,取引額表!P51/取引額表!P$54) -> 0.008176007135 | Q51: =IF(取引額表!Q$54=0,0,取引額表!Q51/取引額表!Q$54) -> 0.007928988181 | R51: =IF(取引額表!R$54=0,0,取引額表!R51/取引額表!R$54) -> 0.0134085213 | S51: =IF(取引額表!S$54=0,0,取引額表!S51/取引額表!S$54) -> 0.01101968851 | T51: =IF(取引額表!T$54=0,0,取引額表!T51/取引額表!T$54) -> 0.00714144019 | U51: =IF(取引額表!U$54=0,0,取引額表!U51/取引額表!U$54) -> 0.02332089552 | V51: =IF(取引額表!V$54=0,0,取引額表!V51/取引額表!V$54) -> 0.005756578947 | W51: =IF(取引額表!W$54=0,0,取引額表!W51/取引額表!W$54) -> 0.03502622489 | X51: =IF(取引額表!X$54=0,0,取引額表!X51/取引額表!X$54) -> 0.03719439209 | Y51: =IF(取引額表!Y$54=0,0,取引額表!Y51/取引額表!Y$54) -> 0.03699715247 | Z51: =IF(取引額表!Z$54=0,0,取引額表!Z51/取引額表!Z$54) -> 0.03729081925 | AA51: =IF(取引額表!AA$54=0,0,取引額表!AA51/取引額表!AA$54) -> 0.02059263434 | AB51: =IF(取引額表!AB$54=0,0,取引額表!AB51/取引額表!AB$54) -> 0.04149291407 | AC51: =IF(取引額表!AC$54=0,0,取引額表!AC51/取引額表!AC$54) -> 0.02235625919 | AD51: =IF(取引額表!AD$54=0,0,取引額表!AD51/取引額表!AD$54) -> 0.04934579553 | AE51: =IF(取引額表!AE$54=0,0,取引額表!AE51/取引額表!AE$54) -> 0.04561727397 | AF51: =IF(取引額表!AF$54=0,0,取引額表!AF51/取引額表!AF$54) -> 0.02923789743 | AG51: =IF(取引額表!AG$54=0,0,取引額表!AG51/取引額表!AG$54) -> 0.001682449803 | AH51: =IF(取引額表!AH$54=0,0,取引額表!AH51/取引額表!AH$54) -> 0.01432069682 | AI51: =IF(取引額表!AI$54=0,0,取引額表!AI51/取引額表!AI$54) -> 0.0145020817 | AJ51: =IF(取引額表!AJ$54=0,0,取引額表!AJ51/取引額表!AJ$54) -> 0.0300276434 | AK51: =IF(取引額表!AK$54=0,0,取引額表!AK51/取引額表!AK$54) -> 0.05020102306 | AL51: =IF(取引額表!AL$54=0,0,取引額表!AL51/取引額表!AL$54) -> 0.04578024284 | AM51: =IF(取引額表!AM$54=0,0,取引額表!AM51/取引額表!AM$54) -> 0 | AN51: =IF(取引額表!AN$54=0,0,取引額表!AN51/取引額表!AN$54) -> 0 | AO51: =IF(取引額表!AO$54=0,0,取引額表!AO51/取引額表!AO$54) -> 0.0302547896
B52: 95 | C52: （控除）経常補助金 | D52: =IF(取引額表!D$54=0,0,取引額表!D52/取引額表!D$54) -> -0.1108428749 | E52: =IF(取引額表!E$54=0,0,取引額表!E52/取引額表!E$54) -> 0 | F52: =IF(取引額表!F$54=0,0,取引額表!F52/取引額表!F$54) -> -0.00536051867 | G52: =IF(取引額表!G$54=0,0,取引額表!G52/取引額表!G$54) -> 0 | H52: =IF(取引額表!H$54=0,0,取引額表!H52/取引額表!H$54) -> 0 | I52: =IF(取引額表!I$54=0,0,取引額表!I52/取引額表!I$54) -> 0 | J52: =IF(取引額表!J$54=0,0,取引額表!J52/取引額表!J$54) -> 0 | K52: =IF(取引額表!K$54=0,0,取引額表!K52/取引額表!K$54) -> 0 | L52: =IF(取引額表!L$54=0,0,取引額表!L52/取引額表!L$54) -> 0 | M52: =IF(取引額表!M$54=0,0,取引額表!M52/取引額表!M$54) -> 0 | N52: =IF(取引額表!N$54=0,0,取引額表!N52/取引額表!N$54) -> 0 | O52: =IF(取引額表!O$54=0,0,取引額表!O52/取引額表!O$54) -> 0 | P52: =IF(取引額表!P$54=0,0,取引額表!P52/取引額表!P$54) -> 0 | Q52: =IF(取引額表!Q$54=0,0,取引額表!Q52/取引額表!Q$54) -> 0 | R52: =IF(取引額表!R$54=0,0,取引額表!R52/取引額表!R$54) -> 0 | S52: =IF(取引額表!S$54=0,0,取引額表!S52/取引額表!S$54) -> 0 | T52: =IF(取引額表!T$54=0,0,取引額表!T52/取引額表!T$54) -> 0 | U52: =IF(取引額表!U$54=0,0,取引額表!U52/取引額表!U$54) -> 0 | V52: =IF(取引額表!V$54=0,0,取引額表!V52/取引額表!V$54) -> 0 | W52: =IF(取引額表!W$54=0,0,取引額表!W52/取引額表!W$54) -> 0 | X52: =IF(取引額表!X$54=0,0,取引額表!X52/取引額表!X$54) -> -0.004039459021 | Y52: =IF(取引額表!Y$54=0,0,取引額表!Y52/取引額表!Y$54) -> -0.0006109241522 | Z52: =IF(取引額表!Z$54=0,0,取引額表!Z52/取引額表!Z$54) -> -0.03991155033 | AA52: =IF(取引額表!AA$54=0,0,取引額表!AA52/取引額表!AA$54) -> 0 | AB52: =IF(取引額表!AB$54=0,0,取引額表!AB52/取引額表!AB$54) -> -0.0004868600701 | AC52: =IF(取引額表!AC$54=0,0,取引額表!AC52/取引額表!AC$54) -> -0.01986270734 | AD52: =IF(取引額表!AD$54=0,0,取引額表!AD52/取引額表!AD$54) -> -0.000243878646 | AE52: =IF(取引額表!AE$54=0,0,取引額表!AE52/取引額表!AE$54) -> -0.002385771925 | AF52: =IF(取引額表!AF$54=0,0,取引額表!AF52/取引額表!AF$54) -> -5.325664377e-06 | AG52: =IF(取引額表!AG$54=0,0,取引額表!AG52/取引額表!AG$54) -> 0 | AH52: =IF(取引額表!AH$54=0,0,取引額表!AH52/取引額表!AH$54) -> -0.005269520474 | AI52: =IF(取引額表!AI$54=0,0,取引額表!AI52/取引額表!AI$54) -> -0.01040951936 | AJ52: =IF(取引額表!AJ$54=0,0,取引額表!AJ52/取引額表!AJ$54) -> -0.01541119558 | AK52: =IF(取引額表!AK$54=0,0,取引額表!AK52/取引額表!AK$54) -> -4.40973426e-05 | AL52: =IF(取引額表!AL$54=0,0,取引額表!AL52/取引額表!AL$54) -> 0 | AM52: =IF(取引額表!AM$54=0,0,取引額表!AM52/取引額表!AM$54) -> 0 | AN52: =IF(取引額表!AN$54=0,0,取引額表!AN52/取引額表!AN$54) -> 0 | AO52: =IF(取引額表!AO$54=0,0,取引額表!AO52/取引額表!AO$54) -> -0.003058892122
B53: 96 | C53: 粗付加価値部門計 | D53: =IF(取引額表!D$54=0,0,取引額表!D53/取引額表!D$54) -> 0.5274520624 | E53: =IF(取引額表!E$54=0,0,取引額表!E53/取引額表!E$54) -> 0.375 | F53: =IF(取引額表!F$54=0,0,取引額表!F53/取引額表!F$54) -> 0.2669570017 | G53: =IF(取引額表!G$54=0,0,取引額表!G53/取引額表!G$54) -> 0.5147857574 | H53: =IF(取引額表!H$54=0,0,取引額表!H53/取引額表!H$54) -> 0.4637482253 | I53: =IF(取引額表!I$54=0,0,取引額表!I53/取引額表!I$54) -> 0.363559322 | J53: =IF(取引額表!J$54=0,0,取引額表!J53/取引額表!J$54) -> 0.08188944418 | K53: =IF(取引額表!K$54=0,0,取引額表!K53/取引額表!K$54) -> 0.3862877553 | L53: =IF(取引額表!L$54=0,0,取引額表!L53/取引額表!L$54) -> 0.5268585628 | M53: =IF(取引額表!M$54=0,0,取引額表!M53/取引額表!M$54) -> 0.2491172013 | N53: =IF(取引額表!N$54=0,0,取引額表!N53/取引額表!N$54) -> 0.1877185941 | O53: =IF(取引額表!O$54=0,0,取引額表!O53/取引額表!O$54) -> 0.4719184278 | P53: =IF(取引額表!P$54=0,0,取引額表!P53/取引額表!P$54) -> 0.4608294931 | Q53: =IF(取引額表!Q$54=0,0,取引額表!Q53/取引額表!Q$54) -> 0.4282650975 | R53: =IF(取引額表!R$54=0,0,取引額表!R53/取引額表!R$54) -> 0.4775689223 | S53: =IF(取引額表!S$54=0,0,取引額表!S53/取引額表!S$54) -> 0.4218336762 | T53: =IF(取引額表!T$54=0,0,取引額表!T53/取引額表!T$54) -> 0.4466375719 | U53: =IF(取引額表!U$54=0,0,取引額表!U53/取引額表!U$54) -> 0.3735074627 | V53: =IF(取引額表!V$54=0,0,取引額表!V53/取引額表!V$54) -> 0.3799342105 | W53: =IF(取引額表!W$54=0,0,取引額表!W53/取引額表!W$54) -> 0.4467442753 | X53: =IF(取引額表!X$54=0,0,取引額表!X53/取引額表!X$54) -> 0.4677489922 | Y53: =IF(取引額表!Y$54=0,0,取引額表!Y53/取引額表!Y$54) -> 0.3853309172 | Z53: =IF(取引額表!Z$54=0,0,取引額表!Z53/取引額表!Z$54) -> 0.5530561546 | AA53: =IF(取引額表!AA$54=0,0,取引額表!AA53/取引額表!AA$54) -> 0.6698675568 | AB53: =IF(取引額表!AB$54=0,0,取引額表!AB53/取引額表!AB$54) -> 0.6951938444 | AC53: =IF(取引額表!AC$54=0,0,取引額表!AC53/取引額表!AC$54) -> 0.6589994188 | AD53: =IF(取引額表!AD$54=0,0,取引額表!AD53/取引額表!AD$54) -> 0.8429741611 | AE53: =IF(取引額表!AE$54=0,0,取引額表!AE53/取引額表!AE$54) -> 0.5800082721 | AF53: =IF(取引額表!AF$54=0,0,取引額表!AF53/取引額表!AF$54) -> 0.5940325931 | AG53: =IF(取引額表!AG$54=0,0,取引額表!AG53/取引額表!AG$54) -> 0.7101272414 | AH53: =IF(取引額表!AH$54=0,0,取引額表!AH53/取引額表!AH$54) -> 0.7733269272 | AI53: =IF(取引額表!AI$54=0,0,取引額表!AI53/取引額表!AI$54) -> 0.611894743 | AJ53: =IF(取引額表!AJ$54=0,0,取引額表!AJ53/取引額表!AJ$54) -> 0.6729440221 | AK53: =IF(取引額表!AK$54=0,0,取引額表!AK53/取引額表!AK$54) -> 0.6600505447 | AL53: =IF(取引額表!AL$54=0,0,取引額表!AL53/取引額表!AL$54) -> 0.5392120122 | AM53: =IF(取引額表!AM$54=0,0,取引額表!AM53/取引額表!AM$54) -> 0.03747774759 | AN53: =IF(取引額表!AN$54=0,0,取引額表!AN53/取引額表!AN$54) -> 0 | AO53: =IF(取引額表!AO$54=0,0,取引額表!AO53/取引額表!AO$54) -> 0.5472268298
B54: 97 | C54: 市内生産額 | D54: =IF(取引額表!D$54=0,0,取引額表!D54/取引額表!D$54) -> 1 | E54: =IF(取引額表!E$54=0,0,取引額表!E54/取引額表!E$54) -> 1 | F54: =IF(取引額表!F$54=0,0,取引額表!F54/取引額表!F$54) -> 1 | G54: =IF(取引額表!G$54=0,0,取引額表!G54/取引額表!G$54) -> 1 | H54: =IF(取引額表!H$54=0,0,取引額表!H54/取引額表!H$54) -> 1 | I54: =IF(取引額表!I$54=0,0,取引額表!I54/取引額表!I$54) -> 1 | J54: =IF(取引額表!J$54=0,0,取引額表!J54/取引額表!J$54) -> 1 | K54: =IF(取引額表!K$54=0,0,取引額表!K54/取引額表!K$54) -> 1 | L54: =IF(取引額表!L$54=0,0,取引額表!L54/取引額表!L$54) -> 1 | M54: =IF(取引額表!M$54=0,0,取引額表!M54/取引額表!M$54) -> 1 | N54: =IF(取引額表!N$54=0,0,取引額表!N54/取引額表!N$54) -> 1 | O54: =IF(取引額表!O$54=0,0,取引額表!O54/取引額表!O$54) -> 1 | P54: =IF(取引額表!P$54=0,0,取引額表!P54/取引額表!P$54) -> 1 | Q54: =IF(取引額表!Q$54=0,0,取引額表!Q54/取引額表!Q$54) -> 1 | R54: =IF(取引額表!R$54=0,0,取引額表!R54/取引額表!R$54) -> 1 | S54: =IF(取引額表!S$54=0,0,取引額表!S54/取引額表!S$54) -> 1 | T54: =IF(取引額表!T$54=0,0,取引額表!T54/取引額表!T$54) -> 1 | U54: =IF(取引額表!U$54=0,0,取引額表!U54/取引額表!U$54) -> 1 | V54: =IF(取引額表!V$54=0,0,取引額表!V54/取引額表!V$54) -> 1 | W54: =IF(取引額表!W$54=0,0,取引額表!W54/取引額表!W$54) -> 1 | X54: =IF(取引額表!X$54=0,0,取引額表!X54/取引額表!X$54) -> 1 | Y54: =IF(取引額表!Y$54=0,0,取引額表!Y54/取引額表!Y$54) -> 1 | Z54: =IF(取引額表!Z$54=0,0,取引額表!Z54/取引額表!Z$54) -> 1 | AA54: =IF(取引額表!AA$54=0,0,取引額表!AA54/取引額表!AA$54) -> 1 | AB54: =IF(取引額表!AB$54=0,0,取引額表!AB54/取引額表!AB$54) -> 1 | AC54: =IF(取引額表!AC$54=0,0,取引額表!AC54/取引額表!AC$54) -> 1 | AD54: =IF(取引額表!AD$54=0,0,取引額表!AD54/取引額表!AD$54) -> 1 | AE54: =IF(取引額表!AE$54=0,0,取引額表!AE54/取引額表!AE$54) -> 1 | AF54: =IF(取引額表!AF$54=0,0,取引額表!AF54/取引額表!AF$54) -> 1 | AG54: =IF(取引額表!AG$54=0,0,取引額表!AG54/取引額表!AG$54) -> 1 | AH54: =IF(取引額表!AH$54=0,0,取引額表!AH54/取引額表!AH$54) -> 1 | AI54: =IF(取引額表!AI$54=0,0,取引額表!AI54/取引額表!AI$54) -> 1 | AJ54: =IF(取引額表!AJ$54=0,0,取引額表!AJ54/取引額表!AJ$54) -> 1 | AK54: =IF(取引額表!AK$54=0,0,取引額表!AK54/取引額表!AK$54) -> 1 | AL54: =IF(取引額表!AL$54=0,0,取引額表!AL54/取引額表!AL$54) -> 1 | AM54: =IF(取引額表!AM$54=0,0,取引額表!AM54/取引額表!AM$54) -> 1 | AN54: =IF(取引額表!AN$54=0,0,取引額表!AN54/取引額表!AN$54) -> 1 | AO54: =IF(取引額表!AO$54=0,0,取引額表!AO54/取引額表!AO$54) -> 1

Sheet 逆行列 (hidden)
D7: 01 | E7: 06 | F7: 11 | G7: 15 | H7: 16 | I7: 20 | J7: 21 | K7: 22 | L7: 25 | M7: 26 | N7: 27 | O7: 28 | P7: 29 | Q7: 30 | R7: 31 | S7: 32 | T7: 33 | U7: 34 | V7: 35 | W7: 39 | X7: 41 | Y7: 46 | Z7: 47 | AA7: 48 | AB7: 51 | AC7: 53 | AD7: 55 | AE7: 57 | AF7: 59 | AG7: 61 | AH7: 63 | AI7: 64 | AJ7: 65 | AK7: 66 | AL7: 67 | AM7: 68 | AN7: 69
D8: 農林漁業 | E8: 鉱業 | F8: 飲食料品 | G8: 繊維製品 | H8: パルプ・紙・木製品 | I8: 化学製品 | J8: 石油・石炭製品 | K8: プラスチック・ゴム製品 | L8: 窯業・土石製品 | M8: 鉄鋼 | N8: 非鉄金属 | O8: 金属製品 | P8: はん用機械 | Q8: 生産用機械 | R8: 業務用機械 | S8: 電子部品 | T8: 電気機械 | U8: 情報通信機器 | V8: 輸送機械 | W8: その他の製造工業製品 | X8: 建設 | Y8: 電力・ガス・熱供給 | Z8: 水道 | AA8: 廃棄物処理 | AB8: 商業 | AC8: 金融・保険 | AD8: 不動産 | AE8: 運輸・郵便 | AF8: 情報通信 | AG8: 公務 | AH8: 教育・研究 | AI8: 医療・福祉 | AJ8: 他に分類されない会員制団体 | AK8: 対事業所サービス | AL8: 対個人サービス | AM8: 事務用品 | AN8: 分類不明
B9: 01 | C9: 農林漁業 | D9: =MINVERSE(単位行列マイナス市内品投入係数!D9:AN45) -> 1.005591294 | E9: 2.711519434e-06 | F9: 0.01979955977 | G9: 0.0001776726382 | H9: 0.0003647632323 | I9: 7.284436503e-05 | J9: 1.108502314e-05 | K9: 4.552422444e-05 | L9: 1.60364564e-05 | M9: 7.523379993e-06 | N9: 1.559019328e-05 | O9: 3.779894476e-06 | P9: 2.560114372e-06 | Q9: 3.347251904e-06 | R9: 4.643793676e-06 | S9: 4.438277857e-06 | T9: 3.927376805e-06 | U9: 5.137408195e-06 | V9: 1.439566841e-06 | W9: 0.001625267487 | X9: 6.1949695e-05 | Y9: 7.229618354e-06 | Z9: 7.113599583e-06 | AA9: 4.95065768e-06 | AB9: 1.535021099e-05 | AC9: 1.256727954e-05 | AD9: 2.735961566e-06 | AE9: 6.131764834e-06 | AF9: 1.986755515e-05 | AG9: 1.098863809e-05 | AH9: 0.0001599819515 | AI9: 0.0001974830353 | AJ9: 0.0001338933505 | AK9: 8.857417715e-06 | AL9: 0.002026249793 | AM9: 0.0001028629936 | AN9: 1.668980321e-05
B10: 06 | C10: 鉱業 | D10: 1.002599011e-06 | E10: 1.000002403 | F10: 1.381848075e-06 | G10: 1.043900186e-06 | H10: 1.74853651e-06 | I10: 5.054608985e-06 | J10: 0.0001088774932 | K10: 1.859152002e-06 | L10: 1.150521449e-05 | M10: 2.107034245e-05 | N10: 1.833079683e-06 | O10: 5.327340492e-06 | P10: 2.249490063e-06 | Q10: 2.144272568e-06 | R10: 1.072661909e-06 | S10: 1.861027883e-06 | T10: 1.187405531e-06 | U10: 5.329708655e-07 | V10: 1.801796417e-06 | W10: 2.045117502e-06 | X10: 2.519933233e-06 | Y10: 4.803000231e-05 | Z10: 3.034841136e-06 | AA10: 4.732176212e-06 | AB10: 1.636863827e-06 | AC10: 6.562517622e-07 | AD10: 3.468268604e-07 | AE10: 5.434749146e-06 | AF10: 5.494081748e-07 | AG10: 1.504860612e-06 | AH10: 1.517826486e-06 | AI10: 1.106770684e-06 | AJ10: 6.534871281e-07 | AK10: 5.957598144e-07 | AL10: 2.473741194e-06 | AM10: 7.501496428e-07 | AN10: 8.508377508e-06
B11: 11 | C11: 飲食料品 | D11: 0.02843136787 | E11: 2.055812186e-05 | F11: 1.058503877 | G11: 0.0002331969052 | H11: 0.0001117857954 | I11: 0.002448672937 | J11: 7.355500626e-06 | K11: 2.53296493e-05 | L11: 0.0003520075249 | M11: 1.285117437e-05 | N11: 1.298392201e-05 | O11: 1.345287442e-05 | P11: 1.353744562e-05 | Q11: 1.766934643e-05 | R11: 1.152708087e-05 | S11: 1.28039195e-05 | T11: 1.728354889e-05 | U11: 1.297728636e-05 | V11: 8.944011481e-06 | W11: 0.0004714096175 | X11: 3.429865034e-05 | Y11: 1.593588563e-05 | Z11: 2.929410569e-05 | AA11: 2.392853839e-05 | AB11: 9.593714664e-05 | AC11: 3.226229809e-05 | AD11: 2.378478566e-05 | AE11: 4.648964234e-05 | AF11: 0.0002298618694 | AG11: 0.0001221300548 | AH11: 0.001999515106 | AI11: 0.002891347512 | AJ11: 0.000495880905 | AK11: 5.79229649e-05 | AL11: 0.04593535174 | AM11: 5.042975491e-05 | AN11: 0.0004866718128
B12: 15 | C12: 繊維製品 | D12: 1.713537251e-05 | E12: 5.869493469e-06 | F12: 9.444140969e-06 | G12: 1.001066238 | H12: 2.399994323e-05 | I12: 4.535947115e-06 | J12: 2.030533379e-06 | K12: 1.354920483e-05 | L12: 1.428484744e-05 | M12: 3.544563893e-06 | N12: 2.817716936e-06 | O12: 6.633130169e-06 | P12: 4.515688447e-06 | Q12: 5.342569722e-06 | R12: 6.28475757e-06 | S12: 2.416795193e-05 | T12: 6.176946187e-06 | U12: 4.672044305e-06 | V12: 1.709483774e-06 | W12: 1.235941511e-05 | X12: 1.888631783e-05 | Y12: 3.285944733e-06 | Z12: 7.505399704e-06 | AA12: 1.196466036e-05 | AB12: 2.341930801e-05 | AC12: 1.003157803e-05 | AD12: 1.418500495e-06 | AE12: 1.327313137e-05 | AF12: 7.127903617e-06 | AG12: 1.913692023e-05 | AH12: 4.734008544e-06 | AI12: 1.724787097e-05 | AJ12: 9.425440785e-05 | AK12: 1.2977202e-05 | AL12: 2.032988443e-05 | AM12: 9.908532705e-05 | AN12: 3.32958685e-05
B13: 16 | C13: パルプ・紙・木製品 | D13: 0.005077941328 | E13: 0.0004874073586 | F13: 0.002050398947 | G13: 0.001216615459 | H13: 1.044744612 | I13: 0.001180492188 | J13: 0.0002204541708 | K13: 0.001409886518 | L13: 0.001795641801 | M13: 0.0003325063991 | N13: 0.0007262479785 | O13: 0.0007184911106 | P13: 0.0003223957633 | Q13: 0.0003951099663 | R13: 0.002261780218 | S13: 0.0009781214511 | T13: 0.001799365112 | U13: 0.001617316888 | V13: 0.0001467949469 | W13: 0.01337599602 | X13: 0.01063645361 | Y13: 0.000625782892 | Z13: 0.001216119398 | AA13: 0.001163697578 | AB13: 0.001994218868 | AC13: 0.001569584221 | AD13: 0.0003442818195 | AE13: 0.001102211278 | AF13: 0.002558027979 | AG13: 0.0008328922174 | AH13: 0.001556993633 | AI13: 0.001542522089 | AJ13: 0.003644004075 | AK13: 0.001038549966 | AL13: 0.001698136387 | AM13: 0.08033631909 | AN13: 0.001547142226
B14: 20 | C14: 化学製品 | D14: 0.002354538216 | E14: 1.375114067e-05 | F14: 0.0003230737251 | G14: 0.002051891485 | H14: 0.0009457572512 | I14: 1.011399739 | J14: -3.377742752e-05 | K14: 0.005818217907 | L14: 0.001328004978 | M14: 0.0001948926477 | N14: 0.000106597823 | O14: 0.0003278332282 | P14: 9.250298735e-05 | Q14: 0.0001353878153 | R14: 0.0004857583203 | S14: 0.0004047533011 | T14: 0.0003034397923 | U14: 0.0002703869004 | V14: 0.0003461427623 | W14: 0.0007753172098 | X14: 0.0002028080262 | Y14: 5.647007539e-05 | Z14: 0.0002793476241 | AA14: 0.0004350917394 | AB14: 2.169793895e-05 | AC14: 2.791070802e-05 | AD14: 8.945277527e-06 | AE14: 3.109649878e-05 | AF14: 6.066161255e-05 | AG14: 5.433792589e-05 | AH14: 0.0001521811506 | AI14: 0.003985296599 | AJ14: 8.179286503e-05 | AK14: 0.000158276876 | AL14: 0.000251989708 | AM14: 0.0003893131546 | AN14: 0.0001245416568
B15: 21 | C15: 石油・石炭製品 | D15: 0.004447340779 | E15: 0.01955073174 | F15: 0.005379314679 | G15: 0.001314010395 | H15: 0.00324205842 | I15: 0.007391462498 | J15: 1.041892029 | K15: 0.002225827798 | L15: 0.01437149984 | M15: 0.02618948383 | N15: 0.002558350692 | O15: 0.008007337945 | P15: 0.00355182361 | Q15: 0.003714201365 | R15: 0.002443066503 | S15: 0.002188082604 | T15: 0.002364171025 | U15: 0.001133130472 | V15: 0.002287199587 | W15: 0.007554981625 | X15: 0.009296143105 | Y15: 0.02005854624 | Z15: 0.009178683251 | AA15: 0.01166205394 | AB15: 0.00391154151 | AC15: 0.002467043722 | AD15: 0.0008563838225 | AE15: 0.04421155455 | AF15: 0.001876426895 | AG15: 0.007516125564 | AH15: 0.004218476201 | AI15: 0.002766065639 | AJ15: 0.003287993277 | AK15: 0.002419675321 | AL15: 0.005698410995 | AM15: 0.002910233882 | AN15: 0.07495518415
B16: 22 | C16: プラスチック・ゴム製品 | D16: 0.0002082892238 | E16: 4.412709937e-05 | F16: 0.0002335738873 | G16: 0.0003612419889 | H16: 0.000483638613 | I16: 0.0002289190117 | J16: 1.861581538e-05 | K16: 1.005457721 | L16: 0.0001092703403 | M16: 4.023860494e-05 | N16: 4.442947125e-05 | O16: 8.382504491e-05 | P16: 0.000382040965 | Q16: 0.0008063590055 | R16: 0.001474962399 | S16: 0.0006235296651 | T16: 0.0008269714356 | U16: 0.000497793426 | V16: 0.0007614457199 | W16: 0.0009466905564 | X16: 0.0003373352784 | Y16: 3.357303616e-05 | Z16: 0.0008931130667 | AA16: 0.0003289107716 | AB16: 0.0001609918871 | AC16: 0.000104531346 | AD16: 2.921036304e-05 | AE16: 9.978796121e-05 | AF16: 0.0001471380647 | AG16: 8.478355436e-05 | AH16: 9.074214435e-05 | AI16: 7.723150576e-05 | AJ16: 0.0001806737001 | AK16: 0.0002197757657 | AL16: 0.0001161226947 | AM16: 0.001171228453 | AN16: 0.0001678735153
B17: 25 | C17: 窯業・土石製品 | D17: 0.0001268334219 | E17: 2.135190608e-05 | F17: 5.038082477e-05 | G17: 6.205308439e-05 | H17: 0.0002919069042 | I17: 0.0003951813426 | J17: 6.387418329e-05 | K17: 0.0002697983408 | L17: 1.005689943 | M17: 0.0003421262158 | N17: 9.246043917e-05 | O17: 0.0003161384649 | P17: 0.0005857540511 | Q17: 0.0002154561049 | R17: 0.0005993777519 | S17: 0.002408714968 | T17: 0.0004888518504 | U17: 0.0003037511345 | V17: 3.092556911e-05 | W17: 0.0002566751899 | X17: 0.004179333706 | Y17: 8.599777253e-05 | Z17: 0.0004733985117 | AA17: 6.802000117e-05 | AB17: 4.369103665e-05 | AC17: 2.85730164e-05 | AD17: 4.688260329e-05 | AE17: 4.828468688e-05 | AF17: 2.689083362e-05 | AG17: 6.382897537e-05 | AH17: 0.000178113171 | AI17: 8.938462114e-05 | AJ17: 3.937555859e-05 | AK17: 6.724151386e-05 | AL17: 0.0001286198482 | AM17: 0.0004382126854 | AN17: 0.0001986253842
B18: 26 | C18: 鉄鋼 | D18: 0.0003198503014 | E18: 0.0002836568179 | F18: 0.0003309004178 | G18: 0.0001880692995 | H18: 0.02571727637 | I18: 0.001078055126 | J18: 0.0002089318362 | K18: 0.002543182432 | L18: 0.01254799379 | M18: 1.579207976 | N18: 0.0002281644862 | O18: 0.2864728812 | P18: 0.1123044798 | Q18: 0.1083892045 | R18: 0.01736091261 | S18: 0.005472167872 | T18: 0.03944073635 | U18: 0.007997722124 | V18: 0.0759122073 | W18: 0.002743426163 | X18: 0.03161152401 | Y18: 0.000689519863 | Z18: 0.001112692618 | AA18: 0.0003201686907 | AB18: 0.0004449425733 | AC18: 0.0002724639262 | AD18: 0.0003437966693 | AE18: 0.0006414547058 | AF18: 0.0002909291892 | AG18: 0.0006793122658 | AH18: 0.0003138830735 | AI18: 0.0002278496525 | AJ18: 0.0003578122062 | AK18: 0.000703721617 | AL18: 0.0004128850148 | AM18: 0.00226137222 | AN18: 0.002742322464
B19: 27 | C19: 非鉄金属 | D19: 1.646578364e-06 | E19: 1.045668205e-06 | F19: 1.033561525e-05 | G19: 1.98483118e-06 | H19: 6.163128654e-05 | I19: 8.573724646e-05 | J19: 1.809722583e-06 | K19: 2.481088227e-05 | L19: 0.0001258218465 | M19: 0.0001877045716 | N19: 1.006692483 | O19: 0.0004848576586 | P19: 0.0003826644267 | Q19: 0.0002107771054 | R19: 0.0007555052197 | S19: 0.000557727057 | T19: 0.0007489915934 | U19: 0.0003357279046 | V19: 0.0002399511066 | W19: 0.000191573779 | X19: 0.0001031980221 | Y19: 6.308460023e-06 | Z19: 6.60231882e-06 | AA19: 2.217605262e-06 | AB19: 2.298307957e-06 | AC19: 2.610042465e-06 | AD19: 1.376235475e-06 | AE19: 2.364648928e-06 | AF19: 3.027341196e-06 | AG19: 5.02938763e-06 | AH19: 2.76467497e-06 | AI19: 1.434395114e-05 | AJ19: 5.296492329e-06 | AK19: 7.804830978e-06 | AL19: 5.738249051e-06 | AM19: 2.765271132e-05 | AN19: 2.001333499e-05
B20: 28 | C20: 金属製品 | D20: 0.0003848849728 | E20: 0.0002400266283 | F20: 0.0006945548915 | G20: 0.0002631995057 | H20: 0.006402095367 | I20: 0.003171255922 | J20: 0.000429972614 | K20: 0.001235972525 | L20: 0.002839532497 | M20: 0.0002243943878 | N20: 0.0002953634003 | O20: 1.010704886 | P20: 0.00567556464 | Q20: 0.007679093429 | R20: 0.004587058399 | S20: 0.003884037178 | T20: 0.008237360276 | U20: 0.002813110457 | V20: 0.002621562892 | W20: 0.001903323296 | X20: 0.01999626966 | Y20: 0.0005688199763 | Z20: 0.0007912012251 | AA20: 0.0002324775567 | AB20: 0.0007817584678 | AC20: 0.0001874115674 | AD20: 0.0002704408012 | AE20: 0.0005427904443 | AF20: 0.0002256603684 | AG20: 0.001160672461 | AH20: 0.0002176094886 | AI20: 0.0002233030681 | AJ20: 0.0005467523452 | AK20: 0.0003812428679 | AL20: 0.000754106495 | AM20: 0.0008376873241 | AN20: 0.001493409206
B21: 29 | C21: はん用機械 | D21: 7.095133576e-06 | E21: 1.009886826e-05 | F21: 6.996799049e-06 | G21: 7.025166305e-06 | H21: 5.491196143e-05 | I21: 9.774554869e-06 | J21: 4.376829163e-06 | K21: 2.079266372e-05 | L21: 4.373284984e-05 | M21: 5.915578565e-06 | N21: 5.491825681e-06 | O21: 4.189476512e-05 | P21: 1.004978812 | Q21: 0.001106605843 | R21: 0.0001607968502 | S21: 7.455764412e-05 | T21: 0.0001054710687 | U21: 3.468611707e-05 | V21: 0.0003140532228 | W21: 1.370234684e-05 | X21: 0.0002299163838 | Y21: 1.842815101e-05 | Z21: 0.0003390887161 | AA21: 1.677992853e-05 | AB21: 1.761576601e-05 | AC21: 2.23665009e-05 | AD21: 8.319306674e-06 | AE21: 2.283733779e-05 | AF21: 2.791401678e-05 | AG21: 2.803220541e-05 | AH21: 1.53100571e-05 | AI21: 1.234835704e-05 | AJ21: 1.340543812e-05 | AK21: 0.0002287578666 | AL21: 1.298498774e-05 | AM21: 9.672246733e-06 | AN21: 2.01081644e-05
B22: 30 | C22: 生産用機械 | D22: 7.958695608e-05 | E22: 0.0001075612481 | F22: 7.904796027e-05 | G22: 8.516722663e-05 | H22: 0.0001288778223 | I22: 0.0001061079307 | J22: 3.920937638e-05 | K22: 0.0008592207079 | L22: 0.000499848207 | M22: 5.555668712e-05 | N22: 7.236055564e-05 | O22: 0.0002995041587 | P22: 0.001853851764 | Q22: 1.051224986 | R22: 0.000172639805 | S22: 0.001109945812 | T22: 0.0008090959748 | U22: 0.0003723759366 | V22: 5.930171766e-05 | W22: 0.0001368368456 | X22: 0.0002429316971 | Y22: 0.0001884174599 | Z22: 0.0003690260551 | AA22: 0.0001702621023 | AB22: 0.0002075223142 | AC22: 0.0002768993549 | AD22: 8.156719535e-05 | AE22: 0.0002432364195 | AF22: 0.0003505660783 | AG22: 0.0002140356043 | AH22: 0.0001473449079 | AI22: 0.0001327810365 | AJ22: 0.0001597734559 | AK22: 0.003022155139 | AL22: 0.0001198844877 | AM22: 7.412507338e-05 | AN22: 0.0002508663366
B23: 31 | C23: 業務用機械 | D23: 5.548705621e-05 | E23: 4.583315036e-06 | F23: 6.123626185e-06 | G23: 5.025653264e-06 | H23: 5.529800712e-06 | I23: 5.085049988e-06 | J23: 2.027347926e-06 | K23: 5.023196697e-06 | L23: 6.785447515e-06 | M23: 2.822790211e-06 | N23: 3.550016055e-06 | O23: 4.62600749e-06 | P23: 7.990579915e-05 | Q23: 0.0001669635174 | R23: 1.001630883 | S23: 5.733472784e-06 | T23: 2.980568051e-05 | U23: 1.356664008e-05 | V23: 3.187377463e-06 | W23: 9.699375855e-06 | X23: 1.564556558e-05 | Y23: 7.236870739e-06 | Z23: 1.361025011e-05 | AA23: 9.178059179e-06 | AB23: 3.433129333e-05 | AC23: 1.243089955e-05 | AD23: 3.363242231e-06 | AE23: 1.036459839e-05 | AF23: 1.513870127e-05 | AG23: 8.231238656e-05 | AH23: 7.58065404e-06 | AI23: 0.0002579589945 | AJ23: 9.081591402e-06 | AK23: 0.0001046931715 | AL23: 2.789601616e-05 | AM23: 0.0005971023635 | AN23: 1.875790065e-05
B24: 32 | C24: 電子部品 | D24: 8.929170413e-05 | E24: 0.0001103001418 | F24: 8.680338845e-05 | G24: 8.663014329e-05 | H24: 9.971902168e-05 | I24: 0.0001080589154 | J24: 4.087767614e-05 | K24: 9.939352556e-05 | L24: 0.0001549408854 | M24: 5.472728658e-05 | N24: 6.132327017e-05 | O24: 0.0001054882948 | P24: 0.003742386165 | Q24: 0.0008254214471 | R24: 0.02603779569 | S24: 1.062967256 | T24: 0.03407098726 | U24: 0.09633918564 | V24: 0.003568633605 | W24: 0.00030310073 | X24: 0.0003354101041 | Y24: 0.0001867106361 | Z24: 0.0003177506447 | AA24: 0.0001979855308 | AB24: 0.0002344460994 | AC24: 0.0003227259614 | AD24: 8.737027884e-05 | AE24: 0.0002494300877 | AF24: 0.0005942678637 | AG24: 0.0007448065888 | AH24: 0.000346432049 | AI24: 0.0001630561957 | AJ24: 0.0002042845579 | AK24: 0.002924675085 | AL24: 0.0001421900983 | AM24: 0.008640961106 | AN24: 0.0003024492969
B25: 33 | C25: 電気機械 | D25: 1.008117901e-05 | E25: 1.491693363e-05 | F25: 9.961209031e-06 | G25: 1.042250513e-05 | H25: 1.592754311e-05 | I25: 1.321580857e-05 | J25: 5.342985208e-06 | K25: 1.300499534e-05 | L25: 2.325564573e-05 | M25: 8.248574923e-06 | N25: 8.077138189e-06 | O25: 2.378929516e-05 | P25: 0.0006969947897 | Q25: 0.0009519191934 | R25: 0.0005079913119 | S25: 0.0009535644801 | T25: 1.003693222 | U25: 0.0004749711434 | V25: 0.001102380886 | W25: 3.242251963e-05 | X25: 0.0004190379276 | Y25: 2.652102439e-05 | Z25: 5.173147337e-05 | AA25: 2.077131037e-05 | AB25: 3.35685043e-05 | AC25: 3.054214101e-05 | AD25: 1.263239463e-05 | AE25: 3.373279495e-05 | AF25: 4.194858259e-05 | AG25: 0.0001071079215 | AH25: 4.131991986e-05 | AI25: 1.883374611e-05 | AJ25: 1.80906491e-05 | AK25: 0.0003073057053 | AL25: 2.230393476e-05 | AM25: 1.824451225e-05 | AN25: 6.722773951e-05
B26: 34 | C26: 情報通信機器 | D26: 1.788550647e-07 | E26: 2.867909294e-07 | F26: 1.972484607e-07 | G26: 1.830864805e-07 | H26: 1.904645433e-07 | I26: 1.985596799e-07 | J26: 8.653891333e-08 | K26: 1.919790656e-07 | L26: 2.685442803e-07 | M26: 1.283102843e-07 | N26: 1.380843265e-07 | O26: 2.589294951e-07 | P26: 6.741396091e-06 | Q26: 1.854882402e-06 | R26: 1.593366557e-07 | S26: 2.073541651e-07 | T26: 1.765161143e-07 | U26: 1.00006791 | V26: 2.238485445e-06 | W26: 2.748916502e-07 | X26: 4.804072503e-06 | Y26: 3.549664815e-07 | Z26: 5.533521386e-07 | AA26: 3.39205113e-07 | AB26: 1.107869442e-06 | AC26: 7.631961595e-07 | AD26: 3.55253767e-07 | AE26: 6.485421101e-07 | AF26: 1.005773715e-06 | AG26: 4.25145468e-06 | AH26: 4.178715439e-07 | AI26: 3.23238809e-07 | AJ26: 2.723948072e-07 | AK26: 3.697195809e-06 | AL26: 6.272872913e-07 | AM26: 2.631259886e-07 | AN26: 9.109976517e-07
B27: 35 | C27: 輸送機械 | D27: 1.122489584e-05 | E27: 6.154724699e-05 | F27: 1.238573739e-05 | G27: 7.570513197e-06 | H27: 1.04640755e-05 | I27: 9.633720429e-06 | J27: 6.468273981e-06 | K27: 8.725597405e-06 | L27: 1.632669617e-05 | M27: 7.390903816e-06 | N27: 7.24159075e-06 | O27: 9.965664184e-06 | P27: 1.112431141e-05 | Q27: 2.367349245e-05 | R27: 7.761921416e-06 | S27: 9.751851584e-06 | T27: 8.260676489e-06 | U27: 7.325942911e-06 | V27: 1.002740756 | W27: 2.41443785e-05 | X27: 2.16231983e-05 | Y27: 1.658851084e-05 | Z27: 2.349023924e-05 | AA27: 2.185674997e-05 | AB27: 1.955266502e-05 | AC27: 2.236349852e-05 | AD27: 6.217430137e-06 | AE27: 0.0001391814641 | AF27: 2.496405584e-05 | AG27: 5.81454777e-05 | AH27: 1.451589486e-05 | AI27: 1.134032323e-05 | AJ27: 1.420315693e-05 | AK27: 0.0001898274368 | AL27: 1.261378448e-05 | AM27: 1.058854888e-05 | AN27: 0.0002327688544
B28: 39 | C28: その他の製造工業製品 | D28: 0.0006819385426 | E28: 0.0008211992849 | F28: 0.0027841691 | G28: 0.005962841701 | H28: 0.003289879666 | I28: 0.001710262821 | J28: 0.006598033439 | K28: 0.001021021374 | L28: 0.002116448811 | M28: 0.003998310701 | N28: 0.009047445721 | O28: 0.001481711344 | P28: 0.0009157803203 | Q28: 0.001279452045 | R28: 0.001843810642 | S28: 0.001903962826 | T28: 0.001315444103 | U28: 0.002293513409 | V28: 0.0004414066346 | W28: 1.012967685 | X28: 0.001702991089 | Y28: 0.003218054085 | Z28: 0.002105973127 | AA28: 0.00202887761 | AB28: 0.002757159344 | AC28: 0.006408957365 | AD28: 0.0005993212585 | AE28: 0.001857040312 | AF28: 0.005246702276 | AG28: 0.003559976921 | AH28: 0.004749219407 | AI28: 0.002218605067 | AJ28: 0.01399862296 | AK28: 0.003280519757 | AL28: 0.002870168955 | AM28: 0.0456688418 | AN28: 0.002725437079
B29: 41 | C29: 建設 | D29: 0.002447702267 | E29: 0.003766243542 | F29: 0.001651005859 | G29: 0.002069148952 | H29: 0.002973534091 | I29: 0.004661514961 | J29: 0.002179600445 | K29: 0.004242521443 | L29: 0.007669660031 | M29: 0.00602909616 | N29: 0.003478767794 | O29: 0.005348685224 | P29: 0.00231818069 | Q29: 0.002861481673 | R29: 0.002342869331 | S29: 0.003588720082 | T29: 0.001883566497 | U29: 0.001922656826 | V29: 0.0008598530456 | W29: 0.002844147681 | X29: 1.001789981 | Y29: 0.01807115507 | Z29: 0.02878932659 | AA29: 0.005273070058 | AB29: 0.004447584702 | AC29: 0.004182897969 | AD29: 0.009319554305 | AE29: 0.008516892564 | AF29: 0.003530217028 | AG29: 0.009581340952 | AH29: 0.006164809894 | AI29: 0.00329439132 | AJ29: 0.002125030672 | AK29: 0.002406395149 | AL29: 0.00394174932 | AM29: 0.001536263605 | AN29: 0.006847551531
B30: 46 | C30: 電力・ガス・熱供給 | D30: 0.01260741263 | E30: 0.008659912055 | F30: 0.01873681373 | G30: 0.02141222889 | H30: 0.02667961502 | I30: 0.0693733804 | J30: 0.01297777242 | K30: 0.03779902636 | L30: 0.05182719474 | M30: 0.05245491169 | N30: 0.03497237702 | O30: 0.03657126782 | P30: 0.01727475987 | Q30: 0.01537489887 | R30: 0.01465416397 | S30: 0.03701582194 | T30: 0.01267147555 | U30: 0.007823772296 | V30: 0.01872512536 | W30: 0.02644603165 | X30: 0.008956495 | Y30: 1.092955162 | Z30: 0.04857751977 | AA30: 0.08354706286 | AB30: 0.02905703317 | AC30: 0.00933718183 | AD30: 0.005857830518 | AE30: 0.01958331684 | AF30: 0.00826623503 | AG30: 0.01681613036 | AH30: 0.02538029671 | AI30: 0.01921462282 | AJ30: 0.007118114636 | AK30: 0.007921972763 | AL30: 0.04447245744 | AM30: 0.009814667054 | AN30: 0.01587904352
B31: 47 | C31: 水道 | D31: 0.001106878057 | E31: 0.002003759399 | F31: 0.00194583294 | G31: 0.0003801242687 | H31: 0.0009627944057 | I31: 0.002420878466 | J31: 0.003168890958 | K31: 0.001292423545 | L31: 0.001246716145 | M31: 0.002143101952 | N31: 0.001296247714 | O31: 0.001216082135 | P31: 0.0006184720832 | Q31: 0.0009087432071 | R31: 0.0007612780353 | S31: 0.001192398168 | T31: 0.0005012169565 | U31: 0.0003670537788 | V31: 0.000335216022 | W31: 0.002042567818 | X31: 0.001300073699 | Y31: 0.002025496376 | Z31: 1.077679528 | AA31: 0.009835005873 | AB31: 0.003103811916 | AC31: 0.001818908824 | AD31: 0.0006852501479 | AE31: 0.004531253312 | AF31: 0.002181661805 | AG31: 0.004922303674 | AH31: 0.009980379519 | AI31: 0.005406709008 | AJ31: 0.002508106407 | AK31: 0.001550046521 | AL31: 0.01026252967 | AM31: 0.0009266597331 | AN31: 0.00428855702
B32: 48 | C32: 廃棄物処理 | D32: 0.0007765916118 | E32: 0.001957223892 | F32: 0.0007695948742 | G32: 0.0003601730446 | H32: 0.000524782404 | I32: 0.002377385894 | J32: 0.0004052507735 | K32: 0.000483400873 | L32: 0.002960086635 | M32: 0.0008160537816 | N32: 0.0004783917262 | O32: 0.000582346405 | P32: 0.0003744375785 | Q32: 0.0003654528618 | R32: 0.0003243974117 | S32: 0.0008700688246 | T32: 0.000308575618 | U32: 0.0002791666539 | V32: 0.0002963931989 | W32: 0.001000470277 | X32: 0.001575547432 | Y32: 0.008719366288 | Z32: 0.001823844088 | AA32: 1.00117356 | AB32: 0.001497386979 | AC32: 0.002409517093 | AD32: 0.000275428562 | AE32: 0.004426019037 | AF32: 0.002552494458 | AG32: 0.01912448973 | AH32: 0.003525128943 | AI32: 0.00299726114 | AJ32: 0.0004187921186 | AK32: 0.0005317041172 | AL32: 0.01157320994 | AM32: 0.0005358288954 | AN32: 0.008900026253
B33: 51 | C33: 商業 | D33: 0.06408135814 | E33: 0.01203837332 | F33: 0.06881382351 | G33: 0.07512208495 | H33: 0.06371213509 | I33: 0.04513396179 | J33: 0.02116753239 | K33: 0.0526448701 | L33: 0.03661076511 | M33: 0.03042647597 | N33: 0.0510037612 | O33: 0.04797805218 | P33: 0.03983798141 | Q33: 0.03909215263 | R33: 0.04478394836 | S33: 0.04035126531 | T33: 0.04740619343 | U33: 0.04132591036 | V33: 0.0457448283 | W33: 0.06685119112 | X33: 0.05481849529 | Y33: 0.01967730768 | Z33: 0.02173769442 | AA33: 0.01831465997 | AB33: 1.014057881 | AC33: 0.009941890187 | AD33: 0.002999589046 | AE33: 0.02722328788 | AF33: 0.0141674042 | AG33: 0.01324344684 | AH33: 0.01721004519 | AI33: 0.04786207395 | AJ33: 0.0324493886 | AK33: 0.02064890788 | AL33: 0.0758401852 | AM33: 0.2029242468 | AN33: 0.03364207267
B34: 53 | C34: 金融・保険 | D34: 0.009950013672 | E34: 0.01434964115 | F34: 0.007975168326 | G34: 0.01220261798 | H34: 0.01192113867 | I34: 0.007791526478 | J34: 0.007724368625 | K34: 0.005854675121 | L34: 0.01331037878 | M34: 0.008691685757 | N34: 0.006553720226 | O34: 0.01430677394 | P34: 0.008175011226 | Q34: 0.008881542577 | R34: 0.01527586825 | S34: 0.007725051279 | T34: 0.006383277638 | U34: 0.00557596226 | V34: 0.00441090236 | W34: 0.01715324499 | X34: 0.01626944979 | Y34: 0.017475199 | Z34: 0.02583748813 | AA34: 0.02257233503 | AB34: 0.02087947032 | AC34: 1.047977239 | AD34: 0.07213638303 | AE34: 0.03244993338 | AF34: 0.009076000765 | AG34: 0.02215818586 | AH34: 0.009687111767 | AI34: 0.01219735533 | AJ34: 0.02505648111 | AK34: 0.0105468243 | AL34: 0.01161035714 | AM34: 0.006877303733 | AN34: 0.05088656125
B35: 55 | C35: 不動産 | D35: 0.01394597449 | E35: 0.01982050369 | F35: 0.007183580533 | G35: 0.005377571365 | H35: 0.007272408843 | I35: 0.005176482555 | J35: 0.003131552893 | K35: 0.006384392754 | L35: 0.006947572495 | M35: 0.004530120364 | N35: 0.003884200263 | O35: 0.008566741608 | P35: 0.005918247609 | Q35: 0.005346600477 | R35: 0.004150746567 | S35: 0.004322966782 | T35: 0.00468176463 | U35: 0.004400108133 | V35: 0.00234305413 | W35: 0.01058911079 | X35: 0.01033149424 | Y35: 0.01093817853 | Z35: 0.005557819034 | AA35: 0.006687138368 | AB35: 0.03204543041 | AC35: 0.02197002194 | AD35: 1.030760456 | AE35: 0.04482161033 | AF35: 0.02693768857 | AG35: 0.004972217789 | AH35: 0.007301046086 | AI35: 0.02064302174 | AJ35: 0.01948169343 | AK35: 0.01056690451 | AL35: 0.01880942241 | AM35: 0.008747703481 | AN35: 0.03589630872
B36: 57 | C36: 運輸・郵便 | D36: 0.04415535203 | E36: 0.4709324463 | F36: 0.05275533001 | G36: 0.01714710357 | H36: 0.03841378945 | I36: 0.02408733653 | J36: 0.0339559606 | K36: 0.0195354476 | L36: 0.05079053488 | M36: 0.03022726734 | N36: 0.02765759207 | O36: 0.03277100228 | P36: 0.02191116452 | Q36: 0.02200309819 | R36: 0.0209143277 | S36: 0.01885512773 | T36: 0.01829564362 | U36: 0.01545648015 | V36: 0.01191973792 | W36: 0.1319255592 | X36: 0.04555909012 | Y36: 0.03818072928 | Z36: 0.02556870886 | AA36: 0.06338394676 | AB36: 0.04741866063 | AC36: 0.03575233532 | AD36: 0.006458120754 | AE36: 1.064955308 | AF36: 0.02408593619 | AG36: 0.03168487987 | AH36: 0.02721709871 | AI36: 0.019648215 | AJ36: 0.03149628306 | AK36: 0.01789896599 | AL36: 0.03748853334 | AM36: 0.05480699596 | AN36: 0.4534649573
B37: 59 | C37: 情報通信 | D37: 0.006298296964 | E37: 0.006963487646 | F37: 0.00664181724 | G37: 0.005090458139 | H37: 0.008465622471 | I37: 0.009687938233 | J37: 0.002502358089 | K37: 0.007762691777 | L37: 0.009693157246 | M37: 0.005528525008 | N37: 0.005516046249 | O37: 0.008956419293 | P37: 0.008003256582 | Q37: 0.01369493489 | R37: 0.00903719636 | S37: 0.01006932345 | T37: 0.01713776428 | U37: 0.02432432761 | V37: 0.003382984927 | W37: 0.009930287796 | X37: 0.01162514687 | Y37: 0.0136520332 | Z37: 0.03618022672 | AA37: 0.01319564387 | AB37: 0.03369699428 | AC37: 0.05382846246 | AD37: 0.007357537485 | AE37: 0.01574706348 | AF37: 1.10824043 | AG37: 0.02751823901 | AH37: 0.01804593258 | AI37: 0.01769434139 | AJ37: 0.04774216948 | AK37: 0.03467643937 | AL37: 0.02094183365 | AM37: 0.008182893131 | AN37: 0.04409075631
B38: 61 | C38: 公務 | D38: 0.0003963184812 | E38: 0.0003316291988 | F38: 0.0008455512527 | G38: 0.0002084288628 | H38: 0.0003580476805 | I38: 0.0002208008918 | J38: 8.671732778e-05 | K38: 0.0002601645206 | L38: 0.0007878057367 | M38: 0.0004487307972 | N38: 0.0003167887635 | O38: 0.0004892341143 | P38: 0.0008392524102 | Q38: 0.0007761942701 | R38: 0.0002625540165 | S38: 0.0001146247554 | T38: 0.0002481908142 | U38: 0.0001769509465 | V38: 0.0004741869695 | W38: 0.0003429475567 | X38: 0.001498080179 | Y38: 0.0004344734124 | Z38: 0.0009813479615 | AA38: 0.002406742207 | AB38: 0.0007793203692 | AC38: 0.0006608278636 | AD38: 0.0002597211559 | AE38: 0.0007499382942 | AF38: 0.0003070129911 | AG38: 1.000226564 | AH38: 0.0008899258688 | AI38: 0.0005270029395 | AJ38: 0.0004230208503 | AK38: 0.0003989837079 | AL38: 0.0004798424018 | AM38: 0.0002643398977 | AN38: 0.09732238431
B39: 63 | C39: 教育・研究 | D39: 0.0002520393742 | E39: 0.0005926572565 | F39: 0.0001974550038 | G39: 6.753614134e-05 | H39: 0.0001780691029 | I39: 0.0001514943557 | J39: 6.179871396e-05 | K39: 0.000140052772 | L39: 0.00022829337 | M39: 0.0001419651889 | N39: 7.855393467e-05 | O39: 0.0004146283767 | P39: 0.000525762201 | Q39: 0.0004287721952 | R39: 0.0002816415562 | S39: 0.000892930279 | T39: 0.0009283799333 | U39: 0.0001819832845 | V39: 5.294685916e-05 | W39: 0.0002252923034 | X39: 0.0002555427765 | Y39: 0.0005498240431 | Z39: 0.0002653931672 | AA39: 0.0002696676328 | AB39: 0.0003496095597 | AC39: 0.0003641752139 | AD39: 5.178035882e-05 | AE39: 0.001340220866 | AF39: 0.003183244341 | AG39: 0.0002402331604 | AH39: 1.000118311 | AI39: 0.0001906524904 | AJ39: 0.0002034492995 | AK39: 0.0005108117006 | AL39: 0.0004888061606 | AM39: 0.0001443053115 | AN39: 0.0007533102995
B40: 64 | C40: 医療・福祉 | D40: 0.002509096125 | E40: 0.0002575117929 | F40: 9.614936829e-05 | G40: 1.974080432e-05 | H40: 3.502626753e-05 | I40: 2.662803408e-05 | J40: 2.312374075e-05 | K40: 2.226918972e-05 | L40: 4.876385574e-05 | M40: 3.108794587e-05 | N40: 2.581712516e-05 | O40: 3.39486301e-05 | P40: 3.13414498e-05 | Q40: 3.264225478e-05 | R40: 2.314472048e-05 | S40: 2.074948437e-05 | T40: 2.399551996e-05 | U40: 2.388107525e-05 | V40: 1.776576383e-05 | W40: 8.870643408e-05 | X40: 5.730062786e-05 | Y40: 8.310001924e-05 | Z40: 0.000272843228 | AA40: 8.473372071e-05 | AB40: 8.107479877e-05 | AC40: 0.0001814914186 | AD40: 2.330472187e-05 | AE40: 0.0005823309752 | AF40: 0.0004887274926 | AG40: 5.979562902e-05 | AH40: 5.919294994e-05 | AI40: 1.016418922 | AJ40: 4.952113411e-05 | AK40: 6.413926264e-05 | AL40: 0.0001176370908 | AM40: 4.310184805e-05 | AN40: 0.001706542891
B41: 65 | C41: 他に分類されない会員制団体 | D41: 0.0004645571406 | E41: 0.0004179990997 | F41: 0.0004669298043 | G41: 0.0001338873208 | H41: 0.0006458438523 | I41: 0.001135317871 | J41: 0.0002981693554 | K41: 0.0003710439491 | L41: 0.0005631720177 | M41: 0.0007901585195 | N41: 0.0003293547365 | O41: 0.0007068598783 | P41: 0.0009450099922 | Q41: 0.0005677304382 | R41: 0.0003562531891 | S41: 0.0005077478336 | T41: 0.000424965151 | U41: 0.0004536294385 | V41: 0.0001207819248 | W41: 0.0007294946923 | X41: 0.0007362717803 | Y41: 0.001479541888 | Z41: 0.004711261653 | AA41: 0.001422254293 | AB41: 0.0005844098418 | AC41: 0.002330300104 | AD41: 0.000393387937 | AE41: 0.0009452531107 | AF41: 0.0008846651377 | AG41: 0.000238197679 | AH41: 0.0010025377 | AI41: 0.0007512174971 | AJ41: 1.000212211 | AK41: 0.001190126511 | AL41: 0.001774740247 | AM41: 0.000231723436 | AN41: 0.002266623125
B42: 66 | C42: 対事業所サービス | D42: 0.02888579031 | E42: 0.03786081258 | F42: 0.02858883595 | G42: 0.03110430284 | H42: 0.03210963143 | I42: 0.03847089301 | J42: 0.01417830791 | K42: 0.03574238457 | L42: 0.05404621427 | M42: 0.01853703928 | N42: 0.0207745044 | O42: 0.03168057784 | P42: 0.04237127407 | Q42: 0.03353139271 | R42: 0.02907951938 | S42: 0.04379383002 | T42: 0.03395249538 | U42: 0.0311150837 | V42: 0.01953493417 | W42: 0.0491455645 | X42: 0.08194842611 | Y42: 0.06796291317 | Z42: 0.1121675016 | AA42: 0.06171603684 | AB42: 0.0757008211 | AC42: 0.1017131962 | AD42: 0.02990368909 | AE42: 0.08561753097 | AF42: 0.1288669766 | AG42: 0.07699029495 | AH42: 0.05366050675 | AI42: 0.04855324965 | AJ42: 0.0584914643 | AK42: 1.114036808 | AL42: 0.04330804418 | AM42: 0.0224918502 | AN42: 0.075500633
B43: 67 | C43: 対個人サービス | D43: 0.0003594661588 | E43: 0.0003546820539 | F43: 0.0001699033144 | G43: 0.0001112301486 | H43: 0.0001353440967 | I43: 0.0001254645147 | J43: 5.992636066e-05 | K43: 0.0001150338156 | L43: 0.0001532759607 | M43: 0.0001391245526 | N43: 9.575218836e-05 | O43: 0.0001358072259 | P43: 0.000123435333 | Q43: 0.0002253421085 | R43: 0.0001107769994 | S43: 0.0001236499687 | T43: 0.0002251175801 | U43: 0.0001683036382 | V43: 7.468423046e-05 | W43: 0.00021332935 | X43: 0.0003545690512 | Y43: 0.0002080581373 | Z43: 0.0004138887047 | AA43: 0.000201799052 | AB43: 0.0008914694261 | AC43: 0.0005204111365 | AD43: 0.0004797221979 | AE43: 0.0008020694664 | AF43: 0.004785984015 | AG43: 0.0005673422182 | AH43: 0.002303955104 | AI43: 0.00851074775 | AJ43: 0.001849183619 | AK43: 0.001109968022 | AL43: 1.011055205 | AM43: 0.0002194373132 | AN43: 0.001230898174
B44: 68 | C44: 事務用品 | D44: 0.001202062216 | E44: 0.001050331123 | F44: 0.001084913066 | G44: 0.0003142110908 | H44: 0.001435182695 | I44: 0.0005323072848 | J44: 0.0002183595583 | K44: 0.000347550816 | L44: 0.001138994399 | M44: 0.0004042706068 | N44: 0.0004276435261 | O44: 0.0005978023526 | P44: 0.001049716949 | Q44: 0.001160586498 | R44: 0.001792790055 | S44: 0.0007349057029 | T44: 0.001081612802 | U44: 0.0004733115551 | V44: 0.0002075930985 | W44: 0.001236653874 | X44: 0.001426878229 | Y44: 0.0004592215908 | Z44: 0.001445960762 | AA44: 0.003738203836 | AB44: 0.002519822942 | AC44: 0.003903703739 | AD44: 0.0006960742673 | AE44: 0.002375193539 | AF44: 0.001959259068 | AG44: 0.003436192843 | AH44: 0.003342468874 | AI44: 0.002663808825 | AJ44: 0.004507246292 | AK44: 0.002235050401 | AL44: 0.002385570013 | AM44: 1.000736959 | AN44: 0.005033914722
B45: 69 | C45: 分類不明 | D45: 0.004089672499 | E45: 0.003422133659 | F45: 0.008725375849 | G45: 0.00215081009 | H45: 0.003694750111 | I45: 0.002278478995 | J45: 0.0008948496914 | K45: 0.002684678448 | L45: 0.008129490823 | M45: 0.004630523399 | N45: 0.003268992882 | O45: 0.005048483474 | P45: 0.008660377107 | Q45: 0.00800967028 | R45: 0.00270933603 | S45: 0.00118283081 | T45: 0.002561119896 | U45: 0.00182598454 | V45: 0.004893209629 | W45: 0.003538929568 | X45: 0.01545892407 | Y45: 0.004483399212 | Z45: 0.01012668336 | AA45: 0.0248355499 | AB45: 0.008041928986 | AC45: 0.006819186257 | AD45: 0.002680103298 | AE45: 0.007738730751 | AF45: 0.003168115155 | AG45: 0.002337952505 | AH45: 0.009183284465 | AI45: 0.005438225899 | AJ45: 0.004365218429 | AK45: 0.004117175391 | AL45: 0.004951568921 | AM45: 0.002727764819 | AN45: 1.004284931

Sheet 単位行列 (hidden)
D7: 01 | E7: 06 | F7: 11 | G7: 15 | H7: 16 | I7: 20 | J7: 21 | K7: 22 | L7: 25 | M7: 26 | N7: 27 | O7: 28 | P7: 29 | Q7: 30 | R7: 31 | S7: 32 | T7: 33 | U7: 34 | V7: 35 | W7: 39 | X7: 41 | Y7: 46 | Z7: 47 | AA7: 48 | AB7: 51 | AC7: 53 | AD7: 55 | AE7: 57 | AF7: 59 | AG7: 61 | AH7: 63 | AI7: 64 | AJ7: 65 | AK7: 66 | AL7: 67 | AM7: 68 | AN7: 69
D8: 農林漁業 | E8: 鉱業 | F8: 飲食料品 | G8: 繊維製品 | H8: パルプ・紙・木製品 | I8: 化学製品 | J8: 石油・石炭製品 | K8: プラスチック・ゴム製品 | L8: 窯業・土石製品 | M8: 鉄鋼 | N8: 非鉄金属 | O8: 金属製品 | P8: はん用機械 | Q8: 生産用機械 | R8: 業務用機械 | S8: 電子部品 | T8: 電気機械 | U8: 情報通信機器 | V8: 輸送機械 | W8: その他の製造工業製品 | X8: 建設 | Y8: 電力・ガス・熱供給 | Z8: 水道 | AA8: 廃棄物処理 | AB8: 商業 | AC8: 金融・保険 | AD8: 不動産 | AE8: 運輸・郵便 | AF8: 情報通信 | AG8: 公務 | AH8: 教育・研究 | AI8: 医療・福祉 | AJ8: 他に分類されない会員制団体 | AK8: 対事業所サービス | AL8: 対個人サービス | AM8: 事務用品 | AN8: 分類不明
B9: 01 | C9: 農林漁業 | D9: =IF($B9=D$7,1,0) -> 1 | E9: =IF($B9=E$7,1,0) -> 0 | F9: =IF($B9=F$7,1,0) -> 0 | G9: 0 | H9: 0 | I9: 0 | J9: 0 | K9: 0 | L9: 0 | M9: 0 | N9: 0 | O9: 0 | P9: 0 | Q9: 0 | R9: 0 | S9: 0 | T9: 0 | U9: 0 | V9: 0 | W9: 0 | X9: 0 | Y9: 0 | Z9: 0 | AA9: 0 | AB9: 0 | AC9: 0 | AD9: 0 | AE9: 0 | AF9: 0 | AG9: 0 | AH9: 0 | AI9: 0 | AJ9: 0 | AK9: 0 | AL9: 0 | AM9: 0 | AN9: 0
B10: 06 | C10: 鉱業 | D10: =IF($B10=D$7,1,0) -> 0 | E10: 1 | F10: 0 | G10: 0 | H10: 0 | I10: 0 | J10: 0 | K10: 0 | L10: 0 | M10: 0 | N10: 0 | O10: 0 | P10: 0 | Q10: 0 | R10: 0 | S10: 0 | T10: 0 | U10: 0 | V10: 0 | W10: 0 | X10: 0 | Y10: 0 | Z10: 0 | AA10: 0 | AB10: 0 | AC10: 0 | AD10: 0 | AE10: 0 | AF10: 0 | AG10: 0 | AH10: 0 | AI10: 0 | AJ10: 0 | AK10: 0 | AL10: 0 | AM10: 0 | AN10: 0
B11: 11 | C11: 飲食料品 | D11: 0 | E11: 0 | F11: =IF($B11=F$7,1,0) -> 1 | G11: 0 | H11: 0 | I11: 0 | J11: 0 | K11: 0 | L11: 0 | M11: 0 | N11: 0 | O11: 0 | P11: 0 | Q11: 0 | R11: 0 | S11: 0 | T11: 0 | U11: 0 | V11: 0 | W11: 0 | X11: 0 | Y11: 0 | Z11: 0 | AA11: 0 | AB11: 0 | AC11: 0 | AD11: 0 | AE11: 0 | AF11: 0 | AG11: 0 | AH11: 0 | AI11: 0 | AJ11: 0 | AK11: 0 | AL11: 0 | AM11: 0 | AN11: 0
B12: 15 | C12: 繊維製品 | D12: 0 | E12: 0 | F12: 0 | G12: 1 | H12: 0 | I12: 0 | J12: 0 | K12: 0 | L12: 0 | M12: 0 | N12: 0 | O12: 0 | P12: 0 | Q12: 0 | R12: 0 | S12: 0 | T12: 0 | U12: 0 | V12: 0 | W12: 0 | X12: 0 | Y12: 0 | Z12: 0 | AA12: 0 | AB12: 0 | AC12: 0 | AD12: 0 | AE12: 0 | AF12: 0 | AG12: 0 | AH12: 0 | AI12: 0 | AJ12: 0 | AK12: 0 | AL12: 0 | AM12: 0 | AN12: 0
B13: 16 | C13: パルプ・紙・木製品 | D13: 0 | E13: 0 | F13: 0 | G13: 0 | H13: 1 | I13: 0 | J13: 0 | K13: 0 | L13: 0 | M13: 0 | N13: 0 | O13: 0 | P13: 0 | Q13: 0 | R13: 0 | S13: 0 | T13: 0 | U13: 0 | V13: 0 | W13: 0 | X13: 0 | Y13: 0 | Z13: 0 | AA13: 0 | AB13: 0 | AC13: 0 | AD13: 0 | AE13: 0 | AF13: 0 | AG13: 0 | AH13: 0 | AI13: 0 | AJ13: 0 | AK13: 0 | AL13: 0 | AM13: 0 | AN13: 0
B14: 20 | C14: 化学製品 | D14: 0 | E14: 0 | F14: 0 | G14: 0 | H14: 0 | I14: 1 | J14: 0 | K14: 0 | L14: 0 | M14: 0 | N14: 0 | O14: 0 | P14: 0 | Q14: 0 | R14: 0 | S14: 0 | T14: 0 | U14: 0 | V14: 0 | W14: 0 | X14: 0 | Y14: 0 | Z14: 0 | AA14: 0 | AB14: 0 | AC14: 0 | AD14: 0 | AE14: 0 | AF14: 0 | AG14: 0 | AH14: 0 | AI14: 0 | AJ14: 0 | AK14: 0 | AL14: 0 | AM14: 0 | AN14: 0
B15: 21 | C15: 石油・石炭製品 | D15: 0 | E15: 0 | F15: =IF($B15=F$7,1,0) -> 0 | G15: 0 | H15: 0 | I15: 0 | J15: 1 | K15: 0 | L15: 0 | M15: 0 | N15: 0 | O15: 0 | P15: 0 | Q15: 0 | R15: 0 | S15: 0 | T15: 0 | U15: 0 | V15: 0 | W15: 0 | X15: 0 | Y15: 0 | Z15: 0 | AA15: 0 | AB15: 0 | AC15: 0 | AD15: 0 | AE15: 0 | AF15: 0 | AG15: 0 | AH15: 0 | AI15: 0 | AJ15: 0 | AK15: 0 | AL15: 0 | AM15: 0 | AN15: 0
B16: 22 | C16: プラスチック・ゴム製品 | D16: 0 | E16: 0 | F16: 0 | G16: 0 | H16: 0 | I16: 0 | J16: 0 | K16: 1 | L16: 0 | M16: 0 | N16: 0 | O16: 0 | P16: 0 | Q16: 0 | R16: 0 | S16: 0 | T16: 0 | U16: 0 | V16: 0 | W16: 0 | X16: 0 | Y16: 0 | Z16: 0 | AA16: 0 | AB16: 0 | AC16: 0 | AD16: 0 | AE16: 0 | AF16: 0 | AG16: 0 | AH16: 0 | AI16: 0 | AJ16: 0 | AK16: 0 | AL16: 0 | AM16: 0 | AN16: 0
B17: 25 | C17: 窯業・土石製品 | D17: 0 | E17: 0 | F17: 0 | G17: 0 | H17: 0 | I17: 0 | J17: 0 | K17: 0 | L17: 1 | M17: 0 | N17: 0 | O17: 0 | P17: 0 | Q17: 0 | R17: 0 | S17: 0 | T17: 0 | U17: 0 | V17: 0 | W17: 0 | X17: 0 | Y17: 0 | Z17: 0 | AA17: 0 | AB17: 0 | AC17: 0 | AD17: 0 | AE17: 0 | AF17: 0 | AG17: 0 | AH17: 0 | AI17: 0 | AJ17: 0 | AK17: 0 | AL17: 0 | AM17: 0 | AN17: 0
B18: 26 | C18: 鉄鋼 | D18: 0 | E18: 0 | F18: 0 | G18: 0 | H18: 0 | I18: 0 | J18: 0 | K18: 0 | L18: 0 | M18: 1 | N18: 0 | O18: 0 | P18: 0 | Q18: 0 | R18: 0 | S18: 0 | T18: 0 | U18: 0 | V18: 0 | W18: 0 | X18: 0 | Y18: 0 | Z18: 0 | AA18: 0 | AB18: 0 | AC18: 0 | AD18: 0 | AE18: 0 | AF18: 0 | AG18: 0 | AH18: 0 | AI18: 0 | AJ18: 0 | AK18: 0 | AL18: 0 | AM18: 0 | AN18: 0
B19: 27 | C19: 非鉄金属 | D19: 0 | E19: 0 | F19: =IF($B19=F$7,1,0) -> 0 | G19: 0 | H19: 0 | I19: 0 | J19: 0 | K19: 0 | L19: 0 | M19: 0 | N19: 1 | O19: 0 | P19: 0 | Q19: 0 | R19: 0 | S19: 0 | T19: 0 | U19: 0 | V19: 0 | W19: 0 | X19: 0 | Y19: 0 | Z19: 0 | AA19: 0 | AB19: 0 | AC19: 0 | AD19: 0 | AE19: 0 | AF19: 0 | AG19: 0 | AH19: 0 | AI19: 0 | AJ19: 0 | AK19: 0 | AL19: 0 | AM19: 0 | AN19: 0
B20: 28 | C20: 金属製品 | D20: 0 | E20: 0 | F20: 0 | G20: 0 | H20: 0 | I20: 0 | J20: 0 | K20: 0 | L20: 0 | M20: 0 | N20: 0 | O20: 1 | P20: 0 | Q20: 0 | R20: 0 | S20: 0 | T20: 0 | U20: 0 | V20: 0 | W20: 0 | X20: 0 | Y20: 0 | Z20: 0 | AA20: 0 | AB20: 0 | AC20: 0 | AD20: 0 | AE20: 0 | AF20: 0 | AG20: 0 | AH20: 0 | AI20: 0 | AJ20: 0 | AK20: 0 | AL20: 0 | AM20: 0 | AN20: 0
B21: 29 | C21: はん用機械 | D21: 0 | E21: 0 | F21: 0 | G21: 0 | H21: 0 | I21: 0 | J21: 0 | K21: 0 | L21: 0 | M21: 0 | N21: 0 | O21: 0 | P21: 1 | Q21: 0 | R21: 0 | S21: 0 | T21: 0 | U21: 0 | V21: 0 | W21: 0 | X21: 0 | Y21: 0 | Z21: 0 | AA21: 0 | AB21: 0 | AC21: 0 | AD21: 0 | AE21: 0 | AF21: 0 | AG21: 0 | AH21: 0 | AI21: 0 | AJ21: 0 | AK21: 0 | AL21: 0 | AM21: 0 | AN21: 0
B22: 30 | C22: 生産用機械 | D22: 0 | E22: 0 | F22: 0 | G22: 0 | H22: 0 | I22: 0 | J22: 0 | K22: 0 | L22: 0 | M22: 0 | N22: 0 | O22: 0 | P22: 0 | Q22: 1 | R22: 0 | S22: 0 | T22: 0 | U22: 0 | V22: 0 | W22: 0 | X22: 0 | Y22: 0 | Z22: 0 | AA22: 0 | AB22: 0 | AC22: 0 | AD22: 0 | AE22: 0 | AF22: 0 | AG22: 0 | AH22: 0 | AI22: 0 | AJ22: 0 | AK22: 0 | AL22: 0 | AM22: 0 | AN22: 0
B23: 31 | C23: 業務用機械 | D23: 0 | E23: 0 | F23: =IF($B23=F$7,1,0) -> 0 | G23: 0 | H23: 0 | I23: 0 | J23: 0 | K23: 0 | L23: 0 | M23: 0 | N23: 0 | O23: 0 | P23: 0 | Q23: 0 | R23: 1 | S23: 0 | T23: 0 | U23: 0 | V23: 0 | W23: 0 | X23: 0 | Y23: 0 | Z23: 0 | AA23: 0 | AB23: 0 | AC23: 0 | AD23: 0 | AE23: 0 | AF23: 0 | AG23: 0 | AH23: 0 | AI23: 0 | AJ23: 0 | AK23: 0 | AL23: 0 | AM23: 0 | AN23: 0
B24: 32 | C24: 電子部品 | D24: 0 | E24: 0 | F24: 0 | G24: 0 | H24: 0 | I24: 0 | J24: 0 | K24: 0 | L24: 0 | M24: 0 | N24: 0 | O24: 0 | P24: 0 | Q24: 0 | R24: 0 | S24: 1 | T24: 0 | U24: 0 | V24: 0 | W24: 0 | X24: 0 | Y24: 0 | Z24: 0 | AA24: 0 | AB24: 0 | AC24: 0 | AD24: 0 | AE24: 0 | AF24: 0 | AG24: 0 | AH24: 0 | AI24: 0 | AJ24: 0 | AK24: 0 | AL24: 0 | AM24: 0 | AN24: 0
B25: 33 | C25: 電気機械 | D25: 0 | E25: 0 | F25: 0 | G25: 0 | H25: 0 | I25: 0 | J25: 0 | K25: 0 | L25: 0 | M25: 0 | N25: 0 | O25: 0 | P25: 0 | Q25: 0 | R25: 0 | S25: 0 | T25: 1 | U25: 0 | V25: 0 | W25: 0 | X25: 0 | Y25: 0 | Z25: 0 | AA25: 0 | AB25: 0 | AC25: 0 | AD25: 0 | AE25: 0 | AF25: 0 | AG25: 0 | AH25: 0 | AI25: 0 | AJ25: 0 | AK25: 0 | AL25: 0 | AM25: 0 | AN25: 0
B26: 34 | C26: 情報通信機器 | D26: 0 | E26: 0 | F26: 0 | G26: 0 | H26: 0 | I26: 0 | J26: 0 | K26: 0 | L26: 0 | M26: 0 | N26: 0 | O26: 0 | P26: 0 | Q26: 0 | R26: 0 | S26: 0 | T26: 0 | U26: 1 | V26: 0 | W26: 0 | X26: 0 | Y26: 0 | Z26: 0 | AA26: 0 | AB26: 0 | AC26: 0 | AD26: 0 | AE26: 0 | AF26: 0 | AG26: 0 | AH26: 0 | AI26: 0 | AJ26: 0 | AK26: 0 | AL26: 0 | AM26: 0 | AN26: 0
B27: 35 | C27: 輸送機械 | D27: 0 | E27: 0 | F27: =IF($B27=F$7,1,0) -> 0 | G27: 0 | H27: 0 | I27: 0 | J27: 0 | K27: 0 | L27: 0 | M27: 0 | N27: 0 | O27: 0 | P27: 0 | Q27: 0 | R27: 0 | S27: 0 | T27: 0 | U27: 0 | V27: 1 | W27: 0 | X27: 0 | Y27: 0 | Z27: 0 | AA27: 0 | AB27: 0 | AC27: 0 | AD27: 0 | AE27: 0 | AF27: 0 | AG27: 0 | AH27: 0 | AI27: 0 | AJ27: 0 | AK27: 0 | AL27: 0 | AM27: 0 | AN27: 0
B28: 39 | C28: その他の製造工業製品 | D28: 0 | E28: 0 | F28: 0 | G28: 0 | H28: 0 | I28: 0 | J28: 0 | K28: 0 | L28: 0 | M28: 0 | N28: 0 | O28: 0 | P28: 0 | Q28: 0 | R28: 0 | S28: 0 | T28: 0 | U28: 0 | V28: 0 | W28: 1 | X28: 0 | Y28: 0 | Z28: 0 | AA28: 0 | AB28: 0 | AC28: 0 | AD28: 0 | AE28: 0 | AF28: 0 | AG28: 0 | AH28: 0 | AI28: 0 | AJ28: 0 | AK28: 0 | AL28: 0 | AM28: 0 | AN28: 0
B29: 41 | C29: 建設 | D29: 0 | E29: 0 | F29: 0 | G29: 0 | H29: 0 | I29: 0 | J29: 0 | K29: 0 | L29: 0 | M29: 0 | N29: 0 | O29: 0 | P29: 0 | Q29: 0 | R29: 0 | S29: 0 | T29: 0 | U29: 0 | V29: 0 | W29: 0 | X29: 1 | Y29: 0 | Z29: 0 | AA29: 0 | AB29: 0 | AC29: 0 | AD29: 0 | AE29: 0 | AF29: 0 | AG29: 0 | AH29: 0 | AI29: 0 | AJ29: 0 | AK29: 0 | AL29: 0 | AM29: 0 | AN29: 0
B30: 46 | C30: 電力・ガス・熱供給 | D30: 0 | E30: 0 | F30: 0 | G30: 0 | H30: 0 | I30: 0 | J30: 0 | K30: 0 | L30: 0 | M30: 0 | N30: 0 | O30: 0 | P30: 0 | Q30: 0 | R30: 0 | S30: 0 | T30: 0 | U30: 0 | V30: 0 | W30: 0 | X30: 0 | Y30: 1 | Z30: 0 | AA30: 0 | AB30: 0 | AC30: 0 | AD30: 0 | AE30: 0 | AF30: 0 | AG30: 0 | AH30: 0 | AI30: 0 | AJ30: 0 | AK30: 0 | AL30: 0 | AM30: 0 | AN30: 0
B31: 47 | C31: 水道 | D31: 0 | E31: 0 | F31: =IF($B31=F$7,1,0) -> 0 | G31: 0 | H31: 0 | I31: 0 | J31: 0 | K31: 0 | L31: 0 | M31: 0 | N31: 0 | O31: 0 | P31: 0 | Q31: 0 | R31: 0 | S31: 0 | T31: 0 | U31: 0 | V31: 0 | W31: 0 | X31: 0 | Y31: 0 | Z31: 1 | AA31: 0 | AB31: 0 | AC31: 0 | AD31: 0 | AE31: 0 | AF31: 0 | AG31: 0 | AH31: 0 | AI31: 0 | AJ31: 0 | AK31: 0 | AL31: 0 | AM31: 0 | AN31: 0
B32: 48 | C32: 廃棄物処理 | D32: 0 | E32: 0 | F32: 0 | G32: 0 | H32: 0 | I32: 0 | J32: 0 | K32: 0 | L32: 0 | M32: 0 | N32: 0 | O32: 0 | P32: 0 | Q32: 0 | R32: 0 | S32: 0 | T32: 0 | U32: 0 | V32: 0 | W32: 0 | X32: 0 | Y32: 0 | Z32: 0 | AA32: 1 | AB32: 0 | AC32: 0 | AD32: 0 | AE32: 0 | AF32: 0 | AG32: 0 | AH32: 0 | AI32: 0 | AJ32: 0 | AK32: 0 | AL32: 0 | AM32: 0 | AN32: 0
B33: 51 | C33: 商業 | D33: 0 | E33: 0 | F33: 0 | G33: 0 | H33: 0 | I33: 0 | J33: 0 | K33: 0 | L33: 0 | M33: 0 | N33: 0 | O33: 0 | P33: 0 | Q33: 0 | R33: 0 | S33: 0 | T33: 0 | U33: 0 | V33: 0 | W33: 0 | X33: 0 | Y33: 0 | Z33: 0 | AA33: 0 | AB33: 1 | AC33: 0 | AD33: 0 | AE33: 0 | AF33: 0 | AG33: 0 | AH33: 0 | AI33: 0 | AJ33: 0 | AK33: 0 | AL33: 0 | AM33: 0 | AN33: 0
B34: 53 | C34: 金融・保険 | D34: 0 | E34: 0 | F34: 0 | G34: 0 | H34: 0 | I34: 0 | J34: 0 | K34: 0 | L34: 0 | M34: 0 | N34: 0 | O34: 0 | P34: 0 | Q34: 0 | R34: 0 | S34: 0 | T34: 0 | U34: 0 | V34: 0 | W34: 0 | X34: 0 | Y34: 0 | Z34: 0 | AA34: 0 | AB34: 0 | AC34: 1 | AD34: 0 | AE34: 0 | AF34: 0 | AG34: 0 | AH34: 0 | AI34: 0 | AJ34: 0 | AK34: 0 | AL34: 0 | AM34: 0 | AN34: 0
B35: 55 | C35: 不動産 | D35: 0 | E35: 0 | F35: =IF($B35=F$7,1,0) -> 0 | G35: 0 | H35: 0 | I35: 0 | J35: 0 | K35: 0 | L35: 0 | M35: 0 | N35: 0 | O35: 0 | P35: 0 | Q35: 0 | R35: 0 | S35: 0 | T35: 0 | U35: 0 | V35: 0 | W35: 0 | X35: 0 | Y35: 0 | Z35: 0 | AA35: 0 | AB35: 0 | AC35: 0 | AD35: 1 | AE35: 0 | AF35: 0 | AG35: 0 | AH35: 0 | AI35: 0 | AJ35: 0 | AK35: 0 | AL35: 0 | AM35: 0 | AN35: 0
B36: 57 | C36: 運輸・郵便 | D36: 0 | E36: 0 | F36: 0 | G36: 0 | H36: 0 | I36: 0 | J36: 0 | K36: 0 | L36: 0 | M36: 0 | N36: 0 | O36: 0 | P36: 0 | Q36: 0 | R36: 0 | S36: 0 | T36: 0 | U36: 0 | V36: 0 | W36: 0 | X36: 0 | Y36: 0 | Z36: 0 | AA36: 0 | AB36: 0 | AC36: 0 | AD36: 0 | AE36: 1 | AF36: 0 | AG36: 0 | AH36: 0 | AI36: 0 | AJ36: 0 | AK36: 0 | AL36: 0 | AM36: 0 | AN36: 0
B37: 59 | C37: 情報通信 | D37: 0 | E37: 0 | F37: 0 | G37: 0 | H37: 0 | I37: 0 | J37: 0 | K37: 0 | L37: 0 | M37: 0 | N37: 0 | O37: 0 | P37: 0 | Q37: 0 | R37: 0 | S37: 0 | T37: 0 | U37: 0 | V37: 0 | W37: 0 | X37: 0 | Y37: 0 | Z37: 0 | AA37: 0 | AB37: 0 | AC37: 0 | AD37: 0 | AE37: 0 | AF37: 1 | AG37: 0 | AH37: 0 | AI37: 0 | AJ37: 0 | AK37: 0 | AL37: 0 | AM37: 0 | AN37: 0
B38: 61 | C38: 公務 | D38: 0 | E38: 0 | F38: 0 | G38: 0 | H38: 0 | I38: 0 | J38: 0 | K38: 0 | L38: 0 | M38: 0 | N38: 0 | O38: 0 | P38: 0 | Q38: 0 | R38: 0 | S38: 0 | T38: 0 | U38: 0 | V38: 0 | W38: 0 | X38: 0 | Y38: 0 | Z38: 0 | AA38: 0 | AB38: 0 | AC38: 0 | AD38: 0 | AE38: 0 | AF38: 0 | AG38: 1 | AH38: 0 | AI38: 0 | AJ38: 0 | AK38: 0 | AL38: 0 | AM38: 0 | AN38: 0
B39: 63 | C39: 教育・研究 | D39: 0 | E39: 0 | F39: =IF($B39=F$7,1,0) -> 0 | G39: 0 | H39: 0 | I39: 0 | J39: 0 | K39: 0 | L39: 0 | M39: 0 | N39: 0 | O39: 0 | P39: 0 | Q39: 0 | R39: 0 | S39: 0 | T39: 0 | U39: 0 | V39: 0 | W39: 0 | X39: 0 | Y39: 0 | Z39: 0 | AA39: 0 | AB39: 0 | AC39: 0 | AD39: 0 | AE39: 0 | AF39: 0 | AG39: 0 | AH39: 1 | AI39: 0 | AJ39: 0 | AK39: 0 | AL39: 0 | AM39: 0 | AN39: 0
B40: 64 | C40: 医療・福祉 | D40: 0 | E40: 0 | F40: 0 | G40: 0 | H40: 0 | I40: 0 | J40: 0 | K40: 0 | L40: 0 | M40: 0 | N40: 0 | O40: 0 | P40: 0 | Q40: 0 | R40: 0 | S40: 0 | T40: 0 | U40: 0 | V40: 0 | W40: 0 | X40: 0 | Y40: 0 | Z40: 0 | AA40: 0 | AB40: 0 | AC40: 0 | AD40: 0 | AE40: 0 | AF40: 0 | AG40: 0 | AH40: 0 | AI40: 1 | AJ40: 0 | AK40: 0 | AL40: 0 | AM40: 0 | AN40: 0
B41: 65 | C41: 他に分類されない会員制団体 | D41: 0 | E41: 0 | F41: 0 | G41: 0 | H41: 0 | I41: 0 | J41: 0 | K41: 0 | L41: 0 | M41: 0 | N41: 0 | O41: 0 | P41: 0 | Q41: 0 | R41: 0 | S41: 0 | T41: 0 | U41: 0 | V41: 0 | W41: 0 | X41: 0 | Y41: 0 | Z41: 0 | AA41: 0 | AB41: 0 | AC41: 0 | AD41: 0 | AE41: 0 | AF41: 0 | AG41: 0 | AH41: 0 | AI41: 0 | AJ41: 1 | AK41: 0 | AL41: 0 | AM41: 0 | AN41: 0
B42: 66 | C42: 対事業所サービス | D42: 0 | E42: 0 | F42: 0 | G42: 0 | H42: 0 | I42: 0 | J42: 0 | K42: 0 | L42: 0 | M42: 0 | N42: 0 | O42: 0 | P42: 0 | Q42: 0 | R42: 0 | S42: 0 | T42: 0 | U42: 0 | V42: 0 | W42: 0 | X42: 0 | Y42: 0 | Z42: 0 | AA42: 0 | AB42: 0 | AC42: 0 | AD42: 0 | AE42: 0 | AF42: 0 | AG42: 0 | AH42: 0 | AI42: 0 | AJ42: 0 | AK42: 1 | AL42: 0 | AM42: 0 | AN42: 0
B43: 67 | C43: 対個人サービス | D43: 0 | E43: 0 | F43: =IF($B43=F$7,1,0) -> 0 | G43: 0 | H43: 0 | I43: 0 | J43: 0 | K43: 0 | L43: 0 | M43: 0 | N43: 0 | O43: 0 | P43: 0 | Q43: 0 | R43: 0 | S43: 0 | T43: 0 | U43: 0 | V43: 0 | W43: 0 | X43: 0 | Y43: 0 | Z43: 0 | AA43: 0 | AB43: 0 | AC43: 0 | AD43: 0 | AE43: 0 | AF43: 0 | AG43: 0 | AH43: 0 | AI43: 0 | AJ43: 0 | AK43: 0 | AL43: 1 | AM43: 0 | AN43: 0
B44: 68 | C44: 事務用品 | D44: 0 | E44: 0 | F44: 0 | G44: 0 | H44: 0 | I44: 0 | J44: 0 | K44: 0 | L44: 0 | M44: 0 | N44: 0 | O44: 0 | P44: 0 | Q44: 0 | R44: 0 | S44: 0 | T44: 0 | U44: 0 | V44: 0 | W44: 0 | X44: 0 | Y44: 0 | Z44: 0 | AA44: 0 | AB44: 0 | AC44: 0 | AD44: 0 | AE44: 0 | AF44: 0 | AG44: 0 | AH44: 0 | AI44: 0 | AJ44: 0 | AK44: 0 | AL44: 0 | AM44: 1 | AN44: 0
B45: 69 | C45: 分類不明 | D45: 0 | E45: 0 | F45: 0 | G45: 0 | H45: 0 | I45: 0 | J45: 0 | K45: 0 | L45: 0 | M45: 0 | N45: 0 | O45: 0 | P45: 0 | Q45: 0 | R45: 0 | S45: 0 | T45: 0 | U45: 0 | V45: 0 | W45: 0 | X45: 0 | Y45: 0 | Z45: 0 | AA45: 0 | AB45: 0 | AC45: 0 | AD45: 0 | AE45: 0 | AF45: 0 | AG45: 0 | AH45: 0 | AI45: 0 | AJ45: 0 | AK45: 0 | AL45: 0 | AM45: 0 | AN45: 1

Sheet 移輸入係数 (hidden)
J7: M
D8: 移輸入係数 | E8: 市内品係数 | F8: 比率 | J8: 1 | K8: 2 | L8: 3 | M8: 4 | N8: 5 | O8: 6 | P8: 7 | Q8: 8 | R8: 9 | S8: 10 | T8: 11 | U8: 12 | V8: 13 | W8: 14 | X8: 15 | Y8: 16 | Z8: 17 | AA8: 18 | AB8: 19 | AC8: 20 | AD8: 21 | AE8: 22 | AF8: 23 | AG8: 24 | AH8: 25 | AI8: 26 | AJ8: 27 | AK8: 28 | AL8: 29 | AM8: 30 | AN8: 31 | AO8: 32 | AP8: 33 | AQ8: 34 | AR8: 35 | AS8: 36 | AT8: 37
B9: 01 | C9: 農林漁業 | D9: =-取引額表!BF9/(取引額表!BH9-取引額表!BF9-取引額表!BA9-取引額表!AV9) -> 0.9464581914 | E9: =1-D9 -> 0.05354180864 | F9: =D9/E9 -> 17.67699328 | I9: 1 | J9: =IF($I9=J$8,$D9,0) -> 0.9464581914 | K9: =IF($I9=K$8,$D9,0) -> 0 | L9: 0 | M9: 0 | N9: 0 | O9: 0 | P9: 0 | Q9: 0 | R9: 0 | S9: 0 | T9: 0 | U9: 0 | V9: 0 | W9: 0 | X9: 0 | Y9: 0 | Z9: 0 | AA9: 0 | AB9: 0 | AC9: 0 | AD9: 0 | AE9: 0 | AF9: 0 | AG9: 0 | AH9: 0 | AI9: 0 | AJ9: 0 | AK9: 0 | AL9: 0 | AM9: 0 | AN9: 0 | AO9: 0 | AP9: 0 | AQ9: 0 | AR9: 0 | AS9: 0 | AT9: 0
B10: 06 | C10: 鉱業 | D10: =-取引額表!BF10/(取引額表!BH10-取引額表!BF10-取引額表!BA10-取引額表!AV10) -> 0.9998574204 | E10: =1-D10 -> 0.0001425796218 | F10: =D10/E10 -> 7012.625 | I10: 2 | J10: =IF($I10=J$8,$D10,0) -> 0 | K10: 0.9998574204 | L10: 0 | M10: 0 | N10: 0 | O10: 0 | P10: 0 | Q10: 0 | R10: 0 | S10: 0 | T10: 0 | U10: 0 | V10: 0 | W10: 0 | X10: 0 | Y10: 0 | Z10: 0 | AA10: 0 | AB10: 0 | AC10: 0 | AD10: 0 | AE10: 0 | AF10: 0 | AG10: 0 | AH10: 0 | AI10: 0 | AJ10: 0 | AK10: 0 | AL10: 0 | AM10: 0 | AN10: 0 | AO10: 0 | AP10: 0 | AQ10: 0 | AR10: 0 | AS10: 0 | AT10: 0
B11: 11 | C11: 飲食料品 | D11: =-取引額表!BF11/(取引額表!BH11-取引額表!BF11-取引額表!BA11-取引額表!AV11) -> 0.6700825319 | E11: 0.3299174681 | F11: 2.031061089 | I11: 3 | J11: 0 | K11: =IF($I11=K$8,$D11,0) -> 0 | L11: 0.6700825319 | M11: 0 | N11: 0 | O11: 0 | P11: 0 | Q11: 0 | R11: 0 | S11: 0 | T11: 0 | U11: 0 | V11: 0 | W11: 0 | X11: 0 | Y11: 0 | Z11: 0 | AA11: 0 | AB11: 0 | AC11: 0 | AD11: 0 | AE11: 0 | AF11: 0 | AG11: 0 | AH11: 0 | AI11: 0 | AJ11: 0 | AK11: 0 | AL11: 0 | AM11: 0 | AN11: 0 | AO11: 0 | AP11: 0 | AQ11: 0 | AR11: 0 | AS11: 0 | AT11: 0
B12: 15 | C12: 繊維製品 | D12: =-取引額表!BF12/(取引額表!BH12-取引額表!BF12-取引額表!BA12-取引額表!AV12) -> 0.9950950229 | E12: 0.004904977057 | F12: 202.874552 | I12: 4 | J12: 0 | K12: 0 | L12: 0 | M12: 0.9950950229 | N12: 0 | O12: 0 | P12: 0 | Q12: 0 | R12: 0 | S12: 0 | T12: 0 | U12: 0 | V12: 0 | W12: 0 | X12: 0 | Y12: 0 | Z12: 0 | AA12: 0 | AB12: 0 | AC12: 0 | AD12: 0 | AE12: 0 | AF12: 0 | AG12: 0 | AH12: 0 | AI12: 0 | AJ12: 0 | AK12: 0 | AL12: 0 | AM12: 0 | AN12: 0 | AO12: 0 | AP12: 0 | AQ12: 0 | AR12: 0 | AS12: 0 | AT12: 0
B13: 16 | C13: パルプ・紙・木製品 | D13: =-取引額表!BF13/(取引額表!BH13-取引額表!BF13-取引額表!BA13-取引額表!AV13) -> 0.8176331864 | E13: 0.1823668136 | F13: 4.483453815 | I13: 5 | J13: 0 | K13: 0 | L13: 0 | M13: 0 | N13: 0.8176331864 | O13: 0 | P13: 0 | Q13: 0 | R13: 0 | S13: 0 | T13: 0 | U13: 0 | V13: 0 | W13: 0 | X13: 0 | Y13: 0 | Z13: 0 | AA13: 0 | AB13: 0 | AC13: 0 | AD13: 0 | AE13: 0 | AF13: 0 | AG13: 0 | AH13: 0 | AI13: 0 | AJ13: 0 | AK13: 0 | AL13: 0 | AM13: 0 | AN13: 0 | AO13: 0 | AP13: 0 | AQ13: 0 | AR13: 0 | AS13: 0 | AT13: 0
B14: 20 | C14: 化学製品 | D14: =-取引額表!BF14/(取引額表!BH14-取引額表!BF14-取引額表!BA14-取引額表!AV14) -> 0.9699570089 | E14: 0.0300429911 | F14: 32.2856338 | I14: 6 | J14: 0 | K14: 0 | L14: 0 | M14: 0 | N14: 0 | O14: 0.9699570089 | P14: 0 | Q14: 0 | R14: 0 | S14: 0 | T14: 0 | U14: 0 | V14: 0 | W14: 0 | X14: 0 | Y14: 0 | Z14: 0 | AA14: 0 | AB14: 0 | AC14: 0 | AD14: 0 | AE14: 0 | AF14: 0 | AG14: 0 | AH14: 0 | AI14: 0 | AJ14: 0 | AK14: 0 | AL14: 0 | AM14: 0 | AN14: 0 | AO14: 0 | AP14: 0 | AQ14: 0 | AR14: 0 | AS14: 0 | AT14: 0
B15: 21 | C15: 石油・石炭製品 | D15: =-取引額表!BF15/(取引額表!BH15-取引額表!BF15-取引額表!BA15-取引額表!AV15) -> 0.4833970894 | E15: 0.5166029106 | F15: 0.935722737 | I15: 7 | J15: 0 | K15: =IF($I15=K$8,$D15,0) -> 0 | L15: 0 | M15: 0 | N15: 0 | O15: 0 | P15: 0.4833970894 | Q15: 0 | R15: 0 | S15: 0 | T15: 0 | U15: 0 | V15: 0 | W15: 0 | X15: 0 | Y15: 0 | Z15: 0 | AA15: 0 | AB15: 0 | AC15: 0 | AD15: 0 | AE15: 0 | AF15: 0 | AG15: 0 | AH15: 0 | AI15: 0 | AJ15: 0 | AK15: 0 | AL15: 0 | AM15: 0 | AN15: 0 | AO15: 0 | AP15: 0 | AQ15: 0 | AR15: 0 | AS15: 0 | AT15: 0
B16: 22 | C16: プラスチック・ゴム製品 | D16: =-取引額表!BF16/(取引額表!BH16-取引額表!BF16-取引額表!BA16-取引額表!AV16) -> 0.976967504 | E16: 0.023032496 | F16: 42.41691843 | I16: 8 | J16: 0 | K16: 0 | L16: 0 | M16: 0 | N16: 0 | O16: 0 | P16: 0 | Q16: 0.976967504 | R16: 0 | S16: 0 | T16: 0 | U16: 0 | V16: 0 | W16: 0 | X16: 0 | Y16: 0 | Z16: 0 | AA16: 0 | AB16: 0 | AC16: 0 | AD16: 0 | AE16: 0 | AF16: 0 | AG16: 0 | AH16: 0 | AI16: 0 | AJ16: 0 | AK16: 0 | AL16: 0 | AM16: 0 | AN16: 0 | AO16: 0 | AP16: 0 | AQ16: 0 | AR16: 0 | AS16: 0 | AT16: 0
B17: 25 | C17: 窯業・土石製品 | D17: =-取引額表!BF17/(取引額表!BH17-取引額表!BF17-取引額表!BA17-取引額表!AV17) -> 0.9220788741 | E17: 0.07792112593 | F17: 11.83349012 | I17: 9 | J17: 0 | K17: 0 | L17: 0 | M17: 0 | N17: 0 | O17: 0 | P17: 0 | Q17: 0 | R17: 0.9220788741 | S17: 0 | T17: 0 | U17: 0 | V17: 0 | W17: 0 | X17: 0 | Y17: 0 | Z17: 0 | AA17: 0 | AB17: 0 | AC17: 0 | AD17: 0 | AE17: 0 | AF17: 0 | AG17: 0 | AH17: 0 | AI17: 0 | AJ17: 0 | AK17: 0 | AL17: 0 | AM17: 0 | AN17: 0 | AO17: 0 | AP17: 0 | AQ17: 0 | AR17: 0 | AS17: 0 | AT17: 0
B18: 26 | C18: 鉄鋼 | D18: =-取引額表!BF18/(取引額表!BH18-取引額表!BF18-取引額表!BA18-取引額表!AV18) -> 0.3139543186 | E18: 0.6860456814 | F18: 0.4576288826 | I18: 10 | J18: 0 | K18: 0 | L18: 0 | M18: 0 | N18: 0 | O18: 0 | P18: 0 | Q18: 0 | R18: 0 | S18: 0.3139543186 | T18: 0 | U18: 0 | V18: 0 | W18: 0 | X18: 0 | Y18: 0 | Z18: 0 | AA18: 0 | AB18: 0 | AC18: 0 | AD18: 0 | AE18: 0 | AF18: 0 | AG18: 0 | AH18: 0 | AI18: 0 | AJ18: 0 | AK18: 0 | AL18: 0 | AM18: 0 | AN18: 0 | AO18: 0 | AP18: 0 | AQ18: 0 | AR18: 0 | AS18: 0 | AT18: 0
B19: 27 | C19: 非鉄金属 | D19: =-取引額表!BF19/(取引額表!BH19-取引額表!BF19-取引額表!BA19-取引額表!AV19) -> 0.9894995185 | E19: 0.01050048153 | F19: 94.23372781 | I19: 11 | J19: 0 | K19: =IF($I19=K$8,$D19,0) -> 0 | L19: 0 | M19: 0 | N19: 0 | O19: 0 | P19: 0 | Q19: 0 | R19: 0 | S19: 0 | T19: 0.9894995185 | U19: 0 | V19: 0 | W19: 0 | X19: 0 | Y19: 0 | Z19: 0 | AA19: 0 | AB19: 0 | AC19: 0 | AD19: 0 | AE19: 0 | AF19: 0 | AG19: 0 | AH19: 0 | AI19: 0 | AJ19: 0 | AK19: 0 | AL19: 0 | AM19: 0 | AN19: 0 | AO19: 0 | AP19: 0 | AQ19: 0 | AR19: 0 | AS19: 0 | AT19: 0
B20: 28 | C20: 金属製品 | D20: =-取引額表!BF20/(取引額表!BH20-取引額表!BF20-取引額表!BA20-取引額表!AV20) -> 0.783113069 | E20: 0.216886931 | F20: 3.61069736 | I20: 12 | J20: 0 | K20: 0 | L20: 0 | M20: 0 | N20: 0 | O20: 0 | P20: 0 | Q20: 0 | R20: 0 | S20: 0 | T20: 0 | U20: 0.783113069 | V20: 0 | W20: 0 | X20: 0 | Y20: 0 | Z20: 0 | AA20: 0 | AB20: 0 | AC20: 0 | AD20: 0 | AE20: 0 | AF20: 0 | AG20: 0 | AH20: 0 | AI20: 0 | AJ20: 0 | AK20: 0 | AL20: 0 | AM20: 0 | AN20: 0 | AO20: 0 | AP20: 0 | AQ20: 0 | AR20: 0 | AS20: 0 | AT20: 0
B21: 29 | C21: はん用機械 | D21: =-取引額表!BF21/(取引額表!BH21-取引額表!BF21-取引額表!BA21-取引額表!AV21) -> 0.97128805 | E21: 0.02871195002 | F21: 33.8287037 | I21: 13 | J21: 0 | K21: 0 | L21: 0 | M21: 0 | N21: 0 | O21: 0 | P21: 0 | Q21: 0 | R21: 0 | S21: 0 | T21: 0 | U21: 0 | V21: 0.97128805 | W21: 0 | X21: 0 | Y21: 0 | Z21: 0 | AA21: 0 | AB21: 0 | AC21: 0 | AD21: 0 | AE21: 0 | AF21: 0 | AG21: 0 | AH21: 0 | AI21: 0 | AJ21: 0 | AK21: 0 | AL21: 0 | AM21: 0 | AN21: 0 | AO21: 0 | AP21: 0 | AQ21: 0 | AR21: 0 | AS21: 0 | AT21: 0
B22: 30 | C22: 生産用機械 | D22: =-取引額表!BF22/(取引額表!BH22-取引額表!BF22-取引額表!BA22-取引額表!AV22) -> 0.7492697297 | E22: 0.2507302703 | F22: 2.988349706 | I22: 14 | J22: 0 | K22: 0 | L22: 0 | M22: 0 | N22: 0 | O22: 0 | P22: 0 | Q22: 0 | R22: 0 | S22: 0 | T22: 0 | U22: 0 | V22: 0 | W22: 0.7492697297 | X22: 0 | Y22: 0 | Z22: 0 | AA22: 0 | AB22: 0 | AC22: 0 | AD22: 0 | AE22: 0 | AF22: 0 | AG22: 0 | AH22: 0 | AI22: 0 | AJ22: 0 | AK22: 0 | AL22: 0 | AM22: 0 | AN22: 0 | AO22: 0 | AP22: 0 | AQ22: 0 | AR22: 0 | AS22: 0 | AT22: 0
B23: 31 | C23: 業務用機械 | D23: =-取引額表!BF23/(取引額表!BH23-取引額表!BF23-取引額表!BA23-取引額表!AV23) -> 0.9752792203 | E23: 0.02472077968 | F23: 39.45179856 | I23: 15 | J23: 0 | K23: =IF($I23=K$8,$D23,0) -> 0 | L23: 0 | M23: 0 | N23: 0 | O23: 0 | P23: 0 | Q23: 0 | R23: 0 | S23: 0 | T23: 0 | U23: 0 | V23: 0 | W23: 0 | X23: 0.9752792203 | Y23: 0 | Z23: 0 | AA23: 0 | AB23: 0 | AC23: 0 | AD23: 0 | AE23: 0 | AF23: 0 | AG23: 0 | AH23: 0 | AI23: 0 | AJ23: 0 | AK23: 0 | AL23: 0 | AM23: 0 | AN23: 0 | AO23: 0 | AP23: 0 | AQ23: 0 | AR23: 0 | AS23: 0 | AT23: 0
B24: 32 | C24: 電子部品 | D24: =-取引額表!BF24/(取引額表!BH24-取引額表!BF24-取引額表!BA24-取引額表!AV24) -> 0.7666897867 | E24: 0.2333102133 | F24: 3.286138982 | I24: 16 | J24: 0 | K24: 0 | L24: 0 | M24: 0 | N24: 0 | O24: 0 | P24: 0 | Q24: 0 | R24: 0 | S24: 0 | T24: 0 | U24: 0 | V24: 0 | W24: 0 | X24: 0 | Y24: 0.7666897867 | Z24: 0 | AA24: 0 | AB24: 0 | AC24: 0 | AD24: 0 | AE24: 0 | AF24: 0 | AG24: 0 | AH24: 0 | AI24: 0 | AJ24: 0 | AK24: 0 | AL24: 0 | AM24: 0 | AN24: 0 | AO24: 0 | AP24: 0 | AQ24: 0 | AR24: 0 | AS24: 0 | AT24: 0
B25: 33 | C25: 電気機械 | D25: =-取引額表!BF25/(取引額表!BH25-取引額表!BF25-取引額表!BA25-取引額表!AV25) -> 0.9528523989 | E25: 0.04714760111 | F25: 20.20998686 | I25: 17 | J25: 0 | K25: 0 | L25: 0 | M25: 0 | N25: 0 | O25: 0 | P25: 0 | Q25: 0 | R25: 0 | S25: 0 | T25: 0 | U25: 0 | V25: 0 | W25: 0 | X25: 0 | Y25: 0 | Z25: 0.9528523989 | AA25: 0 | AB25: 0 | AC25: 0 | AD25: 0 | AE25: 0 | AF25: 0 | AG25: 0 | AH25: 0 | AI25: 0 | AJ25: 0 | AK25: 0 | AL25: 0 | AM25: 0 | AN25: 0 | AO25: 0 | AP25: 0 | AQ25: 0 | AR25: 0 | AS25: 0 | AT25: 0
B26: 34 | C26: 情報通信機器 | D26: =-取引額表!BF26/(取引額表!BH26-取引額表!BF26-取引額表!BA26-取引額表!AV26) -> 0.997424819 | E26: 0.002575180978 | F26: 387.3222222 | I26: 18 | J26: =IF($I26=J$8,$D26,0) -> 0 | K26: 0 | L26: 0 | M26: 0 | N26: 0 | O26: 0 | P26: 0 | Q26: 0 | R26: 0 | S26: 0 | T26: 0 | U26: 0 | V26: 0 | W26: 0 | X26: 0 | Y26: 0 | Z26: 0 | AA26: 0.997424819 | AB26: 0 | AC26: 0 | AD26: 0 | AE26: 0 | AF26: 0 | AG26: 0 | AH26: 0 | AI26: 0 | AJ26: 0 | AK26: 0 | AL26: 0 | AM26: 0 | AN26: 0 | AO26: 0 | AP26: 0 | AQ26: 0 | AR26: 0 | AS26: 0 | AT26: 0
B27: 35 | C27: 輸送機械 | D27: =-取引額表!BF27/(取引額表!BH27-取引額表!BF27-取引額表!BA27-取引額表!AV27) -> 0.9917895442 | E27: 0.008210455764 | F27: 120.7959184 | I27: 19 | J27: 0 | K27: =IF($I27=K$8,$D27,0) -> 0 | L27: 0 | M27: 0 | N27: 0 | O27: 0 | P27: 0 | Q27: 0 | R27: 0 | S27: 0 | T27: 0 | U27: 0 | V27: 0 | W27: 0 | X27: 0 | Y27: 0 | Z27: 0 | AA27: 0 | AB27: 0.9917895442 | AC27: 0 | AD27: 0 | AE27: 0 | AF27: 0 | AG27: 0 | AH27: 0 | AI27: 0 | AJ27: 0 | AK27: 0 | AL27: 0 | AM27: 0 | AN27: 0 | AO27: 0 | AP27: 0 | AQ27: 0 | AR27: 0 | AS27: 0 | AT27: 0
B28: 39 | C28: その他の製造工業製品 | D28: =-取引額表!BF28/(取引額表!BH28-取引額表!BF28-取引額表!BA28-取引額表!AV28) -> 0.6873430379 | E28: 0.3126569621 | F28: 2.198393515 | I28: 20 | J28: 0 | K28: 0 | L28: 0 | M28: 0 | N28: 0 | O28: 0 | P28: 0 | Q28: 0 | R28: 0 | S28: 0 | T28: 0 | U28: 0 | V28: 0 | W28: 0 | X28: 0 | Y28: 0 | Z28: 0 | AA28: 0 | AB28: 0 | AC28: 0.6873430379 | AD28: 0 | AE28: 0 | AF28: 0 | AG28: 0 | AH28: 0 | AI28: 0 | AJ28: 0 | AK28: 0 | AL28: 0 | AM28: 0 | AN28: 0 | AO28: 0 | AP28: 0 | AQ28: 0 | AR28: 0 | AS28: 0 | AT28: 0
B29: 41 | C29: 建設 | D29: =-取引額表!BF29/(取引額表!BH29-取引額表!BF29-取引額表!BA29-取引額表!AV29) -> 0 | E29: 1 | F29: 0 | I29: 21 | J29: 0 | K29: 0 | L29: 0 | M29: 0 | N29: 0 | O29: 0 | P29: 0 | Q29: 0 | R29: 0 | S29: 0 | T29: 0 | U29: 0 | V29: 0 | W29: 0 | X29: 0 | Y29: 0 | Z29: 0 | AA29: 0 | AB29: 0 | AC29: 0 | AD29: 0 | AE29: 0 | AF29: 0 | AG29: 0 | AH29: 0 | AI29: 0 | AJ29: 0 | AK29: 0 | AL29: 0 | AM29: 0 | AN29: 0 | AO29: 0 | AP29: 0 | AQ29: 0 | AR29: 0 | AS29: 0 | AT29: 0
B30: 46 | C30: 電力・ガス・熱供給 | D30: =-取引額表!BF30/(取引額表!BH30-取引額表!BF30-取引額表!BA30-取引額表!AV30) -> 0 | E30: 1 | F30: 0 | I30: 22 | J30: 0 | K30: 0 | L30: 0 | M30: 0 | N30: 0 | O30: 0 | P30: 0 | Q30: 0 | R30: 0 | S30: 0 | T30: 0 | U30: 0 | V30: 0 | W30: 0 | X30: 0 | Y30: 0 | Z30: 0 | AA30: 0 | AB30: 0 | AC30: 0 | AD30: 0 | AE30: 0 | AF30: 0 | AG30: 0 | AH30: 0 | AI30: 0 | AJ30: 0 | AK30: 0 | AL30: 0 | AM30: 0 | AN30: 0 | AO30: 0 | AP30: 0 | AQ30: 0 | AR30: 0 | AS30: 0 | AT30: 0
B31: 47 | C31: 水道 | D31: =-取引額表!BF31/(取引額表!BH31-取引額表!BF31-取引額表!BA31-取引額表!AV31) -> 0 | E31: 1 | F31: 0 | I31: 23 | J31: 0 | K31: =IF($I31=K$8,$D31,0) -> 0 | L31: 0 | M31: 0 | N31: 0 | O31: 0 | P31: 0 | Q31: 0 | R31: 0 | S31: 0 | T31: 0 | U31: 0 | V31: 0 | W31: 0 | X31: 0 | Y31: 0 | Z31: 0 | AA31: 0 | AB31: 0 | AC31: 0 | AD31: 0 | AE31: 0 | AF31: 0 | AG31: 0 | AH31: 0 | AI31: 0 | AJ31: 0 | AK31: 0 | AL31: 0 | AM31: 0 | AN31: 0 | AO31: 0 | AP31: 0 | AQ31: 0 | AR31: 0 | AS31: 0 | AT31: 0
B32: 48 | C32: 廃棄物処理 | D32: =-取引額表!BF32/(取引額表!BH32-取引額表!BF32-取引額表!BA32-取引額表!AV32) -> 0.3463016753 | E32: =1-D32 -> 0.6536983247 | F32: 0.5297576302 | I32: 24 | J32: 0 | K32: 0 | L32: 0 | M32: 0 | N32: 0 | O32: 0 | P32: 0 | Q32: 0 | R32: 0 | S32: 0 | T32: 0 | U32: 0 | V32: 0 | W32: 0 | X32: 0 | Y32: 0 | Z32: 0 | AA32: 0 | AB32: 0 | AC32: 0 | AD32: 0 | AE32: 0 | AF32: 0 | AG32: 0.3463016753 | AH32: 0 | AI32: 0 | AJ32: 0 | AK32: 0 | AL32: 0 | AM32: 0 | AN32: 0 | AO32: 0 | AP32: 0 | AQ32: 0 | AR32: 0 | AS32: 0 | AT32: 0
B33: 51 | C33: 商業 | D33: =-取引額表!BF33/(取引額表!BH33-取引額表!BF33-取引額表!BA33-取引額表!AV33) -> 0.1263500417 | E33: 0.8736499583 | F33: 0.1446231875 | I33: 25 | J33: 0 | K33: 0 | L33: 0 | M33: 0 | N33: 0 | O33: 0 | P33: 0 | Q33: 0 | R33: 0 | S33: 0 | T33: 0 | U33: 0 | V33: 0 | W33: 0 | X33: 0 | Y33: 0 | Z33: 0 | AA33: 0 | AB33: 0 | AC33: 0 | AD33: 0 | AE33: 0 | AF33: 0 | AG33: 0 | AH33: 0.1263500417 | AI33: 0 | AJ33: 0 | AK33: 0 | AL33: 0 | AM33: 0 | AN33: 0 | AO33: 0 | AP33: 0 | AQ33: 0 | AR33: 0 | AS33: 0 | AT33: 0
B34: 53 | C34: 金融・保険 | D34: =-取引額表!BF34/(取引額表!BH34-取引額表!BF34-取引額表!BA34-取引額表!AV34) -> 0.1163449534 | E34: 0.8836550466 | F34: 0.1316633158 | I34: 26 | J34: 0 | K34: 0 | L34: 0 | M34: 0 | N34: 0 | O34: 0 | P34: 0 | Q34: 0 | R34: 0 | S34: 0 | T34: 0 | U34: 0 | V34: 0 | W34: 0 | X34: 0 | Y34: 0 | Z34: 0 | AA34: 0 | AB34: 0 | AC34: 0 | AD34: 0 | AE34: 0 | AF34: 0 | AG34: 0 | AH34: 0 | AI34: 0.1163449534 | AJ34: 0 | AK34: 0 | AL34: 0 | AM34: 0 | AN34: 0 | AO34: 0 | AP34: 0 | AQ34: 0 | AR34: 0 | AS34: 0 | AT34: 0
B35: 55 | C35: 不動産 | D35: =-取引額表!BF35/(取引額表!BH35-取引額表!BF35-取引額表!BA35-取引額表!AV35) -> 0.01090769258 | E35: 0.9890923074 | F35: 0.01102798242 | I35: 27 | J35: 0 | K35: =IF($I35=K$8,$D35,0) -> 0 | L35: 0 | M35: 0 | N35: 0 | O35: 0 | P35: 0 | Q35: 0 | R35: 0 | S35: 0 | T35: 0 | U35: 0 | V35: 0 | W35: 0 | X35: 0 | Y35: 0 | Z35: 0 | AA35: 0 | AB35: 0 | AC35: 0 | AD35: 0 | AE35: 0 | AF35: 0 | AG35: 0 | AH35: 0 | AI35: 0 | AJ35: 0.01090769258 | AK35: 0 | AL35: 0 | AM35: 0 | AN35: 0 | AO35: 0 | AP35: 0 | AQ35: 0 | AR35: 0 | AS35: 0 | AT35: 0
B36: 57 | C36: 運輸・郵便 | D36: =-取引額表!BF36/(取引額表!BH36-取引額表!BF36-取引額表!BA36-取引額表!AV36) -> 0.292466164 | E36: 0.707533836 | F36: 0.4133599682 | I36: 28 | J36: 0 | K36: 0 | L36: 0 | M36: 0 | N36: 0 | O36: 0 | P36: 0 | Q36: 0 | R36: 0 | S36: 0 | T36: 0 | U36: 0 | V36: 0 | W36: 0 | X36: 0 | Y36: 0 | Z36: 0 | AA36: 0 | AB36: 0 | AC36: 0 | AD36: 0 | AE36: 0 | AF36: 0 | AG36: 0 | AH36: 0 | AI36: 0 | AJ36: 0 | AK36: 0.292466164 | AL36: 0 | AM36: 0 | AN36: 0 | AO36: 0 | AP36: 0 | AQ36: 0 | AR36: 0 | AS36: 0 | AT36: 0
B37: 59 | C37: 情報通信 | D37: =-取引額表!BF37/(取引額表!BH37-取引額表!BF37-取引額表!BA37-取引額表!AV37) -> 0.3115015559 | E37: 0.6884984441 | F37: 0.4524361072 | I37: 29 | J37: 0 | K37: 0 | L37: 0 | M37: 0 | N37: 0 | O37: 0 | P37: 0 | Q37: 0 | R37: 0 | S37: 0 | T37: 0 | U37: 0 | V37: 0 | W37: 0 | X37: 0 | Y37: 0 | Z37: 0 | AA37: 0 | AB37: 0 | AC37: 0 | AD37: 0 | AE37: 0 | AF37: 0 | AG37: 0 | AH37: 0 | AI37: 0 | AJ37: 0 | AK37: 0 | AL37: 0.3115015559 | AM37: 0 | AN37: 0 | AO37: 0 | AP37: 0 | AQ37: 0 | AR37: 0 | AS37: 0 | AT37: 0
B38: 61 | C38: 公務 | D38: =-取引額表!BF38/(取引額表!BH38-取引額表!BF38-取引額表!BA38-取引額表!AV38) -> 0 | E38: 1 | F38: 0 | I38: 30 | J38: 0 | K38: 0 | L38: 0 | M38: 0 | N38: 0 | O38: 0 | P38: 0 | Q38: 0 | R38: 0 | S38: 0 | T38: 0 | U38: 0 | V38: 0 | W38: 0 | X38: 0 | Y38: 0 | Z38: 0 | AA38: 0 | AB38: 0 | AC38: 0 | AD38: 0 | AE38: 0 | AF38: 0 | AG38: 0 | AH38: 0 | AI38: 0 | AJ38: 0 | AK38: 0 | AL38: 0 | AM38: 0 | AN38: 0 | AO38: 0 | AP38: 0 | AQ38: 0 | AR38: 0 | AS38: 0 | AT38: 0
B39: 63 | C39: 教育・研究 | D39: =-取引額表!BF39/(取引額表!BH39-取引額表!BF39-取引額表!BA39-取引額表!AV39) -> 0.2662079831 | E39: 0.7337920169 | F39: 0.3627839727 | I39: 31 | J39: 0 | K39: =IF($I39=K$8,$D39,0) -> 0 | L39: 0 | M39: 0 | N39: 0 | O39: 0 | P39: 0 | Q39: 0 | R39: 0 | S39: 0 | T39: 0 | U39: 0 | V39: 0 | W39: 0 | X39: 0 | Y39: 0 | Z39: 0 | AA39: 0 | AB39: 0 | AC39: 0 | AD39: 0 | AE39: 0 | AF39: 0 | AG39: 0 | AH39: 0 | AI39: 0 | AJ39: 0 | AK39: 0 | AL39: 0 | AM39: 0 | AN39: 0.2662079831 | AO39: 0 | AP39: 0 | AQ39: 0 | AR39: 0 | AS39: 0 | AT39: 0
B40: 64 | C40: 医療・福祉 | D40: =-取引額表!BF40/(取引額表!BH40-取引額表!BF40-取引額表!BA40-取引額表!AV40) -> 0.07678947767 | E40: 0.9232105223 | F40: 0.08317656246 | I40: 32 | J40: 0 | K40: 0 | L40: 0 | M40: 0 | N40: 0 | O40: 0 | P40: 0 | Q40: 0 | R40: 0 | S40: 0 | T40: 0 | U40: 0 | V40: 0 | W40: 0 | X40: 0 | Y40: 0 | Z40: 0 | AA40: 0 | AB40: 0 | AC40: 0 | AD40: 0 | AE40: 0 | AF40: 0 | AG40: 0 | AH40: 0 | AI40: 0 | AJ40: 0 | AK40: 0 | AL40: 0 | AM40: 0 | AN40: 0 | AO40: 0.07678947767 | AP40: 0 | AQ40: 0 | AR40: 0 | AS40: 0 | AT40: 0
B41: 65 | C41: 他に分類されない会員制団体 | D41: =-取引額表!BF41/(取引額表!BH41-取引額表!BF41-取引額表!BA41-取引額表!AV41) -> 0.4328469737 | E41: 0.5671530263 | F41: 0.7631925664 | I41: 33 | J41: 0 | K41: 0 | L41: 0 | M41: 0 | N41: 0 | O41: 0 | P41: 0 | Q41: 0 | R41: 0 | S41: 0 | T41: 0 | U41: 0 | V41: 0 | W41: 0 | X41: 0 | Y41: 0 | Z41: 0 | AA41: 0 | AB41: 0 | AC41: 0 | AD41: 0 | AE41: 0 | AF41: 0 | AG41: 0 | AH41: 0 | AI41: 0 | AJ41: 0 | AK41: 0 | AL41: 0 | AM41: 0 | AN41: 0 | AO41: 0 | AP41: 0.4328469737 | AQ41: 0 | AR41: 0 | AS41: 0 | AT41: 0
B42: 66 | C42: 対事業所サービス | D42: =-取引額表!BF42/(取引額表!BH42-取引額表!BF42-取引額表!BA42-取引額表!AV42) -> 0.3484985499 | E42: 0.6515014501 | F42: 0.5349160003 | I42: 34 | J42: 0 | K42: 0 | L42: 0 | M42: 0 | N42: 0 | O42: 0 | P42: 0 | Q42: 0 | R42: 0 | S42: 0 | T42: 0 | U42: 0 | V42: 0 | W42: 0 | X42: 0 | Y42: 0 | Z42: 0 | AA42: 0 | AB42: 0 | AC42: 0 | AD42: 0 | AE42: 0 | AF42: 0 | AG42: 0 | AH42: 0 | AI42: 0 | AJ42: 0 | AK42: 0 | AL42: 0 | AM42: 0 | AN42: 0 | AO42: 0 | AP42: 0 | AQ42: 0.3484985499 | AR42: 0 | AS42: 0 | AT42: 0
B43: 67 | C43: 対個人サービス | D43: =-取引額表!BF43/(取引額表!BH43-取引額表!BF43-取引額表!BA43-取引額表!AV43) -> 0.2497120499 | E43: 0.7502879501 | F43: 0.3328216185 | I43: 35 | J43: 0 | K43: =IF($I43=K$8,$D43,0) -> 0 | L43: 0 | M43: 0 | N43: 0 | O43: 0 | P43: 0 | Q43: 0 | R43: 0 | S43: 0 | T43: 0 | U43: 0 | V43: 0 | W43: 0 | X43: 0 | Y43: 0 | Z43: 0 | AA43: 0 | AB43: 0 | AC43: 0 | AD43: 0 | AE43: 0 | AF43: 0 | AG43: 0 | AH43: 0 | AI43: 0 | AJ43: 0 | AK43: 0 | AL43: 0 | AM43: 0 | AN43: 0 | AO43: 0 | AP43: 0 | AQ43: 0 | AR43: 0.2497120499 | AS43: 0 | AT43: 0
B44: 68 | C44: 事務用品 | D44: =-取引額表!BF44/(取引額表!BH44-取引額表!BF44-取引額表!BA44-取引額表!AV44) -> 0 | E44: 1 | F44: 0 | I44: 36 | J44: 0 | K44: 0 | L44: 0 | M44: 0 | N44: 0 | O44: 0 | P44: 0 | Q44: 0 | R44: 0 | S44: 0 | T44: 0 | U44: 0 | V44: 0 | W44: 0 | X44: 0 | Y44: 0 | Z44: 0 | AA44: 0 | AB44: 0 | AC44: 0 | AD44: 0 | AE44: 0 | AF44: 0 | AG44: 0 | AH44: 0 | AI44: 0 | AJ44: 0 | AK44: 0 | AL44: 0 | AM44: 0 | AN44: 0 | AO44: 0 | AP44: 0 | AQ44: 0 | AR44: 0 | AS44: 0 | AT44: 0
B45: 69 | C45: 分類不明 | D45: =-取引額表!BF45/(取引額表!BH45-取引額表!BF45-取引額表!BA45-取引額表!AV45) -> 0 | E45: 1 | F45: 0 | I45: 37 | J45: 0 | K45: 0 | L45: 0 | M45: 0 | N45: 0 | O45: 0 | P45: 0 | Q45: 0 | R45: 0 | S45: 0 | T45: 0 | U45: 0 | V45: 0 | W45: 0 | X45: 0 | Y45: 0 | Z45: 0 | AA45: 0 | AB45: 0 | AC45: 0 | AD45: 0 | AE45: 0 | AF45: 0 | AG45: 0 | AH45: 0 | AI45: 0 | AJ45: 0 | AK45: 0 | AL45: 0 | AM45: 0 | AN45: 0 | AO45: 0 | AP45: 0 | AQ45: 0 | AR45: 0 | AS45: 0 | AT45: 0

Sheet 付加価値率 (hidden)
D8: 粗付加価値額 | E8: 市内生産額 | F8: 付加価値率 | G8: 雇用者数 | H8: 雇用者数/生産額
B9: 01 | C9: 農林漁業 | D9: =TRANSPOSE(取引額表!D53:AN53) -> 7647 | E9: =TRANSPOSE(取引額表!D54:AN54) -> 14498 | F9: =IF(E9=0,0,D9/E9) -> 0.5274520624 | G9: 776 | H9: =IF(E9=0,0,G9/E9) -> 0.05352462409
B10: 06 | C10: 鉱業 | D10: 12 | E10: 32 | F10: =IF(E10=0,0,D10/E10) -> 0.375 | G10: 3 | H10: =IF(E10=0,0,G10/E10) -> 0.09375
B11: 11 | C11: 飲食料品 | D11: 84163 | E11: 315268 | F11: 0.2669570017 | G11: 8360 | H11: 0.02651712194
B12: 15 | C12: 繊維製品 | D12: 853 | E12: 1657 | F12: 0.5147857574 | G12: 312 | H12: 0.1882920941
B13: 16 | C13: パルプ・紙・木製品 | D13: 9799 | E13: 21130 | F13: 0.4637482253 | G13: 777 | H13: 0.03677236157
B14: 20 | C14: 化学製品 | D14: 6006 | E14: 16520 | F14: 0.363559322 | G14: 1096 | H14: 0.06634382567
B15: 21 | C15: 石油・石炭製品 | D15: 6456 | E15: 78838 | F15: 0.08188944418 | G15: 128 | H15: 0.001623582536
B16: 22 | C16: プラスチック・ゴム製品 | D16: 4975 | E16: 12879 | F16: 0.3862877553 | G16: 920 | H16: 0.07143411756
B17: 25 | C17: 窯業・土石製品 | D17: 12721 | E17: 24145 | F17: 0.5268585628 | G17: 935 | H17: 0.03872437358
B18: 26 | C18: 鉄鋼 | D18: 269915 | E18: 1083486 | F18: 0.2491172013 | G18: 4389 | H18: 0.004050813762
B19: 27 | C19: 非鉄金属 | D19: 3274 | E19: 17441 | F19: 0.1877185941 | G19: 420 | H19: 0.02408118801
B20: 28 | C20: 金属製品 | D20: 17217 | E20: 36483 | F20: 0.4719184278 | G20: 3031 | H20: 0.08307979059
B21: 29 | C21: はん用機械 | D21: 3100 | E21: 6727 | F21: 0.4608294931 | G21: 800 | H21: 0.1189237402
B22: 30 | C22: 生産用機械 | D22: 42940 | E22: 100265 | F22: 0.4282650975 | G22: 3741 | H22: 0.03731112552
B23: 31 | C23: 業務用機械 | D23: 3811 | E23: 7980 | F23: 0.4775689223 | G23: 512 | H23: 0.064160401
B24: 32 | C24: 電子部品 | D24: 2871 | E24: 6806 | F24: 0.4218336762 | G24: 972 | H24: 0.1428151631
B25: 33 | C25: 電気機械 | D25: 4503 | E25: 10082 | F25: 0.4466375719 | G25: 640 | H25: 0.06347946836
B26: 34 | C26: 情報通信機器 | D26: 2002 | E26: 5360 | F26: 0.3735074627 | G26: 696 | H26: 0.1298507463
B27: 35 | C27: 輸送機械 | D27: 462 | E27: 1216 | F27: 0.3799342105 | G27: 508 | H27: 0.4177631579
B28: 39 | C28: その他の製造工業製品 | D28: 17461 | E28: 39085 | F28: 0.4467442753 | G28: 2989 | H28: 0.07647435077
B29: 41 | C29: 建設 | D29: 169987 | E29: 363415 | F29: 0.4677489922 | G29: 36562 | H29: 0.1006067444
B30: 46 | C30: 電力・ガス・熱供給 | D30: 111640 | E30: 289725 | F30: 0.3853309172 | G30: 1603 | H30: 0.005532832859
B31: 47 | C31: 水道 | D31: 20259 | E31: 36631 | F31: 0.5530561546 | G31: 1388 | H31: 0.03789140346
B32: 48 | C32: 廃棄物処理 | D32: 30903 | E32: 46133 | F32: 0.6698675568 | G32: 3655 | H32: 0.07922745107
B33: 51 | C33: 商業 | D33: 525472 | E33: 755864 | F33: 0.6951938444 | G33: 79654 | H33: 0.1053813914
B34: 53 | C34: 金融・保険 | D34: 246046 | E34: 373363 | F34: 0.6589994188 | G34: 17753 | H34: 0.04754890013
B35: 55 | C35: 不動産 | D35: 553045 | E35: 656064 | F35: 0.8429741611 | G35: 7000 | H35: 0.01066969076
B36: 57 | C36: 運輸・郵便 | D36: 211750 | E36: 365081 | F36: 0.5800082721 | G36: 25583 | H36: 0.0700748601
B37: 59 | C37: 情報通信 | D37: 223083 | E37: 375540 | F37: 0.5940325931 | G37: 16716 | H37: 0.04451190286
B38: 61 | C38: 公務 | D38: 218215 | E38: 307290 | F38: 0.7101272414 | G38: 17858 | H38: 0.05811448469
B39: 63 | C39: 教育・研究 | D39: 249483 | E39: 322610 | F39: 0.7733269272 | G39: 26787 | H39: 0.08303214407
B40: 64 | C40: 医療・福祉 | D40: 302317 | E40: 494067 | F40: 0.611894743 | G40: 55108 | H40: 0.111539528
B41: 65 | C41: 他に分類されない会員制団体 | D41: 19475 | E41: 28940 | F41: 0.6729440221 | G41: 3582 | H41: 0.1237733241
B42: 66 | C42: 対事業所サービス | D42: 434073 | E42: 657636 | F42: 0.6600505447 | G42: 66330 | H42: 0.1008612667
B43: 67 | C43: 対個人サービス | D43: 215825 | E43: 400260 | F43: 0.5392120122 | G43: 61323 | H43: 0.1532079149
B44: 68 | C44: 事務用品 | D44: 400 | E44: 10673 | F44: 0.03747774759 | G44: 0 | H44: 0
B45: 69 | C45: 分類不明 | D45: 0 | E45: 85164 | F45: 0 | G45: 65 | H45: 0.0007632332911

Sheet 市内品投入係数表 (hidden)
D7: 01 | E7: 06 | F7: 11 | G7: 15 | H7: 16 | I7: 20 | J7: 21 | K7: 22 | L7: 25 | M7: 26 | N7: 27 | O7: 28 | P7: 29 | Q7: 30 | R7: 31 | S7: 32 | T7: 33 | U7: 34 | V7: 35 | W7: 39 | X7: 41 | Y7: 46 | Z7: 47 | AA7: 48 | AB7: 51 | AC7: 53 | AD7: 55 | AE7: 57 | AF7: 59 | AG7: 61 | AH7: 63 | AI7: 64 | AJ7: 65 | AK7: 66 | AL7: 67 | AM7: 68 | AN7: 69
D8: 農林漁業 | E8: 鉱業 | F8: 飲食料品 | G8: 繊維製品 | H8: パルプ・紙・木製品 | I8: 化学製品 | J8: 石油・石炭製品 | K8: プラスチック・ゴム製品 | L8: 窯業・土石製品 | M8: 鉄鋼 | N8: 非鉄金属 | O8: 金属製品 | P8: はん用機械 | Q8: 生産用機械 | R8: 業務用機械 | S8: 電子部品 | T8: 電気機械 | U8: 情報通信機器 | V8: 輸送機械 | W8: その他の製造工業製品 | X8: 建設 | Y8: 電力・ガス・熱供給 | Z8: 水道 | AA8: 廃棄物処理 | AB8: 商業 | AC8: 金融・保険 | AD8: 不動産 | AE8: 運輸・郵便 | AF8: 情報通信 | AG8: 公務 | AH8: 教育・研究 | AI8: 医療・福祉 | AJ8: 他に分類されない会員制団体 | AK8: 対事業所サービス | AL8: 対個人サービス | AM8: 事務用品 | AN8: 分類不明
B9: 01 | C9: 農林漁業 | D9: =投入係数表!D9*移輸入係数!$E9 -> 0.005029931258 | E9: =投入係数表!E9*移輸入係数!$E9 -> 0 | F9: =投入係数表!F9*移輸入係数!$E9 -> 0.01860550168 | G9: =投入係数表!G9*移輸入係数!$E9 -> 0.0001615624884 | H9: =投入係数表!H9*移輸入係数!$E9 -> 0.0003395457813 | I9: =投入係数表!I9*移輸入係数!$E9 -> 2.268720705e-05 | J9: =投入係数表!J9*移輸入係数!$E9 -> 0 | K9: =投入係数表!K9*移輸入係数!$E9 -> 4.157295492e-05 | L9: =投入係数表!L9*移輸入係数!$E9 -> 4.43502246e-06 | M9: =投入係数表!M9*移輸入係数!$E9 -> 0 | N9: =投入係数表!N9*移輸入係数!$E9 -> 0 | O9: =投入係数表!O9*移輸入係数!$E9 -> 0 | P9: =投入係数表!P9*移輸入係数!$E9 -> 0 | Q9: =投入係数表!Q9*移輸入係数!$E9 -> 0 | R9: =投入係数表!R9*移輸入係数!$E9 -> 0 | S9: =投入係数表!S9*移輸入係数!$E9 -> 0 | T9: =投入係数表!T9*移輸入係数!$E9 -> 0 | U9: =投入係数表!U9*移輸入係数!$E9 -> 0 | V9: =投入係数表!V9*移輸入係数!$E9 -> 0 | W9: =投入係数表!W9*移輸入係数!$E9 -> 0.001582212843 | X9: =投入係数表!X9*移輸入係数!$E9 -> 5.362799649e-05 | Y9: =投入係数表!Y9*移輸入係数!$E9 -> 0 | Z9: =投入係数表!Z9*移輸入係数!$E9 -> 0 | AA9: =投入係数表!AA9*移輸入係数!$E9 -> 0 | AB9: =投入係数表!AB9*移輸入係数!$E9 -> 6.941853623e-06 | AC9: =投入係数表!AC9*移輸入係数!$E9 -> 0 | AD9: =投入係数表!AD9*移輸入係数!$E9 -> 8.161064872e-08 | AE9: =投入係数表!AE9*移輸入係数!$E9 -> 0 | AF9: =投入係数表!AF9*移輸入係数!$E9 -> 0 | AG9: =投入係数表!AG9*移輸入係数!$E9 -> 1.393909561e-06 | AH9: =投入係数表!AH9*移輸入係数!$E9 -> 0.0001106983242 | AI9: =投入係数表!AI9*移輸入係数!$E9 -> 0.0001261421331 | AJ9: =投入係数表!AJ9*移輸入係数!$E9 -> 9.805514368e-05 | AK9: =投入係数表!AK9*移輸入係数!$E9 -> 4.070778413e-07 | AL9: =投入係数表!AL9*移輸入係数!$E9 -> 0.001142642606 | AM9: =投入係数表!AM9*移輸入係数!$E9 -> 0 | AN9: =投入係数表!AN9*移輸入係数!$E9 -> 0
B10: 06 | C10: 鉱業 | D10: =投入係数表!D10*移輸入係数!$E10 -> 0 | E10: =投入係数表!E10*移輸入係数!$E10 -> 0 | F10: =投入係数表!F10*移輸入係数!$E10 -> 2.758718592e-08 | G10: =投入係数表!G10*移輸入係数!$E10 -> 0 | H10: =投入係数表!H10*移輸入係数!$E10 -> 2.024320234e-08 | I10: =投入係数表!I10*移輸入係数!$E10 -> 1.337762795e-06 | J10: =投入係数表!J10*移輸入係数!$E10 -> 0.0001039714663 | K10: =投入係数表!K10*移輸入係数!$E10 -> 0 | L10: =投入係数表!L10*移輸入係数!$E10 -> 7.653062326e-06 | M10: =投入係数表!M10*移輸入係数!$E10 -> 1.021717585e-05 | N10: =投入係数表!N10*移輸入係数!$E10 -> 8.99246511e-08 | O10: =投入係数表!O10*移輸入係数!$E10 -> 2.344866735e-08 | P10: =投入係数表!P10*移輸入係数!$E10 -> 0 | Q10: =投入係数表!Q10*移輸入係数!$E10 -> 0 | R10: =投入係数表!R10*移輸入係数!$E10 -> 1.786712053e-08 | S10: =投入係数表!S10*移輸入係数!$E10 -> 0 | T10: =投入係数表!T10*移輸入係数!$E10 -> 0 | U10: =投入係数表!U10*移輸入係数!$E10 -> 0 | V10: =投入係数表!V10*移輸入係数!$E10 -> 0 | W10: =投入係数表!W10*移輸入係数!$E10 -> 1.130860503e-07 | X10: =投入係数表!X10*移輸入係数!$E10 -> 8.191908709e-07 | Y10: =投入係数表!Y10*移輸入係数!$E10 -> 4.201577486e-05 | Z10: =投入係数表!Z10*移輸入係数!$E10 -> 0 | AA10: =投入係数表!AA10*移輸入係数!$E10 -> 0 | AB10: =投入係数表!AB10*移輸入係数!$E10 -> 1.88631317e-10 | AC10: =投入係数表!AC10*移輸入係数!$E10 -> 0 | AD10: =投入係数表!AD10*移輸入係数!$E10 -> 0 | AE10: =投入係数表!AE10*移輸入係数!$E10 -> 7.81084865e-10 | AF10: =投入係数表!AF10*移輸入係数!$E10 -> 0 | AG10: =投入係数表!AG10*移輸入係数!$E10 -> 9.279808767e-10 | AH10: =投入係数表!AH10*移輸入係数!$E10 -> 2.209783048e-09 | AI10: =投入係数表!AI10*移輸入係数!$E10 -> 2.885835763e-10 | AJ10: =投入係数表!AJ10*移輸入係数!$E10 -> 4.926731921e-09 | AK10: =投入係数表!AK10*移輸入係数!$E10 -> 8.672251629e-10 | AL10: =投入係数表!AL10*移輸入係数!$E10 -> 2.137305079e-09 | AM10: =投入係数表!AM10*移輸入係数!$E10 -> 0 | AN10: =投入係数表!AN10*移輸入係数!$E10 -> 1.171923997e-08
B11: 11 | C11: 飲食料品 | D11: =投入係数表!D11*移輸入係数!$E11 -> 0.0266928673 | E11: =投入係数表!E11*移輸入係数!$E11 -> 0 | F11: =投入係数表!F11*移輸入係数!$E11 -> 0.05475532436 | G11: =投入係数表!G11*移輸入係数!$E11 -> 0.0001991052915 | H11: =投入係数表!H11*移輸入係数!$E11 -> 7.806849694e-05 | I11: =投入係数表!I11*移輸入係数!$E11 -> 0.002276670179 | J11: =投入係数表!J11*移輸入係数!$E11 -> 0 | K11: =投入係数表!K11*移輸入係数!$E11 -> 0 | L11: =投入係数表!L11*移輸入係数!$E11 -> 0.0003142721792 | M11: =投入係数表!M11*移輸入係数!$E11 -> 0 | N11: =投入係数表!N11*移輸入係数!$E11 -> 0 | O11: =投入係数表!O11*移輸入係数!$E11 -> 0 | P11: =投入係数表!P11*移輸入係数!$E11 -> 0 | Q11: =投入係数表!Q11*移輸入係数!$E11 -> 0 | R11: =投入係数表!R11*移輸入係数!$E11 -> 0 | S11: =投入係数表!S11*移輸入係数!$E11 -> 0 | T11: =投入係数表!T11*移輸入係数!$E11 -> 0 | U11: =投入係数表!U11*移輸入係数!$E11 -> 0 | V11: =投入係数表!V11*移輸入係数!$E11 -> 0 | W11: =投入係数表!W11*移輸入係数!$E11 -> 0.0003798461319 | X11: =投入係数表!X11*移輸入係数!$E11 -> 2.723477028e-06 | Y11: =投入係数表!Y11*移輸入係数!$E11 -> 0 | Z11: =投入係数表!Z11*移輸入係数!$E11 -> 0 | AA11: =投入係数表!AA11*移輸入係数!$E11 -> 0 | AB11: =投入係数表!AB11*移輸入係数!$E11 -> 4.583011514e-05 | AC11: =投入係数表!AC11*移輸入係数!$E11 -> 0 | AD11: =投入係数表!AD11*移輸入係数!$E11 -> 0 | AE11: =投入係数表!AE11*移輸入係数!$E11 -> 0 | AF11: =投入係数表!AF11*移輸入係数!$E11 -> 0 | AG11: =投入係数表!AG11*移輸入係数!$E11 -> 8.696447953e-05 | AH11: =投入係数表!AH11*移輸入係数!$E11 -> 0.001779412896 | AI11: =投入係数表!AI11*移輸入係数!$E11 -> 0.002309776856 | AJ11: =投入係数表!AJ11*移輸入係数!$E11 -> 0.000376201674 | AK11: =投入係数表!AK11*移輸入係数!$E11 -> 1.003343698e-06 | AL11: =投入係数表!AL11*移輸入係数!$E11 -> 0.04288284164 | AM11: =投入係数表!AM11*移輸入係数!$E11 -> 0 | AN11: =投入係数表!AN11*移輸入係数!$E11 -> 0.0003873907615
B12: 15 | C12: 繊維製品 | D12: =投入係数表!D12*移輸入係数!$E12 -> 1.420947968e-05 | E12: =投入係数表!E12*移輸入係数!$E12 -> 0 | F12: =投入係数表!F12*移輸入係数!$E12 -> 5.958759573e-06 | G12: =投入係数表!G12*移輸入係数!$E12 -> 0.001062695693 | H12: =投入係数表!H12*移輸入係数!$E12 -> 2.042773218e-05 | I12: =投入係数表!I12*移輸入係数!$E12 -> 2.375291553e-06 | J12: =投入係数表!J12*移輸入係数!$E12 -> 8.08806689e-07 | K12: =投入係数表!K12*移輸入係数!$E12 -> 1.142552308e-05 | L12: =投入係数表!L12*移輸入係数!$E12 -> 1.157936187e-05 | M12: =投入係数表!M12*移輸入係数!$E12 -> 1.190609723e-06 | N12: =投入係数表!N12*移輸入係数!$E12 -> 8.436976763e-07 | O12: =投入係数表!O12*移輸入係数!$E12 -> 4.033366547e-06 | P12: =投入係数表!P12*移輸入係数!$E12 -> 2.187443314e-06 | Q12: =投入係数表!Q12*移輸入係数!$E12 -> 3.033048198e-06 | R12: =投入係数表!R12*移輸入係数!$E12 -> 3.687952675e-06 | S12: =投入係数表!S12*移輸入係数!$E12 -> 2.089984347e-05 | T12: =投入係数表!T12*移輸入係数!$E12 -> 3.405558362e-06 | U12: =投入係数表!U12*移輸入係数!$E12 -> 9.1510766e-07 | V12: =投入係数表!V12*移輸入係数!$E12 -> 0 | W12: =投入係数表!W12*移輸入係数!$E12 -> 8.157183286e-06 | X12: =投入係数表!X12*移輸入係数!$E12 -> 1.518401604e-05 | Y12: =投入係数表!Y12*移輸入係数!$E12 -> 8.126288679e-07 | Z12: =投入係数表!Z12*移輸入係数!$E12 -> 3.615363505e-06 | AA12: =投入係数表!AA12*移輸入係数!$E12 -> 8.718447071e-06 | AB12: =投入係数表!AB12*移輸入係数!$E12 -> 2.08563925e-05 | AC12: =投入係数表!AC12*移輸入係数!$E12 -> 6.897075916e-06 | AD12: =投入係数表!AD12*移輸入係数!$E12 -> 1.046691768e-07 | AE12: =投入係数表!AE12*移輸入係数!$E12 -> 1.004961321e-05 | AF12: =投入係数表!AF12*移輸入係数!$E12 -> 4.101195068e-06 | AG12: =投入係数表!AG12*移輸入係数!$E12 -> 1.663245174e-05 | AH12: =投入係数表!AH12*移輸入係数!$E12 -> 2.447851295e-06 | AI12: =投入係数表!AI12*移輸入係数!$E12 -> 1.434560869e-05 | AJ12: =投入係数表!AJ12*移輸入係数!$E12 -> 9.135392653e-05 | AK12: =投入係数表!AK12*移輸入係数!$E12 -> 1.033747879e-05 | AL12: =投入係数表!AL12*移輸入係数!$E12 -> 1.643325397e-05 | AM12: =投入係数表!AM12*移輸入係数!$E12 -> 9.145417731e-05 | AN12: =投入係数表!AN12*移輸入係数!$E12 -> 2.390171292e-05
B13: 16 | C13: パルプ・紙・木製品 | D13: =投入係数表!D13*移輸入係数!$E13 -> 0.004503194874 | E13: =投入係数表!E13*移輸入係数!$E13 -> 0 | F13: =投入係数表!F13*移輸入係数!$E13 -> 0.001477361616 | G13: =投入係数表!G13*移輸入係数!$E13 -> 0.0008804674165 | H13: =投入係数表!H13*移輸入係数!$E13 -> 0.04248896467 | I13: =投入係数表!I13*移輸入係数!$E13 -> 0.0008610539627 | J13: =投入係数表!J13*移輸入係数!$E13 -> 1.619228919e-05 | K13: =投入係数表!K13*移輸入係数!$E13 -> 0.001118641065 | L13: =投入係数表!L13*移輸入係数!$E13 -> 0.001359537231 | M13: =投入係数表!M13*移輸入係数!$E13 -> 4.578164675e-05 | N13: =投入係数表!N13*移輸入係数!$E13 -> 0.0003868798867 | O13: =投入係数表!O13*移輸入係数!$E13 -> 0.000404893016 | P13: =投入係数表!P13*移輸入係数!$E13 -> 5.421935889e-05 | Q13: =投入係数表!Q13*移輸入係数!$E13 -> 9.821780219e-05 | R13: =投入係数表!R13*移輸入係数!$E13 -> 0.001828238733 | S13: =投入係数表!S13*移輸入係数!$E13 -> 0.0006430801539 | T13: =投入係数表!T13*移輸入係数!$E13 -> 0.00142898019 | U13: =投入係数表!U13*移輸入係数!$E13 -> 0.001258875393 | V13: =投入係数表!V13*移輸入係数!$E13 -> 0 | W13: =投入係数表!W13*移輸入係数!$E13 -> 0.01227132455 | X13: =投入係数表!X13*移輸入係数!$E13 -> 0.009818998782 | Y13: =投入係数表!Y13*移輸入係数!$E13 -> 0.0001863165997 | Z13: =投入係数表!Z13*移輸入係数!$E13 -> 0.0004779343755 | AA13: =投入係数表!AA13*移輸入係数!$E13 -> 0.0005731946324 | AB13: =投入係数表!AB13*移輸入係数!$E13 -> 0.00145195893 | AC13: =投入係数表!AC13*移輸入係数!$E13 -> 0.000836704097 | AD13: =投入係数表!AD13*移輸入係数!$E13 -> 7.171653668e-05 | AE13: =投入係数表!AE13*移輸入係数!$E13 -> 0.0005649619296 | AF13: =投入係数表!AF13*移輸入係数!$E13 -> 0.00186475093 | AG13: =投入係数表!AG13*移輸入係数!$E13 -> 0.0002267048157 | AH13: =投入係数表!AH13*移輸入係数!$E13 -> 0.0009790748 | AI13: =投入係数表!AI13*移輸入係数!$E13 -> 0.001014323976 | AJ13: =投入係数表!AJ13*移輸入係数!$E13 -> 0.00273487205 | AK13: =投入係数表!AK13*移輸入係数!$E13 -> 0.0005684785625 | AL13: =投入係数表!AL13*移輸入係数!$E13 -> 0.001047472404 | AM13: =投入係数表!AM13*移輸入係数!$E13 -> 0.07591640148 | AN13: =投入係数表!AN13*移輸入係数!$E13 -> 0.0004753819998
B14: 20 | C14: 化学製品 | D14: =投入係数表!D14*移輸入係数!$E14 -> 0.002285654516 | E14: =投入係数表!E14*移輸入係数!$E14 -> 0 | F14: =投入係数表!F14*移輸入係数!$E14 -> 0.000246905458 | G14: =投入係数表!G14*移輸入係数!$E14 -> 0.002012535915 | H14: =投入係数表!H14*移輸入係数!$E14 -> 0.0008772610273 | I14: =投入係数表!I14*移輸入係数!$E14 -> 0.01125521016 | J14: =投入係数表!J14*移輸入係数!$E14 -> -4.115582636e-05 | K14: =投入係数表!K14*移輸入係数!$E14 -> 0.005710477693 | L14: =投入係数表!L14*移輸入係数!$E14 -> 0.001286579118 | M14: =投入係数表!M14*移輸入係数!$E14 -> 0.0001157092956 | N14: =投入係数表!N14*移輸入係数!$E14 -> 9.129513951e-05 | O14: =投入係数表!O14*移輸入係数!$E14 -> 0.0002775124853 | P14: =投入係数表!P14*移輸入係数!$E14 -> 6.252443517e-05 | Q14: =投入係数表!Q14*移輸入係数!$E14 -> 9.977874667e-05 | R14: =投入係数表!R14*移輸入係数!$E14 -> 0.0004480095164 | S14: =投入係数表!S14*移輸入係数!$E14 -> 0.0003575495561 | T14: =投入係数表!T14*移輸入係数!$E14 -> 0.0002652079159 | U14: =投入係数表!U14*移輸入係数!$E14 -> 0.0002185963904 | V14: =投入係数表!V14*移輸入係数!$E14 -> 0.000321183293 | W14: =投入係数表!W14*移輸入係数!$E14 -> 0.0007240756713 | X14: =投入係数表!X14*移輸入係数!$E14 -> 0.0001582276047 | Y14: =投入係数表!Y14*移輸入係数!$E14 -> 3.256018364e-05 | Z14: =投入係数表!Z14*移輸入係数!$E14 -> 0.0002247216718 | AA14: =投入係数表!AA14*移輸入係数!$E14 -> 0.0004070160067 | AB14: =投入係数表!AB14*移輸入係数!$E14 -> 1.987327819e-07 | AC14: =投入係数表!AC14*移輸入係数!$E14 -> 6.437272273e-07 | AD14: =投入係数表!AD14*移輸入係数!$E14 -> 9.158554988e-07 | AE14: =投入係数表!AE14*移輸入係数!$E14 -> 8.146838972e-06 | AF14: =投入係数表!AF14*移輸入係数!$E14 -> 2.61598181e-05 | AG14: =投入係数表!AG14*移輸入係数!$E14 -> 2.571286621e-05 | AH14: =投入係数表!AH14*移輸入係数!$E14 -> 0.0001282328469 | AI14: =投入係数表!AI14*移輸入係数!$E14 -> 0.003858541453 | AJ14: =投入係数表!AJ14*移輸入係数!$E14 -> 5.294376455e-05 | AK14: =投入係数表!AK14*移輸入係数!$E14 -> 0.0001313395243 | AL14: =投入係数表!AL14*移輸入係数!$E14 -> 0.0002089633918 | AM14: =投入係数表!AM14*移輸入係数!$E14 -> 0.0002645967547 | AN14: =投入係数表!AN14*移輸入係数!$E14 -> 8.819158065e-05
B15: 21 | C15: 石油・石炭製品 | D15: =投入係数表!D15*移輸入係数!$E15 -> 0.001924165897 | E15: =投入係数表!E15*移輸入係数!$E15 -> 0 | F15: =投入係数表!F15*移輸入係数!$E15 -> 0.002059739202 | G15: =投入係数表!G15*移輸入係数!$E15 -> 0 | H15: =投入係数表!H15*移輸入係数!$E15 -> 0.0004645269901 | I15: =投入係数表!I15*移輸入係数!$E15 -> 0.004721975756 | J15: =投入係数表!J15*移輸入係数!$E15 -> 0.03861514691 | K15: =投入係数表!K15*移輸入係数!$E15 -> 0.0004412323951 | L15: =投入係数表!L15*移輸入係数!$E15 -> 0.01016303096 | M15: =投入係数表!M15*移輸入係数!$E15 -> 0.01444408933 | N15: =投入係数表!N15*移輸入係数!$E15 -> 0.0005331605063 | O15: =投入係数表!O15*移輸入係数!$E15 -> 0.001288569056 | P15: =投入係数表!P15*移輸入係数!$E15 -> 7.679543787e-05 | Q15: =投入係数表!Q15*移輸入係数!$E15 -> 0.0003400567705 | R15: =投入係数表!R15*移輸入係数!$E15 -> 0.0007768464821 | S15: =投入係数表!S15*移輸入係数!$E15 -> 0.0004554242526 | T15: =投入係数表!T15*移輸入係数!$E15 -> 0.0005124012206 | U15: =投入係数表!U15*移輸入係数!$E15 -> 0 | V15: =投入係数表!V15*移輸入係数!$E15 -> 0 | W15: =投入係数表!W15*移輸入係数!$E15 -> 0.001282089864 | X15: =投入係数表!X15*移輸入係数!$E15 -> 0.005484237109 | Y15: =投入係数表!Y15*移輸入係数!$E15 -> 0.0158034398 | Z15: =投入係数表!Z15*移輸入係数!$E15 -> 0.005711669864 | AA15: =投入係数表!AA15*移輸入係数!$E15 -> 0.005890211583 | AB15: =投入係数表!AB15*移輸入係数!$E15 -> 0.0008386055842 | AC15: =投入係数表!AC15*移輸入係数!$E15 -> 0.0002476729644 | AD15: =投入係数表!AD15*移輸入係数!$E15 -> 0.0002086683179 | AE15: =投入係数表!AE15*移輸入係数!$E15 -> 0.0389913285 | AF15: =投入係数表!AF15*移輸入係数!$E15 -> 0.0002930085209 | AG15: =投入係数表!AG15*移輸入係数!$E15 -> 0.005277153621 | AH15: =投入係数表!AH15*移輸入係数!$E15 -> 0.00188155488 | AI15: =投入係数表!AI15*移輸入係数!$E15 -> 0.001051886744 | AJ15: =投入係数表!AJ15*移輸入係数!$E15 -> 0.001410215271 | AK15: =投入係数表!AK15*移輸入係数!$E15 -> 0.001076982693 | AL15: =投入係数表!AL15*移輸入係数!$E15 -> 0.002631672749 | AM15: =投入係数表!AM15*移輸入係数!$E15 -> 0 | AN15: =投入係数表!AN15*移輸入係数!$E15 -> 0.05307123743
B16: 22 | C16: プラスチック・ゴム製品 | D16: =投入係数表!D16*移輸入係数!$E16 -> 0.000176342051 | E16: =投入係数表!E16*移輸入係数!$E16 -> 0 | F16: =投入係数表!F16*移輸入係数!$E16 -> 0.0001916281925 | G16: =投入係数表!G16*移輸入係数!$E16 -> 0.0003336028388 | H16: =投入係数表!H16*移輸入係数!$E16 -> 0.0004360150686 | I16: =投入係数表!I16*移輸入係数!$E16 -> 0.0002021617385 | J16: =投入係数表!J16*移輸入係数!$E16 -> 8.76449022e-07 | K16: =投入係数表!K16*移輸入係数!$E16 -> 0.005406260999 | L16: =投入係数表!L16*移輸入係数!$E16 -> 7.91756955e-05 | M16: =投入係数表!M16*移輸入係数!$E16 -> 1.356245715e-05 | N16: =投入係数表!N16*移輸入係数!$E16 -> 1.98089238e-05 | O16: =投入係数表!O16*移輸入係数!$E16 -> 5.745024082e-05 | P16: =投入係数表!P16*移輸入係数!$E16 -> 0.0003526604858 | Q16: =投入係数表!Q16*移輸入係数!$E16 -> 0.0007410645 | R16: =投入係数表!R16*移輸入係数!$E16 -> 0.001428707459 | S16: =投入係数表!S16*移輸入係数!$E16 -> 0.0005617681951 | T16: =投入係数表!T16*移輸入係数!$E16 -> 0.0007790201483 | U16: =投入係数表!U16*移輸入係数!$E16 -> 0.0004211165313 | V16: =投入係数表!V16*移輸入係数!$E16 -> 0.0007387066973 | W16: =投入係数表!W16*移輸入係数!$E16 -> 0.0008915994997 | X16: =投入係数表!X16*移輸入係数!$E16 -> 0.0002950877134 | Y16: =投入係数表!Y16*移輸入係数!$E16 -> 0 | Z16: =投入係数表!Z16*移輸入係数!$E16 -> 0.0007828194021 | AA16: =投入係数表!AA16*移輸入係数!$E16 -> 0.0002885739641 | AB16: =投入係数表!AB16*移輸入係数!$E16 -> 0.0001256959532 | AC16: =投入係数表!AC16*移輸入係数!$E16 -> 5.891326585e-05 | AD16: =投入係数表!AD16*移輸入係数!$E16 -> 1.235769466e-05 | AE16: =投入係数表!AE16*移輸入係数!$E16 -> 5.924031583e-05 | AF16: =投入係数表!AF16*移輸入係数!$E16 -> 9.598406625e-05 | AG16: =投入係数表!AG16*移輸入係数!$E16 -> 4.249869905e-05 | AH16: =投入係数表!AH16*移輸入係数!$E16 -> 5.34742863e-05 | AI16: =投入係数表!AI16*移輸入係数!$E16 -> 4.293532823e-05 | AJ16: =投入係数表!AJ16*移輸入係数!$E16 -> 0.0001345021363 | AK16: =投入係数表!AK16*移輸入係数!$E16 -> 0.0001775674609 | AL16: =投入係数表!AL16*移輸入係数!$E16 -> 6.381611468e-05 | AM16: =投入係数表!AM16*移輸入係数!$E16 -> 0.001046637362 | AN16: =投入係数表!AN16*移輸入係数!$E16 -> 9.249346709e-05
B17: 25 | C17: 窯業・土石製品 | D17: =投入係数表!D17*移輸入係数!$E17 -> 0.0001074922416 | E17: =投入係数表!E17*移輸入係数!$E17 -> 0 | F17: =投入係数表!F17*移輸入係数!$E17 -> 3.237774686e-05 | G17: =投入係数表!G17*移輸入係数!$E17 -> 4.702542301e-05 | H17: =投入係数表!H17*移輸入係数!$E17 -> 0.0002544513814 | I17: =投入係数表!I17*移輸入係数!$E17 -> 0.0003631916887 | J17: =投入係数表!J17*移輸入係数!$E17 -> 4.843013738e-05 | K17: =投入係数表!K17*移輸入係数!$E17 -> 0.0002420098639 | L17: =投入係数表!L17*移輸入係数!$E17 -> 0.005615355524 | M17: =投入係数表!M17*移輸入係数!$E17 -> 0.0001961178182 | N17: =投入係数表!N17*移輸入係数!$E17 -> 7.148317269e-05 | O17: =投入係数表!O17*移輸入係数!$E17 -> 0.0002285327543 | P17: =投入係数表!P17*移輸入係数!$E17 -> 0.0005328336246 | Q17: =投入係数表!Q17*移輸入係数!$E17 -> 0.0001632018795 | R17: =投入係数表!R17*移輸入係数!$E17 -> 0.0005175212625 | S17: =投入係数表!S17*移輸入係数!$E17 -> 0.002232532994 | T17: =投入係数表!T17*移輸入係数!$E17 -> 0.0003864368475 | U17: =投入係数表!U17*移輸入係数!$E17 -> 7.268761748e-05 | V17: =投入係数表!V17*移輸入係数!$E17 -> 0 | W17: =投入係数表!W17*移輸入係数!$E17 -> 0.0002292677365 | X17: =投入係数表!X17*移輸入係数!$E17 -> 0.004125103647 | Y17: =投入係数表!Y17*移輸入係数!$E17 -> 2.958434327e-06 | Z17: =投入係数表!Z17*移輸入係数!$E17 -> 0.0003169514281 | AA17: =投入係数表!AA17*移輸入係数!$E17 -> 3.209202507e-05 | AB17: =投入係数表!AB17*移輸入係数!$E17 -> 1.587567789e-05 | AC17: =投入係数表!AC17*移輸入係数!$E17 -> 4.174014347e-07 | AD17: =投入係数表!AD17*移輸入係数!$E17 -> 5.107136522e-06 | AE17: =投入係数表!AE17*移輸入係数!$E17 -> 8.53740687e-07 | AF17: =投入係数表!AF17*移輸入係数!$E17 -> 0 | AG17: =投入係数表!AG17*移輸入係数!$E17 -> 1.293233565e-05 | AH17: =投入係数表!AH17*移輸入係数!$E17 -> 0.0001400894363 | AI17: =投入係数表!AI17*移輸入係数!$E17 -> 6.355861402e-05 | AJ17: =投入係数表!AJ17*移輸入係数!$E17 -> 1.884754256e-05 | AK17: =投入係数表!AK17*移輸入係数!$E17 -> 4.087791491e-05 | AL17: =投入係数表!AL17*移輸入係数!$E17 -> 9.811684273e-05 | AM17: =投入係数表!AM17*移輸入係数!$E17 -> 0.0003723393069 | AN17: =投入係数表!AN17*移輸入係数!$E17 -> 0.0001527972856
B18: 26 | C18: 鉄鋼 | D18: =投入係数表!D18*移輸入係数!$E18 -> 0 | E18: =投入係数表!E18*移輸入係数!$E18 -> 0 | F18: =投入係数表!F18*移輸入係数!$E18 -> 0 | G18: =投入係数表!G18*移輸入係数!$E18 -> 0 | H18: =投入係数表!H18*移輸入係数!$E18 -> 0.01441572563 | I18: =投入係数表!I18*移輸入係数!$E18 -> 0 | J18: =投入係数表!J18*移輸入係数!$E18 -> 0 | K18: =投入係数表!K18*移輸入係数!$E18 -> 0.001225176696 | L18: =投入係数表!L18*移輸入係数!$E18 -> 0.007188633564 | M18: =投入係数表!M18*移輸入係数!$E18 -> 0.3666671867 | N18: =投入係数表!N18*移輸入係数!$E18 -> 0 | O18: =投入係数表!O18*移輸入係数!$E18 -> 0.1793764152 | P18: =投入係数表!P18*移輸入係数!$E18 -> 0.06955301839 | Q18: =投入係数表!Q18*移輸入係数!$E18 -> 0.06382520437 | R18: =投入係数表!R18*移輸入係数!$E18 -> 0.009972593865 | S18: =投入係数表!S18*移輸入係数!$E18 -> 0.002419203108 | T18: =投入係数表!T18*移輸入係数!$E18 -> 0.02320388587 | U18: =投入係数表!U18*移輸入係数!$E18 -> 0.00422378871 | V18: =投入係数表!V18*移輸入係数!$E18 -> 0.04739131352 | W18: =投入係数表!W18*移輸入係数!$E18 -> 0.001105817524 | X18: =投入係数表!X18*移輸入係数!$E18 -> 0.01614613792 | Y18: =投入係数表!Y18*移輸入係数!$E18 -> 0 | Z18: =投入係数表!Z18*移輸入係数!$E18 -> 0 | AA18: =投入係数表!AA18*移輸入係数!$E18 -> 0 | AB18: =投入係数表!AB18*移輸入係数!$E18 -> 0 | AC18: =投入係数表!AC18*移輸入係数!$E18 -> 0 | AD18: =投入係数表!AD18*移輸入係数!$E18 -> 0 | AE18: =投入係数表!AE18*移輸入係数!$E18 -> 0.0001052329707 | AF18: =投入係数表!AF18*移輸入係数!$E18 -> 0 | AG18: =投入係数表!AG18*移輸入係数!$E18 -> 1.562797283e-05 | AH18: =投入係数表!AH18*移輸入係数!$E18 -> 0 | AI18: =投入係数表!AI18*移輸入係数!$E18 -> 0 | AJ18: =投入係数表!AJ18*移輸入係数!$E18 -> 0 | AK18: =投入係数表!AK18*移輸入係数!$E18 -> 7.093757996e-05 | AL18: =投入係数表!AL18*移輸入係数!$E18 -> 1.028400062e-05 | AM18: =投入係数表!AM18*移輸入係数!$E18 -> 0 | AN18: =投入係数表!AN18*移輸入係数!$E18 -> 0.001240559802
B19: 27 | C19: 非鉄金属 | D19: =投入係数表!D19*移輸入係数!$E19 -> 0 | E19: =投入係数表!E19*移輸入係数!$E19 -> 0 | F19: =投入係数表!F19*移輸入係数!$E19 -> 8.226711681e-06 | G19: =投入係数表!G19*移輸入係数!$E19 -> 0 | H19: =投入係数表!H19*移輸入係数!$E19 -> 5.168244577e-05 | I19: =投入係数表!I19*移輸入係数!$E19 -> 8.135966319e-05 | J19: =投入係数表!J19*移輸入係数!$E19 -> 0 | K19: =投入係数表!K19*移輸入係数!$E19 -> 2.201358812e-05 | L19: =投入係数表!L19*移輸入係数!$E19 -> 0.0001195954616 | M19: =投入係数表!M19*移輸入係数!$E19 -> 0.0001169265774 | N19: =投入係数表!N19*移輸入係数!$E19 -> 0.00664550858 | O19: =投入係数表!O19*移輸入係数!$E19 -> 0.0004420891821 | P19: =投入係数表!P19*移輸入係数!$E19 -> 0.0003590175044 | Q19: =投入係数表!Q19*移輸入係数!$E19 -> 0.0001814923901 | R19: =投入係数表!R19*移輸入係数!$E19 -> 0.0007302966478 | S19: =投入係数表!S19*移輸入係数!$E19 -> 0.0005168470927 | T19: =投入係数表!T19*移輸入係数!$E19 -> 0.0007144743434 | U19: =投入係数表!U19*移輸入係数!$E19 -> 0.0002801434438 | V19: =投入係数表!V19*移輸入係数!$E19 -> 0.0002245168748 | W19: =投入係数表!W19*移輸入係数!$E19 -> 0.0001851050729 | X19: =投入係数表!X19*移輸入係数!$E19 -> 8.720183058e-05 | Y19: =投入係数表!Y19*移輸入係数!$E19 -> 2.935676949e-06 | Z19: =投入係数表!Z19*移輸入係数!$E19 -> 1.719933641e-06 | AA19: =投入係数表!AA19*移輸入係数!$E19 -> 0 | AB19: =投入係数表!AB19*移輸入係数!$E19 -> 1.111361994e-07 | AC19: =投入係数表!AC19*移輸入係数!$E19 -> 0 | AD19: =投入係数表!AD19*移輸入係数!$E19 -> 0 | AE19: =投入係数表!AE19*移輸入係数!$E19 -> 8.628617921e-08 | AF19: =投入係数表!AF19*移輸入係数!$E19 -> 3.91454283e-07 | AG19: =投入係数表!AG19*移輸入係数!$E19 -> 1.845247169e-06 | AH19: =投入係数表!AH19*移輸入係数!$E19 -> 3.254853083e-07 | AI19: =投入係数表!AI19*移輸入係数!$E19 -> 1.207179089e-05 | AJ19: =投入係数表!AJ19*移輸入係数!$E19 -> 1.451345063e-06 | AK19: =投入係数表!AK19*移輸入係数!$E19 -> 3.576610561e-06 | AL19: =投入係数表!AL19*移輸入係数!$E19 -> 3.331737257e-06 | AM19: =投入係数表!AM19*移輸入係数!$E19 -> 8.854523918e-06 | AN19: =投入係数表!AN19*移輸入係数!$E19 -> 1.664512008e-05
B20: 28 | C20: 金属製品 | D20: =投入係数表!D20*移輸入係数!$E20 -> 0.0002094369592 | E20: =投入係数表!E20*移輸入係数!$E20 -> 0 | F20: =投入係数表!F20*移輸入係数!$E20 -> 0.0005228379269 | G20: =投入係数表!G20*移輸入係数!$E20 -> 0.0001308913283 | H20: =投入係数表!H20*移輸入係数!$E20 -> 0.005932827549 | I20: =投入係数表!I20*移輸入係数!$E20 -> 0.002940839742 | J20: =投入係数表!J20*移輸入係数!$E20 -> 0.0003273744233 | K20: =投入係数表!K20*移輸入係数!$E20 -> 0.001044102005 | L20: =投入係数表!L20*移輸入係数!$E20 -> 0.00255108256 | M20: =投入係数表!M20*移輸入係数!$E20 -> 2.542223918e-05 | N20: =投入係数表!N20*移輸入係数!$E20 -> 0.0001492255703 | O20: =投入係数表!O20*移輸入係数!$E20 -> 0.01040947883 | P20: =投入係数表!P20*移輸入係数!$E20 -> 0.005448772311 | Q20: =投入係数表!Q20*移輸入係数!$E20 -> 0.00710157876 | R20: =投入係数表!R20*移輸入係数!$E20 -> 0.004321431332 | S20: =投入係数表!S20*移輸入係数!$E20 -> 0.003473505066 | T20: =投入係数表!T20*移輸入係数!$E20 -> 0.007895011275 | U20: =投入係数表!U20*移輸入係数!$E20 -> 0.00234691082 | V20: =投入係数表!V20*移輸入係数!$E20 -> 0.002497053482 | W20: =投入係数表!W20*移輸入係数!$E20 -> 0.001620339871 | X20: =投入係数表!X20*移輸入係数!$E20 -> 0.01957869834 | Y20: =投入係数表!Y20*移輸入係数!$E20 -> 0.0001325014644 | Z20: =投入係数表!Z20*移輸入係数!$E20 -> 0.0001184171499 | AA20: =投入係数表!AA20*移輸入係数!$E20 -> 2.350670138e-05 | AB20: =投入係数表!AB20*移輸入係数!$E20 -> 0.0006083108783 | AC20: =投入係数表!AC20*移輸入係数!$E20 -> 2.381694e-05 | AD20: =投入係数表!AD20*移輸入係数!$E20 -> 6.181996893e-05 | AE20: =投入係数表!AE20*移輸入係数!$E20 -> 0.0002714940724 | AF20: =投入係数表!AF20*移輸入係数!$E20 -> 6.295115161e-05 | AG20: =投入係数表!AG20*移輸入係数!$E20 -> 0.0008984902312 | AH20: =投入係数表!AH20*移輸入係数!$E20 -> 2.285780247e-05 | AI20: =投入係数表!AI20*移輸入係数!$E20 -> 6.277454501e-05 | AJ20: =投入係数表!AJ20*移輸入係数!$E20 -> 0.0003972013594 | AK20: =投入係数表!AK20*移輸入係数!$E20 -> 0.0002272307104 | AL20: =投入係数表!AL20*移輸入係数!$E20 -> 0.000536446464 | AM20: =投入係数表!AM20*移輸入係数!$E20 -> 6.096325241e-05 | AN20: =投入係数表!AN20*移輸入係数!$E20 -> 0.001036505811
B21: 29 | C21: はん用機械 | D21: =投入係数表!D21*移輸入係数!$E21 -> 0 | E21: =投入係数表!E21*移輸入係数!$E21 -> 0 | F21: =投入係数表!F21*移輸入係数!$E21 -> 0 | G21: =投入係数表!G21*移輸入係数!$E21 -> 0 | H21: =投入係数表!H21*移輸入係数!$E21 -> 4.484119028e-05 | I21: =投入係数表!I21*移輸入係数!$E21 -> 0 | J21: =投入係数表!J21*移輸入係数!$E21 -> 0 | K21: =投入係数表!K21*移輸入係数!$E21 -> 1.114680877e-05 | L21: =投入係数表!L21*移輸入係数!$E21 -> 2.972867055e-05 | M21: =投入係数表!M21*移輸入係数!$E21 -> 7.949881222e-08 | N21: =投入係数表!N21*移輸入係数!$E21 -> 0 | O21: =投入係数表!O21*移輸入係数!$E21 -> 3.305380316e-05 | P21: =投入係数表!P21*移輸入係数!$E21 -> 0.00494253577 | Q21: =投入係数表!Q21*移輸入係数!$E21 -> 0.0010397755 | R21: =投入係数表!R21*移輸入係数!$E21 -> 0.0001511155264 | S21: =投入係数表!S21*移輸入係数!$E21 -> 5.906072587e-05 | T21: =投入係数表!T21*移輸入係数!$E21 -> 9.397880883e-05 | U21: =投入係数表!U21*移輸入係数!$E21 -> 2.142682837e-05 | V21: =投入係数表!V21*移輸入係数!$E21 -> 0.000306953413 | W21: =投入係数表!W21*移輸入係数!$E21 -> 1.469205579e-06 | X21: =投入係数表!X21*移輸入係数!$E21 -> 0.0002099188289 | Y21: =投入係数表!Y21*移輸入係数!$E21 -> 0 | Z21: =投入係数表!Z21*移輸入係数!$E21 -> 0.0002860927017 | AA21: =投入係数表!AA21*移輸入係数!$E21 -> 0 | AB21: =投入係数表!AB21*移輸入係数!$E21 -> 7.597120651e-08 | AC21: =投入係数表!AC21*移輸入係数!$E21 -> 0 | AD21: =投入係数表!AD21*移輸入係数!$E21 -> 0 | AE21: =投入係数表!AE21*移輸入係数!$E21 -> 1.966135599e-06 | AF21: =投入係数表!AF21*移輸入係数!$E21 -> 0 | AG21: =投入係数表!AG21*移輸入係数!$E21 -> 8.596112473e-06 | AH21: =投入係数表!AH21*移輸入係数!$E21 -> 0 | AI21: =投入係数表!AI21*移輸入係数!$E21 -> 0 | AJ21: =投入係数表!AJ21*移輸入係数!$E21 -> 0 | AK21: =投入係数表!AK21*移輸入係数!$E21 -> 0.0002003090261 | AL21: =投入係数表!AL21*移輸入係数!$E21 -> 1.434664969e-07 | AM21: =投入係数表!AM21*移輸入係数!$E21 -> 0 | AN21: =投入係数表!AN21*移輸入係数!$E21 -> 0
B22: 30 | C22: 生産用機械 | D22: =投入係数表!D22*移輸入係数!$E22 -> 0 | E22: =投入係数表!E22*移輸入係数!$E22 -> 0 | F22: =投入係数表!F22*移輸入係数!$E22 -> 0 | G22: =投入係数表!G22*移輸入係数!$E22 -> 0 | H22: =投入係数表!H22*移輸入係数!$E22 -> 3.559823999e-05 | I22: =投入係数表!I22*移輸入係数!$E22 -> 0 | J22: =投入係数表!J22*移輸入係数!$E22 -> 0 | K22: =投入係数表!K22*移輸入係数!$E22 -> 0.0007203214537 | L22: =投入係数表!L22*移輸入係数!$E22 -> 0.000332299385 | M22: =投入係数表!M22*移輸入係数!$E22 -> 2.545517869e-06 | N22: =投入係数表!N22*移輸入係数!$E22 -> 1.437591138e-05 | O22: =投入係数表!O22*移輸入係数!$E22 -> 0.0001993031779 | P22: =投入係数表!P22*移輸入係数!$E22 -> 0.001639977983 | Q22: =投入係数表!Q22*移輸入係数!$E22 -> 0.04864064717 | R22: =投入係数表!R22*移輸入係数!$E22 -> 6.283966675e-05 | S22: =投入係数表!S22*移輸入係数!$E22 -> 0.0008841502333 | T22: =投入係数表!T22*移輸入係数!$E22 -> 0.0006465966106 | U22: =投入係数表!U22*移輸入係数!$E22 -> 0.000187112142 | V22: =投入係数表!V22*移輸入係数!$E22 -> 0 | W22: =投入係数表!W22*移輸入係数!$E22 -> 0 | X22: =投入係数表!X22*移輸入係数!$E22 -> 1.172878003e-05 | Y22: =投入係数表!Y22*移輸入係数!$E22 -> 2.596223353e-06 | Z22: =投入係数表!Z22*移輸入係数!$E22 -> 5.47580509e-05 | AA22: =投入係数表!AA22*移輸入係数!$E22 -> 0 | AB22: =投入係数表!AB22*移輸入係数!$E22 -> 6.634269401e-07 | AC22: =投入係数表!AC22*移輸入係数!$E22 -> 0 | AD22: =投入係数表!AD22*移輸入係数!$E22 -> 0 | AE22: =投入係数表!AE22*移輸入係数!$E22 -> 8.928137904e-06 | AF22: =投入係数表!AF22*移輸入係数!$E22 -> 0 | AG22: =投入係数表!AG22*移輸入係数!$E22 -> 3.263760882e-06 | AH22: =投入係数表!AH22*移輸入係数!$E22 -> 0 | AI22: =投入係数表!AI22*移輸入係数!$E22 -> 0 | AJ22: =投入係数表!AJ22*移輸入係数!$E22 -> 0 | AK22: =投入係数表!AK22*移輸入係数!$E22 -> 0.002577317281 | AL22: =投入係数表!AL22*移輸入係数!$E22 -> 6.264185038e-07 | AM22: =投入係数表!AM22*移輸入係数!$E22 -> 0 | AN22: =投入係数表!AN22*移輸入係数!$E22 -> 3.827313788e-05
B23: 31 | C23: 業務用機械 | D23: =投入係数表!D23*移輸入係数!$E23 -> 4.944837983e-05 | E23: =投入係数表!E23*移輸入係数!$E23 -> 0 | F23: =投入係数表!F23*移輸入係数!$E23 -> 0 | G23: =投入係数表!G23*移輸入係数!$E23 -> 0 | H23: =投入係数表!H23*移輸入係数!$E23 -> 0 | I23: =投入係数表!I23*移輸入係数!$E23 -> 0 | J23: =投入係数表!J23*移輸入係数!$E23 -> 0 | K23: =投入係数表!K23*移輸入係数!$E23 -> 0 | L23: =投入係数表!L23*移輸入係数!$E23 -> 0 | M23: =投入係数表!M23*移輸入係数!$E23 -> 0 | N23: =投入係数表!N23*移輸入係数!$E23 -> 0 | O23: =投入係数表!O23*移輸入係数!$E23 -> 0 | P23: =投入係数表!P23*移輸入係数!$E23 -> 7.349718948e-05 | Q23: =投入係数表!Q23*移輸入係数!$E23 -> 0.0001538499628 | R23: =投入係数表!R23*移輸入係数!$E23 -> 0.001623269242 | S23: =投入係数表!S23*移輸入係数!$E23 -> 0 | T23: =投入係数表!T23*移輸入係数!$E23 -> 2.4519718e-05 | U23: =投入係数表!U23*移輸入係数!$E23 -> 9.224171523e-06 | V23: =投入係数表!V23*移輸入係数!$E23 -> 0 | W23: =投入係数表!W23*移輸入係数!$E23 -> 2.529950588e-06 | X23: =投入係数表!X23*移輸入係数!$E23 -> 5.645954938e-06 | Y23: =投入係数表!Y23*移輸入係数!$E23 -> 0 | Z23: =投入係数表!Z23*移輸入係数!$E23 -> 1.349719073e-06 | AA23: =投入係数表!AA23*移輸入係数!$E23 -> 5.358589227e-07 | AB23: =投入係数表!AB23*移輸入係数!$E23 -> 2.528121818e-05 | AC23: =投入係数表!AC23*移輸入係数!$E23 -> 2.648444509e-07 | AD23: =投入係数表!AD23*移輸入係数!$E23 -> 0 | AE23: =投入係数表!AE23*移輸入係数!$E23 -> 6.771313676e-08 | AF23: =投入係数表!AF23*移輸入係数!$E23 -> 1.316545757e-06 | AG23: =投入係数表!AG23*移輸入係数!$E23 -> 7.256384286e-05 | AH23: =投入係数表!AH23*移輸入係数!$E23 -> 0 | AI23: =投入係数表!AI23*移輸入係数!$E23 -> 0.0002459734265 | AJ23: =投入係数表!AJ23*移輸入係数!$E23 -> 0 | AK23: =投入係数表!AK23*移輸入係数!$E23 -> 9.160772842e-05 | AL23: =投入係数表!AL23*移輸入係数!$E23 -> 2.007258631e-05 | AM23: =投入係数表!AM23*移輸入係数!$E23 -> 0.0005883142546 | AN23: =投入係数表!AN23*移輸入係数!$E23 -> 2.902726467e-07
B24: 32 | C24: 電子部品 | D24: =投入係数表!D24*移輸入係数!$E24 -> 0 | E24: =投入係数表!E24*移輸入係数!$E24 -> 0 | F24: =投入係数表!F24*移輸入係数!$E24 -> 0 | G24: =投入係数表!G24*移輸入係数!$E24 -> 0 | H24: =投入係数表!H24*移輸入係数!$E24 -> 0 | I24: =投入係数表!I24*移輸入係数!$E24 -> 0 | J24: =投入係数表!J24*移輸入係数!$E24 -> 0 | K24: =投入係数表!K24*移輸入係数!$E24 -> 0 | L24: =投入係数表!L24*移輸入係数!$E24 -> 0 | M24: =投入係数表!M24*移輸入係数!$E24 -> 0 | N24: =投入係数表!N24*移輸入係数!$E24 -> 0 | O24: =投入係数表!O24*移輸入係数!$E24 -> 1.27900783e-05 | P24: =投入係数表!P24*移輸入係数!$E24 -> 0.003364217435 | Q24: =投入係数表!Q24*移輸入係数!$E24 -> 0.0006119841031 | R24: =投入係数表!R24*移輸入係数!$E24 -> 0.02435431174 | S24: =投入係数表!S24*移輸入係数!$E24 -> 0.05909885508 | T24: =投入係数表!T24*移輸入係数!$E24 -> 0.03184237785 | U24: =投入係数表!U24*移輸入係数!$E24 -> 0.09053829172 | V24: =投入係数表!V24*移輸入係数!$E24 -> 0.003261738179 | W24: =投入係数表!W24*移輸入係数!$E24 -> 0.0001492325785 | X24: =投入係数表!X24*移輸入係数!$E24 -> 8.538518874e-05 | Y24: =投入係数表!Y24*移輸入係数!$E24 -> 0 | Z24: =投入係数表!Z24*移輸入係数!$E24 -> 0 | AA24: =投入係数表!AA24*移輸入係数!$E24 -> 0 | AB24: =投入係数表!AB24*移輸入係数!$E24 -> 5.556004571e-06 | AC24: =投入係数表!AC24*移輸入係数!$E24 -> 9.99821464e-06 | AD24: =投入係数表!AD24*移輸入係数!$E24 -> 0 | AE24: =投入係数表!AE24*移輸入係数!$E24 -> 0 | AF24: =投入係数表!AF24*移輸入係数!$E24 -> 0.0002037752302 | AG24: =投入係数表!AG24*移輸入係数!$E24 -> 0.0004722540683 | AH24: =投入係数表!AH24*移輸入係数!$E24 -> 0.0001612726746 | AI24: =投入係数表!AI24*移輸入係数!$E24 -> 1.888895338e-06 | AJ24: =投入係数表!AJ24*移輸入係数!$E24 -> 0 | AK24: =投入係数表!AK24*移輸入係数!$E24 -> 0.002432310309 | AL24: =投入係数表!AL24*移輸入係数!$E24 -> 1.748689951e-06 | AM24: =投入係数表!AM24*移輸入係数!$E24 -> 0.00804442598 | AN24: =投入係数表!AN24*移輸入係数!$E24 -> 0
B25: 33 | C25: 電気機械 | D25: =投入係数表!D25*移輸入係数!$E25 -> 0 | E25: =投入係数表!E25*移輸入係数!$E25 -> 0 | F25: =投入係数表!F25*移輸入係数!$E25 -> 0 | G25: =投入係数表!G25*移輸入係数!$E25 -> 0 | H25: =投入係数表!H25*移輸入係数!$E25 -> 4.46262197e-06 | I25: =投入係数表!I25*移輸入係数!$E25 -> 0 | J25: =投入係数表!J25*移輸入係数!$E25 -> 0 | K25: =投入係数表!K25*移輸入係数!$E25 -> 0 | L25: =投入係数表!L25*移輸入係数!$E25 -> 3.905371805e-06 | M25: =投入係数表!M25*移輸入係数!$E25 -> 0 | N25: =投入係数表!N25*移輸入係数!$E25 -> 0 | O25: =投入係数表!O25*移輸入係数!$E25 -> 1.1630853e-05 | P25: =投入係数表!P25*移輸入係数!$E25 -> 0.0006728362876 | Q25: =投入係数表!Q25*移輸入係数!$E25 -> 0.0008901452042 | R25: =投入係数表!R25*移輸入係数!$E25 -> 0.0004726576552 | S25: =投入係数表!S25*移輸入係数!$E25 -> 0.0008797745138 | T25: =投入係数表!T25*移輸入係数!$E25 -> 0.003638249719 | U25: =投入係数表!U25*移輸入係数!$E25 -> 0.0003782363522 | V25: =投入係数表!V25*移輸入係数!$E25 -> 0.001085635552 | W25: =投入係数表!W25*移輸入係数!$E25 -> 1.5681689e-05 | X25: =投入係数表!X25*移輸入係数!$E25 -> 0.0003923182746 | Y25: =投入係数表!Y25*移輸入係数!$E25 -> 0 | Z25: =投入係数表!Z25*移輸入係数!$E25 -> 7.722573958e-06 | AA25: =投入係数表!AA25*移輸入係数!$E25 -> 0 | AB25: =投入係数表!AB25*移輸入係数!$E25 -> 9.980123643e-06 | AC25: =投入係数表!AC25*移輸入係数!$E25 -> 0 | AD25: =投入係数表!AD25*移輸入係数!$E25 -> 5.03050324e-07 | AE25: =投入係数表!AE25*移輸入係数!$E25 -> 5.553142584e-06 | AF25: =投入係数表!AF25*移輸入係数!$E25 -> 3.891930645e-06 | AG25: =投入係数表!AG25*移輸入係数!$E25 -> 8.070434503e-05 | AH25: =投入係数表!AH25*移輸入係数!$E25 -> 2.29446495e-05 | AI25: =投入係数表!AI25*移輸入係数!$E25 -> 2.95825391e-06 | AJ25: =投入係数表!AJ25*移輸入係数!$E25 -> 0 | AK25: =投入係数表!AK25*移輸入係数!$E25 -> 0.0002682735181 | AL25: =投入係数表!AL25*移輸入係数!$E25 -> 7.303131137e-06 | AM25: =投入係数表!AM25*移輸入係数!$E25 -> 0 | AN25: =投入係数表!AN25*移輸入係数!$E25 -> 3.210935213e-05
B26: 34 | C26: 情報通信機器 | D26: =投入係数表!D26*移輸入係数!$E26 -> 0 | E26: =投入係数表!E26*移輸入係数!$E26 -> 0 | F26: =投入係数表!F26*移輸入係数!$E26 -> 1.633645646e-08 | G26: =投入係数表!G26*移輸入係数!$E26 -> 0 | H26: =投入係数表!H26*移輸入係数!$E26 -> 0 | I26: =投入係数表!I26*移輸入係数!$E26 -> 0 | J26: =投入係数表!J26*移輸入係数!$E26 -> 0 | K26: =投入係数表!K26*移輸入係数!$E26 -> 0 | L26: =投入係数表!L26*移輸入係数!$E26 -> 0 | M26: =投入係数表!M26*移輸入係数!$E26 -> 0 | N26: =投入係数表!N26*移輸入係数!$E26 -> 0 | O26: =投入係数表!O26*移輸入係数!$E26 -> 7.058577908e-08 | P26: =投入係数表!P26*移輸入係数!$E26 -> 6.507815761e-06 | Q26: =投入係数表!Q26*移輸入係数!$E26 -> 1.592392367e-06 | R26: =投入係数表!R26*移輸入係数!$E26 -> 0 | S26: =投入係数表!S26*移輸入係数!$E26 -> 0 | T26: =投入係数表!T26*移輸入係数!$E26 -> 0 | U26: =投入係数表!U26*移輸入係数!$E26 -> 6.774263394e-05 | V26: =投入係数表!V26*移輸入係数!$E26 -> 2.117747515e-06 | W26: =投入係数表!W26*移輸入係数!$E26 -> 0 | X26: =投入係数表!X26*移輸入係数!$E26 -> 4.450046515e-06 | Y26: =投入係数表!Y26*移輸入係数!$E26 -> 8.888363027e-09 | Z26: =投入係数表!Z26*移輸入係数!$E26 -> 0 | AA26: =投入係数表!AA26*移輸入係数!$E26 -> 5.582080025e-08 | AB26: =投入係数表!AB26*移輸入係数!$E26 -> 7.835954946e-07 | AC26: =投入係数表!AC26*移輸入係数!$E26 -> 3.448629053e-07 | AD26: =投入係数表!AD26*移輸入係数!$E26 -> 1.766339016e-07 | AE26: =投入係数表!AE26*移輸入係数!$E26 -> 2.609878251e-07 | AF26: =投入係数表!AF26*移輸入係数!$E26 -> 4.868665107e-07 | AG26: =投入係数表!AG26*移輸入係数!$E26 -> 3.913597959e-06 | AH26: =投入係数表!AH26*移輸入係数!$E26 -> 1.756113621e-07 | AI26: =投入係数表!AI26*移輸入係数!$E26 -> 8.339536065e-08 | AJ26: =投入係数表!AJ26*移輸入係数!$E26 -> 0 | AK26: =投入係数表!AK26*移輸入係数!$E26 -> 3.261873977e-06 | AL26: =投入係数表!AL26*移輸入係数!$E26 -> 3.731586887e-07 | AM26: =投入係数表!AM26*移輸入係数!$E26 -> 0 | AN26: =投入係数表!AN26*移輸入係数!$E26 -> 6.047581086e-08
B27: 35 | C27: 輸送機械 | D27: =投入係数表!D27*移輸入係数!$E27 -> 5.663164412e-07 | E27: =投入係数表!E27*移輸入係数!$E27 -> 0 | F27: =投入係数表!F27*移輸入係数!$E27 -> 0 | G27: =投入係数表!G27*移輸入係数!$E27 -> 0 | H27: =投入係数表!H27*移輸入係数!$E27 -> 0 | I27: =投入係数表!I27*移輸入係数!$E27 -> 0 | J27: =投入係数表!J27*移輸入係数!$E27 -> 0 | K27: =投入係数表!K27*移輸入係数!$E27 -> 0 | L27: =投入係数表!L27*移輸入係数!$E27 -> 0 | M27: =投入係数表!M27*移輸入係数!$E27 -> 0 | N27: =投入係数表!N27*移輸入係数!$E27 -> 0 | O27: =投入係数表!O27*移輸入係数!$E27 -> 0 | P27: =投入係数表!P27*移輸入係数!$E27 -> 0 | Q27: =投入係数表!Q27*移輸入係数!$E27 -> 1.342955912e-05 | R27: =投入係数表!R27*移輸入係数!$E27 -> 0 | S27: =投入係数表!S27*移輸入係数!$E27 -> 0 | T27: =投入係数表!T27*移輸入係数!$E27 -> 0 | U27: =投入係数表!U27*移輸入係数!$E27 -> 0 | V27: =投入係数表!V27*移輸入係数!$E27 -> 0.002727815895 | W27: =投入係数表!W27*移輸入係数!$E27 -> 0 | X27: =投入係数表!X27*移輸入係数!$E27 -> 0 | Y27: =投入係数表!Y27*移輸入係数!$E27 -> 0 | Z27: =投入係数表!Z27*移輸入係数!$E27 -> 0 | AA27: =投入係数表!AA27*移輸入係数!$E27 -> 0 | AB27: =投入係数表!AB27*移輸入係数!$E27 -> 0 | AC27: =投入係数表!AC27*移輸入係数!$E27 -> 0 | AD27: =投入係数表!AD27*移輸入係数!$E27 -> 0 | AE27: =投入係数表!AE27*移輸入係数!$E27 -> 0.0001156630282 | AF27: =投入係数表!AF27*移輸入係数!$E27 -> 0 | AG27: =投入係数表!AG27*移輸入係数!$E27 -> 4.104025531e-05 | AH27: =投入係数表!AH27*移輸入係数!$E27 -> 8.144031011e-07 | AI27: =投入係数表!AI27*移輸入係数!$E27 -> 0 | AJ27: =投入係数表!AJ27*移輸入係数!$E27 -> 0 | AK27: =投入係数表!AK27*移輸入係数!$E27 -> 0.0001674212053 | AL27: =投入係数表!AL27*移輸入係数!$E27 -> 1.641024487e-07 | AM27: =投入係数表!AM27*移輸入係数!$E27 -> 0 | AN27: =投入係数表!AN27*移輸入係数!$E27 -> 0.000162350377
B28: 39 | C28: その他の製造工業製品 | D28: =投入係数表!D28*移輸入係数!$E28 -> 0.0001509586657 | E28: =投入係数表!E28*移輸入係数!$E28 -> 0 | F28: =投入係数表!F28*移輸入係数!$E28 -> 0.002150044705 | G28: =投入係数表!G28*移輸入係数!$E28 -> 0.005471968559 | H28: =投入係数表!H28*移輸入係数!$E28 -> 0.002574647961 | I28: =投入係数表!I28*移輸入係数!$E28 -> 0.001116632008 | J28: =投入係数表!J28*移輸入係数!$E28 -> 0.006055800264 | K28: =投入係数表!K28*移輸入係数!$E28 -> 0.0005826358484 | L28: =投入係数表!L28*移輸入係数!$E28 -> 0.001398507016 | M28: =投入係数表!M28*移輸入係数!$E28 -> 0.002166840299 | N28: =投入係数表!N28*移輸入係数!$E28 -> 0.008515111348 | O28: =投入係数表!O28*移輸入係数!$E28 -> 0.0003342274902 | P28: =投入係数表!P28*移輸入係数!$E28 -> 0.0002323895958 | Q28: =投入係数表!Q28*移輸入係数!$E28 -> 0.0005768866304 | R28: =投入係数表!R28*移輸入係数!$E28 -> 0.001292942325 | S28: =投入係数表!S28*移輸入係数!$E28 -> 0.001332214502 | T28: =投入係数表!T28*移輸入係数!$E28 -> 0.0007442736651 | U28: =投入係数表!U28*移輸入係数!$E28 -> 0.001749945684 | V28: =投入係数表!V28*移輸入係数!$E28 -> 0 | W28: =投入係数表!W28*移輸入係数!$E28 -> 0.01208710937 | X28: =投入係数表!X28*移輸入係数!$E28 -> 0.0009153915158 | Y28: =投入係数表!Y28*移輸入係数!$E28 -> 0.00236873598 | Z28: =投入係数表!Z28*移輸入係数!$E28 -> 0.001024237271 | AA28: =投入係数表!AA28*移輸入係数!$E28 -> 0.001091144537 | AB28: =投入係数表!AB28*移輸入係数!$E28 -> 0.001978035193 | AC28: =投入係数表!AC28*移輸入係数!$E28 -> 0.005286553306 | AD28: =投入係数表!AD28*移輸入係数!$E28 -> 2.287510698e-05 | AE28: =投入係数表!AE28*移輸入係数!$E28 -> 0.0008058765079 | AF28: =投入係数表!AF28*移輸入係数!$E28 -> 0.004141118735 | AG28: =投入係数表!AG28*移輸入係数!$E28 -> 0.002754279008 | AH28: =投入係数表!AH28*移輸入係数!$E28 -> 0.004084960464 | AI28: =投入係数表!AI28*移輸入係数!$E28 -> 0.001554846116 | AJ28: =投入係数表!AJ28*移輸入係数!$E28 -> 0.01299676315 | AK28: =投入係数表!AK28*移輸入係数!$E28 -> 0.00252688684 | AL28: =投入係数表!AL28*移輸入係数!$E28 -> 0.001968459363 | AM28: =投入係数表!AM28*移輸入係数!$E28 -> 0.04423423713 | AN28: =投入係数表!AN28*移輸入係数!$E28 -> 0.0005616987836
